Workbook

Sheet Front
J3: Uganda oil refinery model
J4: Last updated 11 December 2023
B8: Purpose
B16: Table of contents
B18: Dashboard | C18: The main results of the model are presented in this sheet.
B19: Inputs | C19: The inputs for the model are set out in this sheet, and can be changed by the user.
B20: Model | C20: The calculation of investor returns and government revenues for the modeled project takes place in this sheet. Additional results are also presented here.
B22: Key
B24: Cell color:
B25: Yellow | D25: These cells can be changed by the user.
B26: Transparent | D26: These cells cannot be changed by the user.
B28: Font color:
B29: Blue font | D29: Imported from another sheet.
B30: Red font | D30: Exported to another sheet (except for cells that can be changed by the user).
B31: Black font | D31: Within sheet link or calculation.
B33: Sources
B36: Disclaimer
K42: This work is licensed under the Creative Commons Attribution 4.0 International License.
K43: To view a copy of this license, visit http://creativecommons.org/licenses/by/4.0/

Sheet Dashboard
B2: Dashboard
B5: Risk analysis variables
B6: Construction cost overrun | C6: % | D6: 0
B7: Feedstock volume | C7: Million barrels | D7: 490
B8: Global oil price scenario | C8: - | D8: Rystad base case
B9: Government caps product prices | C9: - | D9: No
B10: Government cap as % of market price | C10: % | D10: 0.1
B11: Demand scenario | D11: Energy Transition Plan
B12: % of production surplus sold to region | C12: % | D12: 1
B14: Key results
B15: ="Project pre-tax net cashflow (NPV"&Inputs!E272*100&")" -> Project pre-tax net cashflow (NPV8) | C15: ="US$ mln "&Inputs!D6 -> US$ mln 2023 | D15: =Model!F40 -> 1720.544624
B16: Pre-tax project IRR | C16: % | D16: =Model!F62 -> 0.1470251391
B17: ="Project post-tax net cashflow (NPV"&Inputs!E272*100&")" -> Project post-tax net cashflow (NPV8) | C17: ="US$ mln "&Inputs!D6 -> US$ mln 2023 | D17: =Model!F223 -> 1033.208366
B18: Post-tax IRR | C18: % | D18: =Model!F207 -> 0.1328634188
B19: Investor hurdle | C19: % | D19: =Inputs!E263 + Inputs!E287 -> 0.1
B20: IRR above hurdle? | C20: - | D20: =IF(D18 > D19, "Yes", "No") -> Yes
B21: State equity | C21: % | D21: =Inputs!E267 -> 0.4
B22: State equity upfront contribution | C22: ="US$ mln "&Inputs!D6 -> US$ mln 2023 | D22: =Model!F306 -> 540
B23: State equity contribution financed by debt | C23: - | D23: =Inputs!E268 -> 1
B24: ="Additional state funding required during project (NPV"&Inputs!E272*100&")" -> Additional state funding required during project (NPV8) | C24: ="US$ mln "&Inputs!D6 -> US$ mln 2023 | D24: =Model!F323 -> -327.1531235
B25: ="State equity net cashflow (NPV"&Inputs!E272*100&")" -> State equity net cashflow (NPV8) | C25: ="US$ mln "&Inputs!D6 -> US$ mln 2023 | D25: =Model!F321 -> 592.0676358
B26: ="Government tax revenue (NPV"&Inputs!E272*100&")" -> Government tax revenue (NPV8) | C26: ="US$ mln "&Inputs!D6 -> US$ mln 2023 | D26: =Model!F245 -> 687.3362583

Sheet Inputs
B2: Inputs
C5: First year of model | D5: 2021
C6: Current year | D6: 2023
E8: 1 | F8: 2 | G8: 3 | H8: 4 | I8: 5 | J8: 6 | K8: 7 | L8: 8 | M8: 9 | N8: 10 | O8: 11 | P8: 12 | Q8: 13 | R8: 14 | S8: 15 | T8: 16 | U8: 17 | V8: 18 | W8: 19 | X8: 20 | Y8: 21 | Z8: 22 | AA8: 23 | AB8: 24 | AC8: 25 | AD8: 26 | AE8: 27 | AF8: 28 | AG8: 29 | AH8: 30 | AI8: 31 | AJ8: 32 | AK8: 33 | AL8: 34 | AM8: 35 | AN8: 36 | AO8: 37 | AP8: 38 | AQ8: 39 | AR8: 40 | AS8: 41 | AT8: 42 | AU8: 43 | AV8: 44 | AW8: 45 | AX8: 46 | AY8: 47 | AZ8: 48 | BA8: 49 | BB8: 50 | BC8: 51 | BD8: 52 | BE8: 53 | BF8: 54 | BG8: 55 | BH8: 56 | BI8: 57 | BJ8: 58 | BK8: 59 | BL8: 60 | BM8: 61 | BN8: 62 | BO8: 63 | BP8: 64 | BQ8: 65 | BR8: 66 | BS8: 67 | BT8: 68 | BU8: 69 | BV8: 70 | BW8: 71 | BX8: 72 | BY8: 73 | BZ8: 74 | CA8: 75 | CB8: 76 | CC8: 77 | CD8: 78 | CE8: 79 | CF8: 80
E9: =D5 -> 2021 | F9: =E9+1 -> 2022 | G9: =F9+1 -> 2023 | H9: 2024 | I9: 2025 | J9: 2026 | K9: 2027 | L9: 2028 | M9: 2029 | N9: 2030 | O9: 2031 | P9: 2032 | Q9: 2033 | R9: 2034 | S9: 2035 | T9: 2036 | U9: 2037 | V9: 2038 | W9: 2039 | X9: 2040 | Y9: 2041 | Z9: 2042 | AA9: 2043 | AB9: 2044 | AC9: 2045 | AD9: 2046 | AE9: 2047 | AF9: 2048 | AG9: 2049 | AH9: 2050 | AI9: 2051 | AJ9: 2052 | AK9: 2053 | AL9: 2054 | AM9: 2055 | AN9: 2056 | AO9: 2057 | AP9: 2058 | AQ9: 2059 | AR9: 2060 | AS9: =AR9+1 -> 2061 | AT9: =AS9+1 -> 2062 | AU9: 2063 | AV9: 2064 | AW9: 2065 | AX9: 2066 | AY9: 2067 | AZ9: 2068 | BA9: 2069 | BB9: 2070 | BC9: 2071 | BD9: 2072 | BE9: 2073 | BF9: 2074 | BG9: 2075 | BH9: 2076 | BI9: 2077 | BJ9: 2078 | BK9: 2079 | BL9: 2080 | BM9: 2081 | BN9: 2082 | BO9: 2083 | BP9: 2084 | BQ9: 2085 | BR9: 2086 | BS9: 2087 | BT9: 2088 | BU9: 2089 | BV9: 2090 | BW9: 2091 | BX9: 2092 | BY9: 2093 | BZ9: 2094 | CA9: =BZ9+1 -> 2095 | CB9: 2096 | CC9: 2097 | CD9: 2098 | CE9: 2099 | CF9: 2100
C11: Ugandan petroleum products consumption
C13: ="Consumption in "&D5 -> Consumption in 2021
C15: Petrol | D15: Thousand barrels per day | E15: 16.85404341
C16: Diesel | D16: Thousand barrels per day | E16: 18.26970769
C17: Jet fuel | D17: Thousand barrels per day | E17: 2.582623067
C18: Kerosene | D18: Thousand barrels per day | E18: 1.235425356
C19: Liquefied petroleum gas | D19: Thousand barrels per day | E19: 1.372785909
C20: Heavy fuel oil | D20: Thousand barrels per day | E20: 0.8932549342
C21: Total | D21: Thousand barrels per day | E21: =SUM(E15:E20) -> 41.20784037
C23: Future demand
C25: Demand growth scenario 1 | D25: Energy Transition Plan
C26: Petrol | D26: % | F26: 0.103612316 | G26: 0.103612316 | H26: 0.103612316 | I26: 0.103612316 | J26: 0.103612316 | K26: 0.103612316 | L26: 0.103612316 | M26: 0.103612316 | N26: 0.07700589112 | O26: 0.03285672492 | P26: 0.03285672492 | Q26: 0.03285672492 | R26: 0.03285672492 | S26: 0.03285672492 | T26: 0.03285672492 | U26: 0.03285672492 | V26: 0.03285672492 | W26: 0.03285672492 | X26: 0.03285672492 | Y26: -0.01403977194 | Z26: -0.01403977194 | AA26: -0.01403977194 | AB26: -0.01403977194 | AC26: -0.01403977194 | AD26: -0.01403977194 | AE26: -0.01403977194 | AF26: -0.01403977194 | AG26: -0.01403977194 | AH26: -0.01403977194 | AI26: 0 | AJ26: 0 | AK26: 0 | AL26: 0 | AM26: 0 | AN26: 0 | AO26: 0 | AP26: 0 | AQ26: 0 | AR26: 0 | AS26: 0 | AT26: 0 | AU26: 0 | AV26: 0 | AW26: 0 | AX26: 0 | AY26: 0 | AZ26: 0 | BA26: 0 | BB26: 0 | BC26: 0 | BD26: 0 | BE26: 0 | BF26: 0 | BG26: 0 | BH26: 0 | BI26: 0 | BJ26: 0 | BK26: 0 | BL26: 0 | BM26: 0 | BN26: 0 | BO26: 0 | BP26: 0 | BQ26: 0 | BR26: 0 | BS26: 0 | BT26: 0 | BU26: 0 | BV26: 0 | BW26: 0 | BX26: 0 | BY26: 0 | BZ26: 0 | CA26: 0 | CB26: 0 | CC26: 0 | CD26: 0 | CE26: 0 | CF26: 0
C27: Diesel | D27: % | F27: 0.103612316 | G27: 0.103612316 | H27: 0.103612316 | I27: 0.103612316 | J27: 0.103612316 | K27: 0.103612316 | L27: 0.103612316 | M27: 0.103612316 | N27: 0.07700589112 | O27: 0.03285672492 | P27: 0.03285672492 | Q27: 0.03285672492 | R27: 0.03285672492 | S27: 0.03285672492 | T27: 0.03285672492 | U27: 0.03285672492 | V27: 0.03285672492 | W27: 0.03285672492 | X27: 0.03285672492 | Y27: -0.01403977194 | Z27: -0.01403977194 | AA27: -0.01403977194 | AB27: -0.01403977194 | AC27: -0.01403977194 | AD27: -0.01403977194 | AE27: -0.01403977194 | AF27: -0.01403977194 | AG27: -0.01403977194 | AH27: -0.01403977194 | AI27: 0 | AJ27: 0 | AK27: 0 | AL27: 0 | AM27: 0 | AN27: 0 | AO27: 0 | AP27: 0 | AQ27: 0 | AR27: 0 | AS27: 0 | AT27: 0 | AU27: 0 | AV27: 0 | AW27: 0 | AX27: 0 | AY27: 0 | AZ27: 0 | BA27: 0 | BB27: 0 | BC27: 0 | BD27: 0 | BE27: 0 | BF27: 0 | BG27: 0 | BH27: 0 | BI27: 0 | BJ27: 0 | BK27: 0 | BL27: 0 | BM27: 0 | BN27: 0 | BO27: 0 | BP27: 0 | BQ27: 0 | BR27: 0 | BS27: 0 | BT27: 0 | BU27: 0 | BV27: 0 | BW27: 0 | BX27: 0 | BY27: 0 | BZ27: 0 | CA27: 0 | CB27: 0 | CC27: 0 | CD27: 0 | CE27: 0 | CF27: 0
C28: Jet fuel | D28: % | F28: 0.103612316 | G28: 0.103612316 | H28: 0.103612316 | I28: 0.103612316 | J28: 0.103612316 | K28: 0.103612316 | L28: 0.103612316 | M28: 0.103612316 | N28: 0.07700589112 | O28: 0.03285672492 | P28: 0.03285672492 | Q28: 0.03285672492 | R28: 0.03285672492 | S28: 0.03285672492 | T28: 0.03285672492 | U28: 0.03285672492 | V28: 0.03285672492 | W28: 0.03285672492 | X28: 0.03285672492 | Y28: -0.01403977194 | Z28: -0.01403977194 | AA28: -0.01403977194 | AB28: -0.01403977194 | AC28: -0.01403977194 | AD28: -0.01403977194 | AE28: -0.01403977194 | AF28: -0.01403977194 | AG28: -0.01403977194 | AH28: -0.01403977194 | AI28: 0 | AJ28: 0 | AK28: 0 | AL28: 0 | AM28: 0 | AN28: 0 | AO28: 0 | AP28: 0 | AQ28: 0 | AR28: 0 | AS28: 0 | AT28: 0 | AU28: 0 | AV28: 0 | AW28: 0 | AX28: 0 | AY28: 0 | AZ28: 0 | BA28: 0 | BB28: 0 | BC28: 0 | BD28: 0 | BE28: 0 | BF28: 0 | BG28: 0 | BH28: 0 | BI28: 0 | BJ28: 0 | BK28: 0 | BL28: 0 | BM28: 0 | BN28: 0 | BO28: 0 | BP28: 0 | BQ28: 0 | BR28: 0 | BS28: 0 | BT28: 0 | BU28: 0 | BV28: 0 | BW28: 0 | BX28: 0 | BY28: 0 | BZ28: 0 | CA28: 0 | CB28: 0 | CC28: 0 | CD28: 0 | CE28: 0 | CF28: 0
C29: Kerosene | D29: % | F29: 0.103612316 | G29: 0.103612316 | H29: 0.103612316 | I29: 0.103612316 | J29: 0.103612316 | K29: 0.103612316 | L29: 0.103612316 | M29: 0.103612316 | N29: 0.07700589112 | O29: 0.03285672492 | P29: 0.03285672492 | Q29: 0.03285672492 | R29: 0.03285672492 | S29: 0.03285672492 | T29: 0.03285672492 | U29: 0.03285672492 | V29: 0.03285672492 | W29: 0.03285672492 | X29: 0.03285672492 | Y29: -0.01403977194 | Z29: -0.01403977194 | AA29: -0.01403977194 | AB29: -0.01403977194 | AC29: -0.01403977194 | AD29: -0.01403977194 | AE29: -0.01403977194 | AF29: -0.01403977194 | AG29: -0.01403977194 | AH29: -0.01403977194 | AI29: 0 | AJ29: 0 | AK29: 0 | AL29: 0 | AM29: 0 | AN29: 0 | AO29: 0 | AP29: 0 | AQ29: 0 | AR29: 0 | AS29: 0 | AT29: 0 | AU29: 0 | AV29: 0 | AW29: 0 | AX29: 0 | AY29: 0 | AZ29: 0 | BA29: 0 | BB29: 0 | BC29: 0 | BD29: 0 | BE29: 0 | BF29: 0 | BG29: 0 | BH29: 0 | BI29: 0 | BJ29: 0 | BK29: 0 | BL29: 0 | BM29: 0 | BN29: 0 | BO29: 0 | BP29: 0 | BQ29: 0 | BR29: 0 | BS29: 0 | BT29: 0 | BU29: 0 | BV29: 0 | BW29: 0 | BX29: 0 | BY29: 0 | BZ29: 0 | CA29: 0 | CB29: 0 | CC29: 0 | CD29: 0 | CE29: 0 | CF29: 0
C30: Liquefied petroleum gas | D30: % | F30: 0.2402818727 | G30: 0.2402818727 | H30: 0.2402818727 | I30: 0.2402818727 | J30: 0.2402818727 | K30: 0.2402818727 | L30: 0.2402818727 | M30: 0.2402818727 | N30: 0.2402818727 | O30: 0.04144256882 | P30: 0.04144256882 | Q30: 0.04144256882 | R30: 0.04144256882 | S30: 0.04144256882 | T30: 0.04144256882 | U30: 0.04144256882 | V30: 0.04144256882 | W30: 0.04144256882 | X30: 0.04144256882 | Y30: -0.02481827704 | Z30: -0.02481827704 | AA30: -0.02481827704 | AB30: -0.02481827704 | AC30: -0.02481827704 | AD30: -0.02481827704 | AE30: -0.02481827704 | AF30: -0.02481827704 | AG30: -0.02481827704 | AH30: -0.02481827704 | AI30: 0 | AJ30: 0 | AK30: 0 | AL30: 0 | AM30: 0 | AN30: 0 | AO30: 0 | AP30: 0 | AQ30: 0 | AR30: 0 | AS30: 0 | AT30: 0 | AU30: 0 | AV30: 0 | AW30: 0 | AX30: 0 | AY30: 0 | AZ30: 0 | BA30: 0 | BB30: 0 | BC30: 0 | BD30: 0 | BE30: 0 | BF30: 0 | BG30: 0 | BH30: 0 | BI30: 0 | BJ30: 0 | BK30: 0 | BL30: 0 | BM30: 0 | BN30: 0 | BO30: 0 | BP30: 0 | BQ30: 0 | BR30: 0 | BS30: 0 | BT30: 0 | BU30: 0 | BV30: 0 | BW30: 0 | BX30: 0 | BY30: 0 | BZ30: 0 | CA30: 0 | CB30: 0 | CC30: 0 | CD30: 0 | CE30: 0 | CF30: 0
C31: Heavy fuel oil | D31: % | F31: 0 | G31: 0 | H31: 0 | I31: 0 | J31: 0 | K31: 0 | L31: 0 | M31: 0 | N31: 2.552462811 | O31: 0 | P31: 0 | Q31: 0 | R31: 0 | S31: 0 | T31: 0 | U31: 0 | V31: 0 | W31: 0 | X31: 0 | Y31: 0 | Z31: 0 | AA31: 0 | AB31: 0 | AC31: 0 | AD31: 0 | AE31: 0 | AF31: 0 | AG31: 0 | AH31: 0 | AI31: 0 | AJ31: 0 | AK31: 0 | AL31: 0 | AM31: 0 | AN31: 0 | AO31: 0 | AP31: 0 | AQ31: 0 | AR31: 0 | AS31: 0 | AT31: 0 | AU31: 0 | AV31: 0 | AW31: 0 | AX31: 0 | AY31: 0 | AZ31: 0 | BA31: 0 | BB31: 0 | BC31: 0 | BD31: 0 | BE31: 0 | BF31: 0 | BG31: 0 | BH31: 0 | BI31: 0 | BJ31: 0 | BK31: 0 | BL31: 0 | BM31: 0 | BN31: 0 | BO31: 0 | BP31: 0 | BQ31: 0 | BR31: 0 | BS31: 0 | BT31: 0 | BU31: 0 | BV31: 0 | BW31: 0 | BX31: 0 | BY31: 0 | BZ31: 0 | CA31: 0 | CB31: 0 | CC31: 0 | CD31: 0 | CE31: 0 | CF31: 0
C33: Demand growth scenario 2 | D33: Historical growth
C34: Petrol | D34: % | F34: 0.08311174106 | G34: 0.08311174106 | H34: 0.08311174106 | I34: 0.08311174106 | J34: 0.08311174106 | K34: 0.08311174106 | L34: 0.08311174106 | M34: 0.08311174106 | N34: 0.08311174106 | O34: 0.08311174106 | P34: 0.08311174106 | Q34: 0.08311174106 | R34: 0.08311174106 | S34: 0.08311174106 | T34: 0.08311174106 | U34: 0.08311174106 | V34: 0.08311174106 | W34: 0.08311174106 | X34: 0.08311174106 | Y34: -0.01266047989 | Z34: -0.01266047989 | AA34: -0.01266047989 | AB34: -0.01266047989 | AC34: -0.01266047989 | AD34: -0.01266047989 | AE34: -0.01266047989 | AF34: -0.01266047989 | AG34: -0.01266047989 | AH34: -0.01266047989 | AI34: 0 | AJ34: 0 | AK34: 0 | AL34: 0 | AM34: 0 | AN34: 0 | AO34: 0 | AP34: 0 | AQ34: 0 | AR34: 0 | AS34: 0 | AT34: 0 | AU34: 0 | AV34: 0 | AW34: 0 | AX34: 0 | AY34: 0 | AZ34: 0 | BA34: 0 | BB34: 0 | BC34: 0 | BD34: 0 | BE34: 0 | BF34: 0 | BG34: 0 | BH34: 0 | BI34: 0 | BJ34: 0 | BK34: 0 | BL34: 0 | BM34: 0 | BN34: 0 | BO34: 0 | BP34: 0 | BQ34: 0 | BR34: 0 | BS34: 0 | BT34: 0 | BU34: 0 | BV34: 0 | BW34: 0 | BX34: 0 | BY34: 0 | BZ34: 0 | CA34: 0 | CB34: 0 | CC34: 0 | CD34: 0 | CE34: 0 | CF34: 0
C35: Diesel | D35: % | F35: 0.05037479894 | G35: 0.05037479894 | H35: 0.05037479894 | I35: 0.05037479894 | J35: 0.05037479894 | K35: 0.05037479894 | L35: 0.05037479894 | M35: 0.05037479894 | N35: 0.05037479894 | O35: 0.05037479894 | P35: 0.05037479894 | Q35: 0.05037479894 | R35: 0.05037479894 | S35: 0.05037479894 | T35: 0.05037479894 | U35: 0.05037479894 | V35: 0.05037479894 | W35: 0.05037479894 | X35: 0.05037479894 | Y35: -0.01266047989 | Z35: -0.01266047989 | AA35: -0.01266047989 | AB35: -0.01266047989 | AC35: -0.01266047989 | AD35: -0.01266047989 | AE35: -0.01266047989 | AF35: -0.01266047989 | AG35: -0.01266047989 | AH35: -0.01266047989 | AI35: 0 | AJ35: 0 | AK35: 0 | AL35: 0 | AM35: 0 | AN35: 0 | AO35: 0 | AP35: 0 | AQ35: 0 | AR35: 0 | AS35: 0 | AT35: 0 | AU35: 0 | AV35: 0 | AW35: 0 | AX35: 0 | AY35: 0 | AZ35: 0 | BA35: 0 | BB35: 0 | BC35: 0 | BD35: 0 | BE35: 0 | BF35: 0 | BG35: 0 | BH35: 0 | BI35: 0 | BJ35: 0 | BK35: 0 | BL35: 0 | BM35: 0 | BN35: 0 | BO35: 0 | BP35: 0 | BQ35: 0 | BR35: 0 | BS35: 0 | BT35: 0 | BU35: 0 | BV35: 0 | BW35: 0 | BX35: 0 | BY35: 0 | BZ35: 0 | CA35: 0 | CB35: 0 | CC35: 0 | CD35: 0 | CE35: 0 | CF35: 0
C36: Jet fuel | D36: % | F36: 0.006861691489 | G36: 0.006861691489 | H36: 0.006861691489 | I36: 0.006861691489 | J36: 0.006861691489 | K36: 0.006861691489 | L36: 0.006861691489 | M36: 0.006861691489 | N36: 0.006861691489 | O36: 0.006861691489 | P36: 0.006861691489 | Q36: 0.006861691489 | R36: 0.006861691489 | S36: 0.006861691489 | T36: 0.006861691489 | U36: 0.006861691489 | V36: 0.006861691489 | W36: 0.006861691489 | X36: 0.006861691489 | Y36: -0.01266047989 | Z36: -0.01266047989 | AA36: -0.01266047989 | AB36: -0.01266047989 | AC36: -0.01266047989 | AD36: -0.01266047989 | AE36: -0.01266047989 | AF36: -0.01266047989 | AG36: -0.01266047989 | AH36: -0.01266047989 | AI36: 0 | AJ36: 0 | AK36: 0 | AL36: 0 | AM36: 0 | AN36: 0 | AO36: 0 | AP36: 0 | AQ36: 0 | AR36: 0 | AS36: 0 | AT36: 0 | AU36: 0 | AV36: 0 | AW36: 0 | AX36: 0 | AY36: 0 | AZ36: 0 | BA36: 0 | BB36: 0 | BC36: 0 | BD36: 0 | BE36: 0 | BF36: 0 | BG36: 0 | BH36: 0 | BI36: 0 | BJ36: 0 | BK36: 0 | BL36: 0 | BM36: 0 | BN36: 0 | BO36: 0 | BP36: 0 | BQ36: 0 | BR36: 0 | BS36: 0 | BT36: 0 | BU36: 0 | BV36: 0 | BW36: 0 | BX36: 0 | BY36: 0 | BZ36: 0 | CA36: 0 | CB36: 0 | CC36: 0 | CD36: 0 | CE36: 0 | CF36: 0
C37: Kerosene | D37: % | F37: -0.03250376198 | G37: -0.03250376198 | H37: -0.03250376198 | I37: -0.03250376198 | J37: -0.03250376198 | K37: -0.03250376198 | L37: -0.03250376198 | M37: -0.03250376198 | N37: -0.03250376198 | O37: -0.03250376198 | P37: -0.03250376198 | Q37: -0.03250376198 | R37: -0.03250376198 | S37: -0.03250376198 | T37: -0.03250376198 | U37: -0.03250376198 | V37: -0.03250376198 | W37: -0.03250376198 | X37: -0.03250376198 | Y37: -0.01266047989 | Z37: -0.01266047989 | AA37: -0.01266047989 | AB37: -0.01266047989 | AC37: -0.01266047989 | AD37: -0.01266047989 | AE37: -0.01266047989 | AF37: -0.01266047989 | AG37: -0.01266047989 | AH37: -0.01266047989 | AI37: 0 | AJ37: 0 | AK37: 0 | AL37: 0 | AM37: 0 | AN37: 0 | AO37: 0 | AP37: 0 | AQ37: 0 | AR37: 0 | AS37: 0 | AT37: 0 | AU37: 0 | AV37: 0 | AW37: 0 | AX37: 0 | AY37: 0 | AZ37: 0 | BA37: 0 | BB37: 0 | BC37: 0 | BD37: 0 | BE37: 0 | BF37: 0 | BG37: 0 | BH37: 0 | BI37: 0 | BJ37: 0 | BK37: 0 | BL37: 0 | BM37: 0 | BN37: 0 | BO37: 0 | BP37: 0 | BQ37: 0 | BR37: 0 | BS37: 0 | BT37: 0 | BU37: 0 | BV37: 0 | BW37: 0 | BX37: 0 | BY37: 0 | BZ37: 0 | CA37: 0 | CB37: 0 | CC37: 0 | CD37: 0 | CE37: 0 | CF37: 0
C38: Liquefied petroleum gas | D38: % | F38: 0.1351150885 | G38: 0.1351150885 | H38: 0.1351150885 | I38: 0.1351150885 | J38: 0.1351150885 | K38: 0.1351150885 | L38: 0.1351150885 | M38: 0.1351150885 | N38: 0.1351150885 | O38: 0.1351150885 | P38: 0.1351150885 | Q38: 0.1351150885 | R38: 0.1351150885 | S38: 0.1351150885 | T38: 0.1351150885 | U38: 0.1351150885 | V38: 0.1351150885 | W38: 0.1351150885 | X38: 0.1351150885 | Y38: -0.01266047989 | Z38: -0.01266047989 | AA38: -0.01266047989 | AB38: -0.01266047989 | AC38: -0.01266047989 | AD38: -0.01266047989 | AE38: -0.01266047989 | AF38: -0.01266047989 | AG38: -0.01266047989 | AH38: -0.01266047989 | AI38: 0 | AJ38: 0 | AK38: 0 | AL38: 0 | AM38: 0 | AN38: 0 | AO38: 0 | AP38: 0 | AQ38: 0 | AR38: 0 | AS38: 0 | AT38: 0 | AU38: 0 | AV38: 0 | AW38: 0 | AX38: 0 | AY38: 0 | AZ38: 0 | BA38: 0 | BB38: 0 | BC38: 0 | BD38: 0 | BE38: 0 | BF38: 0 | BG38: 0 | BH38: 0 | BI38: 0 | BJ38: 0 | BK38: 0 | BL38: 0 | BM38: 0 | BN38: 0 | BO38: 0 | BP38: 0 | BQ38: 0 | BR38: 0 | BS38: 0 | BT38: 0 | BU38: 0 | BV38: 0 | BW38: 0 | BX38: 0 | BY38: 0 | BZ38: 0 | CA38: 0 | CB38: 0 | CC38: 0 | CD38: 0 | CE38: 0 | CF38: 0
C39: Heavy fuel oil | D39: % | F39: -0.06937316183 | G39: -0.06937316183 | H39: -0.06937316183 | I39: -0.06937316183 | J39: -0.06937316183 | K39: -0.06937316183 | L39: -0.06937316183 | M39: -0.06937316183 | N39: -0.06937316183 | O39: -0.06937316183 | P39: -0.06937316183 | Q39: -0.06937316183 | R39: -0.06937316183 | S39: -0.06937316183 | T39: -0.06937316183 | U39: -0.06937316183 | V39: -0.06937316183 | W39: -0.06937316183 | X39: -0.06937316183 | Y39: -0.01266047989 | Z39: -0.01266047989 | AA39: -0.01266047989 | AB39: -0.01266047989 | AC39: -0.01266047989 | AD39: -0.01266047989 | AE39: -0.01266047989 | AF39: -0.01266047989 | AG39: -0.01266047989 | AH39: -0.01266047989 | AI39: 0 | AJ39: 0 | AK39: 0 | AL39: 0 | AM39: 0 | AN39: 0 | AO39: 0 | AP39: 0 | AQ39: 0 | AR39: 0 | AS39: 0 | AT39: 0 | AU39: 0 | AV39: 0 | AW39: 0 | AX39: 0 | AY39: 0 | AZ39: 0 | BA39: 0 | BB39: 0 | BC39: 0 | BD39: 0 | BE39: 0 | BF39: 0 | BG39: 0 | BH39: 0 | BI39: 0 | BJ39: 0 | BK39: 0 | BL39: 0 | BM39: 0 | BN39: 0 | BO39: 0 | BP39: 0 | BQ39: 0 | BR39: 0 | BS39: 0 | BT39: 0 | BU39: 0 | BV39: 0 | BW39: 0 | BX39: 0 | BY39: 0 | BZ39: 0 | CA39: 0 | CB39: 0 | CC39: 0 | CD39: 0 | CE39: 0 | CF39: 0
C41: Demand scenario 1 | D41: =D25 -> Energy Transition Plan
C42: Demand scenario 2 | D42: =D33 -> Historical growth
C43: Demand selected scenario | D43: =MATCH(Dashboard!D11, D41:D42, 0) -> 1
C45: Petrol | D45: % | F45: =CHOOSE($D$43, F26, F34) -> 0.103612316 | G45: 0.103612316 | H45: 0.103612316 | I45: 0.103612316 | J45: 0.103612316 | K45: 0.103612316 | L45: 0.103612316 | M45: 0.103612316 | N45: 0.07700589112 | O45: 0.03285672492 | P45: 0.03285672492 | Q45: 0.03285672492 | R45: 0.03285672492 | S45: 0.03285672492 | T45: 0.03285672492 | U45: 0.03285672492 | V45: 0.03285672492 | W45: 0.03285672492 | X45: 0.03285672492 | Y45: -0.01403977194 | Z45: -0.01403977194 | AA45: -0.01403977194 | AB45: -0.01403977194 | AC45: -0.01403977194 | AD45: -0.01403977194 | AE45: -0.01403977194 | AF45: -0.01403977194 | AG45: -0.01403977194 | AH45: -0.01403977194 | AI45: 0 | AJ45: 0 | AK45: 0 | AL45: =CHOOSE($D$43, AL26, AL34) -> 0 | AM45: 0 | AN45: 0 | AO45: 0 | AP45: 0 | AQ45: 0 | AR45: 0 | AS45: 0 | AT45: 0 | AU45: 0 | AV45: 0 | AW45: 0 | AX45: 0 | AY45: 0 | AZ45: 0 | BA45: 0 | BB45: 0 | BC45: 0 | BD45: 0 | BE45: 0 | BF45: 0 | BG45: 0 | BH45: 0 | BI45: 0 | BJ45: 0 | BK45: 0 | BL45: 0 | BM45: 0 | BN45: 0 | BO45: 0 | BP45: 0 | BQ45: 0 | BR45: =CHOOSE($D$43, BR26, BR34) -> 0 | BS45: 0 | BT45: 0 | BU45: 0 | BV45: 0 | BW45: 0 | BX45: 0 | BY45: 0 | BZ45: 0 | CA45: 0 | CB45: 0 | CC45: 0 | CD45: 0 | CE45: 0 | CF45: 0
C46: Diesel | D46: % | F46: =CHOOSE($D$43, F27, F35) -> 0.103612316 | G46: 0.103612316 | H46: 0.103612316 | I46: 0.103612316 | J46: 0.103612316 | K46: 0.103612316 | L46: 0.103612316 | M46: 0.103612316 | N46: 0.07700589112 | O46: 0.03285672492 | P46: 0.03285672492 | Q46: 0.03285672492 | R46: 0.03285672492 | S46: 0.03285672492 | T46: 0.03285672492 | U46: 0.03285672492 | V46: 0.03285672492 | W46: 0.03285672492 | X46: 0.03285672492 | Y46: -0.01403977194 | Z46: -0.01403977194 | AA46: -0.01403977194 | AB46: -0.01403977194 | AC46: -0.01403977194 | AD46: -0.01403977194 | AE46: -0.01403977194 | AF46: -0.01403977194 | AG46: -0.01403977194 | AH46: -0.01403977194 | AI46: 0 | AJ46: 0 | AK46: 0 | AL46: =CHOOSE($D$43, AL27, AL35) -> 0 | AM46: 0 | AN46: 0 | AO46: 0 | AP46: 0 | AQ46: 0 | AR46: 0 | AS46: 0 | AT46: 0 | AU46: 0 | AV46: 0 | AW46: 0 | AX46: 0 | AY46: 0 | AZ46: 0 | BA46: 0 | BB46: 0 | BC46: 0 | BD46: 0 | BE46: 0 | BF46: 0 | BG46: 0 | BH46: 0 | BI46: 0 | BJ46: 0 | BK46: 0 | BL46: 0 | BM46: 0 | BN46: 0 | BO46: 0 | BP46: 0 | BQ46: 0 | BR46: =CHOOSE($D$43, BR27, BR35) -> 0 | BS46: 0 | BT46: 0 | BU46: 0 | BV46: 0 | BW46: 0 | BX46: 0 | BY46: 0 | BZ46: 0 | CA46: 0 | CB46: 0 | CC46: 0 | CD46: 0 | CE46: 0 | CF46: 0
C47: Jet fuel | D47: % | F47: =CHOOSE($D$43, F28, F36) -> 0.103612316 | G47: 0.103612316 | H47: 0.103612316 | I47: 0.103612316 | J47: 0.103612316 | K47: 0.103612316 | L47: 0.103612316 | M47: 0.103612316 | N47: 0.07700589112 | O47: 0.03285672492 | P47: 0.03285672492 | Q47: 0.03285672492 | R47: 0.03285672492 | S47: 0.03285672492 | T47: 0.03285672492 | U47: 0.03285672492 | V47: 0.03285672492 | W47: 0.03285672492 | X47: 0.03285672492 | Y47: -0.01403977194 | Z47: -0.01403977194 | AA47: -0.01403977194 | AB47: -0.01403977194 | AC47: -0.01403977194 | AD47: -0.01403977194 | AE47: -0.01403977194 | AF47: -0.01403977194 | AG47: -0.01403977194 | AH47: -0.01403977194 | AI47: 0 | AJ47: 0 | AK47: 0 | AL47: =CHOOSE($D$43, AL28, AL36) -> 0 | AM47: 0 | AN47: 0 | AO47: 0 | AP47: 0 | AQ47: 0 | AR47: 0 | AS47: 0 | AT47: 0 | AU47: 0 | AV47: 0 | AW47: 0 | AX47: 0 | AY47: 0 | AZ47: 0 | BA47: 0 | BB47: 0 | BC47: 0 | BD47: 0 | BE47: 0 | BF47: 0 | BG47: 0 | BH47: 0 | BI47: 0 | BJ47: 0 | BK47: 0 | BL47: 0 | BM47: 0 | BN47: 0 | BO47: 0 | BP47: 0 | BQ47: 0 | BR47: =CHOOSE($D$43, BR28, BR36) -> 0 | BS47: 0 | BT47: 0 | BU47: 0 | BV47: 0 | BW47: 0 | BX47: 0 | BY47: 0 | BZ47: 0 | CA47: 0 | CB47: 0 | CC47: 0 | CD47: 0 | CE47: 0 | CF47: 0
C48: Kerosene | D48: % | F48: =CHOOSE($D$43, F29, F37) -> 0.103612316 | G48: 0.103612316 | H48: 0.103612316 | I48: 0.103612316 | J48: 0.103612316 | K48: 0.103612316 | L48: 0.103612316 | M48: 0.103612316 | N48: 0.07700589112 | O48: 0.03285672492 | P48: 0.03285672492 | Q48: 0.03285672492 | R48: 0.03285672492 | S48: 0.03285672492 | T48: 0.03285672492 | U48: 0.03285672492 | V48: 0.03285672492 | W48: 0.03285672492 | X48: 0.03285672492 | Y48: -0.01403977194 | Z48: -0.01403977194 | AA48: -0.01403977194 | AB48: -0.01403977194 | AC48: -0.01403977194 | AD48: -0.01403977194 | AE48: -0.01403977194 | AF48: -0.01403977194 | AG48: -0.01403977194 | AH48: -0.01403977194 | AI48: 0 | AJ48: 0 | AK48: 0 | AL48: =CHOOSE($D$43, AL29, AL37) -> 0 | AM48: 0 | AN48: 0 | AO48: 0 | AP48: 0 | AQ48: 0 | AR48: 0 | AS48: 0 | AT48: 0 | AU48: 0 | AV48: 0 | AW48: 0 | AX48: 0 | AY48: 0 | AZ48: 0 | BA48: 0 | BB48: 0 | BC48: 0 | BD48: 0 | BE48: 0 | BF48: 0 | BG48: 0 | BH48: 0 | BI48: 0 | BJ48: 0 | BK48: 0 | BL48: 0 | BM48: 0 | BN48: 0 | BO48: 0 | BP48: 0 | BQ48: 0 | BR48: =CHOOSE($D$43, BR29, BR37) -> 0 | BS48: 0 | BT48: 0 | BU48: 0 | BV48: 0 | BW48: 0 | BX48: 0 | BY48: 0 | BZ48: 0 | CA48: 0 | CB48: 0 | CC48: 0 | CD48: 0 | CE48: 0 | CF48: 0
C49: Liquefied petroleum gas | D49: % | F49: =CHOOSE($D$43, F30, F38) -> 0.2402818727 | G49: 0.2402818727 | H49: 0.2402818727 | I49: 0.2402818727 | J49: 0.2402818727 | K49: 0.2402818727 | L49: 0.2402818727 | M49: 0.2402818727 | N49: 0.2402818727 | O49: 0.04144256882 | P49: 0.04144256882 | Q49: 0.04144256882 | R49: 0.04144256882 | S49: 0.04144256882 | T49: 0.04144256882 | U49: 0.04144256882 | V49: 0.04144256882 | W49: 0.04144256882 | X49: 0.04144256882 | Y49: -0.02481827704 | Z49: -0.02481827704 | AA49: -0.02481827704 | AB49: -0.02481827704 | AC49: -0.02481827704 | AD49: -0.02481827704 | AE49: -0.02481827704 | AF49: -0.02481827704 | AG49: -0.02481827704 | AH49: -0.02481827704 | AI49: 0 | AJ49: 0 | AK49: 0 | AL49: =CHOOSE($D$43, AL30, AL38) -> 0 | AM49: 0 | AN49: 0 | AO49: 0 | AP49: 0 | AQ49: 0 | AR49: 0 | AS49: 0 | AT49: 0 | AU49: 0 | AV49: 0 | AW49: 0 | AX49: 0 | AY49: 0 | AZ49: 0 | BA49: 0 | BB49: 0 | BC49: 0 | BD49: 0 | BE49: 0 | BF49: 0 | BG49: 0 | BH49: 0 | BI49: 0 | BJ49: 0 | BK49: 0 | BL49: 0 | BM49: 0 | BN49: 0 | BO49: 0 | BP49: 0 | BQ49: 0 | BR49: =CHOOSE($D$43, BR30, BR38) -> 0 | BS49: 0 | BT49: 0 | BU49: 0 | BV49: 0 | BW49: 0 | BX49: 0 | BY49: 0 | BZ49: 0 | CA49: 0 | CB49: 0 | CC49: 0 | CD49: 0 | CE49: 0 | CF49: 0
C50: Heavy fuel oil | D50: % | F50: =CHOOSE($D$43, F31, F39) -> 0 | G50: 0 | H50: 0 | I50: 0 | J50: 0 | K50: 0 | L50: 0 | M50: 0 | N50: 2.552462811 | O50: 0 | P50: 0 | Q50: 0 | R50: 0 | S50: 0 | T50: 0 | U50: 0 | V50: 0 | W50: 0 | X50: 0 | Y50: 0 | Z50: 0 | AA50: 0 | AB50: 0 | AC50: 0 | AD50: 0 | AE50: 0 | AF50: 0 | AG50: 0 | AH50: 0 | AI50: 0 | AJ50: 0 | AK50: 0 | AL50: =CHOOSE($D$43, AL31, AL39) -> 0 | AM50: 0 | AN50: 0 | AO50: 0 | AP50: 0 | AQ50: 0 | AR50: 0 | AS50: 0 | AT50: 0 | AU50: 0 | AV50: 0 | AW50: 0 | AX50: 0 | AY50: 0 | AZ50: 0 | BA50: 0 | BB50: 0 | BC50: 0 | BD50: 0 | BE50: 0 | BF50: 0 | BG50: 0 | BH50: 0 | BI50: 0 | BJ50: 0 | BK50: 0 | BL50: 0 | BM50: 0 | BN50: 0 | BO50: 0 | BP50: 0 | BQ50: 0 | BR50: =CHOOSE($D$43, BR31, BR39) -> 0 | BS50: 0 | BT50: 0 | BU50: 0 | BV50: 0 | BW50: 0 | BX50: 0 | BY50: 0 | BZ50: 0 | CA50: 0 | CB50: 0 | CC50: 0 | CD50: 0 | CE50: 0 | CF50: 0
C52: Petrol | D52: Thousand barrels per day | E52: =E15 -> 16.85404341 | F52: =E52 * (1 + F45) -> 18.60032988 | G52: 20.52755314 | H52: 22.65446046 | I52: 25.00174158 | J52: 27.59222993 | K52: 30.45112478 | L52: 33.60623634 | M52: 37.08825632 | N52: 39.94427055 | O52: 41.25670846 | P52: 42.61226878 | Q52: 44.01236837 | R52: 45.45847065 | S52: 46.95208712 | T52: 48.49477893 | U52: 50.08815854 | V52: 51.73389139 | W52: 53.43369763 | X52: 55.18935393 | Y52: 54.41450799 | Z52: 53.65054071 | AA52: 52.89729935 | AB52: 52.15463333 | AC52: 51.42239417 | AD52: 50.70043549 | AE52: 49.98861293 | AF52: 49.28678421 | AG52: 48.594809 | AH52: 47.91254896 | AI52: 47.91254896 | AJ52: 47.91254896 | AK52: 47.91254896 | AL52: =AK52 * (1 + AL45) -> 47.91254896 | AM52: 47.91254896 | AN52: 47.91254896 | AO52: 47.91254896 | AP52: 47.91254896 | AQ52: 47.91254896 | AR52: 47.91254896 | AS52: 47.91254896 | AT52: 47.91254896 | AU52: 47.91254896 | AV52: 47.91254896 | AW52: 47.91254896 | AX52: 47.91254896 | AY52: 47.91254896 | AZ52: 47.91254896 | BA52: 47.91254896 | BB52: 47.91254896 | BC52: 47.91254896 | BD52: 47.91254896 | BE52: 47.91254896 | BF52: 47.91254896 | BG52: 47.91254896 | BH52: 47.91254896 | BI52: 47.91254896 | BJ52: 47.91254896 | BK52: 47.91254896 | BL52: 47.91254896 | BM52: 47.91254896 | BN52: 47.91254896 | BO52: 47.91254896 | BP52: 47.91254896 | BQ52: 47.91254896 | BR52: =BQ52 * (1 + BR45) -> 47.91254896 | BS52: 47.91254896 | BT52: 47.91254896 | BU52: 47.91254896 | BV52: 47.91254896 | BW52: 47.91254896 | BX52: 47.91254896 | BY52: 47.91254896 | BZ52: 47.91254896 | CA52: 47.91254896 | CB52: 47.91254896 | CC52: 47.91254896 | CD52: 47.91254896 | CE52: 47.91254896 | CF52: 47.91254896
C53: Diesel | D53: Thousand barrels per day | E53: 18.26970769 | F53: =E53 * (1 + F46) -> 20.16267442 | G53: 22.25177581 | H53: 24.55733384 | I53: 27.10177608 | J53: 29.90985387 | K53: 33.0088831 | L53: 36.42900992 | M53: 40.20350401 | N53: 43.29941067 | O53: 44.72208749 | P53: 46.19150882 | Q53: 47.70921052 | R53: 49.27677892 | S53: 50.89585249 | T53: 52.56812352 | U53: 54.29533989 | V53: 56.07930694 | W53: 57.9218893 | X53: 59.82501289 | Y53: 58.98508335 | Z53: 58.15694623 | AA53: 57.34043597 | AB53: 56.53538932 | AC53: 55.74164535 | AD53: 54.95904536 | AE53: 54.1874329 | AF53: 53.4266537 | AG53: 52.67655567 | AH53: 51.93698884 | AI53: 51.93698884 | AJ53: 51.93698884 | AK53: 51.93698884 | AL53: =AK53 * (1 + AL46) -> 51.93698884 | AM53: 51.93698884 | AN53: 51.93698884 | AO53: 51.93698884 | AP53: 51.93698884 | AQ53: 51.93698884 | AR53: 51.93698884 | AS53: 51.93698884 | AT53: 51.93698884 | AU53: 51.93698884 | AV53: 51.93698884 | AW53: 51.93698884 | AX53: 51.93698884 | AY53: 51.93698884 | AZ53: 51.93698884 | BA53: 51.93698884 | BB53: 51.93698884 | BC53: 51.93698884 | BD53: 51.93698884 | BE53: 51.93698884 | BF53: 51.93698884 | BG53: 51.93698884 | BH53: 51.93698884 | BI53: 51.93698884 | BJ53: 51.93698884 | BK53: 51.93698884 | BL53: 51.93698884 | BM53: 51.93698884 | BN53: 51.93698884 | BO53: 51.93698884 | BP53: 51.93698884 | BQ53: 51.93698884 | BR53: =BQ53 * (1 + BR46) -> 51.93698884 | BS53: 51.93698884 | BT53: 51.93698884 | BU53: 51.93698884 | BV53: 51.93698884 | BW53: 51.93698884 | BX53: 51.93698884 | BY53: 51.93698884 | BZ53: 51.93698884 | CA53: 51.93698884 | CB53: 51.93698884 | CC53: 51.93698884 | CD53: 51.93698884 | CE53: 51.93698884 | CF53: 51.93698884
C54: Jet fuel | D54: Thousand barrels per day | E54: 2.582623067 | F54: =E54 * (1 + F47) -> 2.850214624 | G54: 3.145531963 | H54: 3.471447815 | I54: 3.831132563 | J54: 4.228085081 | K54: 4.666166768 | L54: 5.149639114 | M54: 5.68320515 | N54: 6.120845426 | O54: 6.321956361 | P54: 6.529675142 | Q54: 6.744218882 | R54: 6.965811827 | S54: 7.19468559 | T54: 7.431079395 | U54: 7.675240327 | V54: 7.927423587 | W54: 8.187892763 | X54: 8.456920103 | Y54: 8.338186873 | Z54: 8.221120631 | AA54: 8.105697972 | AB54: 7.991895822 | AC54: 7.879691427 | AD54: 7.769062356 | AE54: 7.659986492 | AF54: 7.552442029 | AG54: 7.446407465 | AH54: 7.341861603 | AI54: 7.341861603 | AJ54: 7.341861603 | AK54: 7.341861603 | AL54: =AK54 * (1 + AL47) -> 7.341861603 | AM54: 7.341861603 | AN54: 7.341861603 | AO54: 7.341861603 | AP54: 7.341861603 | AQ54: 7.341861603 | AR54: 7.341861603 | AS54: 7.341861603 | AT54: 7.341861603 | AU54: 7.341861603 | AV54: 7.341861603 | AW54: 7.341861603 | AX54: 7.341861603 | AY54: 7.341861603 | AZ54: 7.341861603 | BA54: 7.341861603 | BB54: 7.341861603 | BC54: 7.341861603 | BD54: 7.341861603 | BE54: 7.341861603 | BF54: 7.341861603 | BG54: 7.341861603 | BH54: 7.341861603 | BI54: 7.341861603 | BJ54: 7.341861603 | BK54: 7.341861603 | BL54: 7.341861603 | BM54: 7.341861603 | BN54: 7.341861603 | BO54: 7.341861603 | BP54: 7.341861603 | BQ54: 7.341861603 | BR54: =BQ54 * (1 + BR47) -> 7.341861603 | BS54: 7.341861603 | BT54: 7.341861603 | BU54: 7.341861603 | BV54: 7.341861603 | BW54: 7.341861603 | BX54: 7.341861603 | BY54: 7.341861603 | BZ54: 7.341861603 | CA54: 7.341861603 | CB54: 7.341861603 | CC54: 7.341861603 | CD54: 7.341861603 | CE54: 7.341861603 | CF54: 7.341861603
C55: Kerosene | D55: Thousand barrels per day | E55: 1.235425356 | F55: =E55 * (1 + F48) -> 1.363430638 | G55: 1.504698844 | H55: 1.660604176 | I55: 1.832663221 | J55: 2.022549702 | K55: 2.232110761 | L55: 2.463384927 | M55: 2.718621944 | N55: 2.92797185 | O55: 3.024175415 | P55: 3.123539915 | Q55: 3.226169207 | R55: 3.332170561 | S55: 3.441654772 | T55: 3.554736276 | U55: 3.671533268 | V55: 3.792167827 | W55: 3.916766042 | X55: 4.045458147 | Y55: 3.988660837 | Z55: 3.932660948 | AA55: 3.877447286 | AB55: 3.82300881 | AC55: 3.769334638 | AD55: 3.716414039 | AE55: 3.664236434 | AF55: 3.61279139 | AG55: 3.562068623 | AH55: 3.512057992 | AI55: 3.512057992 | AJ55: 3.512057992 | AK55: 3.512057992 | AL55: =AK55 * (1 + AL48) -> 3.512057992 | AM55: 3.512057992 | AN55: 3.512057992 | AO55: 3.512057992 | AP55: 3.512057992 | AQ55: 3.512057992 | AR55: 3.512057992 | AS55: 3.512057992 | AT55: 3.512057992 | AU55: 3.512057992 | AV55: 3.512057992 | AW55: 3.512057992 | AX55: 3.512057992 | AY55: 3.512057992 | AZ55: 3.512057992 | BA55: 3.512057992 | BB55: 3.512057992 | BC55: 3.512057992 | BD55: 3.512057992 | BE55: 3.512057992 | BF55: 3.512057992 | BG55: 3.512057992 | BH55: 3.512057992 | BI55: 3.512057992 | BJ55: 3.512057992 | BK55: 3.512057992 | BL55: 3.512057992 | BM55: 3.512057992 | BN55: 3.512057992 | BO55: 3.512057992 | BP55: 3.512057992 | BQ55: 3.512057992 | BR55: =BQ55 * (1 + BR48) -> 3.512057992 | BS55: 3.512057992 | BT55: 3.512057992 | BU55: 3.512057992 | BV55: 3.512057992 | BW55: 3.512057992 | BX55: 3.512057992 | BY55: 3.512057992 | BZ55: 3.512057992 | CA55: 3.512057992 | CB55: 3.512057992 | CC55: 3.512057992 | CD55: 3.512057992 | CE55: 3.512057992 | CF55: 3.512057992
C56: Liquefied petroleum gas | D56: Thousand barrels per day | E56: 1.372785909 | F56: =E56 * (1 + F49) -> 1.702641478 | G56: 2.11175536 | H56: 2.619171893 | I56: 3.24851142 | J56: 4.029069828 | K56: 4.997182271 | L56: 6.197914585 | M56: 7.687161109 | N56: 9.534246575 | O56: 9.929370245 | P56: 10.34086885 | Q56: 10.76942102 | R56: 11.2157335 | S56: 11.6805423 | T56: 12.16461398 | U56: 12.66874683 | V56: 13.19377225 | W56: 13.74055606 | X56: 14.31 | Y56: 13.95485046 | Z56: 13.60851511 | AA56: 13.27077521 | AB56: 12.94141744 | AC56: 12.62023375 | AD56: 12.3070213 | AE56: 12.00158223 | AF56: 11.70372364 | AG56: 11.41325738 | AH56: 11.13 | AI56: 11.13 | AJ56: 11.13 | AK56: 11.13 | AL56: =AK56 * (1 + AL49) -> 11.13 | AM56: 11.13 | AN56: 11.13 | AO56: 11.13 | AP56: 11.13 | AQ56: 11.13 | AR56: 11.13 | AS56: 11.13 | AT56: 11.13 | AU56: 11.13 | AV56: 11.13 | AW56: 11.13 | AX56: 11.13 | AY56: 11.13 | AZ56: 11.13 | BA56: 11.13 | BB56: 11.13 | BC56: 11.13 | BD56: 11.13 | BE56: 11.13 | BF56: 11.13 | BG56: 11.13 | BH56: 11.13 | BI56: 11.13 | BJ56: 11.13 | BK56: 11.13 | BL56: 11.13 | BM56: 11.13 | BN56: 11.13 | BO56: 11.13 | BP56: 11.13 | BQ56: 11.13 | BR56: =BQ56 * (1 + BR49) -> 11.13 | BS56: 11.13 | BT56: 11.13 | BU56: 11.13 | BV56: 11.13 | BW56: 11.13 | BX56: 11.13 | BY56: 11.13 | BZ56: 11.13 | CA56: 11.13 | CB56: 11.13 | CC56: 11.13 | CD56: 11.13 | CE56: 11.13 | CF56: 11.13
C57: Heavy fuel oil | D57: Thousand barrels per day | E57: 0.8932549342 | F57: =E57 * (1 + F50) -> 0.8932549342 | G57: 0.8932549342 | H57: 0.8932549342 | I57: 0.8932549342 | J57: 0.8932549342 | K57: 0.8932549342 | L57: 0.8932549342 | M57: 0.8932549342 | N57: 3.173254934 | O57: 3.173254934 | P57: 3.173254934 | Q57: 3.173254934 | R57: 3.173254934 | S57: 3.173254934 | T57: 3.173254934 | U57: 3.173254934 | V57: 3.173254934 | W57: 3.173254934 | X57: 3.173254934 | Y57: 3.173254934 | Z57: 3.173254934 | AA57: 3.173254934 | AB57: 3.173254934 | AC57: 3.173254934 | AD57: 3.173254934 | AE57: 3.173254934 | AF57: 3.173254934 | AG57: 3.173254934 | AH57: 3.173254934 | AI57: 3.173254934 | AJ57: 3.173254934 | AK57: 3.173254934 | AL57: =AK57 * (1 + AL50) -> 3.173254934 | AM57: 3.173254934 | AN57: 3.173254934 | AO57: 3.173254934 | AP57: 3.173254934 | AQ57: 3.173254934 | AR57: 3.173254934 | AS57: 3.173254934 | AT57: 3.173254934 | AU57: 3.173254934 | AV57: 3.173254934 | AW57: 3.173254934 | AX57: 3.173254934 | AY57: 3.173254934 | AZ57: 3.173254934 | BA57: 3.173254934 | BB57: 3.173254934 | BC57: 3.173254934 | BD57: 3.173254934 | BE57: 3.173254934 | BF57: 3.173254934 | BG57: 3.173254934 | BH57: 3.173254934 | BI57: 3.173254934 | BJ57: 3.173254934 | BK57: 3.173254934 | BL57: 3.173254934 | BM57: 3.173254934 | BN57: 3.173254934 | BO57: 3.173254934 | BP57: 3.173254934 | BQ57: 3.173254934 | BR57: =BQ57 * (1 + BR50) -> 3.173254934 | BS57: 3.173254934 | BT57: 3.173254934 | BU57: 3.173254934 | BV57: 3.173254934 | BW57: 3.173254934 | BX57: 3.173254934 | BY57: 3.173254934 | BZ57: 3.173254934 | CA57: 3.173254934 | CB57: 3.173254934 | CC57: 3.173254934 | CD57: 3.173254934 | CE57: 3.173254934 | CF57: 3.173254934
C58: Total | D58: Thousand barrels per day | E58: =SUM(E52:E57) -> 41.20784037 | F58: =SUM(F52:F57) -> 45.57254598 | G58: 50.43457005 | H58: 55.85627312 | I58: 61.90907979 | J58: 68.67504334 | K58: 76.24872261 | L58: 84.73943982 | M58: 94.27400347 | N58: 105 | O58: 108.4275529 | P58: 111.9711164 | Q58: 115.6346429 | R58: 119.4222204 | S58: 123.3380772 | T58: 127.386587 | U58: 131.5722738 | V58: 135.8998169 | W58: 140.3740567 | X58: 145 | Y58: 142.8545444 | Z58: 140.7430386 | AA58: 138.6649107 | AB58: 136.6195997 | AC58: 134.6065543 | AD58: 132.6252335 | AE58: 130.6751059 | AF58: 128.7556499 | AG58: 126.8663531 | AH58: 125.0067123 | AI58: 125.0067123 | AJ58: 125.0067123 | AK58: 125.0067123 | AL58: 125.0067123 | AM58: 125.0067123 | AN58: 125.0067123 | AO58: 125.0067123 | AP58: 125.0067123 | AQ58: 125.0067123 | AR58: 125.0067123 | AS58: 125.0067123 | AT58: 125.0067123 | AU58: 125.0067123 | AV58: 125.0067123 | AW58: 125.0067123 | AX58: 125.0067123 | AY58: 125.0067123 | AZ58: 125.0067123 | BA58: 125.0067123 | BB58: 125.0067123 | BC58: 125.0067123 | BD58: 125.0067123 | BE58: 125.0067123 | BF58: 125.0067123 | BG58: 125.0067123 | BH58: 125.0067123 | BI58: 125.0067123 | BJ58: 125.0067123 | BK58: 125.0067123 | BL58: 125.0067123 | BM58: 125.0067123 | BN58: 125.0067123 | BO58: 125.0067123 | BP58: 125.0067123 | BQ58: 125.0067123 | BR58: =SUM(BR52:BR57) -> 125.0067123 | BS58: 125.0067123 | BT58: 125.0067123 | BU58: 125.0067123 | BV58: 125.0067123 | BW58: 125.0067123 | BX58: 125.0067123 | BY58: 125.0067123 | BZ58: 125.0067123 | CA58: 125.0067123 | CB58: 125.0067123 | CC58: 125.0067123 | CD58: 125.0067123 | CE58: 125.0067123 | CF58: 125.0067123
C60: Refinery configuration
C62: Year of FID | D62: 2024
C64: Refinery capacity
C66: Refining capacity starting production | D66: Thousand barrels per day | L66: 30 | M66: 30
C67: Refining capacity in operation | D67: Thousand barrels per day | E67: =SUM($E$66:E66) -> 0 | F67: =SUM($E$66:F66) -> 0 | G67: =SUM($E$66:G66) -> 0 | H67: =SUM($E$66:H66) -> 0 | I67: =SUM($E$66:I66) -> 0 | J67: =SUM($E$66:J66) -> 0 | K67: =SUM($E$66:K66) -> 0 | L67: =SUM($E$66:L66) -> 30 | M67: =SUM($E$66:M66) -> 60 | N67: =SUM($E$66:N66) -> 60 | O67: =SUM($E$66:O66) -> 60 | P67: =SUM($E$66:P66) -> 60 | Q67: =SUM($E$66:Q66) -> 60 | R67: =SUM($E$66:R66) -> 60 | S67: =SUM($E$66:S66) -> 60 | T67: =SUM($E$66:T66) -> 60 | U67: =SUM($E$66:U66) -> 60 | V67: =SUM($E$66:V66) -> 60 | W67: =SUM($E$66:W66) -> 60 | X67: =SUM($E$66:X66) -> 60 | Y67: =SUM($E$66:Y66) -> 60 | Z67: =SUM($E$66:Z66) -> 60 | AA67: =SUM($E$66:AA66) -> 60 | AB67: =SUM($E$66:AB66) -> 60 | AC67: =SUM($E$66:AC66) -> 60 | AD67: =SUM($E$66:AD66) -> 60 | AE67: =SUM($E$66:AE66) -> 60 | AF67: =SUM($E$66:AF66) -> 60 | AG67: =SUM($E$66:AG66) -> 60 | AH67: =SUM($E$66:AH66) -> 60 | AI67: =SUM($E$66:AI66) -> 60 | AJ67: =SUM($E$66:AJ66) -> 60 | AK67: =SUM($E$66:AK66) -> 60 | AL67: =SUM($E$66:AL66) -> 60 | AM67: =SUM($E$66:AM66) -> 60 | AN67: =SUM($E$66:AN66) -> 60 | AO67: =SUM($E$66:AO66) -> 60 | AP67: =SUM($E$66:AP66) -> 60 | AQ67: =SUM($E$66:AQ66) -> 60 | AR67: =SUM($E$66:AR66) -> 60 | AS67: =SUM($E$66:AS66) -> 60 | AT67: =SUM($E$66:AT66) -> 60 | AU67: =SUM($E$66:AU66) -> 60 | AV67: =SUM($E$66:AV66) -> 60 | AW67: =SUM($E$66:AW66) -> 60 | AX67: =SUM($E$66:AX66) -> 60 | AY67: =SUM($E$66:AY66) -> 60 | AZ67: =SUM($E$66:AZ66) -> 60 | BA67: =SUM($E$66:BA66) -> 60 | BB67: =SUM($E$66:BB66) -> 60 | BC67: =SUM($E$66:BC66) -> 60 | BD67: =SUM($E$66:BD66) -> 60 | BE67: =SUM($E$66:BE66) -> 60 | BF67: =SUM($E$66:BF66) -> 60 | BG67: =SUM($E$66:BG66) -> 60 | BH67: =SUM($E$66:BH66) -> 60 | BI67: =SUM($E$66:BI66) -> 60 | BJ67: =SUM($E$66:BJ66) -> 60 | BK67: =SUM($E$66:BK66) -> 60 | BL67: =SUM($E$66:BL66) -> 60 | BM67: =SUM($E$66:BM66) -> 60 | BN67: =SUM($E$66:BN66) -> 60 | BO67: =SUM($E$66:BO66) -> 60 | BP67: =SUM($E$66:BP66) -> 60 | BQ67: =SUM($E$66:BQ66) -> 60 | BR67: =SUM($E$66:BR66) -> 60 | BS67: =SUM($E$66:BS66) -> 60 | BT67: =SUM($E$66:BT66) -> 60 | BU67: =SUM($E$66:BU66) -> 60 | BV67: =SUM($E$66:BV66) -> 60 | BW67: =SUM($E$66:BW66) -> 60 | BX67: =SUM($E$66:BX66) -> 60 | BY67: =SUM($E$66:BY66) -> 60 | BZ67: =SUM($E$66:BZ66) -> 60 | CA67: =SUM($E$66:CA66) -> 60 | CB67: =SUM($E$66:CB66) -> 60 | CC67: =SUM($E$66:CC66) -> 60 | CD67: =SUM($E$66:CD66) -> 60 | CE67: =SUM($E$66:CE66) -> 60 | CF67: =SUM($E$66:CF66) -> 60
C69: Utilization rate | D69: 0.95
C71: Refining capacity being utilized | D71: Thousand barrels per day | E71: =E67 * $D$69 -> 0 | F71: 0 | G71: 0 | H71: 0 | I71: 0 | J71: 0 | K71: 0 | L71: 28.5 | M71: 57 | N71: 57 | O71: 57 | P71: 57 | Q71: 57 | R71: 57 | S71: 57 | T71: 57 | U71: 57 | V71: 57 | W71: 57 | X71: 57 | Y71: 57 | Z71: 57 | AA71: 57 | AB71: 57 | AC71: 57 | AD71: 57 | AE71: 57 | AF71: 57 | AG71: 57 | AH71: 57 | AI71: 57 | AJ71: 57 | AK71: =AK67 * $D$69 -> 57 | AL71: 57 | AM71: 57 | AN71: 57 | AO71: 57 | AP71: 57 | AQ71: 57 | AR71: 57 | AS71: 57 | AT71: 57 | AU71: 57 | AV71: 57 | AW71: 57 | AX71: 57 | AY71: 57 | AZ71: 57 | BA71: 57 | BB71: 57 | BC71: 57 | BD71: 57 | BE71: 57 | BF71: 57 | BG71: 57 | BH71: 57 | BI71: 57 | BJ71: 57 | BK71: 57 | BL71: 57 | BM71: 57 | BN71: 57 | BO71: 57 | BP71: 57 | BQ71: =BQ67 * $D$69 -> 57 | BR71: 57 | BS71: 57 | BT71: 57 | BU71: 57 | BV71: 57 | BW71: 57 | BX71: 57 | BY71: 57 | BZ71: 57 | CA71: 57 | CB71: 57 | CC71: 57 | CD71: 57 | CE71: 57 | CF71: 57
C72: Refining capacity being utilized | D72: Thousand barrels per day | E72: =(E71 * 365)/1000 -> 0 | F72: =(F71 * 365)/1000 -> 0 | G72: 0 | H72: 0 | I72: 0 | J72: 0 | K72: 0 | L72: 10.4025 | M72: 20.805 | N72: 20.805 | O72: 20.805 | P72: 20.805 | Q72: 20.805 | R72: 20.805 | S72: 20.805 | T72: 20.805 | U72: 20.805 | V72: 20.805 | W72: 20.805 | X72: 20.805 | Y72: 20.805 | Z72: 20.805 | AA72: 20.805 | AB72: 20.805 | AC72: 20.805 | AD72: 20.805 | AE72: 20.805 | AF72: 20.805 | AG72: 20.805 | AH72: 20.805 | AI72: 20.805 | AJ72: 20.805 | AK72: 20.805 | AL72: 20.805 | AM72: 20.805 | AN72: 20.805 | AO72: 20.805 | AP72: 20.805 | AQ72: 20.805 | AR72: 20.805 | AS72: 20.805 | AT72: 20.805 | AU72: 20.805 | AV72: 20.805 | AW72: 20.805 | AX72: 20.805 | AY72: 20.805 | AZ72: 20.805 | BA72: 20.805 | BB72: 20.805 | BC72: 20.805 | BD72: 20.805 | BE72: 20.805 | BF72: 20.805 | BG72: 20.805 | BH72: 20.805 | BI72: 20.805 | BJ72: 20.805 | BK72: 20.805 | BL72: 20.805 | BM72: 20.805 | BN72: 20.805 | BO72: 20.805 | BP72: 20.805 | BQ72: 20.805 | BR72: =(BR71 * 365)/1000 -> 20.805 | BS72: 20.805 | BT72: 20.805 | BU72: 20.805 | BV72: 20.805 | BW72: 20.805 | BX72: 20.805 | BY72: 20.805 | BZ72: 20.805 | CA72: 20.805 | CB72: 20.805 | CC72: 20.805 | CD72: 20.805 | CE72: 20.805 | CF72: 20.805
C74: Refinery uield
E76: 1 | F76: 2 | G76: 3 | H76: 4 | I76: 5
D77: 4 | E77: Simple: CLOV (Angola) | F77: Simple: Girassol (Angola) | G77: Simple: Saxi Batuque (Angola) | H77: Complex: In FEED | I77: User defined
C78: Petrol | D78: =INDEX(E78:I78, $D$77) -> 0.55 | E78: 0.21 | F78: 0.166 | G78: 0.241 | H78: 0.55
C79: Diesel | D79: =INDEX(E79:I79, $D$77) -> 0.24 | E79: 0.258 | F79: 0.267 | G79: 0.261 | H79: 0.24
C80: Jet fuel | D80: =INDEX(E80:I80, $D$77) -> 0.04 | E80: 0.08 | F80: 0.07524 | G80: 0.09108 | H80: 0.04
C81: Kerosene | D81: =INDEX(E81:I81, $D$77) -> 0 | E81: 0.021 | F81: 0.01976 | G81: 0.02392 | H81: 0
C82: Liquefied petroleum gas | D82: =INDEX(E82:I82, $D$77) -> 0.13 | E82: 0.013 | F82: 0.011 | G82: 0.014 | H82: 0.13
C83: Heavy fuel oil | D83: =INDEX(E83:I83, $D$77) -> 0.04 | E83: 0.414 | F83: 0.459 | G83: 0.363 | H83: 0.04
C84: Off gas (loss/burned) | D84: =INDEX(E84:I84, $D$77) -> 0 | E84: 0.004 | F84: 0.002 | G84: 0.006 | H84: 0
C85: Total | D85: =SUM(D78:D84) -> 1 | E85: =SUM(E78:E84) -> 1 | F85: 1 | G85: 1 | H85: 1 | I85: 0
C87: Petrol | D87: Thousand barrels per day | E87: =$D78*E$71 -> 0 | F87: 0 | G87: 0 | H87: 0 | I87: 0 | J87: 0 | K87: 0 | L87: 15.675 | M87: 31.35 | N87: 31.35 | O87: 31.35 | P87: 31.35 | Q87: 31.35 | R87: 31.35 | S87: 31.35 | T87: 31.35 | U87: 31.35 | V87: 31.35 | W87: 31.35 | X87: 31.35 | Y87: 31.35 | Z87: 31.35 | AA87: 31.35 | AB87: 31.35 | AC87: 31.35 | AD87: 31.35 | AE87: 31.35 | AF87: 31.35 | AG87: 31.35 | AH87: 31.35 | AI87: 31.35 | AJ87: 31.35 | AK87: =$D78*AK$71 -> 31.35 | AL87: 31.35 | AM87: 31.35 | AN87: 31.35 | AO87: 31.35 | AP87: 31.35 | AQ87: 31.35 | AR87: 31.35 | AS87: 31.35 | AT87: 31.35 | AU87: 31.35 | AV87: 31.35 | AW87: 31.35 | AX87: 31.35 | AY87: 31.35 | AZ87: 31.35 | BA87: 31.35 | BB87: 31.35 | BC87: 31.35 | BD87: 31.35 | BE87: 31.35 | BF87: 31.35 | BG87: 31.35 | BH87: 31.35 | BI87: 31.35 | BJ87: 31.35 | BK87: 31.35 | BL87: 31.35 | BM87: 31.35 | BN87: 31.35 | BO87: 31.35 | BP87: 31.35 | BQ87: =$D78*BQ$71 -> 31.35 | BR87: 31.35 | BS87: 31.35 | BT87: 31.35 | BU87: 31.35 | BV87: 31.35 | BW87: 31.35 | BX87: 31.35 | BY87: 31.35 | BZ87: 31.35 | CA87: 31.35 | CB87: 31.35 | CC87: 31.35 | CD87: 31.35 | CE87: 31.35 | CF87: 31.35
C88: Diesel | D88: Thousand barrels per day | E88: =$D79*E$71 -> 0 | F88: 0 | G88: 0 | H88: 0 | I88: 0 | J88: 0 | K88: 0 | L88: 6.84 | M88: 13.68 | N88: 13.68 | O88: 13.68 | P88: 13.68 | Q88: 13.68 | R88: 13.68 | S88: 13.68 | T88: 13.68 | U88: 13.68 | V88: 13.68 | W88: 13.68 | X88: 13.68 | Y88: 13.68 | Z88: 13.68 | AA88: 13.68 | AB88: 13.68 | AC88: 13.68 | AD88: 13.68 | AE88: 13.68 | AF88: 13.68 | AG88: 13.68 | AH88: 13.68 | AI88: 13.68 | AJ88: 13.68 | AK88: =$D79*AK$71 -> 13.68 | AL88: 13.68 | AM88: 13.68 | AN88: 13.68 | AO88: 13.68 | AP88: 13.68 | AQ88: 13.68 | AR88: 13.68 | AS88: 13.68 | AT88: 13.68 | AU88: 13.68 | AV88: 13.68 | AW88: 13.68 | AX88: 13.68 | AY88: 13.68 | AZ88: 13.68 | BA88: 13.68 | BB88: 13.68 | BC88: 13.68 | BD88: 13.68 | BE88: 13.68 | BF88: 13.68 | BG88: 13.68 | BH88: 13.68 | BI88: 13.68 | BJ88: 13.68 | BK88: 13.68 | BL88: 13.68 | BM88: 13.68 | BN88: 13.68 | BO88: 13.68 | BP88: 13.68 | BQ88: =$D79*BQ$71 -> 13.68 | BR88: 13.68 | BS88: 13.68 | BT88: 13.68 | BU88: 13.68 | BV88: 13.68 | BW88: 13.68 | BX88: 13.68 | BY88: 13.68 | BZ88: 13.68 | CA88: 13.68 | CB88: 13.68 | CC88: 13.68 | CD88: 13.68 | CE88: 13.68 | CF88: 13.68
C89: Jet fuel | D89: Thousand barrels per day | E89: =$D80*E$71 -> 0 | F89: 0 | G89: 0 | H89: 0 | I89: 0 | J89: 0 | K89: 0 | L89: 1.14 | M89: 2.28 | N89: 2.28 | O89: 2.28 | P89: 2.28 | Q89: 2.28 | R89: 2.28 | S89: 2.28 | T89: 2.28 | U89: 2.28 | V89: 2.28 | W89: 2.28 | X89: 2.28 | Y89: 2.28 | Z89: 2.28 | AA89: 2.28 | AB89: 2.28 | AC89: 2.28 | AD89: 2.28 | AE89: 2.28 | AF89: 2.28 | AG89: 2.28 | AH89: 2.28 | AI89: 2.28 | AJ89: 2.28 | AK89: =$D80*AK$71 -> 2.28 | AL89: 2.28 | AM89: 2.28 | AN89: 2.28 | AO89: 2.28 | AP89: 2.28 | AQ89: 2.28 | AR89: 2.28 | AS89: 2.28 | AT89: 2.28 | AU89: 2.28 | AV89: 2.28 | AW89: 2.28 | AX89: 2.28 | AY89: 2.28 | AZ89: 2.28 | BA89: 2.28 | BB89: 2.28 | BC89: 2.28 | BD89: 2.28 | BE89: 2.28 | BF89: 2.28 | BG89: 2.28 | BH89: 2.28 | BI89: 2.28 | BJ89: 2.28 | BK89: 2.28 | BL89: 2.28 | BM89: 2.28 | BN89: 2.28 | BO89: 2.28 | BP89: 2.28 | BQ89: =$D80*BQ$71 -> 2.28 | BR89: 2.28 | BS89: 2.28 | BT89: 2.28 | BU89: 2.28 | BV89: 2.28 | BW89: 2.28 | BX89: 2.28 | BY89: 2.28 | BZ89: 2.28 | CA89: 2.28 | CB89: 2.28 | CC89: 2.28 | CD89: 2.28 | CE89: 2.28 | CF89: 2.28
C90: Kerosene | D90: Thousand barrels per day | E90: =$D81*E$71 -> 0 | F90: 0 | G90: 0 | H90: 0 | I90: 0 | J90: 0 | K90: 0 | L90: 0 | M90: 0 | N90: 0 | O90: 0 | P90: 0 | Q90: 0 | R90: 0 | S90: 0 | T90: 0 | U90: 0 | V90: 0 | W90: 0 | X90: 0 | Y90: 0 | Z90: 0 | AA90: 0 | AB90: 0 | AC90: 0 | AD90: 0 | AE90: 0 | AF90: 0 | AG90: 0 | AH90: 0 | AI90: 0 | AJ90: 0 | AK90: =$D81*AK$71 -> 0 | AL90: 0 | AM90: 0 | AN90: 0 | AO90: 0 | AP90: 0 | AQ90: 0 | AR90: 0 | AS90: 0 | AT90: 0 | AU90: 0 | AV90: 0 | AW90: 0 | AX90: 0 | AY90: 0 | AZ90: 0 | BA90: 0 | BB90: 0 | BC90: 0 | BD90: 0 | BE90: 0 | BF90: 0 | BG90: 0 | BH90: 0 | BI90: 0 | BJ90: 0 | BK90: 0 | BL90: 0 | BM90: 0 | BN90: 0 | BO90: 0 | BP90: 0 | BQ90: =$D81*BQ$71 -> 0 | BR90: 0 | BS90: 0 | BT90: 0 | BU90: 0 | BV90: 0 | BW90: 0 | BX90: 0 | BY90: 0 | BZ90: 0 | CA90: 0 | CB90: 0 | CC90: 0 | CD90: 0 | CE90: 0 | CF90: 0
C91: Liquefied petroleum gas | D91: Thousand barrels per day | E91: =$D82*E$71 -> 0 | F91: 0 | G91: 0 | H91: 0 | I91: 0 | J91: 0 | K91: 0 | L91: 3.705 | M91: 7.41 | N91: 7.41 | O91: 7.41 | P91: 7.41 | Q91: 7.41 | R91: 7.41 | S91: 7.41 | T91: 7.41 | U91: 7.41 | V91: 7.41 | W91: 7.41 | X91: 7.41 | Y91: 7.41 | Z91: 7.41 | AA91: 7.41 | AB91: 7.41 | AC91: 7.41 | AD91: 7.41 | AE91: 7.41 | AF91: 7.41 | AG91: 7.41 | AH91: 7.41 | AI91: 7.41 | AJ91: 7.41 | AK91: =$D82*AK$71 -> 7.41 | AL91: 7.41 | AM91: 7.41 | AN91: 7.41 | AO91: 7.41 | AP91: 7.41 | AQ91: 7.41 | AR91: 7.41 | AS91: 7.41 | AT91: 7.41 | AU91: 7.41 | AV91: 7.41 | AW91: 7.41 | AX91: 7.41 | AY91: 7.41 | AZ91: 7.41 | BA91: 7.41 | BB91: 7.41 | BC91: 7.41 | BD91: 7.41 | BE91: 7.41 | BF91: 7.41 | BG91: 7.41 | BH91: 7.41 | BI91: 7.41 | BJ91: 7.41 | BK91: 7.41 | BL91: 7.41 | BM91: 7.41 | BN91: 7.41 | BO91: 7.41 | BP91: 7.41 | BQ91: =$D82*BQ$71 -> 7.41 | BR91: 7.41 | BS91: 7.41 | BT91: 7.41 | BU91: 7.41 | BV91: 7.41 | BW91: 7.41 | BX91: 7.41 | BY91: 7.41 | BZ91: 7.41 | CA91: 7.41 | CB91: 7.41 | CC91: 7.41 | CD91: 7.41 | CE91: 7.41 | CF91: 7.41
C92: Heavy fuel oil | D92: Thousand barrels per day | E92: =$D83*E$71 -> 0 | F92: 0 | G92: 0 | H92: 0 | I92: 0 | J92: 0 | K92: 0 | L92: 1.14 | M92: 2.28 | N92: 2.28 | O92: 2.28 | P92: 2.28 | Q92: 2.28 | R92: 2.28 | S92: 2.28 | T92: 2.28 | U92: 2.28 | V92: 2.28 | W92: 2.28 | X92: 2.28 | Y92: 2.28 | Z92: 2.28 | AA92: 2.28 | AB92: 2.28 | AC92: 2.28 | AD92: 2.28 | AE92: 2.28 | AF92: 2.28 | AG92: 2.28 | AH92: 2.28 | AI92: 2.28 | AJ92: 2.28 | AK92: =$D83*AK$71 -> 2.28 | AL92: 2.28 | AM92: 2.28 | AN92: 2.28 | AO92: 2.28 | AP92: 2.28 | AQ92: 2.28 | AR92: 2.28 | AS92: 2.28 | AT92: 2.28 | AU92: 2.28 | AV92: 2.28 | AW92: 2.28 | AX92: 2.28 | AY92: 2.28 | AZ92: 2.28 | BA92: 2.28 | BB92: 2.28 | BC92: 2.28 | BD92: 2.28 | BE92: 2.28 | BF92: 2.28 | BG92: 2.28 | BH92: 2.28 | BI92: 2.28 | BJ92: 2.28 | BK92: 2.28 | BL92: 2.28 | BM92: 2.28 | BN92: 2.28 | BO92: 2.28 | BP92: 2.28 | BQ92: =$D83*BQ$71 -> 2.28 | BR92: 2.28 | BS92: 2.28 | BT92: 2.28 | BU92: 2.28 | BV92: 2.28 | BW92: 2.28 | BX92: 2.28 | BY92: 2.28 | BZ92: 2.28 | CA92: 2.28 | CB92: 2.28 | CC92: 2.28 | CD92: 2.28 | CE92: 2.28 | CF92: 2.28
C93: Off gas (loss/burned) | D93: Thousand barrels per day | E93: =$D84*E$71 -> 0 | F93: 0 | G93: 0 | H93: 0 | I93: 0 | J93: 0 | K93: 0 | L93: 0 | M93: 0 | N93: 0 | O93: 0 | P93: 0 | Q93: 0 | R93: 0 | S93: 0 | T93: 0 | U93: 0 | V93: 0 | W93: 0 | X93: 0 | Y93: 0 | Z93: 0 | AA93: 0 | AB93: 0 | AC93: 0 | AD93: 0 | AE93: 0 | AF93: 0 | AG93: 0 | AH93: 0 | AI93: 0 | AJ93: 0 | AK93: =$D84*AK$71 -> 0 | AL93: 0 | AM93: 0 | AN93: 0 | AO93: 0 | AP93: 0 | AQ93: 0 | AR93: 0 | AS93: 0 | AT93: 0 | AU93: 0 | AV93: 0 | AW93: 0 | AX93: 0 | AY93: 0 | AZ93: 0 | BA93: 0 | BB93: 0 | BC93: 0 | BD93: 0 | BE93: 0 | BF93: 0 | BG93: 0 | BH93: 0 | BI93: 0 | BJ93: 0 | BK93: 0 | BL93: 0 | BM93: 0 | BN93: 0 | BO93: 0 | BP93: 0 | BQ93: =$D84*BQ$71 -> 0 | BR93: 0 | BS93: 0 | BT93: 0 | BU93: 0 | BV93: 0 | BW93: 0 | BX93: 0 | BY93: 0 | BZ93: 0 | CA93: 0 | CB93: 0 | CC93: 0 | CD93: 0 | CE93: 0 | CF93: 0
C94: Total | D94: Thousand barrels per day | E94: =$D85*E$71 -> 0 | F94: 0 | G94: 0 | H94: 0 | I94: 0 | J94: 0 | K94: 0 | L94: 28.5 | M94: 57 | N94: 57 | O94: 57 | P94: 57 | Q94: 57 | R94: 57 | S94: 57 | T94: 57 | U94: 57 | V94: 57 | W94: 57 | X94: 57 | Y94: 57 | Z94: 57 | AA94: 57 | AB94: 57 | AC94: 57 | AD94: 57 | AE94: 57 | AF94: 57 | AG94: 57 | AH94: 57 | AI94: 57 | AJ94: 57 | AK94: =$D85*AK$71 -> 57 | AL94: 57 | AM94: 57 | AN94: 57 | AO94: 57 | AP94: 57 | AQ94: 57 | AR94: 57 | AS94: 57 | AT94: 57 | AU94: 57 | AV94: 57 | AW94: 57 | AX94: 57 | AY94: 57 | AZ94: 57 | BA94: 57 | BB94: 57 | BC94: 57 | BD94: 57 | BE94: 57 | BF94: 57 | BG94: 57 | BH94: 57 | BI94: 57 | BJ94: 57 | BK94: 57 | BL94: 57 | BM94: 57 | BN94: 57 | BO94: 57 | BP94: 57 | BQ94: =$D85*BQ$71 -> 57 | BR94: 57 | BS94: 57 | BT94: 57 | BU94: 57 | BV94: 57 | BW94: 57 | BX94: 57 | BY94: 57 | BZ94: 57 | CA94: 57 | CB94: 57 | CC94: 57 | CD94: 57 | CE94: 57 | CF94: 57
C96: Petrol | D96: Million barrels per year | E96: =(E87 / 1000) * 365 -> 0 | F96: 0 | G96: 0 | H96: 0 | I96: 0 | J96: 0 | K96: 0 | L96: 5.721375 | M96: 11.44275 | N96: 11.44275 | O96: 11.44275 | P96: 11.44275 | Q96: 11.44275 | R96: 11.44275 | S96: 11.44275 | T96: 11.44275 | U96: 11.44275 | V96: 11.44275 | W96: 11.44275 | X96: 11.44275 | Y96: 11.44275 | Z96: 11.44275 | AA96: 11.44275 | AB96: 11.44275 | AC96: 11.44275 | AD96: 11.44275 | AE96: 11.44275 | AF96: 11.44275 | AG96: 11.44275 | AH96: 11.44275 | AI96: 11.44275 | AJ96: 11.44275 | AK96: =(AK87 / 1000) * 365 -> 11.44275 | AL96: 11.44275 | AM96: 11.44275 | AN96: 11.44275 | AO96: 11.44275 | AP96: 11.44275 | AQ96: 11.44275 | AR96: 11.44275 | AS96: 11.44275 | AT96: 11.44275 | AU96: 11.44275 | AV96: 11.44275 | AW96: 11.44275 | AX96: 11.44275 | AY96: 11.44275 | AZ96: 11.44275 | BA96: 11.44275 | BB96: 11.44275 | BC96: 11.44275 | BD96: 11.44275 | BE96: 11.44275 | BF96: 11.44275 | BG96: 11.44275 | BH96: 11.44275 | BI96: 11.44275 | BJ96: 11.44275 | BK96: 11.44275 | BL96: 11.44275 | BM96: 11.44275 | BN96: 11.44275 | BO96: 11.44275 | BP96: 11.44275 | BQ96: =(BQ87 / 1000) * 365 -> 11.44275 | BR96: 11.44275 | BS96: 11.44275 | BT96: 11.44275 | BU96: 11.44275 | BV96: 11.44275 | BW96: 11.44275 | BX96: 11.44275 | BY96: 11.44275 | BZ96: 11.44275 | CA96: 11.44275 | CB96: 11.44275 | CC96: 11.44275 | CD96: 11.44275 | CE96: 11.44275 | CF96: 11.44275
C97: Diesel | D97: Million barrels per year | E97: =(E88 / 1000) * 365 -> 0 | F97: 0 | G97: 0 | H97: 0 | I97: 0 | J97: 0 | K97: 0 | L97: 2.4966 | M97: 4.9932 | N97: 4.9932 | O97: 4.9932 | P97: 4.9932 | Q97: 4.9932 | R97: 4.9932 | S97: 4.9932 | T97: 4.9932 | U97: 4.9932 | V97: 4.9932 | W97: 4.9932 | X97: 4.9932 | Y97: 4.9932 | Z97: 4.9932 | AA97: 4.9932 | AB97: 4.9932 | AC97: 4.9932 | AD97: 4.9932 | AE97: 4.9932 | AF97: 4.9932 | AG97: 4.9932 | AH97: 4.9932 | AI97: 4.9932 | AJ97: 4.9932 | AK97: =(AK88 / 1000) * 365 -> 4.9932 | AL97: 4.9932 | AM97: 4.9932 | AN97: 4.9932 | AO97: 4.9932 | AP97: 4.9932 | AQ97: 4.9932 | AR97: 4.9932 | AS97: 4.9932 | AT97: 4.9932 | AU97: 4.9932 | AV97: 4.9932 | AW97: 4.9932 | AX97: 4.9932 | AY97: 4.9932 | AZ97: 4.9932 | BA97: 4.9932 | BB97: 4.9932 | BC97: 4.9932 | BD97: 4.9932 | BE97: 4.9932 | BF97: 4.9932 | BG97: 4.9932 | BH97: 4.9932 | BI97: 4.9932 | BJ97: 4.9932 | BK97: 4.9932 | BL97: 4.9932 | BM97: 4.9932 | BN97: 4.9932 | BO97: 4.9932 | BP97: 4.9932 | BQ97: =(BQ88 / 1000) * 365 -> 4.9932 | BR97: 4.9932 | BS97: 4.9932 | BT97: 4.9932 | BU97: 4.9932 | BV97: 4.9932 | BW97: 4.9932 | BX97: 4.9932 | BY97: 4.9932 | BZ97: 4.9932 | CA97: 4.9932 | CB97: 4.9932 | CC97: 4.9932 | CD97: 4.9932 | CE97: 4.9932 | CF97: 4.9932
C98: Jet fuel | D98: Million barrels per year | E98: =(E89 / 1000) * 365 -> 0 | F98: 0 | G98: 0 | H98: 0 | I98: 0 | J98: 0 | K98: 0 | L98: 0.4161 | M98: 0.8322 | N98: 0.8322 | O98: 0.8322 | P98: 0.8322 | Q98: 0.8322 | R98: 0.8322 | S98: 0.8322 | T98: 0.8322 | U98: 0.8322 | V98: 0.8322 | W98: 0.8322 | X98: 0.8322 | Y98: 0.8322 | Z98: 0.8322 | AA98: 0.8322 | AB98: 0.8322 | AC98: 0.8322 | AD98: 0.8322 | AE98: 0.8322 | AF98: 0.8322 | AG98: 0.8322 | AH98: 0.8322 | AI98: 0.8322 | AJ98: 0.8322 | AK98: =(AK89 / 1000) * 365 -> 0.8322 | AL98: 0.8322 | AM98: 0.8322 | AN98: 0.8322 | AO98: 0.8322 | AP98: 0.8322 | AQ98: 0.8322 | AR98: 0.8322 | AS98: 0.8322 | AT98: 0.8322 | AU98: 0.8322 | AV98: 0.8322 | AW98: 0.8322 | AX98: 0.8322 | AY98: 0.8322 | AZ98: 0.8322 | BA98: 0.8322 | BB98: 0.8322 | BC98: 0.8322 | BD98: 0.8322 | BE98: 0.8322 | BF98: 0.8322 | BG98: 0.8322 | BH98: 0.8322 | BI98: 0.8322 | BJ98: 0.8322 | BK98: 0.8322 | BL98: 0.8322 | BM98: 0.8322 | BN98: 0.8322 | BO98: 0.8322 | BP98: 0.8322 | BQ98: =(BQ89 / 1000) * 365 -> 0.8322 | BR98: 0.8322 | BS98: 0.8322 | BT98: 0.8322 | BU98: 0.8322 | BV98: 0.8322 | BW98: 0.8322 | BX98: 0.8322 | BY98: 0.8322 | BZ98: 0.8322 | CA98: 0.8322 | CB98: 0.8322 | CC98: 0.8322 | CD98: 0.8322 | CE98: 0.8322 | CF98: 0.8322
C99: Kerosene | D99: Million barrels per year | E99: =(E90 / 1000) * 365 -> 0 | F99: 0 | G99: 0 | H99: 0 | I99: 0 | J99: 0 | K99: 0 | L99: 0 | M99: 0 | N99: 0 | O99: 0 | P99: 0 | Q99: 0 | R99: 0 | S99: 0 | T99: 0 | U99: 0 | V99: 0 | W99: 0 | X99: 0 | Y99: 0 | Z99: 0 | AA99: 0 | AB99: 0 | AC99: 0 | AD99: 0 | AE99: 0 | AF99: 0 | AG99: 0 | AH99: 0 | AI99: 0 | AJ99: 0 | AK99: =(AK90 / 1000) * 365 -> 0 | AL99: 0 | AM99: 0 | AN99: 0 | AO99: 0 | AP99: 0 | AQ99: 0 | AR99: 0 | AS99: 0 | AT99: 0 | AU99: 0 | AV99: 0 | AW99: 0 | AX99: 0 | AY99: 0 | AZ99: 0 | BA99: 0 | BB99: 0 | BC99: 0 | BD99: 0 | BE99: 0 | BF99: 0 | BG99: 0 | BH99: 0 | BI99: 0 | BJ99: 0 | BK99: 0 | BL99: 0 | BM99: 0 | BN99: 0 | BO99: 0 | BP99: 0 | BQ99: =(BQ90 / 1000) * 365 -> 0 | BR99: 0 | BS99: 0 | BT99: 0 | BU99: 0 | BV99: 0 | BW99: 0 | BX99: 0 | BY99: 0 | BZ99: 0 | CA99: 0 | CB99: 0 | CC99: 0 | CD99: 0 | CE99: 0 | CF99: 0
C100: Liquefied petroleum gas | D100: Million barrels per year | E100: =(E91 / 1000) * 365 -> 0 | F100: 0 | G100: 0 | H100: 0 | I100: 0 | J100: 0 | K100: 0 | L100: 1.352325 | M100: 2.70465 | N100: 2.70465 | O100: 2.70465 | P100: 2.70465 | Q100: 2.70465 | R100: 2.70465 | S100: 2.70465 | T100: 2.70465 | U100: 2.70465 | V100: 2.70465 | W100: 2.70465 | X100: 2.70465 | Y100: 2.70465 | Z100: 2.70465 | AA100: 2.70465 | AB100: 2.70465 | AC100: 2.70465 | AD100: 2.70465 | AE100: 2.70465 | AF100: 2.70465 | AG100: 2.70465 | AH100: 2.70465 | AI100: 2.70465 | AJ100: 2.70465 | AK100: =(AK91 / 1000) * 365 -> 2.70465 | AL100: 2.70465 | AM100: 2.70465 | AN100: 2.70465 | AO100: 2.70465 | AP100: 2.70465 | AQ100: 2.70465 | AR100: 2.70465 | AS100: 2.70465 | AT100: 2.70465 | AU100: 2.70465 | AV100: 2.70465 | AW100: 2.70465 | AX100: 2.70465 | AY100: 2.70465 | AZ100: 2.70465 | BA100: 2.70465 | BB100: 2.70465 | BC100: 2.70465 | BD100: 2.70465 | BE100: 2.70465 | BF100: 2.70465 | BG100: 2.70465 | BH100: 2.70465 | BI100: 2.70465 | BJ100: 2.70465 | BK100: 2.70465 | BL100: 2.70465 | BM100: 2.70465 | BN100: 2.70465 | BO100: 2.70465 | BP100: 2.70465 | BQ100: =(BQ91 / 1000) * 365 -> 2.70465 | BR100: 2.70465 | BS100: 2.70465 | BT100: 2.70465 | BU100: 2.70465 | BV100: 2.70465 | BW100: 2.70465 | BX100: 2.70465 | BY100: 2.70465 | BZ100: 2.70465 | CA100: 2.70465 | CB100: 2.70465 | CC100: 2.70465 | CD100: 2.70465 | CE100: 2.70465 | CF100: 2.70465
C101: Heavy fuel oil | D101: Million barrels per year | E101: =(E92 / 1000) * 365 -> 0 | F101: 0 | G101: 0 | H101: 0 | I101: 0 | J101: 0 | K101: 0 | L101: 0.4161 | M101: 0.8322 | N101: 0.8322 | O101: 0.8322 | P101: 0.8322 | Q101: 0.8322 | R101: 0.8322 | S101: 0.8322 | T101: 0.8322 | U101: 0.8322 | V101: 0.8322 | W101: 0.8322 | X101: 0.8322 | Y101: 0.8322 | Z101: 0.8322 | AA101: 0.8322 | AB101: 0.8322 | AC101: 0.8322 | AD101: 0.8322 | AE101: 0.8322 | AF101: 0.8322 | AG101: 0.8322 | AH101: 0.8322 | AI101: 0.8322 | AJ101: 0.8322 | AK101: =(AK92 / 1000) * 365 -> 0.8322 | AL101: 0.8322 | AM101: 0.8322 | AN101: 0.8322 | AO101: 0.8322 | AP101: 0.8322 | AQ101: 0.8322 | AR101: 0.8322 | AS101: 0.8322 | AT101: 0.8322 | AU101: 0.8322 | AV101: 0.8322 | AW101: 0.8322 | AX101: 0.8322 | AY101: 0.8322 | AZ101: 0.8322 | BA101: 0.8322 | BB101: 0.8322 | BC101: 0.8322 | BD101: 0.8322 | BE101: 0.8322 | BF101: 0.8322 | BG101: 0.8322 | BH101: 0.8322 | BI101: 0.8322 | BJ101: 0.8322 | BK101: 0.8322 | BL101: 0.8322 | BM101: 0.8322 | BN101: 0.8322 | BO101: 0.8322 | BP101: 0.8322 | BQ101: =(BQ92 / 1000) * 365 -> 0.8322 | BR101: 0.8322 | BS101: 0.8322 | BT101: 0.8322 | BU101: 0.8322 | BV101: 0.8322 | BW101: 0.8322 | BX101: 0.8322 | BY101: 0.8322 | BZ101: 0.8322 | CA101: 0.8322 | CB101: 0.8322 | CC101: 0.8322 | CD101: 0.8322 | CE101: 0.8322 | CF101: 0.8322
C102: Off gas (loss/burned) | D102: Million barrels per year | E102: =(E93 / 1000) * 365 -> 0 | F102: 0 | G102: 0 | H102: 0 | I102: 0 | J102: 0 | K102: 0 | L102: 0 | M102: 0 | N102: 0 | O102: 0 | P102: 0 | Q102: 0 | R102: 0 | S102: 0 | T102: 0 | U102: 0 | V102: 0 | W102: 0 | X102: 0 | Y102: 0 | Z102: 0 | AA102: 0 | AB102: 0 | AC102: 0 | AD102: 0 | AE102: 0 | AF102: 0 | AG102: 0 | AH102: 0 | AI102: 0 | AJ102: 0 | AK102: =(AK93 / 1000) * 365 -> 0 | AL102: 0 | AM102: 0 | AN102: 0 | AO102: 0 | AP102: 0 | AQ102: 0 | AR102: 0 | AS102: 0 | AT102: 0 | AU102: 0 | AV102: 0 | AW102: 0 | AX102: 0 | AY102: 0 | AZ102: 0 | BA102: 0 | BB102: 0 | BC102: 0 | BD102: 0 | BE102: 0 | BF102: 0 | BG102: 0 | BH102: 0 | BI102: 0 | BJ102: 0 | BK102: 0 | BL102: 0 | BM102: 0 | BN102: 0 | BO102: 0 | BP102: 0 | BQ102: =(BQ93 / 1000) * 365 -> 0 | BR102: 0 | BS102: 0 | BT102: 0 | BU102: 0 | BV102: 0 | BW102: 0 | BX102: 0 | BY102: 0 | BZ102: 0 | CA102: 0 | CB102: 0 | CC102: 0 | CD102: 0 | CE102: 0 | CF102: 0
C103: Total | D103: Million barrels per year | E103: =(E94 / 1000) * 365 -> 0 | F103: 0 | G103: 0 | H103: 0 | I103: 0 | J103: 0 | K103: 0 | L103: 10.4025 | M103: 20.805 | N103: 20.805 | O103: 20.805 | P103: 20.805 | Q103: 20.805 | R103: 20.805 | S103: 20.805 | T103: 20.805 | U103: 20.805 | V103: 20.805 | W103: 20.805 | X103: 20.805 | Y103: 20.805 | Z103: 20.805 | AA103: 20.805 | AB103: 20.805 | AC103: 20.805 | AD103: 20.805 | AE103: 20.805 | AF103: 20.805 | AG103: 20.805 | AH103: 20.805 | AI103: 20.805 | AJ103: 20.805 | AK103: =(AK94 / 1000) * 365 -> 20.805 | AL103: 20.805 | AM103: 20.805 | AN103: 20.805 | AO103: 20.805 | AP103: 20.805 | AQ103: 20.805 | AR103: 20.805 | AS103: 20.805 | AT103: 20.805 | AU103: 20.805 | AV103: 20.805 | AW103: 20.805 | AX103: 20.805 | AY103: 20.805 | AZ103: 20.805 | BA103: 20.805 | BB103: 20.805 | BC103: 20.805 | BD103: 20.805 | BE103: 20.805 | BF103: 20.805 | BG103: 20.805 | BH103: 20.805 | BI103: 20.805 | BJ103: 20.805 | BK103: 20.805 | BL103: 20.805 | BM103: 20.805 | BN103: 20.805 | BO103: 20.805 | BP103: 20.805 | BQ103: =(BQ94 / 1000) * 365 -> 20.805 | BR103: 20.805 | BS103: 20.805 | BT103: 20.805 | BU103: 20.805 | BV103: 20.805 | BW103: 20.805 | BX103: 20.805 | BY103: 20.805 | BZ103: 20.805 | CA103: 20.805 | CB103: 20.805 | CC103: 20.805 | CD103: 20.805 | CE103: 20.805 | CF103: 20.805
C105: Production
C107: Petroleum product production from other domestic sources
C109: Liquefied petroleum gas from Lake Albert project | D109: Thousand barrels per day | J109: 1 | K109: 2 | L109: 3 | M109: 3 | N109: 3 | O109: =N109 * (1 - 6%) -> 2.82 | P109: =O109 * (1 - 6%) -> 2.6508 | Q109: 2.491752 | R109: 2.34224688 | S109: 2.201712067 | T109: 2.069609343 | U109: 1.945432783 | V109: 1.828706816 | W109: 1.718984407 | X109: 1.615845342 | Y109: 1.518894622 | Z109: 1.427760944 | AA109: 1.342095288 | AB109: 1.261569571 | AC109: 1.185875396 | AD109: 1.114722873 | AE109: 1.0478395 | AF109: 0.9849691301 | AG109: 0.9258709823 | AH109: 0.8703187234 | AI109: 0.8180996 | AJ109: 0.769013624
C111: Potential sales
C113: Domestic demand (as percentage of refinery capacity)
C114: Petrol | D114: =IFERROR(AVERAGEIF(E114:AI114, ">0"), "-") -> 1.571520333 | E114: =IFERROR(E52/E87,"-") -> - | F114: - | G114: - | H114: - | I114: - | J114: - | K114: - | L114: 2.143938522 | M114: 1.183038479 | N114: 1.274139411 | O114: 1.31600346 | P114: 1.359243023 | Q114: 1.403903297 | R114: 1.450030962 | S114: 1.49767423 | T114: 1.5468829 | U114: 1.597708406 | V114: 1.650203872 | W114: 1.704424167 | X114: 1.760425963 | Y114: 1.735709984 | Z114: 1.711341011 | AA114: 1.687314174 | AB114: 1.663624668 | AC114: 1.640267757 | AD114: 1.617238771 | AE114: 1.594533108 | AF114: 1.572146227 | AG114: 1.550073652 | AH114: 1.528310972 | AI114: 1.528310972 | AJ114: 1.528310972 | AK114: =IFERROR(AK52/AK87,"-") -> 1.528310972 | AL114: 1.528310972 | AM114: 1.528310972 | AN114: 1.528310972 | AO114: 1.528310972 | AP114: 1.528310972 | AQ114: 1.528310972 | AR114: 1.528310972 | AS114: 1.528310972 | AT114: 1.528310972 | AU114: 1.528310972 | AV114: 1.528310972 | AW114: 1.528310972 | AX114: 1.528310972 | AY114: 1.528310972 | AZ114: 1.528310972 | BA114: 1.528310972 | BB114: 1.528310972 | BC114: 1.528310972 | BD114: 1.528310972 | BE114: 1.528310972 | BF114: 1.528310972 | BG114: 1.528310972 | BH114: 1.528310972 | BI114: 1.528310972 | BJ114: 1.528310972 | BK114: 1.528310972 | BL114: 1.528310972 | BM114: 1.528310972 | BN114: 1.528310972 | BO114: 1.528310972 | BP114: 1.528310972 | BQ114: =IFERROR(BQ52/BQ87,"-") -> 1.528310972 | BR114: 1.528310972 | BS114: 1.528310972 | BT114: 1.528310972 | BU114: 1.528310972 | BV114: 1.528310972 | BW114: 1.528310972 | BX114: 1.528310972 | BY114: 1.528310972 | BZ114: 1.528310972 | CA114: 1.528310972 | CB114: 1.528310972 | CC114: 1.528310972 | CD114: 1.528310972 | CE114: 1.528310972 | CF114: 1.528310972
C115: Diesel | D115: 3.903902323 | E115: =IFERROR(E53/E88,"-") -> - | F115: - | G115: - | H115: - | I115: - | J115: - | K115: - | L115: 5.325878644 | M115: 2.938852633 | N115: 3.165161598 | O115: 3.269158442 | P115: 3.376572282 | Q115: 3.487515389 | R115: 3.602103722 | S115: 3.720457054 | T115: 3.842699088 | U115: 3.968957595 | V115: 4.099364542 | W115: 4.234056236 | X115: 4.373173457 | Y115: 4.311775099 | Z115: 4.25123876 | AA115: 4.191552337 | AB115: 4.132703898 | AC115: 4.074681678 | AD115: 4.017474076 | AE115: 3.961069656 | AF115: 3.905457142 | AG115: 3.850625414 | AH115: 3.796563512 | AI115: 3.796563512 | AJ115: 3.796563512 | AK115: =IFERROR(AK53/AK88,"-") -> 3.796563512 | AL115: 3.796563512 | AM115: 3.796563512 | AN115: 3.796563512 | AO115: 3.796563512 | AP115: 3.796563512 | AQ115: 3.796563512 | AR115: 3.796563512 | AS115: 3.796563512 | AT115: 3.796563512 | AU115: 3.796563512 | AV115: 3.796563512 | AW115: 3.796563512 | AX115: 3.796563512 | AY115: 3.796563512 | AZ115: 3.796563512 | BA115: 3.796563512 | BB115: 3.796563512 | BC115: 3.796563512 | BD115: 3.796563512 | BE115: 3.796563512 | BF115: 3.796563512 | BG115: 3.796563512 | BH115: 3.796563512 | BI115: 3.796563512 | BJ115: 3.796563512 | BK115: 3.796563512 | BL115: 3.796563512 | BM115: 3.796563512 | BN115: 3.796563512 | BO115: 3.796563512 | BP115: 3.796563512 | BQ115: =IFERROR(BQ53/BQ88,"-") -> 3.796563512 | BR115: 3.796563512 | BS115: 3.796563512 | BT115: 3.796563512 | BU115: 3.796563512 | BV115: 3.796563512 | BW115: 3.796563512 | BX115: 3.796563512 | BY115: 3.796563512 | BZ115: 3.796563512 | CA115: 3.796563512 | CB115: 3.796563512 | CC115: 3.796563512 | CD115: 3.796563512 | CE115: 3.796563512 | CF115: 3.796563512
C116: Jet fuel | D116: 3.311155831 | E116: =IFERROR(E54/E89,"-") -> - | F116: - | G116: - | H116: - | I116: - | J116: - | K116: - | L116: 4.517227293 | M116: 2.492633838 | N116: 2.684581327 | O116: 2.772787878 | P116: 2.863892606 | Q116: 2.957990738 | R116: 3.055180626 | S116: 3.155563855 | T116: 3.259245349 | U116: 3.366333477 | V116: 3.47694017 | W116: 3.591181036 | X116: 3.709175484 | Y116: 3.657099506 | Z116: 3.605754663 | AA116: 3.55513069 | AB116: 3.505217466 | AC116: 3.456005012 | AD116: 3.40748349 | AE116: 3.359643198 | AF116: 3.312474574 | AG116: 3.265968187 | AH116: 3.220114738 | AI116: 3.220114738 | AJ116: 3.220114738 | AK116: =IFERROR(AK54/AK89,"-") -> 3.220114738 | AL116: 3.220114738 | AM116: 3.220114738 | AN116: 3.220114738 | AO116: 3.220114738 | AP116: 3.220114738 | AQ116: 3.220114738 | AR116: 3.220114738 | AS116: 3.220114738 | AT116: 3.220114738 | AU116: 3.220114738 | AV116: 3.220114738 | AW116: 3.220114738 | AX116: 3.220114738 | AY116: 3.220114738 | AZ116: 3.220114738 | BA116: 3.220114738 | BB116: 3.220114738 | BC116: 3.220114738 | BD116: 3.220114738 | BE116: 3.220114738 | BF116: 3.220114738 | BG116: 3.220114738 | BH116: 3.220114738 | BI116: 3.220114738 | BJ116: 3.220114738 | BK116: 3.220114738 | BL116: 3.220114738 | BM116: 3.220114738 | BN116: 3.220114738 | BO116: 3.220114738 | BP116: 3.220114738 | BQ116: =IFERROR(BQ54/BQ89,"-") -> 3.220114738 | BR116: 3.220114738 | BS116: 3.220114738 | BT116: 3.220114738 | BU116: 3.220114738 | BV116: 3.220114738 | BW116: 3.220114738 | BX116: 3.220114738 | BY116: 3.220114738 | BZ116: 3.220114738 | CA116: 3.220114738 | CB116: 3.220114738 | CC116: 3.220114738 | CD116: 3.220114738 | CE116: 3.220114738 | CF116: 3.220114738
C117: Kerosene | D117: - | E117: =IFERROR(E55/E90,"-") -> - | F117: - | G117: - | H117: - | I117: - | J117: - | K117: - | L117: - | M117: - | N117: - | O117: - | P117: - | Q117: - | R117: - | S117: - | T117: - | U117: - | V117: - | W117: - | X117: - | Y117: - | Z117: - | AA117: - | AB117: - | AC117: - | AD117: - | AE117: - | AF117: - | AG117: - | AH117: - | AI117: - | AJ117: - | AK117: =IFERROR(AK55/AK90,"-") -> - | AL117: - | AM117: - | AN117: - | AO117: - | AP117: - | AQ117: - | AR117: - | AS117: - | AT117: - | AU117: - | AV117: - | AW117: - | AX117: - | AY117: - | AZ117: - | BA117: - | BB117: - | BC117: - | BD117: - | BE117: - | BF117: - | BG117: - | BH117: - | BI117: - | BJ117: - | BK117: - | BL117: - | BM117: - | BN117: - | BO117: - | BP117: - | BQ117: =IFERROR(BQ55/BQ90,"-") -> - | BR117: - | BS117: - | BT117: - | BU117: - | BV117: - | BW117: - | BX117: - | BY117: - | BZ117: - | CA117: - | CB117: - | CC117: - | CD117: - | CE117: - | CF117: -
C118: Liquefied petroleum gas | D118: 1.34687996 | E118: =IFERROR((E56 - E109)/E91,"-") -> - | F118: - | G118: - | H118: - | I118: - | J118: - | K118: - | L118: 0.8631348409 | M118: 0.6325453588 | N118: 0.8818146525 | O118: 0.9594291829 | P118: 1.037796067 | Q118: 1.117094335 | R118: 1.197501568 | S118: 1.279194364 | T118: 1.362348804 | U118: 1.447140898 | V118: 1.533747022 | W118: 1.622344353 | X118: 1.71311129 | Y118: 1.678266644 | Z118: 1.643826473 | AA118: 1.609808357 | AB118: 1.576227782 | AC118: 1.543098294 | AD118: 1.510431636 | AE118: 1.478237886 | AF118: 1.446525575 | AG118: 1.415301809 | AH118: 1.384572372 | AI118: 1.391619487 | AJ118: 1.398243775 | AK118: =IFERROR((AK56 - AL109)/AK91,"-") -> 1.502024291 | AL118: 1.502024291 | AM118: 1.502024291 | AN118: 1.502024291 | AO118: 1.502024291 | AP118: 1.502024291 | AQ118: 1.502024291 | AR118: 1.502024291 | AS118: 1.502024291 | AT118: 1.502024291 | AU118: 1.502024291 | AV118: 1.502024291 | AW118: 1.502024291 | AX118: 1.502024291 | AY118: 1.502024291 | AZ118: 1.502024291 | BA118: 1.502024291 | BB118: 1.502024291 | BC118: 1.502024291 | BD118: 1.502024291 | BE118: 1.502024291 | BF118: 1.502024291 | BG118: 1.502024291 | BH118: 1.502024291 | BI118: 1.502024291 | BJ118: 1.502024291 | BK118: 1.502024291 | BL118: 1.502024291 | BM118: 1.502024291 | BN118: 1.502024291 | BO118: 1.502024291 | BP118: 1.502024291 | BQ118: 1.502024291 | BR118: 1.502024291 | BS118: 1.502024291 | BT118: 1.502024291 | BU118: 1.502024291 | BV118: 1.502024291 | BW118: 1.502024291 | BX118: 1.502024291 | BY118: 1.502024291 | BZ118: 1.502024291 | CA118: 1.502024291 | CB118: 1.502024291 | CC118: 1.502024291 | CD118: 1.502024291 | CE118: 1.502024291 | CF118: 1.502024291
C119: Heavy fuel oil | D119: 1.32476925 | E119: =IFERROR(E57/E92,"-") -> - | F119: - | G119: - | H119: - | I119: - | J119: - | K119: - | L119: 0.7835569598 | M119: 0.3917784799 | N119: 1.39177848 | O119: 1.39177848 | P119: 1.39177848 | Q119: 1.39177848 | R119: 1.39177848 | S119: 1.39177848 | T119: 1.39177848 | U119: 1.39177848 | V119: 1.39177848 | W119: 1.39177848 | X119: 1.39177848 | Y119: 1.39177848 | Z119: 1.39177848 | AA119: 1.39177848 | AB119: 1.39177848 | AC119: 1.39177848 | AD119: 1.39177848 | AE119: 1.39177848 | AF119: 1.39177848 | AG119: 1.39177848 | AH119: 1.39177848 | AI119: 1.39177848 | AJ119: 1.39177848 | AK119: =IFERROR(AK57/AK92,"-") -> 1.39177848 | AL119: 1.39177848 | AM119: 1.39177848 | AN119: 1.39177848 | AO119: 1.39177848 | AP119: 1.39177848 | AQ119: 1.39177848 | AR119: 1.39177848 | AS119: 1.39177848 | AT119: 1.39177848 | AU119: 1.39177848 | AV119: 1.39177848 | AW119: 1.39177848 | AX119: 1.39177848 | AY119: 1.39177848 | AZ119: 1.39177848 | BA119: 1.39177848 | BB119: 1.39177848 | BC119: 1.39177848 | BD119: 1.39177848 | BE119: 1.39177848 | BF119: 1.39177848 | BG119: 1.39177848 | BH119: 1.39177848 | BI119: 1.39177848 | BJ119: 1.39177848 | BK119: 1.39177848 | BL119: 1.39177848 | BM119: 1.39177848 | BN119: 1.39177848 | BO119: 1.39177848 | BP119: 1.39177848 | BQ119: =IFERROR(BQ57/BQ92,"-") -> 1.39177848 | BR119: 1.39177848 | BS119: 1.39177848 | BT119: 1.39177848 | BU119: 1.39177848 | BV119: 1.39177848 | BW119: 1.39177848 | BX119: 1.39177848 | BY119: 1.39177848 | BZ119: 1.39177848 | CA119: 1.39177848 | CB119: 1.39177848 | CC119: 1.39177848 | CD119: 1.39177848 | CE119: 1.39177848 | CF119: 1.39177848
C120: Total | D120: 2.258920791 | E120: =IFERROR(E58/E94,"-") -> - | F120: - | G120: - | H120: - | I120: - | J120: - | K120: - | L120: 2.973313678 | M120: 1.653929885 | N120: 1.842105263 | O120: 1.90223777 | P120: 1.964405552 | Q120: 2.028677946 | R120: 2.095126674 | S120: 2.163825916 | T120: 2.234852404 | U120: 2.308285505 | V120: 2.384207314 | W120: 2.46270275 | X120: 2.543859649 | Y120: 2.506220078 | Z120: 2.469176115 | AA120: 2.432717732 | AB120: 2.396835082 | AC120: 2.361518496 | AD120: 2.326758482 | AE120: 2.292545718 | AF120: 2.258871051 | AG120: 2.225725492 | AH120: 2.193100216 | AI120: 2.193100216 | AJ120: 2.193100216 | AK120: =IFERROR(AK58/AK94,"-") -> 2.193100216 | AL120: 2.193100216 | AM120: 2.193100216 | AN120: 2.193100216 | AO120: 2.193100216 | AP120: 2.193100216 | AQ120: 2.193100216 | AR120: 2.193100216 | AS120: 2.193100216 | AT120: 2.193100216 | AU120: 2.193100216 | AV120: 2.193100216 | AW120: 2.193100216 | AX120: 2.193100216 | AY120: 2.193100216 | AZ120: 2.193100216 | BA120: 2.193100216 | BB120: 2.193100216 | BC120: 2.193100216 | BD120: 2.193100216 | BE120: 2.193100216 | BF120: 2.193100216 | BG120: 2.193100216 | BH120: 2.193100216 | BI120: 2.193100216 | BJ120: 2.193100216 | BK120: 2.193100216 | BL120: 2.193100216 | BM120: 2.193100216 | BN120: 2.193100216 | BO120: 2.193100216 | BP120: 2.193100216 | BQ120: =IFERROR(BQ58/BQ94,"-") -> 2.193100216 | BR120: 2.193100216 | BS120: 2.193100216 | BT120: 2.193100216 | BU120: 2.193100216 | BV120: 2.193100216 | BW120: 2.193100216 | BX120: 2.193100216 | BY120: 2.193100216 | BZ120: 2.193100216 | CA120: 2.193100216 | CB120: 2.193100216 | CC120: 2.193100216 | CD120: 2.193100216 | CE120: 2.193100216 | CF120: 2.193100216
C122: Sales implied by domestic demand
C123: Petrol | D123: Thousand barrels per day | E123: =MIN(E52,E87) -> 0 | F123: 0 | G123: 0 | H123: 0 | I123: 0 | J123: 0 | K123: 0 | L123: 15.675 | M123: 31.35 | N123: 31.35 | O123: 31.35 | P123: 31.35 | Q123: 31.35 | R123: 31.35 | S123: 31.35 | T123: 31.35 | U123: 31.35 | V123: 31.35 | W123: 31.35 | X123: 31.35 | Y123: 31.35 | Z123: 31.35 | AA123: 31.35 | AB123: 31.35 | AC123: 31.35 | AD123: 31.35 | AE123: 31.35 | AF123: 31.35 | AG123: 31.35 | AH123: 31.35 | AI123: 31.35 | AJ123: 31.35 | AK123: =MIN(AK52,AK87) -> 31.35 | AL123: 31.35 | AM123: 31.35 | AN123: 31.35 | AO123: 31.35 | AP123: 31.35 | AQ123: 31.35 | AR123: 31.35 | AS123: 31.35 | AT123: 31.35 | AU123: 31.35 | AV123: 31.35 | AW123: 31.35 | AX123: 31.35 | AY123: 31.35 | AZ123: 31.35 | BA123: 31.35 | BB123: 31.35 | BC123: 31.35 | BD123: 31.35 | BE123: 31.35 | BF123: 31.35 | BG123: 31.35 | BH123: 31.35 | BI123: 31.35 | BJ123: 31.35 | BK123: 31.35 | BL123: 31.35 | BM123: 31.35 | BN123: 31.35 | BO123: 31.35 | BP123: 31.35 | BQ123: =MIN(BQ52,BQ87) -> 31.35 | BR123: 31.35 | BS123: 31.35 | BT123: 31.35 | BU123: 31.35 | BV123: 31.35 | BW123: 31.35 | BX123: 31.35 | BY123: 31.35 | BZ123: 31.35 | CA123: 31.35 | CB123: 31.35 | CC123: 31.35 | CD123: 31.35 | CE123: 31.35 | CF123: 31.35
C124: Diesel | D124: Thousand barrels per day | E124: =MIN(E53,E88) -> 0 | F124: 0 | G124: 0 | H124: 0 | I124: 0 | J124: 0 | K124: 0 | L124: 6.84 | M124: 13.68 | N124: 13.68 | O124: 13.68 | P124: 13.68 | Q124: 13.68 | R124: 13.68 | S124: 13.68 | T124: 13.68 | U124: 13.68 | V124: 13.68 | W124: 13.68 | X124: 13.68 | Y124: 13.68 | Z124: 13.68 | AA124: 13.68 | AB124: 13.68 | AC124: 13.68 | AD124: 13.68 | AE124: 13.68 | AF124: 13.68 | AG124: 13.68 | AH124: 13.68 | AI124: 13.68 | AJ124: 13.68 | AK124: =MIN(AK53,AK88) -> 13.68 | AL124: 13.68 | AM124: 13.68 | AN124: 13.68 | AO124: 13.68 | AP124: 13.68 | AQ124: 13.68 | AR124: 13.68 | AS124: 13.68 | AT124: 13.68 | AU124: 13.68 | AV124: 13.68 | AW124: 13.68 | AX124: 13.68 | AY124: 13.68 | AZ124: 13.68 | BA124: 13.68 | BB124: 13.68 | BC124: 13.68 | BD124: 13.68 | BE124: 13.68 | BF124: 13.68 | BG124: 13.68 | BH124: 13.68 | BI124: 13.68 | BJ124: 13.68 | BK124: 13.68 | BL124: 13.68 | BM124: 13.68 | BN124: 13.68 | BO124: 13.68 | BP124: 13.68 | BQ124: =MIN(BQ53,BQ88) -> 13.68 | BR124: 13.68 | BS124: 13.68 | BT124: 13.68 | BU124: 13.68 | BV124: 13.68 | BW124: 13.68 | BX124: 13.68 | BY124: 13.68 | BZ124: 13.68 | CA124: 13.68 | CB124: 13.68 | CC124: 13.68 | CD124: 13.68 | CE124: 13.68 | CF124: 13.68
C125: Jet fuel | D125: Thousand barrels per day | E125: =MIN(E54,E89) -> 0 | F125: 0 | G125: 0 | H125: 0 | I125: 0 | J125: 0 | K125: 0 | L125: 1.14 | M125: 2.28 | N125: 2.28 | O125: 2.28 | P125: 2.28 | Q125: 2.28 | R125: 2.28 | S125: 2.28 | T125: 2.28 | U125: 2.28 | V125: 2.28 | W125: 2.28 | X125: 2.28 | Y125: 2.28 | Z125: 2.28 | AA125: 2.28 | AB125: 2.28 | AC125: 2.28 | AD125: 2.28 | AE125: 2.28 | AF125: 2.28 | AG125: 2.28 | AH125: 2.28 | AI125: 2.28 | AJ125: 2.28 | AK125: =MIN(AK54,AK89) -> 2.28 | AL125: 2.28 | AM125: 2.28 | AN125: 2.28 | AO125: 2.28 | AP125: 2.28 | AQ125: 2.28 | AR125: 2.28 | AS125: 2.28 | AT125: 2.28 | AU125: 2.28 | AV125: 2.28 | AW125: 2.28 | AX125: 2.28 | AY125: 2.28 | AZ125: 2.28 | BA125: 2.28 | BB125: 2.28 | BC125: 2.28 | BD125: 2.28 | BE125: 2.28 | BF125: 2.28 | BG125: 2.28 | BH125: 2.28 | BI125: 2.28 | BJ125: 2.28 | BK125: 2.28 | BL125: 2.28 | BM125: 2.28 | BN125: 2.28 | BO125: 2.28 | BP125: 2.28 | BQ125: =MIN(BQ54,BQ89) -> 2.28 | BR125: 2.28 | BS125: 2.28 | BT125: 2.28 | BU125: 2.28 | BV125: 2.28 | BW125: 2.28 | BX125: 2.28 | BY125: 2.28 | BZ125: 2.28 | CA125: 2.28 | CB125: 2.28 | CC125: 2.28 | CD125: 2.28 | CE125: 2.28 | CF125: 2.28
C126: Kerosene | D126: Thousand barrels per day | E126: =MIN(E55,E90) -> 0 | F126: 0 | G126: 0 | H126: 0 | I126: 0 | J126: 0 | K126: 0 | L126: 0 | M126: 0 | N126: 0 | O126: 0 | P126: 0 | Q126: 0 | R126: 0 | S126: 0 | T126: 0 | U126: 0 | V126: 0 | W126: 0 | X126: 0 | Y126: 0 | Z126: 0 | AA126: 0 | AB126: 0 | AC126: 0 | AD126: 0 | AE126: 0 | AF126: 0 | AG126: 0 | AH126: 0 | AI126: 0 | AJ126: 0 | AK126: =MIN(AK55,AK90) -> 0 | AL126: 0 | AM126: 0 | AN126: 0 | AO126: 0 | AP126: 0 | AQ126: 0 | AR126: 0 | AS126: 0 | AT126: 0 | AU126: 0 | AV126: 0 | AW126: 0 | AX126: 0 | AY126: 0 | AZ126: 0 | BA126: 0 | BB126: 0 | BC126: 0 | BD126: 0 | BE126: 0 | BF126: 0 | BG126: 0 | BH126: 0 | BI126: 0 | BJ126: 0 | BK126: 0 | BL126: 0 | BM126: 0 | BN126: 0 | BO126: 0 | BP126: 0 | BQ126: =MIN(BQ55,BQ90) -> 0 | BR126: 0 | BS126: 0 | BT126: 0 | BU126: 0 | BV126: 0 | BW126: 0 | BX126: 0 | BY126: 0 | BZ126: 0 | CA126: 0 | CB126: 0 | CC126: 0 | CD126: 0 | CE126: 0 | CF126: 0
C127: Liquefied petroleum gas | D127: Thousand barrels per day | E127: =MIN(E56 - E109, E91) -> 0 | F127: 0 | G127: 0 | H127: 0 | I127: 0 | J127: 0 | K127: 0 | L127: 3.197914585 | M127: 4.687161109 | N127: 6.534246575 | O127: 7.109370245 | P127: 7.41 | Q127: 7.41 | R127: 7.41 | S127: 7.41 | T127: 7.41 | U127: 7.41 | V127: 7.41 | W127: 7.41 | X127: 7.41 | Y127: 7.41 | Z127: 7.41 | AA127: 7.41 | AB127: 7.41 | AC127: 7.41 | AD127: 7.41 | AE127: 7.41 | AF127: 7.41 | AG127: 7.41 | AH127: 7.41 | AI127: 7.41 | AJ127: 7.41 | AK127: =MIN(AK56 - AL109, AK91) -> 7.41 | AL127: 7.41 | AM127: 7.41 | AN127: 7.41 | AO127: 7.41 | AP127: 7.41 | AQ127: 7.41 | AR127: 7.41 | AS127: 7.41 | AT127: 7.41 | AU127: 7.41 | AV127: 7.41 | AW127: 7.41 | AX127: 7.41 | AY127: 7.41 | AZ127: 7.41 | BA127: 7.41 | BB127: 7.41 | BC127: 7.41 | BD127: 7.41 | BE127: 7.41 | BF127: 7.41 | BG127: 7.41 | BH127: 7.41 | BI127: 7.41 | BJ127: 7.41 | BK127: 7.41 | BL127: 7.41 | BM127: 7.41 | BN127: 7.41 | BO127: 7.41 | BP127: 7.41 | BQ127: 7.41 | BR127: 7.41 | BS127: 7.41 | BT127: 7.41 | BU127: 7.41 | BV127: 7.41 | BW127: 7.41 | BX127: 7.41 | BY127: 7.41 | BZ127: 7.41 | CA127: 7.41 | CB127: 7.41 | CC127: 7.41 | CD127: 7.41 | CE127: 7.41 | CF127: 7.41
C128: Heavy fuel oil | D128: Thousand barrels per day | E128: =MIN(E57,E92) -> 0 | F128: 0 | G128: 0 | H128: 0 | I128: 0 | J128: 0 | K128: 0 | L128: 0.8932549342 | M128: 0.8932549342 | N128: 2.28 | O128: 2.28 | P128: 2.28 | Q128: 2.28 | R128: 2.28 | S128: 2.28 | T128: 2.28 | U128: 2.28 | V128: 2.28 | W128: 2.28 | X128: 2.28 | Y128: 2.28 | Z128: 2.28 | AA128: 2.28 | AB128: 2.28 | AC128: 2.28 | AD128: 2.28 | AE128: 2.28 | AF128: 2.28 | AG128: 2.28 | AH128: 2.28 | AI128: 2.28 | AJ128: 2.28 | AK128: =MIN(AK57,AK92) -> 2.28 | AL128: 2.28 | AM128: 2.28 | AN128: 2.28 | AO128: 2.28 | AP128: 2.28 | AQ128: 2.28 | AR128: 2.28 | AS128: 2.28 | AT128: 2.28 | AU128: 2.28 | AV128: 2.28 | AW128: 2.28 | AX128: 2.28 | AY128: 2.28 | AZ128: 2.28 | BA128: 2.28 | BB128: 2.28 | BC128: 2.28 | BD128: 2.28 | BE128: 2.28 | BF128: 2.28 | BG128: 2.28 | BH128: 2.28 | BI128: 2.28 | BJ128: 2.28 | BK128: 2.28 | BL128: 2.28 | BM128: 2.28 | BN128: 2.28 | BO128: 2.28 | BP128: 2.28 | BQ128: =MIN(BQ57,BQ92) -> 2.28 | BR128: 2.28 | BS128: 2.28 | BT128: 2.28 | BU128: 2.28 | BV128: 2.28 | BW128: 2.28 | BX128: 2.28 | BY128: 2.28 | BZ128: 2.28 | CA128: 2.28 | CB128: 2.28 | CC128: 2.28 | CD128: 2.28 | CE128: 2.28 | CF128: 2.28
C129: Total | D129: Thousand barrels per day | E129: =SUM(E123:E128) -> 0 | F129: 0 | G129: 0 | H129: 0 | I129: 0 | J129: 0 | K129: =SUM(K123:K128) -> 0 | L129: =SUM(L123:L128) -> 27.74616952 | M129: 52.89041604 | N129: 56.12424658 | O129: 56.69937025 | P129: 57 | Q129: 57 | R129: 57 | S129: 57 | T129: 57 | U129: 57 | V129: 57 | W129: 57 | X129: 57 | Y129: 57 | Z129: 57 | AA129: 57 | AB129: 57 | AC129: 57 | AD129: 57 | AE129: 57 | AF129: 57 | AG129: 57 | AH129: 57 | AI129: 57 | AJ129: 57 | AK129: 57 | AL129: 57 | AM129: 57 | AN129: 57 | AO129: 57 | AP129: 57 | AQ129: 57 | AR129: 57 | AS129: 57 | AT129: =SUM(AT123:AT128) -> 57 | AU129: 57 | AV129: 57 | AW129: 57 | AX129: 57 | AY129: 57 | AZ129: 57 | BA129: 57 | BB129: 57 | BC129: 57 | BD129: 57 | BE129: 57 | BF129: 57 | BG129: 57 | BH129: 57 | BI129: 57 | BJ129: 57 | BK129: 57 | BL129: 57 | BM129: 57 | BN129: 57 | BO129: 57 | BP129: 57 | BQ129: 57 | BR129: 57 | BS129: 57 | BT129: 57 | BU129: 57 | BV129: 57 | BW129: 57 | BX129: 57 | BY129: 57 | BZ129: 57 | CA129: =SUM(CA123:CA128) -> 57 | CB129: 57 | CC129: 57 | CD129: 57 | CE129: 57 | CF129: 57
C131: Sales implied by domestic demand (as percentage of refinery capacity)
C132: Petrol | D132: =IFERROR(AVERAGEIF(E132:AI132, ">0"), "-") -> 1 | E132: =IFERROR(E123/E87,"-") -> - | F132: - | G132: - | H132: - | I132: - | J132: - | K132: - | L132: 1 | M132: 1 | N132: 1 | O132: 1 | P132: 1 | Q132: 1 | R132: 1 | S132: 1 | T132: 1 | U132: 1 | V132: 1 | W132: 1 | X132: 1 | Y132: 1 | Z132: 1 | AA132: 1 | AB132: 1 | AC132: 1 | AD132: 1 | AE132: 1 | AF132: 1 | AG132: 1 | AH132: 1 | AI132: 1 | AJ132: 1 | AK132: =IFERROR(AK123/AK87,"-") -> 1 | AL132: 1 | AM132: 1 | AN132: 1 | AO132: 1 | AP132: 1 | AQ132: 1 | AR132: 1 | AS132: 1 | AT132: 1 | AU132: 1 | AV132: 1 | AW132: 1 | AX132: 1 | AY132: 1 | AZ132: 1 | BA132: 1 | BB132: 1 | BC132: 1 | BD132: 1 | BE132: 1 | BF132: 1 | BG132: 1 | BH132: 1 | BI132: 1 | BJ132: 1 | BK132: 1 | BL132: 1 | BM132: 1 | BN132: 1 | BO132: 1 | BP132: 1 | BQ132: =IFERROR(BQ123/BQ87,"-") -> 1 | BR132: 1 | BS132: 1 | BT132: 1 | BU132: 1 | BV132: 1 | BW132: 1 | BX132: 1 | BY132: 1 | BZ132: 1 | CA132: 1 | CB132: 1 | CC132: 1 | CD132: 1 | CE132: 1 | CF132: 1
C133: Diesel | D133: 1 | E133: =IFERROR(E124/E88,"-") -> - | F133: - | G133: - | H133: - | I133: - | J133: - | K133: - | L133: 1 | M133: 1 | N133: 1 | O133: 1 | P133: 1 | Q133: 1 | R133: 1 | S133: 1 | T133: 1 | U133: 1 | V133: 1 | W133: 1 | X133: 1 | Y133: 1 | Z133: 1 | AA133: 1 | AB133: 1 | AC133: 1 | AD133: 1 | AE133: 1 | AF133: 1 | AG133: 1 | AH133: 1 | AI133: 1 | AJ133: 1 | AK133: =IFERROR(AK124/AK88,"-") -> 1 | AL133: 1 | AM133: 1 | AN133: 1 | AO133: 1 | AP133: 1 | AQ133: 1 | AR133: 1 | AS133: 1 | AT133: 1 | AU133: 1 | AV133: 1 | AW133: 1 | AX133: 1 | AY133: 1 | AZ133: 1 | BA133: 1 | BB133: 1 | BC133: 1 | BD133: 1 | BE133: 1 | BF133: 1 | BG133: 1 | BH133: 1 | BI133: 1 | BJ133: 1 | BK133: 1 | BL133: 1 | BM133: 1 | BN133: 1 | BO133: 1 | BP133: 1 | BQ133: =IFERROR(BQ124/BQ88,"-") -> 1 | BR133: 1 | BS133: 1 | BT133: 1 | BU133: 1 | BV133: 1 | BW133: 1 | BX133: 1 | BY133: 1 | BZ133: 1 | CA133: 1 | CB133: 1 | CC133: 1 | CD133: 1 | CE133: 1 | CF133: 1
C134: Jet fuel | D134: 1 | E134: =IFERROR(E125/E89,"-") -> - | F134: - | G134: - | H134: - | I134: - | J134: - | K134: - | L134: 1 | M134: 1 | N134: 1 | O134: 1 | P134: 1 | Q134: 1 | R134: 1 | S134: 1 | T134: 1 | U134: 1 | V134: 1 | W134: 1 | X134: 1 | Y134: 1 | Z134: 1 | AA134: 1 | AB134: 1 | AC134: 1 | AD134: 1 | AE134: 1 | AF134: 1 | AG134: 1 | AH134: 1 | AI134: 1 | AJ134: 1 | AK134: =IFERROR(AK125/AK89,"-") -> 1 | AL134: 1 | AM134: 1 | AN134: 1 | AO134: 1 | AP134: 1 | AQ134: 1 | AR134: 1 | AS134: 1 | AT134: 1 | AU134: 1 | AV134: 1 | AW134: 1 | AX134: 1 | AY134: 1 | AZ134: 1 | BA134: 1 | BB134: 1 | BC134: 1 | BD134: 1 | BE134: 1 | BF134: 1 | BG134: 1 | BH134: 1 | BI134: 1 | BJ134: 1 | BK134: 1 | BL134: 1 | BM134: 1 | BN134: 1 | BO134: 1 | BP134: 1 | BQ134: =IFERROR(BQ125/BQ89,"-") -> 1 | BR134: 1 | BS134: 1 | BT134: 1 | BU134: 1 | BV134: 1 | BW134: 1 | BX134: 1 | BY134: 1 | BZ134: 1 | CA134: 1 | CB134: 1 | CC134: 1 | CD134: 1 | CE134: 1 | CF134: 1
C135: Kerosene | D135: - | E135: =IFERROR(E126/E90,"-") -> - | F135: - | G135: - | H135: - | I135: - | J135: - | K135: - | L135: - | M135: - | N135: - | O135: - | P135: - | Q135: - | R135: - | S135: - | T135: - | U135: - | V135: - | W135: - | X135: - | Y135: - | Z135: - | AA135: - | AB135: - | AC135: - | AD135: - | AE135: - | AF135: - | AG135: - | AH135: - | AI135: - | AJ135: - | AK135: =IFERROR(AK126/AK90,"-") -> - | AL135: - | AM135: - | AN135: - | AO135: - | AP135: - | AQ135: - | AR135: - | AS135: - | AT135: - | AU135: - | AV135: - | AW135: - | AX135: - | AY135: - | AZ135: - | BA135: - | BB135: - | BC135: - | BD135: - | BE135: - | BF135: - | BG135: - | BH135: - | BI135: - | BJ135: - | BK135: - | BL135: - | BM135: - | BN135: - | BO135: - | BP135: - | BQ135: =IFERROR(BQ126/BQ90,"-") -> - | BR135: - | BS135: - | BT135: - | BU135: - | BV135: - | BW135: - | BX135: - | BY135: - | BZ135: - | CA135: - | CB135: - | CC135: - | CD135: - | CE135: - | CF135: -
C136: Liquefied petroleum gas | D136: 0.9723718348 | E136: =IFERROR(E127/E91,"-") -> - | F136: - | G136: - | H136: - | I136: - | J136: - | K136: - | L136: 0.8631348409 | M136: 0.6325453588 | N136: 0.8818146525 | O136: 0.9594291829 | P136: 1 | Q136: 1 | R136: 1 | S136: 1 | T136: 1 | U136: 1 | V136: 1 | W136: 1 | X136: 1 | Y136: 1 | Z136: 1 | AA136: 1 | AB136: 1 | AC136: 1 | AD136: 1 | AE136: 1 | AF136: 1 | AG136: 1 | AH136: 1 | AI136: 1 | AJ136: 1 | AK136: =IFERROR(AK127/AK91,"-") -> 1 | AL136: 1 | AM136: 1 | AN136: 1 | AO136: 1 | AP136: 1 | AQ136: 1 | AR136: 1 | AS136: 1 | AT136: 1 | AU136: 1 | AV136: 1 | AW136: 1 | AX136: 1 | AY136: 1 | AZ136: 1 | BA136: 1 | BB136: 1 | BC136: 1 | BD136: 1 | BE136: 1 | BF136: 1 | BG136: 1 | BH136: 1 | BI136: 1 | BJ136: 1 | BK136: 1 | BL136: 1 | BM136: 1 | BN136: 1 | BO136: 1 | BP136: 1 | BQ136: =IFERROR(BQ127/BQ91,"-") -> 1 | BR136: 1 | BS136: 1 | BT136: 1 | BU136: 1 | BV136: 1 | BW136: 1 | BX136: 1 | BY136: 1 | BZ136: 1 | CA136: 1 | CB136: 1 | CC136: 1 | CD136: 1 | CE136: 1 | CF136: 1
C137: Heavy fuel oil | D137: 0.9656389767 | E137: =IFERROR(E128/E92,"-") -> - | F137: - | G137: - | H137: - | I137: - | J137: - | K137: - | L137: 0.7835569598 | M137: 0.3917784799 | N137: 1 | O137: 1 | P137: 1 | Q137: 1 | R137: 1 | S137: 1 | T137: 1 | U137: 1 | V137: 1 | W137: 1 | X137: 1 | Y137: 1 | Z137: 1 | AA137: 1 | AB137: 1 | AC137: 1 | AD137: 1 | AE137: 1 | AF137: 1 | AG137: 1 | AH137: 1 | AI137: 1 | AJ137: 1 | AK137: =IFERROR(AK128/AK92,"-") -> 1 | AL137: 1 | AM137: 1 | AN137: 1 | AO137: 1 | AP137: 1 | AQ137: 1 | AR137: 1 | AS137: 1 | AT137: 1 | AU137: 1 | AV137: 1 | AW137: 1 | AX137: 1 | AY137: 1 | AZ137: 1 | BA137: 1 | BB137: 1 | BC137: 1 | BD137: 1 | BE137: 1 | BF137: 1 | BG137: 1 | BH137: 1 | BI137: 1 | BJ137: 1 | BK137: 1 | BL137: 1 | BM137: 1 | BN137: 1 | BO137: 1 | BP137: 1 | BQ137: =IFERROR(BQ128/BQ92,"-") -> 1 | BR137: 1 | BS137: 1 | BT137: 1 | BU137: 1 | BV137: 1 | BW137: 1 | BX137: 1 | BY137: 1 | BZ137: 1 | CA137: 1 | CB137: 1 | CC137: 1 | CD137: 1 | CE137: 1 | CF137: 1
C138: Total | D138: 0.9950338976 | E138: =IFERROR(E129/E94,"-") -> - | F138: - | G138: - | H138: - | I138: - | J138: - | K138: - | L138: 0.9735498077 | M138: 0.9279020358 | N138: 0.9846359048 | O138: 0.9947257938 | P138: 1 | Q138: 1 | R138: 1 | S138: 1 | T138: 1 | U138: 1 | V138: 1 | W138: 1 | X138: 1 | Y138: 1 | Z138: 1 | AA138: 1 | AB138: 1 | AC138: 1 | AD138: 1 | AE138: 1 | AF138: 1 | AG138: 1 | AH138: 1 | AI138: 1 | AJ138: 1 | AK138: =IFERROR(AK129/AK94,"-") -> 1 | AL138: 1 | AM138: 1 | AN138: 1 | AO138: 1 | AP138: 1 | AQ138: 1 | AR138: 1 | AS138: 1 | AT138: 1 | AU138: 1 | AV138: 1 | AW138: 1 | AX138: 1 | AY138: 1 | AZ138: 1 | BA138: 1 | BB138: 1 | BC138: 1 | BD138: 1 | BE138: 1 | BF138: 1 | BG138: 1 | BH138: 1 | BI138: 1 | BJ138: 1 | BK138: 1 | BL138: 1 | BM138: 1 | BN138: 1 | BO138: 1 | BP138: 1 | BQ138: =IFERROR(BQ129/BQ94,"-") -> 1 | BR138: 1 | BS138: 1 | BT138: 1 | BU138: 1 | BV138: 1 | BW138: 1 | BX138: 1 | BY138: 1 | BZ138: 1 | CA138: 1 | CB138: 1 | CC138: 1 | CD138: 1 | CE138: 1 | CF138: 1
C140: Surplus needing to be sold to region
C141: Petrol | D141: Thousand barrels per day | E141: =E87 - E123 -> 0 | F141: 0 | G141: 0 | H141: 0 | I141: 0 | J141: 0 | K141: 0 | L141: 0 | M141: 0 | N141: 0 | O141: 0 | P141: 0 | Q141: 0 | R141: 0 | S141: 0 | T141: 0 | U141: 0 | V141: 0 | W141: 0 | X141: 0 | Y141: 0 | Z141: 0 | AA141: 0 | AB141: 0 | AC141: 0 | AD141: 0 | AE141: 0 | AF141: 0 | AG141: 0 | AH141: 0 | AI141: 0 | AJ141: 0 | AK141: =AK87 - AK123 -> 0 | AL141: 0 | AM141: 0 | AN141: 0 | AO141: 0 | AP141: 0 | AQ141: 0 | AR141: 0 | AS141: 0 | AT141: 0 | AU141: 0 | AV141: 0 | AW141: 0 | AX141: 0 | AY141: 0 | AZ141: 0 | BA141: 0 | BB141: 0 | BC141: 0 | BD141: 0 | BE141: 0 | BF141: 0 | BG141: 0 | BH141: 0 | BI141: 0 | BJ141: 0 | BK141: 0 | BL141: 0 | BM141: 0 | BN141: 0 | BO141: 0 | BP141: 0 | BQ141: =BQ87 - BQ123 -> 0 | BR141: 0 | BS141: 0 | BT141: 0 | BU141: 0 | BV141: 0 | BW141: 0 | BX141: 0 | BY141: 0 | BZ141: 0 | CA141: 0 | CB141: 0 | CC141: 0 | CD141: 0 | CE141: 0 | CF141: 0
C142: Diesel | D142: Thousand barrels per day | E142: =E88 - E124 -> 0 | F142: 0 | G142: 0 | H142: 0 | I142: 0 | J142: 0 | K142: 0 | L142: 0 | M142: 0 | N142: 0 | O142: 0 | P142: 0 | Q142: 0 | R142: 0 | S142: 0 | T142: 0 | U142: 0 | V142: 0 | W142: 0 | X142: 0 | Y142: 0 | Z142: 0 | AA142: 0 | AB142: 0 | AC142: 0 | AD142: 0 | AE142: 0 | AF142: 0 | AG142: 0 | AH142: 0 | AI142: 0 | AJ142: 0 | AK142: =AK88 - AK124 -> 0 | AL142: 0 | AM142: 0 | AN142: 0 | AO142: 0 | AP142: 0 | AQ142: 0 | AR142: 0 | AS142: 0 | AT142: 0 | AU142: 0 | AV142: 0 | AW142: 0 | AX142: 0 | AY142: 0 | AZ142: 0 | BA142: 0 | BB142: 0 | BC142: 0 | BD142: 0 | BE142: 0 | BF142: 0 | BG142: 0 | BH142: 0 | BI142: 0 | BJ142: 0 | BK142: 0 | BL142: 0 | BM142: 0 | BN142: 0 | BO142: 0 | BP142: 0 | BQ142: =BQ88 - BQ124 -> 0 | BR142: 0 | BS142: 0 | BT142: 0 | BU142: 0 | BV142: 0 | BW142: 0 | BX142: 0 | BY142: 0 | BZ142: 0 | CA142: 0 | CB142: 0 | CC142: 0 | CD142: 0 | CE142: 0 | CF142: 0
C143: Jet fuel | D143: Thousand barrels per day | E143: =E89 - E125 -> 0 | F143: 0 | G143: 0 | H143: 0 | I143: 0 | J143: 0 | K143: 0 | L143: 0 | M143: 0 | N143: 0 | O143: 0 | P143: 0 | Q143: 0 | R143: 0 | S143: 0 | T143: 0 | U143: 0 | V143: 0 | W143: 0 | X143: 0 | Y143: 0 | Z143: 0 | AA143: 0 | AB143: 0 | AC143: 0 | AD143: 0 | AE143: 0 | AF143: 0 | AG143: 0 | AH143: 0 | AI143: 0 | AJ143: 0 | AK143: =AK89 - AK125 -> 0 | AL143: 0 | AM143: 0 | AN143: 0 | AO143: 0 | AP143: 0 | AQ143: 0 | AR143: 0 | AS143: 0 | AT143: 0 | AU143: 0 | AV143: 0 | AW143: 0 | AX143: 0 | AY143: 0 | AZ143: 0 | BA143: 0 | BB143: 0 | BC143: 0 | BD143: 0 | BE143: 0 | BF143: 0 | BG143: 0 | BH143: 0 | BI143: 0 | BJ143: 0 | BK143: 0 | BL143: 0 | BM143: 0 | BN143: 0 | BO143: 0 | BP143: 0 | BQ143: =BQ89 - BQ125 -> 0 | BR143: 0 | BS143: 0 | BT143: 0 | BU143: 0 | BV143: 0 | BW143: 0 | BX143: 0 | BY143: 0 | BZ143: 0 | CA143: 0 | CB143: 0 | CC143: 0 | CD143: 0 | CE143: 0 | CF143: 0
C144: Kerosene | D144: Thousand barrels per day | E144: =E90 - E126 -> 0 | F144: 0 | G144: 0 | H144: 0 | I144: 0 | J144: 0 | K144: 0 | L144: 0 | M144: 0 | N144: 0 | O144: 0 | P144: 0 | Q144: 0 | R144: 0 | S144: 0 | T144: 0 | U144: 0 | V144: 0 | W144: 0 | X144: 0 | Y144: 0 | Z144: 0 | AA144: 0 | AB144: 0 | AC144: 0 | AD144: 0 | AE144: 0 | AF144: 0 | AG144: 0 | AH144: 0 | AI144: 0 | AJ144: 0 | AK144: =AK90 - AK126 -> 0 | AL144: 0 | AM144: 0 | AN144: 0 | AO144: 0 | AP144: 0 | AQ144: 0 | AR144: 0 | AS144: 0 | AT144: 0 | AU144: 0 | AV144: 0 | AW144: 0 | AX144: 0 | AY144: 0 | AZ144: 0 | BA144: 0 | BB144: 0 | BC144: 0 | BD144: 0 | BE144: 0 | BF144: 0 | BG144: 0 | BH144: 0 | BI144: 0 | BJ144: 0 | BK144: 0 | BL144: 0 | BM144: 0 | BN144: 0 | BO144: 0 | BP144: 0 | BQ144: =BQ90 - BQ126 -> 0 | BR144: 0 | BS144: 0 | BT144: 0 | BU144: 0 | BV144: 0 | BW144: 0 | BX144: 0 | BY144: 0 | BZ144: 0 | CA144: 0 | CB144: 0 | CC144: 0 | CD144: 0 | CE144: 0 | CF144: 0
C145: LPG | D145: Thousand barrels per day | E145: =E91 - E127 -> 0 | F145: 0 | G145: 0 | H145: 0 | I145: 0 | J145: 0 | K145: 0 | L145: 0.5070854146 | M145: 2.722838891 | N145: 0.8757534247 | O145: 0.3006297549 | P145: 0 | Q145: 0 | R145: 0 | S145: 0 | T145: 0 | U145: 0 | V145: 0 | W145: 0 | X145: 0 | Y145: 0 | Z145: 0 | AA145: 0 | AB145: 0 | AC145: 0 | AD145: 0 | AE145: 0 | AF145: 0 | AG145: 0 | AH145: 0 | AI145: 0 | AJ145: 0 | AK145: =AK91 - AK127 -> 0 | AL145: 0 | AM145: 0 | AN145: 0 | AO145: 0 | AP145: 0 | AQ145: 0 | AR145: 0 | AS145: 0 | AT145: 0 | AU145: 0 | AV145: 0 | AW145: 0 | AX145: 0 | AY145: 0 | AZ145: 0 | BA145: 0 | BB145: 0 | BC145: 0 | BD145: 0 | BE145: 0 | BF145: 0 | BG145: 0 | BH145: 0 | BI145: 0 | BJ145: 0 | BK145: 0 | BL145: 0 | BM145: 0 | BN145: 0 | BO145: 0 | BP145: 0 | BQ145: =BQ91 - BQ127 -> 0 | BR145: 0 | BS145: 0 | BT145: 0 | BU145: 0 | BV145: 0 | BW145: 0 | BX145: 0 | BY145: 0 | BZ145: 0 | CA145: 0 | CB145: 0 | CC145: 0 | CD145: 0 | CE145: 0 | CF145: 0
C146: Heavy fuel oil | D146: Thousand barrels per day | E146: =E92 - E128 -> 0 | F146: 0 | G146: 0 | H146: 0 | I146: 0 | J146: 0 | K146: 0 | L146: 0.2467450658 | M146: 1.386745066 | N146: 0 | O146: 0 | P146: 0 | Q146: 0 | R146: 0 | S146: 0 | T146: 0 | U146: 0 | V146: 0 | W146: 0 | X146: 0 | Y146: 0 | Z146: 0 | AA146: 0 | AB146: 0 | AC146: 0 | AD146: 0 | AE146: 0 | AF146: 0 | AG146: 0 | AH146: 0 | AI146: 0 | AJ146: 0 | AK146: =AK92 - AK128 -> 0 | AL146: 0 | AM146: 0 | AN146: 0 | AO146: 0 | AP146: 0 | AQ146: 0 | AR146: 0 | AS146: 0 | AT146: 0 | AU146: 0 | AV146: 0 | AW146: 0 | AX146: 0 | AY146: 0 | AZ146: 0 | BA146: 0 | BB146: 0 | BC146: 0 | BD146: 0 | BE146: 0 | BF146: 0 | BG146: 0 | BH146: 0 | BI146: 0 | BJ146: 0 | BK146: 0 | BL146: 0 | BM146: 0 | BN146: 0 | BO146: 0 | BP146: 0 | BQ146: =BQ92 - BQ128 -> 0 | BR146: 0 | BS146: 0 | BT146: 0 | BU146: 0 | BV146: 0 | BW146: 0 | BX146: 0 | BY146: 0 | BZ146: 0 | CA146: 0 | CB146: 0 | CC146: 0 | CD146: 0 | CE146: 0 | CF146: 0
C147: Total | D147: Thousand barrels per day | E147: =E94 - E129 -> 0 | F147: 0 | G147: 0 | H147: 0 | I147: 0 | J147: 0 | K147: 0 | L147: 0.7538304804 | M147: 4.109583957 | N147: 0.8757534247 | O147: 0.3006297549 | P147: 0 | Q147: 0 | R147: 0 | S147: 0 | T147: 0 | U147: 0 | V147: 0 | W147: 0 | X147: 0 | Y147: 0 | Z147: 0 | AA147: 0 | AB147: 0 | AC147: 0 | AD147: 0 | AE147: 0 | AF147: 0 | AG147: 0 | AH147: 0 | AI147: 0 | AJ147: 0 | AK147: =AK94 - AK129 -> 0 | AL147: 0 | AM147: 0 | AN147: 0 | AO147: 0 | AP147: 0 | AQ147: 0 | AR147: 0 | AS147: 0 | AT147: 0 | AU147: 0 | AV147: 0 | AW147: 0 | AX147: 0 | AY147: 0 | AZ147: 0 | BA147: 0 | BB147: 0 | BC147: 0 | BD147: 0 | BE147: 0 | BF147: 0 | BG147: 0 | BH147: 0 | BI147: 0 | BJ147: 0 | BK147: 0 | BL147: 0 | BM147: 0 | BN147: 0 | BO147: 0 | BP147: 0 | BQ147: =BQ94 - BQ129 -> 0 | BR147: 0 | BS147: 0 | BT147: 0 | BU147: 0 | BV147: 0 | BW147: 0 | BX147: 0 | BY147: 0 | BZ147: 0 | CA147: 0 | CB147: 0 | CC147: 0 | CD147: 0 | CE147: 0 | CF147: 0
C149: % of any surplus sold to region | D149: =Dashboard!D12 -> 1
C151: Total sales
C152: Petrol | D152: Thousand barrels per day | E152: =MIN(E123 + (E141 * $D$149), E87) -> 0 | F152: 0 | G152: 0 | H152: 0 | I152: 0 | J152: 0 | K152: 0 | L152: 15.675 | M152: 31.35 | N152: 31.35 | O152: 31.35 | P152: 31.35 | Q152: 31.35 | R152: 31.35 | S152: 31.35 | T152: 31.35 | U152: 31.35 | V152: 31.35 | W152: 31.35 | X152: 31.35 | Y152: 31.35 | Z152: 31.35 | AA152: 31.35 | AB152: 31.35 | AC152: 31.35 | AD152: 31.35 | AE152: 31.35 | AF152: 31.35 | AG152: 31.35 | AH152: 31.35 | AI152: 31.35 | AJ152: 31.35 | AK152: =MIN(AK123 + (AK141 * $D$149), AK87) -> 31.35 | AL152: 31.35 | AM152: 31.35 | AN152: 31.35 | AO152: 31.35 | AP152: 31.35 | AQ152: 31.35 | AR152: 31.35 | AS152: 31.35 | AT152: 31.35 | AU152: 31.35 | AV152: 31.35 | AW152: 31.35 | AX152: 31.35 | AY152: 31.35 | AZ152: 31.35 | BA152: 31.35 | BB152: 31.35 | BC152: 31.35 | BD152: 31.35 | BE152: 31.35 | BF152: 31.35 | BG152: 31.35 | BH152: 31.35 | BI152: 31.35 | BJ152: 31.35 | BK152: 31.35 | BL152: 31.35 | BM152: 31.35 | BN152: 31.35 | BO152: 31.35 | BP152: 31.35 | BQ152: =MIN(BQ123 + (BQ141 * $D$149), BQ87) -> 31.35 | BR152: 31.35 | BS152: 31.35 | BT152: 31.35 | BU152: 31.35 | BV152: 31.35 | BW152: 31.35 | BX152: 31.35 | BY152: 31.35 | BZ152: 31.35 | CA152: 31.35 | CB152: 31.35 | CC152: 31.35 | CD152: 31.35 | CE152: 31.35 | CF152: 31.35
C153: Diesel | D153: Thousand barrels per day | E153: =MIN(E124 + (E142 * $D$149), E88) -> 0 | F153: 0 | G153: 0 | H153: 0 | I153: 0 | J153: 0 | K153: 0 | L153: 6.84 | M153: 13.68 | N153: 13.68 | O153: 13.68 | P153: 13.68 | Q153: 13.68 | R153: 13.68 | S153: 13.68 | T153: 13.68 | U153: 13.68 | V153: 13.68 | W153: 13.68 | X153: 13.68 | Y153: 13.68 | Z153: 13.68 | AA153: 13.68 | AB153: 13.68 | AC153: 13.68 | AD153: 13.68 | AE153: 13.68 | AF153: 13.68 | AG153: 13.68 | AH153: 13.68 | AI153: 13.68 | AJ153: 13.68 | AK153: =MIN(AK124 + (AK142 * $D$149), AK88) -> 13.68 | AL153: 13.68 | AM153: 13.68 | AN153: 13.68 | AO153: 13.68 | AP153: 13.68 | AQ153: 13.68 | AR153: 13.68 | AS153: 13.68 | AT153: 13.68 | AU153: 13.68 | AV153: 13.68 | AW153: 13.68 | AX153: 13.68 | AY153: 13.68 | AZ153: 13.68 | BA153: 13.68 | BB153: 13.68 | BC153: 13.68 | BD153: 13.68 | BE153: 13.68 | BF153: 13.68 | BG153: 13.68 | BH153: 13.68 | BI153: 13.68 | BJ153: 13.68 | BK153: 13.68 | BL153: 13.68 | BM153: 13.68 | BN153: 13.68 | BO153: 13.68 | BP153: 13.68 | BQ153: =MIN(BQ124 + (BQ142 * $D$149), BQ88) -> 13.68 | BR153: 13.68 | BS153: 13.68 | BT153: 13.68 | BU153: 13.68 | BV153: 13.68 | BW153: 13.68 | BX153: 13.68 | BY153: 13.68 | BZ153: 13.68 | CA153: 13.68 | CB153: 13.68 | CC153: 13.68 | CD153: 13.68 | CE153: 13.68 | CF153: 13.68
C154: Jet fuel | D154: Thousand barrels per day | E154: =MIN(E125 + (E143 * $D$149), E89) -> 0 | F154: 0 | G154: 0 | H154: 0 | I154: 0 | J154: 0 | K154: 0 | L154: 1.14 | M154: 2.28 | N154: 2.28 | O154: 2.28 | P154: 2.28 | Q154: 2.28 | R154: 2.28 | S154: 2.28 | T154: 2.28 | U154: 2.28 | V154: 2.28 | W154: 2.28 | X154: 2.28 | Y154: 2.28 | Z154: 2.28 | AA154: 2.28 | AB154: 2.28 | AC154: 2.28 | AD154: 2.28 | AE154: 2.28 | AF154: 2.28 | AG154: 2.28 | AH154: 2.28 | AI154: 2.28 | AJ154: 2.28 | AK154: =MIN(AK125 + (AK143 * $D$149), AK89) -> 2.28 | AL154: 2.28 | AM154: 2.28 | AN154: 2.28 | AO154: 2.28 | AP154: 2.28 | AQ154: 2.28 | AR154: 2.28 | AS154: 2.28 | AT154: 2.28 | AU154: 2.28 | AV154: 2.28 | AW154: 2.28 | AX154: 2.28 | AY154: 2.28 | AZ154: 2.28 | BA154: 2.28 | BB154: 2.28 | BC154: 2.28 | BD154: 2.28 | BE154: 2.28 | BF154: 2.28 | BG154: 2.28 | BH154: 2.28 | BI154: 2.28 | BJ154: 2.28 | BK154: 2.28 | BL154: 2.28 | BM154: 2.28 | BN154: 2.28 | BO154: 2.28 | BP154: 2.28 | BQ154: =MIN(BQ125 + (BQ143 * $D$149), BQ89) -> 2.28 | BR154: 2.28 | BS154: 2.28 | BT154: 2.28 | BU154: 2.28 | BV154: 2.28 | BW154: 2.28 | BX154: 2.28 | BY154: 2.28 | BZ154: 2.28 | CA154: 2.28 | CB154: 2.28 | CC154: 2.28 | CD154: 2.28 | CE154: 2.28 | CF154: 2.28
C155: Kerosene | D155: Thousand barrels per day | E155: =MIN(E126 + (E144 * $D$149), E90) -> 0 | F155: 0 | G155: 0 | H155: 0 | I155: 0 | J155: 0 | K155: 0 | L155: 0 | M155: 0 | N155: 0 | O155: 0 | P155: 0 | Q155: 0 | R155: 0 | S155: 0 | T155: 0 | U155: 0 | V155: 0 | W155: 0 | X155: 0 | Y155: 0 | Z155: 0 | AA155: 0 | AB155: 0 | AC155: 0 | AD155: 0 | AE155: 0 | AF155: 0 | AG155: 0 | AH155: 0 | AI155: 0 | AJ155: 0 | AK155: =MIN(AK126 + (AK144 * $D$149), AK90) -> 0 | AL155: 0 | AM155: 0 | AN155: 0 | AO155: 0 | AP155: 0 | AQ155: 0 | AR155: 0 | AS155: 0 | AT155: 0 | AU155: 0 | AV155: 0 | AW155: 0 | AX155: 0 | AY155: 0 | AZ155: 0 | BA155: 0 | BB155: 0 | BC155: 0 | BD155: 0 | BE155: 0 | BF155: 0 | BG155: 0 | BH155: 0 | BI155: 0 | BJ155: 0 | BK155: 0 | BL155: 0 | BM155: 0 | BN155: 0 | BO155: 0 | BP155: 0 | BQ155: =MIN(BQ126 + (BQ144 * $D$149), BQ90) -> 0 | BR155: 0 | BS155: 0 | BT155: 0 | BU155: 0 | BV155: 0 | BW155: 0 | BX155: 0 | BY155: 0 | BZ155: 0 | CA155: 0 | CB155: 0 | CC155: 0 | CD155: 0 | CE155: 0 | CF155: 0
C156: Liquefied petroleum gas | D156: Thousand barrels per day | E156: =MIN(E127 + (E145 * $D$149), E91) -> 0 | F156: 0 | G156: 0 | H156: 0 | I156: 0 | J156: 0 | K156: 0 | L156: 3.705 | M156: 7.41 | N156: 7.41 | O156: 7.41 | P156: 7.41 | Q156: 7.41 | R156: 7.41 | S156: 7.41 | T156: 7.41 | U156: 7.41 | V156: 7.41 | W156: 7.41 | X156: 7.41 | Y156: 7.41 | Z156: 7.41 | AA156: 7.41 | AB156: 7.41 | AC156: 7.41 | AD156: 7.41 | AE156: 7.41 | AF156: 7.41 | AG156: 7.41 | AH156: 7.41 | AI156: 7.41 | AJ156: 7.41 | AK156: =MIN(AK127 + (AK145 * $D$149), AK91) -> 7.41 | AL156: 7.41 | AM156: 7.41 | AN156: 7.41 | AO156: 7.41 | AP156: 7.41 | AQ156: 7.41 | AR156: 7.41 | AS156: 7.41 | AT156: 7.41 | AU156: 7.41 | AV156: 7.41 | AW156: 7.41 | AX156: 7.41 | AY156: 7.41 | AZ156: 7.41 | BA156: 7.41 | BB156: 7.41 | BC156: 7.41 | BD156: 7.41 | BE156: 7.41 | BF156: 7.41 | BG156: 7.41 | BH156: 7.41 | BI156: 7.41 | BJ156: 7.41 | BK156: 7.41 | BL156: 7.41 | BM156: 7.41 | BN156: 7.41 | BO156: 7.41 | BP156: 7.41 | BQ156: =MIN(BQ127 + (BQ145 * $D$149), BQ91) -> 7.41 | BR156: 7.41 | BS156: 7.41 | BT156: 7.41 | BU156: 7.41 | BV156: 7.41 | BW156: 7.41 | BX156: 7.41 | BY156: 7.41 | BZ156: 7.41 | CA156: 7.41 | CB156: 7.41 | CC156: 7.41 | CD156: 7.41 | CE156: 7.41 | CF156: 7.41
C157: Heavy fuel oil | D157: Thousand barrels per day | E157: =MIN(E128 + (E146 * $D$149), E92) -> 0 | F157: 0 | G157: 0 | H157: 0 | I157: 0 | J157: 0 | K157: 0 | L157: 1.14 | M157: 2.28 | N157: 2.28 | O157: 2.28 | P157: 2.28 | Q157: 2.28 | R157: 2.28 | S157: 2.28 | T157: 2.28 | U157: 2.28 | V157: 2.28 | W157: 2.28 | X157: 2.28 | Y157: 2.28 | Z157: 2.28 | AA157: 2.28 | AB157: 2.28 | AC157: 2.28 | AD157: 2.28 | AE157: 2.28 | AF157: 2.28 | AG157: 2.28 | AH157: 2.28 | AI157: 2.28 | AJ157: 2.28 | AK157: =MIN(AK128 + (AK146 * $D$149), AK92) -> 2.28 | AL157: 2.28 | AM157: 2.28 | AN157: 2.28 | AO157: 2.28 | AP157: 2.28 | AQ157: 2.28 | AR157: 2.28 | AS157: 2.28 | AT157: 2.28 | AU157: 2.28 | AV157: 2.28 | AW157: 2.28 | AX157: 2.28 | AY157: 2.28 | AZ157: 2.28 | BA157: 2.28 | BB157: 2.28 | BC157: 2.28 | BD157: 2.28 | BE157: 2.28 | BF157: 2.28 | BG157: 2.28 | BH157: 2.28 | BI157: 2.28 | BJ157: 2.28 | BK157: 2.28 | BL157: 2.28 | BM157: 2.28 | BN157: 2.28 | BO157: 2.28 | BP157: 2.28 | BQ157: =MIN(BQ128 + (BQ146 * $D$149), BQ92) -> 2.28 | BR157: 2.28 | BS157: 2.28 | BT157: 2.28 | BU157: 2.28 | BV157: 2.28 | BW157: 2.28 | BX157: 2.28 | BY157: 2.28 | BZ157: 2.28 | CA157: 2.28 | CB157: 2.28 | CC157: 2.28 | CD157: 2.28 | CE157: 2.28 | CF157: 2.28
C158: Total | D158: Thousand barrels per day | E158: =MIN(E129 + (E147 * $D$149), E94) -> 0 | F158: 0 | G158: 0 | H158: 0 | I158: 0 | J158: 0 | K158: 0 | L158: 28.5 | M158: 57 | N158: 57 | O158: 57 | P158: 57 | Q158: 57 | R158: 57 | S158: 57 | T158: 57 | U158: 57 | V158: 57 | W158: 57 | X158: 57 | Y158: 57 | Z158: 57 | AA158: 57 | AB158: 57 | AC158: 57 | AD158: 57 | AE158: 57 | AF158: 57 | AG158: 57 | AH158: 57 | AI158: 57 | AJ158: 57 | AK158: =MIN(AK129 + (AK147 * $D$149), AK94) -> 57 | AL158: 57 | AM158: 57 | AN158: 57 | AO158: 57 | AP158: 57 | AQ158: 57 | AR158: 57 | AS158: 57 | AT158: 57 | AU158: 57 | AV158: 57 | AW158: 57 | AX158: 57 | AY158: 57 | AZ158: 57 | BA158: 57 | BB158: 57 | BC158: 57 | BD158: 57 | BE158: 57 | BF158: 57 | BG158: 57 | BH158: 57 | BI158: 57 | BJ158: 57 | BK158: 57 | BL158: 57 | BM158: 57 | BN158: 57 | BO158: 57 | BP158: 57 | BQ158: =MIN(BQ129 + (BQ147 * $D$149), BQ94) -> 57 | BR158: 57 | BS158: 57 | BT158: 57 | BU158: 57 | BV158: 57 | BW158: 57 | BX158: 57 | BY158: 57 | BZ158: 57 | CA158: 57 | CB158: 57 | CC158: 57 | CD158: 57 | CE158: 57 | CF158: 57
C160: Total sales
C161: Petrol | D161: Million barrels per year | E161: =(E152/1000)*365 -> 0 | F161: =(F152/1000)*365 -> 0 | G161: 0 | H161: 0 | I161: 0 | J161: 0 | K161: 0 | L161: 5.721375 | M161: 11.44275 | N161: 11.44275 | O161: 11.44275 | P161: 11.44275 | Q161: 11.44275 | R161: 11.44275 | S161: 11.44275 | T161: 11.44275 | U161: 11.44275 | V161: 11.44275 | W161: 11.44275 | X161: 11.44275 | Y161: 11.44275 | Z161: 11.44275 | AA161: 11.44275 | AB161: 11.44275 | AC161: 11.44275 | AD161: 11.44275 | AE161: 11.44275 | AF161: 11.44275 | AG161: 11.44275 | AH161: 11.44275 | AI161: 11.44275 | AJ161: 11.44275 | AK161: 11.44275 | AL161: 11.44275 | AM161: 11.44275 | AN161: 11.44275 | AO161: 11.44275 | AP161: 11.44275 | AQ161: 11.44275 | AR161: 11.44275 | AS161: 11.44275 | AT161: =(AT152/1000)*365 -> 11.44275 | AU161: 11.44275 | AV161: 11.44275 | AW161: 11.44275 | AX161: 11.44275 | AY161: 11.44275 | AZ161: 11.44275 | BA161: 11.44275 | BB161: 11.44275 | BC161: 11.44275 | BD161: 11.44275 | BE161: 11.44275 | BF161: 11.44275 | BG161: 11.44275 | BH161: 11.44275 | BI161: 11.44275 | BJ161: 11.44275 | BK161: 11.44275 | BL161: 11.44275 | BM161: 11.44275 | BN161: 11.44275 | BO161: 11.44275 | BP161: 11.44275 | BQ161: 11.44275 | BR161: 11.44275 | BS161: 11.44275 | BT161: 11.44275 | BU161: 11.44275 | BV161: 11.44275 | BW161: 11.44275 | BX161: 11.44275 | BY161: 11.44275 | BZ161: 11.44275 | CA161: =(CA152/1000)*365 -> 11.44275 | CB161: 11.44275 | CC161: 11.44275 | CD161: 11.44275 | CE161: 11.44275 | CF161: 11.44275
C162: Diesel | D162: Million barrels per year | E162: 0 | F162: =(F153/1000)*365 -> 0 | G162: 0 | H162: 0 | I162: 0 | J162: 0 | K162: 0 | L162: 2.4966 | M162: 4.9932 | N162: 4.9932 | O162: 4.9932 | P162: 4.9932 | Q162: 4.9932 | R162: 4.9932 | S162: 4.9932 | T162: 4.9932 | U162: 4.9932 | V162: 4.9932 | W162: 4.9932 | X162: 4.9932 | Y162: 4.9932 | Z162: 4.9932 | AA162: 4.9932 | AB162: 4.9932 | AC162: 4.9932 | AD162: 4.9932 | AE162: 4.9932 | AF162: 4.9932 | AG162: 4.9932 | AH162: 4.9932 | AI162: 4.9932 | AJ162: 4.9932 | AK162: 4.9932 | AL162: 4.9932 | AM162: 4.9932 | AN162: 4.9932 | AO162: 4.9932 | AP162: 4.9932 | AQ162: 4.9932 | AR162: 4.9932 | AS162: 4.9932 | AT162: =(AT153/1000)*365 -> 4.9932 | AU162: 4.9932 | AV162: 4.9932 | AW162: 4.9932 | AX162: 4.9932 | AY162: 4.9932 | AZ162: 4.9932 | BA162: 4.9932 | BB162: 4.9932 | BC162: 4.9932 | BD162: 4.9932 | BE162: 4.9932 | BF162: 4.9932 | BG162: 4.9932 | BH162: 4.9932 | BI162: 4.9932 | BJ162: 4.9932 | BK162: 4.9932 | BL162: 4.9932 | BM162: 4.9932 | BN162: 4.9932 | BO162: 4.9932 | BP162: 4.9932 | BQ162: 4.9932 | BR162: 4.9932 | BS162: 4.9932 | BT162: 4.9932 | BU162: 4.9932 | BV162: 4.9932 | BW162: 4.9932 | BX162: 4.9932 | BY162: 4.9932 | BZ162: 4.9932 | CA162: =(CA153/1000)*365 -> 4.9932 | CB162: 4.9932 | CC162: 4.9932 | CD162: 4.9932 | CE162: 4.9932 | CF162: 4.9932
C163: Jet fuel | D163: Million barrels per year | E163: 0 | F163: 0 | G163: 0 | H163: 0 | I163: 0 | J163: 0 | K163: 0 | L163: 0.4161 | M163: 0.8322 | N163: 0.8322 | O163: 0.8322 | P163: 0.8322 | Q163: 0.8322 | R163: 0.8322 | S163: 0.8322 | T163: 0.8322 | U163: 0.8322 | V163: 0.8322 | W163: 0.8322 | X163: 0.8322 | Y163: 0.8322 | Z163: 0.8322 | AA163: 0.8322 | AB163: 0.8322 | AC163: 0.8322 | AD163: 0.8322 | AE163: 0.8322 | AF163: 0.8322 | AG163: 0.8322 | AH163: 0.8322 | AI163: 0.8322 | AJ163: 0.8322 | AK163: 0.8322 | AL163: 0.8322 | AM163: 0.8322 | AN163: 0.8322 | AO163: 0.8322 | AP163: 0.8322 | AQ163: 0.8322 | AR163: 0.8322 | AS163: 0.8322 | AT163: =(AT154/1000)*365 -> 0.8322 | AU163: 0.8322 | AV163: 0.8322 | AW163: 0.8322 | AX163: 0.8322 | AY163: 0.8322 | AZ163: 0.8322 | BA163: 0.8322 | BB163: 0.8322 | BC163: 0.8322 | BD163: 0.8322 | BE163: 0.8322 | BF163: 0.8322 | BG163: 0.8322 | BH163: 0.8322 | BI163: 0.8322 | BJ163: 0.8322 | BK163: 0.8322 | BL163: 0.8322 | BM163: 0.8322 | BN163: 0.8322 | BO163: 0.8322 | BP163: 0.8322 | BQ163: 0.8322 | BR163: 0.8322 | BS163: 0.8322 | BT163: 0.8322 | BU163: 0.8322 | BV163: 0.8322 | BW163: 0.8322 | BX163: 0.8322 | BY163: 0.8322 | BZ163: 0.8322 | CA163: =(CA154/1000)*365 -> 0.8322 | CB163: 0.8322 | CC163: 0.8322 | CD163: 0.8322 | CE163: 0.8322 | CF163: 0.8322
C164: Kerosene | D164: Million barrels per year | E164: 0 | F164: 0 | G164: 0 | H164: 0 | I164: 0 | J164: 0 | K164: 0 | L164: 0 | M164: 0 | N164: 0 | O164: 0 | P164: 0 | Q164: 0 | R164: 0 | S164: 0 | T164: 0 | U164: 0 | V164: 0 | W164: 0 | X164: 0 | Y164: 0 | Z164: 0 | AA164: 0 | AB164: 0 | AC164: 0 | AD164: 0 | AE164: 0 | AF164: 0 | AG164: 0 | AH164: 0 | AI164: 0 | AJ164: 0 | AK164: 0 | AL164: 0 | AM164: 0 | AN164: 0 | AO164: 0 | AP164: 0 | AQ164: 0 | AR164: 0 | AS164: 0 | AT164: =(AT155/1000)*365 -> 0 | AU164: 0 | AV164: 0 | AW164: 0 | AX164: 0 | AY164: 0 | AZ164: 0 | BA164: 0 | BB164: 0 | BC164: 0 | BD164: 0 | BE164: 0 | BF164: 0 | BG164: 0 | BH164: 0 | BI164: 0 | BJ164: 0 | BK164: 0 | BL164: 0 | BM164: 0 | BN164: 0 | BO164: 0 | BP164: 0 | BQ164: 0 | BR164: 0 | BS164: 0 | BT164: 0 | BU164: 0 | BV164: 0 | BW164: 0 | BX164: 0 | BY164: 0 | BZ164: 0 | CA164: =(CA155/1000)*365 -> 0 | CB164: 0 | CC164: 0 | CD164: 0 | CE164: 0 | CF164: 0
C165: Liquefied petroleum gas | D165: Million barrels per year | E165: 0 | F165: 0 | G165: 0 | H165: 0 | I165: 0 | J165: 0 | K165: 0 | L165: 1.352325 | M165: 2.70465 | N165: 2.70465 | O165: 2.70465 | P165: 2.70465 | Q165: 2.70465 | R165: 2.70465 | S165: 2.70465 | T165: 2.70465 | U165: 2.70465 | V165: 2.70465 | W165: 2.70465 | X165: 2.70465 | Y165: 2.70465 | Z165: 2.70465 | AA165: 2.70465 | AB165: 2.70465 | AC165: 2.70465 | AD165: 2.70465 | AE165: 2.70465 | AF165: 2.70465 | AG165: 2.70465 | AH165: 2.70465 | AI165: 2.70465 | AJ165: 2.70465 | AK165: 2.70465 | AL165: 2.70465 | AM165: 2.70465 | AN165: 2.70465 | AO165: 2.70465 | AP165: 2.70465 | AQ165: 2.70465 | AR165: 2.70465 | AS165: 2.70465 | AT165: =(AT156/1000)*365 -> 2.70465 | AU165: 2.70465 | AV165: 2.70465 | AW165: 2.70465 | AX165: 2.70465 | AY165: 2.70465 | AZ165: 2.70465 | BA165: 2.70465 | BB165: 2.70465 | BC165: 2.70465 | BD165: 2.70465 | BE165: 2.70465 | BF165: 2.70465 | BG165: 2.70465 | BH165: 2.70465 | BI165: 2.70465 | BJ165: 2.70465 | BK165: 2.70465 | BL165: 2.70465 | BM165: 2.70465 | BN165: 2.70465 | BO165: 2.70465 | BP165: 2.70465 | BQ165: 2.70465 | BR165: 2.70465 | BS165: 2.70465 | BT165: 2.70465 | BU165: 2.70465 | BV165: 2.70465 | BW165: 2.70465 | BX165: 2.70465 | BY165: 2.70465 | BZ165: 2.70465 | CA165: =(CA156/1000)*365 -> 2.70465 | CB165: 2.70465 | CC165: 2.70465 | CD165: 2.70465 | CE165: 2.70465 | CF165: 2.70465
C166: Heavy fuel oil | D166: Million barrels per year | E166: 0 | F166: 0 | G166: 0 | H166: 0 | I166: 0 | J166: 0 | K166: 0 | L166: 0.4161 | M166: 0.8322 | N166: 0.8322 | O166: 0.8322 | P166: 0.8322 | Q166: 0.8322 | R166: 0.8322 | S166: 0.8322 | T166: 0.8322 | U166: 0.8322 | V166: 0.8322 | W166: 0.8322 | X166: 0.8322 | Y166: 0.8322 | Z166: 0.8322 | AA166: 0.8322 | AB166: 0.8322 | AC166: 0.8322 | AD166: 0.8322 | AE166: 0.8322 | AF166: 0.8322 | AG166: 0.8322 | AH166: 0.8322 | AI166: 0.8322 | AJ166: 0.8322 | AK166: 0.8322 | AL166: 0.8322 | AM166: 0.8322 | AN166: 0.8322 | AO166: 0.8322 | AP166: 0.8322 | AQ166: 0.8322 | AR166: 0.8322 | AS166: 0.8322 | AT166: =(AT157/1000)*365 -> 0.8322 | AU166: 0.8322 | AV166: 0.8322 | AW166: 0.8322 | AX166: 0.8322 | AY166: 0.8322 | AZ166: 0.8322 | BA166: 0.8322 | BB166: 0.8322 | BC166: 0.8322 | BD166: 0.8322 | BE166: 0.8322 | BF166: 0.8322 | BG166: 0.8322 | BH166: 0.8322 | BI166: 0.8322 | BJ166: 0.8322 | BK166: 0.8322 | BL166: 0.8322 | BM166: 0.8322 | BN166: 0.8322 | BO166: 0.8322 | BP166: 0.8322 | BQ166: 0.8322 | BR166: 0.8322 | BS166: 0.8322 | BT166: 0.8322 | BU166: 0.8322 | BV166: 0.8322 | BW166: 0.8322 | BX166: 0.8322 | BY166: 0.8322 | BZ166: 0.8322 | CA166: =(CA157/1000)*365 -> 0.8322 | CB166: 0.8322 | CC166: 0.8322 | CD166: 0.8322 | CE166: 0.8322 | CF166: 0.8322
C167: Total | D167: Million barrels per year | E167: =SUM(E161:E166) -> 0 | F167: 0 | G167: 0 | H167: 0 | I167: 0 | J167: 0 | K167: 0 | L167: 10.4025 | M167: 20.805 | N167: 20.805 | O167: 20.805 | P167: 20.805 | Q167: 20.805 | R167: 20.805 | S167: 20.805 | T167: 20.805 | U167: 20.805 | V167: 20.805 | W167: 20.805 | X167: 20.805 | Y167: 20.805 | Z167: 20.805 | AA167: 20.805 | AB167: 20.805 | AC167: 20.805 | AD167: 20.805 | AE167: 20.805 | AF167: 20.805 | AG167: 20.805 | AH167: 20.805 | AI167: 20.805 | AJ167: 20.805 | AK167: =SUM(AK161:AK166) -> 20.805 | AL167: 20.805 | AM167: 20.805 | AN167: 20.805 | AO167: 20.805 | AP167: 20.805 | AQ167: 20.805 | AR167: 20.805 | AS167: 20.805 | AT167: 20.805 | AU167: 20.805 | AV167: 20.805 | AW167: 20.805 | AX167: 20.805 | AY167: 20.805 | AZ167: 20.805 | BA167: 20.805 | BB167: 20.805 | BC167: 20.805 | BD167: 20.805 | BE167: 20.805 | BF167: 20.805 | BG167: 20.805 | BH167: 20.805 | BI167: 20.805 | BJ167: 20.805 | BK167: 20.805 | BL167: 20.805 | BM167: 20.805 | BN167: 20.805 | BO167: 20.805 | BP167: 20.805 | BQ167: =SUM(BQ161:BQ166) -> 20.805 | BR167: 20.805 | BS167: 20.805 | BT167: 20.805 | BU167: 20.805 | BV167: 20.805 | BW167: 20.805 | BX167: 20.805 | BY167: 20.805 | BZ167: 20.805 | CA167: 20.805 | CB167: 20.805 | CC167: 20.805 | CD167: 20.805 | CE167: 20.805 | CF167: 20.805
C169: Sales volume as percentage of refinery capacity | E169: =IFERROR(E158 / E71, "-") -> - | F169: - | G169: - | H169: - | I169: - | J169: - | K169: - | L169: 1 | M169: 1 | N169: 1 | O169: 1 | P169: 1 | Q169: 1 | R169: 1 | S169: 1 | T169: 1 | U169: 1 | V169: 1 | W169: 1 | X169: 1 | Y169: 1 | Z169: 1 | AA169: 1 | AB169: 1 | AC169: 1 | AD169: 1 | AE169: 1 | AF169: 1 | AG169: 1 | AH169: 1 | AI169: 1 | AJ169: 1 | AK169: =IFERROR(AK158 / AK71, "-") -> 1 | AL169: 1 | AM169: 1 | AN169: 1 | AO169: 1 | AP169: 1 | AQ169: 1 | AR169: 1 | AS169: 1 | AT169: 1 | AU169: 1 | AV169: 1 | AW169: 1 | AX169: 1 | AY169: 1 | AZ169: 1 | BA169: 1 | BB169: 1 | BC169: 1 | BD169: 1 | BE169: 1 | BF169: 1 | BG169: 1 | BH169: 1 | BI169: 1 | BJ169: 1 | BK169: 1 | BL169: 1 | BM169: 1 | BN169: 1 | BO169: 1 | BP169: 1 | BQ169: =IFERROR(BQ158 / BQ71, "-") -> 1 | BR169: 1 | BS169: 1 | BT169: 1 | BU169: 1 | BV169: 1 | BW169: 1 | BX169: 1 | BY169: 1 | BZ169: 1 | CA169: 1 | CB169: 1 | CC169: 1 | CD169: 1 | CE169: 1 | CF169: 1
C171: Production
C173: Year that crude for refining is available from | D173: 2026
C174: Crude used as fuel in refining process | D174: 0.03
C176: Crude available to refinery | D176: Million barrels | E176: =Dashboard!D7 -> 490
C178: Crude refined | D178: Million barrels per year | E178: =IF(AND(E176 > 0, E9 >= $D$173), IFERROR(MIN((E72 * E169) * (1 + $D$174), E176), 0), 0) -> 0 | F178: =IF(AND(E181 > 0, F9 >= $D$173), IFERROR(MIN((F72 * F169) * (1 + $D$174), E181), 0), 0) -> 0 | G178: 0 | H178: 0 | I178: 0 | J178: 0 | K178: 0 | L178: 10.714575 | M178: 21.42915 | N178: 21.42915 | O178: 21.42915 | P178: 21.42915 | Q178: 21.42915 | R178: 21.42915 | S178: 21.42915 | T178: 21.42915 | U178: 21.42915 | V178: 21.42915 | W178: 21.42915 | X178: 21.42915 | Y178: 21.42915 | Z178: 21.42915 | AA178: 21.42915 | AB178: 21.42915 | AC178: 21.42915 | AD178: 21.42915 | AE178: 21.42915 | AF178: 21.42915 | AG178: 21.42915 | AH178: 21.42915 | AI178: 7.844125 | AJ178: 0 | AK178: 0 | AL178: =IF(AND(AK181 > 0, AL9 >= $D$173), IFERROR(MIN((AL72 * AL169) * (1 + $D$174), AK181), 0), 0) -> 0 | AM178: 0 | AN178: 0 | AO178: 0 | AP178: 0 | AQ178: 0 | AR178: 0 | AS178: 0 | AT178: 0 | AU178: 0 | AV178: 0 | AW178: 0 | AX178: 0 | AY178: 0 | AZ178: 0 | BA178: 0 | BB178: 0 | BC178: 0 | BD178: 0 | BE178: 0 | BF178: 0 | BG178: 0 | BH178: 0 | BI178: 0 | BJ178: 0 | BK178: 0 | BL178: 0 | BM178: 0 | BN178: 0 | BO178: 0 | BP178: 0 | BQ178: 0 | BR178: =IF(AND(BQ181 > 0, BR9 >= $D$173), IFERROR(MIN((BR72 * BR169) * (1 + $D$174), BQ181), 0), 0) -> 0 | BS178: 0 | BT178: 0 | BU178: 0 | BV178: 0 | BW178: 0 | BX178: 0 | BY178: 0 | BZ178: 0 | CA178: 0 | CB178: 0 | CC178: 0 | CD178: 0 | CE178: 0 | CF178: 0
C179: Crude used as fuel in refining process | D179: Million barrels per year | E179: =E178 - (E178 * (1 / (1 + $D$174))) -> 0 | F179: 0 | G179: 0 | H179: 0 | I179: 0 | J179: 0 | K179: 0 | L179: 0.312075 | M179: 0.62415 | N179: 0.62415 | O179: 0.62415 | P179: 0.62415 | Q179: 0.62415 | R179: 0.62415 | S179: 0.62415 | T179: 0.62415 | U179: 0.62415 | V179: 0.62415 | W179: 0.62415 | X179: 0.62415 | Y179: 0.62415 | Z179: 0.62415 | AA179: 0.62415 | AB179: 0.62415 | AC179: 0.62415 | AD179: 0.62415 | AE179: 0.62415 | AF179: 0.62415 | AG179: 0.62415 | AH179: 0.62415 | AI179: 0.2284696602 | AJ179: 0 | AK179: =AK178 - (AK178 * (1 / (1 + $D$174))) -> 0 | AL179: 0 | AM179: 0 | AN179: 0 | AO179: 0 | AP179: 0 | AQ179: 0 | AR179: 0 | AS179: 0 | AT179: 0 | AU179: 0 | AV179: 0 | AW179: 0 | AX179: 0 | AY179: 0 | AZ179: 0 | BA179: 0 | BB179: 0 | BC179: 0 | BD179: 0 | BE179: 0 | BF179: 0 | BG179: 0 | BH179: 0 | BI179: 0 | BJ179: 0 | BK179: 0 | BL179: 0 | BM179: 0 | BN179: 0 | BO179: 0 | BP179: 0 | BQ179: =BQ178 - (BQ178 * (1 / (1 + $D$174))) -> 0 | BR179: 0 | BS179: 0 | BT179: 0 | BU179: 0 | BV179: 0 | BW179: 0 | BX179: 0 | BY179: 0 | BZ179: 0 | CA179: 0 | CB179: 0 | CC179: 0 | CD179: 0 | CE179: 0 | CF179: 0
C180: Crude refined into products | D180: Million barrels per year | E180: =E178 - E179 -> 0 | F180: =F178 - F179 -> 0 | G180: 0 | H180: 0 | I180: 0 | J180: 0 | K180: 0 | L180: 10.4025 | M180: 20.805 | N180: 20.805 | O180: 20.805 | P180: 20.805 | Q180: 20.805 | R180: 20.805 | S180: 20.805 | T180: 20.805 | U180: 20.805 | V180: 20.805 | W180: 20.805 | X180: 20.805 | Y180: 20.805 | Z180: 20.805 | AA180: 20.805 | AB180: 20.805 | AC180: 20.805 | AD180: 20.805 | AE180: 20.805 | AF180: 20.805 | AG180: 20.805 | AH180: 20.805 | AI180: 7.61565534 | AJ180: 0 | AK180: 0 | AL180: 0 | AM180: 0 | AN180: 0 | AO180: 0 | AP180: 0 | AQ180: 0 | AR180: 0 | AS180: 0 | AT180: 0 | AU180: 0 | AV180: 0 | AW180: 0 | AX180: 0 | AY180: 0 | AZ180: 0 | BA180: 0 | BB180: 0 | BC180: 0 | BD180: 0 | BE180: 0 | BF180: 0 | BG180: 0 | BH180: 0 | BI180: 0 | BJ180: 0 | BK180: 0 | BL180: 0 | BM180: 0 | BN180: 0 | BO180: 0 | BP180: 0 | BQ180: 0 | BR180: =BR178 - BR179 -> 0 | BS180: 0 | BT180: 0 | BU180: 0 | BV180: 0 | BW180: 0 | BX180: 0 | BY180: 0 | BZ180: 0 | CA180: 0 | CB180: 0 | CC180: 0 | CD180: 0 | CE180: 0 | CF180: 0
C181: Remaining crude | D181: Million barrels per year | E181: =E176 - E178 -> 490 | F181: =E181 - F178 -> 490 | G181: 490 | H181: 490 | I181: 490 | J181: 490 | K181: 490 | L181: 479.285425 | M181: 457.856275 | N181: 436.427125 | O181: 414.997975 | P181: 393.568825 | Q181: 372.139675 | R181: 350.710525 | S181: 329.281375 | T181: 307.852225 | U181: 286.423075 | V181: 264.993925 | W181: 243.564775 | X181: 222.135625 | Y181: 200.706475 | Z181: 179.277325 | AA181: 157.848175 | AB181: 136.419025 | AC181: 114.989875 | AD181: 93.560725 | AE181: 72.131575 | AF181: 50.702425 | AG181: 29.273275 | AH181: 7.844125 | AI181: 0 | AJ181: 0 | AK181: =AJ181 - AK178 -> 0 | AL181: 0 | AM181: 0 | AN181: 0 | AO181: 0 | AP181: 0 | AQ181: 0 | AR181: 0 | AS181: 0 | AT181: 0 | AU181: 0 | AV181: 0 | AW181: 0 | AX181: 0 | AY181: 0 | AZ181: 0 | BA181: 0 | BB181: 0 | BC181: 0 | BD181: 0 | BE181: 0 | BF181: 0 | BG181: 0 | BH181: 0 | BI181: 0 | BJ181: 0 | BK181: 0 | BL181: 0 | BM181: 0 | BN181: 0 | BO181: 0 | BP181: 0 | BQ181: =BP181 - BQ178 -> 0 | BR181: 0 | BS181: 0 | BT181: 0 | BU181: 0 | BV181: 0 | BW181: 0 | BX181: 0 | BY181: 0 | BZ181: 0 | CA181: 0 | CB181: 0 | CC181: 0 | CD181: 0 | CE181: 0 | CF181: 0
C183: Products produced
C184: Petrol | E184: =E$180 *$D78 -> 0 | F184: 0 | G184: 0 | H184: 0 | I184: 0 | J184: 0 | K184: 0 | L184: 5.721375 | M184: 11.44275 | N184: 11.44275 | O184: 11.44275 | P184: 11.44275 | Q184: 11.44275 | R184: 11.44275 | S184: 11.44275 | T184: 11.44275 | U184: 11.44275 | V184: 11.44275 | W184: 11.44275 | X184: 11.44275 | Y184: 11.44275 | Z184: 11.44275 | AA184: 11.44275 | AB184: 11.44275 | AC184: 11.44275 | AD184: 11.44275 | AE184: 11.44275 | AF184: 11.44275 | AG184: 11.44275 | AH184: 11.44275 | AI184: 4.188610437 | AJ184: 0 | AK184: =AK$180 *$D78 -> 0 | AL184: 0 | AM184: 0 | AN184: 0 | AO184: 0 | AP184: 0 | AQ184: 0 | AR184: 0 | AS184: 0 | AT184: 0 | AU184: 0 | AV184: 0 | AW184: 0 | AX184: 0 | AY184: 0 | AZ184: 0 | BA184: 0 | BB184: 0 | BC184: 0 | BD184: 0 | BE184: 0 | BF184: 0 | BG184: 0 | BH184: 0 | BI184: 0 | BJ184: 0 | BK184: 0 | BL184: 0 | BM184: 0 | BN184: 0 | BO184: 0 | BP184: 0 | BQ184: =BQ$180 *$D78 -> 0 | BR184: 0 | BS184: 0 | BT184: 0 | BU184: 0 | BV184: 0 | BW184: 0 | BX184: 0 | BY184: 0 | BZ184: 0 | CA184: 0 | CB184: 0 | CC184: 0 | CD184: 0 | CE184: 0 | CF184: 0
C185: Diesel | E185: =E$180 *$D79 -> 0 | F185: 0 | G185: 0 | H185: 0 | I185: 0 | J185: 0 | K185: 0 | L185: 2.4966 | M185: 4.9932 | N185: 4.9932 | O185: 4.9932 | P185: 4.9932 | Q185: 4.9932 | R185: 4.9932 | S185: 4.9932 | T185: 4.9932 | U185: 4.9932 | V185: 4.9932 | W185: 4.9932 | X185: 4.9932 | Y185: 4.9932 | Z185: 4.9932 | AA185: 4.9932 | AB185: 4.9932 | AC185: 4.9932 | AD185: 4.9932 | AE185: 4.9932 | AF185: 4.9932 | AG185: 4.9932 | AH185: 4.9932 | AI185: 1.827757282 | AJ185: 0 | AK185: =AK$180 *$D79 -> 0 | AL185: 0 | AM185: 0 | AN185: 0 | AO185: 0 | AP185: 0 | AQ185: 0 | AR185: 0 | AS185: 0 | AT185: 0 | AU185: 0 | AV185: 0 | AW185: 0 | AX185: 0 | AY185: 0 | AZ185: 0 | BA185: 0 | BB185: 0 | BC185: 0 | BD185: 0 | BE185: 0 | BF185: 0 | BG185: 0 | BH185: 0 | BI185: 0 | BJ185: 0 | BK185: 0 | BL185: 0 | BM185: 0 | BN185: 0 | BO185: 0 | BP185: 0 | BQ185: =BQ$180 *$D79 -> 0 | BR185: 0 | BS185: 0 | BT185: 0 | BU185: 0 | BV185: 0 | BW185: 0 | BX185: 0 | BY185: 0 | BZ185: 0 | CA185: 0 | CB185: 0 | CC185: 0 | CD185: 0 | CE185: 0 | CF185: 0
C186: Jet fuel | E186: =E$180 *$D80 -> 0 | F186: 0 | G186: 0 | H186: 0 | I186: 0 | J186: 0 | K186: 0 | L186: 0.4161 | M186: 0.8322 | N186: 0.8322 | O186: 0.8322 | P186: 0.8322 | Q186: 0.8322 | R186: 0.8322 | S186: 0.8322 | T186: 0.8322 | U186: 0.8322 | V186: 0.8322 | W186: 0.8322 | X186: 0.8322 | Y186: 0.8322 | Z186: 0.8322 | AA186: 0.8322 | AB186: 0.8322 | AC186: 0.8322 | AD186: 0.8322 | AE186: 0.8322 | AF186: 0.8322 | AG186: 0.8322 | AH186: 0.8322 | AI186: 0.3046262136 | AJ186: 0 | AK186: =AK$180 *$D80 -> 0 | AL186: 0 | AM186: 0 | AN186: 0 | AO186: 0 | AP186: 0 | AQ186: 0 | AR186: 0 | AS186: 0 | AT186: 0 | AU186: 0 | AV186: 0 | AW186: 0 | AX186: 0 | AY186: 0 | AZ186: 0 | BA186: 0 | BB186: 0 | BC186: 0 | BD186: 0 | BE186: 0 | BF186: 0 | BG186: 0 | BH186: 0 | BI186: 0 | BJ186: 0 | BK186: 0 | BL186: 0 | BM186: 0 | BN186: 0 | BO186: 0 | BP186: 0 | BQ186: =BQ$180 *$D80 -> 0 | BR186: 0 | BS186: 0 | BT186: 0 | BU186: 0 | BV186: 0 | BW186: 0 | BX186: 0 | BY186: 0 | BZ186: 0 | CA186: 0 | CB186: 0 | CC186: 0 | CD186: 0 | CE186: 0 | CF186: 0
C187: Kerosene | E187: =E$180 *$D81 -> 0 | F187: 0 | G187: 0 | H187: 0 | I187: 0 | J187: 0 | K187: 0 | L187: 0 | M187: 0 | N187: 0 | O187: 0 | P187: 0 | Q187: 0 | R187: 0 | S187: 0 | T187: 0 | U187: 0 | V187: 0 | W187: 0 | X187: 0 | Y187: 0 | Z187: 0 | AA187: 0 | AB187: 0 | AC187: 0 | AD187: 0 | AE187: 0 | AF187: 0 | AG187: 0 | AH187: 0 | AI187: 0 | AJ187: 0 | AK187: =AK$180 *$D81 -> 0 | AL187: 0 | AM187: 0 | AN187: 0 | AO187: 0 | AP187: 0 | AQ187: 0 | AR187: 0 | AS187: 0 | AT187: 0 | AU187: 0 | AV187: 0 | AW187: 0 | AX187: 0 | AY187: 0 | AZ187: 0 | BA187: 0 | BB187: 0 | BC187: 0 | BD187: 0 | BE187: 0 | BF187: 0 | BG187: 0 | BH187: 0 | BI187: 0 | BJ187: 0 | BK187: 0 | BL187: 0 | BM187: 0 | BN187: 0 | BO187: 0 | BP187: 0 | BQ187: =BQ$180 *$D81 -> 0 | BR187: 0 | BS187: 0 | BT187: 0 | BU187: 0 | BV187: 0 | BW187: 0 | BX187: 0 | BY187: 0 | BZ187: 0 | CA187: 0 | CB187: 0 | CC187: 0 | CD187: 0 | CE187: 0 | CF187: 0
C188: LPG | E188: =E$180 *$D82 -> 0 | F188: 0 | G188: 0 | H188: 0 | I188: 0 | J188: 0 | K188: 0 | L188: 1.352325 | M188: 2.70465 | N188: 2.70465 | O188: 2.70465 | P188: 2.70465 | Q188: 2.70465 | R188: 2.70465 | S188: 2.70465 | T188: 2.70465 | U188: 2.70465 | V188: 2.70465 | W188: 2.70465 | X188: 2.70465 | Y188: 2.70465 | Z188: 2.70465 | AA188: 2.70465 | AB188: 2.70465 | AC188: 2.70465 | AD188: 2.70465 | AE188: 2.70465 | AF188: 2.70465 | AG188: 2.70465 | AH188: 2.70465 | AI188: 0.9900351942 | AJ188: 0 | AK188: =AK$180 *$D82 -> 0 | AL188: 0 | AM188: 0 | AN188: 0 | AO188: 0 | AP188: 0 | AQ188: 0 | AR188: 0 | AS188: 0 | AT188: 0 | AU188: 0 | AV188: 0 | AW188: 0 | AX188: 0 | AY188: 0 | AZ188: 0 | BA188: 0 | BB188: 0 | BC188: 0 | BD188: 0 | BE188: 0 | BF188: 0 | BG188: 0 | BH188: 0 | BI188: 0 | BJ188: 0 | BK188: 0 | BL188: 0 | BM188: 0 | BN188: 0 | BO188: 0 | BP188: 0 | BQ188: =BQ$180 *$D82 -> 0 | BR188: 0 | BS188: 0 | BT188: 0 | BU188: 0 | BV188: 0 | BW188: 0 | BX188: 0 | BY188: 0 | BZ188: 0 | CA188: 0 | CB188: 0 | CC188: 0 | CD188: 0 | CE188: 0 | CF188: 0
C189: Heavy fuel oil | E189: =E$180 *$D83 -> 0 | F189: 0 | G189: 0 | H189: 0 | I189: 0 | J189: 0 | K189: 0 | L189: 0.4161 | M189: 0.8322 | N189: 0.8322 | O189: 0.8322 | P189: 0.8322 | Q189: 0.8322 | R189: 0.8322 | S189: 0.8322 | T189: 0.8322 | U189: 0.8322 | V189: 0.8322 | W189: 0.8322 | X189: 0.8322 | Y189: 0.8322 | Z189: 0.8322 | AA189: 0.8322 | AB189: 0.8322 | AC189: 0.8322 | AD189: 0.8322 | AE189: 0.8322 | AF189: 0.8322 | AG189: 0.8322 | AH189: 0.8322 | AI189: 0.3046262136 | AJ189: 0 | AK189: =AK$180 *$D83 -> 0 | AL189: 0 | AM189: 0 | AN189: 0 | AO189: 0 | AP189: 0 | AQ189: 0 | AR189: 0 | AS189: 0 | AT189: 0 | AU189: 0 | AV189: 0 | AW189: 0 | AX189: 0 | AY189: 0 | AZ189: 0 | BA189: 0 | BB189: 0 | BC189: 0 | BD189: 0 | BE189: 0 | BF189: 0 | BG189: 0 | BH189: 0 | BI189: 0 | BJ189: 0 | BK189: 0 | BL189: 0 | BM189: 0 | BN189: 0 | BO189: 0 | BP189: 0 | BQ189: =BQ$180 *$D83 -> 0 | BR189: 0 | BS189: 0 | BT189: 0 | BU189: 0 | BV189: 0 | BW189: 0 | BX189: 0 | BY189: 0 | BZ189: 0 | CA189: 0 | CB189: 0 | CC189: 0 | CD189: 0 | CE189: 0 | CF189: 0
C190: Total | E190: =SUM(E184:E189) -> 0 | F190: 0 | G190: 0 | H190: 0 | I190: 0 | J190: 0 | K190: 0 | L190: 10.4025 | M190: 20.805 | N190: 20.805 | O190: 20.805 | P190: 20.805 | Q190: 20.805 | R190: 20.805 | S190: 20.805 | T190: 20.805 | U190: 20.805 | V190: 20.805 | W190: 20.805 | X190: 20.805 | Y190: 20.805 | Z190: 20.805 | AA190: 20.805 | AB190: 20.805 | AC190: 20.805 | AD190: 20.805 | AE190: 20.805 | AF190: 20.805 | AG190: 20.805 | AH190: 20.805 | AI190: 7.61565534 | AJ190: 0 | AK190: =SUM(AK184:AK189) -> 0 | AL190: 0 | AM190: 0 | AN190: 0 | AO190: 0 | AP190: 0 | AQ190: 0 | AR190: 0 | AS190: 0 | AT190: 0 | AU190: 0 | AV190: 0 | AW190: 0 | AX190: 0 | AY190: 0 | AZ190: 0 | BA190: 0 | BB190: 0 | BC190: 0 | BD190: 0 | BE190: 0 | BF190: 0 | BG190: 0 | BH190: 0 | BI190: 0 | BJ190: 0 | BK190: 0 | BL190: 0 | BM190: 0 | BN190: 0 | BO190: 0 | BP190: 0 | BQ190: =SUM(BQ184:BQ189) -> 0 | BR190: 0 | BS190: 0 | BT190: 0 | BU190: 0 | BV190: 0 | BW190: 0 | BX190: 0 | BY190: 0 | BZ190: 0 | CA190: 0 | CB190: 0 | CC190: 0 | CD190: 0 | CE190: 0 | CF190: 0
C192: Production year | E192: =(E178 > 0) * 1 -> 0 | F192: 0 | G192: 0 | H192: 0 | I192: 0 | J192: 0 | K192: 0 | L192: 1 | M192: 1 | N192: 1 | O192: 1 | P192: 1 | Q192: 1 | R192: 1 | S192: 1 | T192: 1 | U192: 1 | V192: 1 | W192: 1 | X192: 1 | Y192: 1 | Z192: 1 | AA192: 1 | AB192: 1 | AC192: 1 | AD192: 1 | AE192: 1 | AF192: 1 | AG192: 1 | AH192: 1 | AI192: 1 | AJ192: 0 | AK192: =(AK178 > 0) * 1 -> 0 | AL192: 0 | AM192: 0 | AN192: 0 | AO192: 0 | AP192: 0 | AQ192: 0 | AR192: 0 | AS192: 0 | AT192: 0 | AU192: 0 | AV192: 0 | AW192: 0 | AX192: 0 | AY192: 0 | AZ192: 0 | BA192: 0 | BB192: 0 | BC192: 0 | BD192: 0 | BE192: 0 | BF192: 0 | BG192: 0 | BH192: 0 | BI192: 0 | BJ192: 0 | BK192: 0 | BL192: 0 | BM192: 0 | BN192: 0 | BO192: 0 | BP192: 0 | BQ192: =(BQ178 > 0) * 1 -> 0 | BR192: 0 | BS192: 0 | BT192: 0 | BU192: 0 | BV192: 0 | BW192: 0 | BX192: 0 | BY192: 0 | BZ192: 0 | CA192: 0 | CB192: 0 | CC192: 0 | CD192: 0 | CE192: 0 | CF192: 0
C193: Cumulative production years | E193: =D193 + E192 -> 0 | F193: =E193 + F192 -> 0 | G193: 0 | H193: 0 | I193: 0 | J193: 0 | K193: 0 | L193: 1 | M193: 2 | N193: 3 | O193: 4 | P193: 5 | Q193: 6 | R193: 7 | S193: 8 | T193: 9 | U193: 10 | V193: 11 | W193: 12 | X193: 13 | Y193: 14 | Z193: 15 | AA193: 16 | AB193: 17 | AC193: 18 | AD193: 19 | AE193: 20 | AF193: 21 | AG193: 22 | AH193: 23 | AI193: 24 | AJ193: 24 | AK193: 24 | AL193: 24 | AM193: 24 | AN193: 24 | AO193: 24 | AP193: 24 | AQ193: 24 | AR193: 24 | AS193: 24 | AT193: 24 | AU193: 24 | AV193: 24 | AW193: 24 | AX193: 24 | AY193: 24 | AZ193: 24 | BA193: 24 | BB193: 24 | BC193: 24 | BD193: 24 | BE193: 24 | BF193: 24 | BG193: 24 | BH193: 24 | BI193: 24 | BJ193: 24 | BK193: 24 | BL193: 24 | BM193: 24 | BN193: 24 | BO193: 24 | BP193: 24 | BQ193: 24 | BR193: =BQ193 + BR192 -> 24 | BS193: 24 | BT193: 24 | BU193: 24 | BV193: 24 | BW193: 24 | BX193: 24 | BY193: 24 | BZ193: 24 | CA193: 24 | CB193: 24 | CC193: 24 | CD193: 24 | CE193: 24 | CF193: 24
C194: First production year | D194: =SUMPRODUCT(E9:AS9, E194:AS194) -> 2028 | E194: =AND(D192 = 0, E192 = 1) * 1 -> 0 | F194: =AND(E192 = 0, F192 = 1) * 1 -> 0 | G194: 0 | H194: 0 | I194: 0 | J194: 0 | K194: 0 | L194: 1 | M194: 0 | N194: 0 | O194: 0 | P194: 0 | Q194: 0 | R194: 0 | S194: 0 | T194: 0 | U194: 0 | V194: 0 | W194: 0 | X194: 0 | Y194: 0 | Z194: 0 | AA194: 0 | AB194: 0 | AC194: 0 | AD194: 0 | AE194: 0 | AF194: 0 | AG194: 0 | AH194: 0 | AI194: 0 | AJ194: 0 | AK194: 0 | AL194: 0 | AM194: 0 | AN194: 0 | AO194: 0 | AP194: 0 | AQ194: 0 | AR194: 0 | AS194: 0 | AT194: 0 | AU194: 0 | AV194: 0 | AW194: 0 | AX194: 0 | AY194: 0 | AZ194: 0 | BA194: 0 | BB194: 0 | BC194: 0 | BD194: 0 | BE194: 0 | BF194: 0 | BG194: 0 | BH194: 0 | BI194: 0 | BJ194: 0 | BK194: 0 | BL194: 0 | BM194: 0 | BN194: 0 | BO194: 0 | BP194: 0 | BQ194: 0 | BR194: =AND(BQ192 = 0, BR192 = 1) * 1 -> 0 | BS194: 0 | BT194: 0 | BU194: 0 | BV194: 0 | BW194: 0 | BX194: 0 | BY194: 0 | BZ194: 0 | CA194: 0 | CB194: 0 | CC194: 0 | CD194: 0 | CE194: 0 | CF194: 0
C195: Final production year | D195: =SUMPRODUCT(E9:AS9, E195:AS195) -> 2051 | E195: =AND(E192 = 1, F192 = 0) * 1 -> 0 | F195: =AND(F192 = 1, G192 = 0) * 1 -> 0 | G195: 0 | H195: 0 | I195: 0 | J195: 0 | K195: 0 | L195: 0 | M195: 0 | N195: 0 | O195: 0 | P195: 0 | Q195: 0 | R195: 0 | S195: 0 | T195: 0 | U195: 0 | V195: 0 | W195: 0 | X195: 0 | Y195: 0 | Z195: 0 | AA195: 0 | AB195: 0 | AC195: 0 | AD195: 0 | AE195: 0 | AF195: 0 | AG195: 0 | AH195: 0 | AI195: 1 | AJ195: 0 | AK195: 0 | AL195: 0 | AM195: 0 | AN195: 0 | AO195: 0 | AP195: 0 | AQ195: 0 | AR195: 0 | AS195: 0 | AT195: 0 | AU195: 0 | AV195: 0 | AW195: 0 | AX195: 0 | AY195: 0 | AZ195: 0 | BA195: 0 | BB195: 0 | BC195: 0 | BD195: 0 | BE195: 0 | BF195: 0 | BG195: 0 | BH195: 0 | BI195: 0 | BJ195: 0 | BK195: 0 | BL195: 0 | BM195: 0 | BN195: 0 | BO195: 0 | BP195: 0 | BQ195: 0 | BR195: =AND(BR192 = 1, BS192 = 0) * 1 -> 0 | BS195: 0 | BT195: 0 | BU195: 0 | BV195: 0 | BW195: 0 | BX195: 0 | BY195: 0 | BZ195: 0 | CA195: 0 | CB195: 0 | CC195: 0 | CD195: 0 | CE195: 0 | CF195: =AND(CF192 = 1, CG192 = 0) * 1 -> 0
C197: Costs
C199: Crude feedstock cost
C201: Global crude price scenario 1 | D201: Rystad base case | E201: 70.94999695 | F201: 99.04000092 | G201: 90 | H201: 80.97560976 | I201: 70.43426532 | J201: 61.28756112 | K201: 51.2496277 | L201: 46.12835406 | M201: 41.00221532 | N201: 35.87154911 | O201: 35.87483186 | P201: 35.87263 | Q201: 40.99729176 | R201: 46.12500257 | S201: 51.25330738 | T201: 56.37241673 | U201: 60.00111079 | V201: 60.00145794 | W201: 59.99977262 | X201: 60.00191072 | Y201: 60.00030697 | Z201: 60.00061741 | AA201: 60.00183892 | AB201: 60.00302915 | AC201: 60.00332208 | AD201: 60.00190201 | AE201: 60.00356151 | AF201: 60.00180802 | AG201: 60.00128117 | AH201: 60.00102765 | AI201: 60.00102765 | AJ201: 60.00102765 | AK201: 60.00102765 | AL201: 60.00102765 | AM201: 60.00102765 | AN201: 60.00102765 | AO201: 60.00102765 | AP201: 60.00102765 | AQ201: 60.00102765 | AR201: 60.00102765 | AS201: 60.00102765 | AT201: 60.00102765 | AU201: 60.00102765 | AV201: 60.00102765 | AW201: 60.00102765 | AX201: 60.00102765 | AY201: 60.00102765 | AZ201: 60.00102765 | BA201: 60.00102765 | BB201: 60.00102765 | BC201: 60.00102765 | BD201: 60.00102765 | BE201: 60.00102765 | BF201: 60.00102765 | BG201: 60.00102765 | BH201: 60.00102765 | BI201: 60.00102765 | BJ201: 60.00102765 | BK201: 60.00102765 | BL201: 60.00102765 | BM201: 60.00102765 | BN201: 60.00102765 | BO201: 60.00102765 | BP201: 60.00102765 | BQ201: 60.00102765 | BR201: 60.00102765 | BS201: 60.00102765 | BT201: 60.00102765 | BU201: 60.00102765 | BV201: 60.00102765 | BW201: 60.00102765 | BX201: 60.00102765 | BY201: 60.00102765 | BZ201: 60.00102765 | CA201: 60.00102765 | CB201: 60.00102765 | CC201: 60.00102765 | CD201: 60.00102765 | CE201: 60.00102765 | CF201: 60.00102765
C202: Global crude price scenario 2 | D202: IEA NZE | E202: 70.94999695 | F202: 99.04000092 | G202: 71.75 | H202: 30.75121996 | I202: 25.62284362 | J202: 20.50347492 | K202: 15.37398182 | L202: 15.37906427 | M202: 15.37475305 | N202: 15.37832907 | O202: 15.3725829 | P202: 15.37398516 | Q202: 15.37398478 | R202: 15.37246031 | S202: 15.37673593 | T202: 15.37165815 | U202: 15.37183421 | V202: 15.37666827 | W202: 15.37212078 | X202: 15.37179198 | Y202: 15.37515821 | Z202: 15.37547122 | AA202: 15.37272538 | AB202: 15.37287372 | AC202: 15.37548739 | AD202: 15.37449559 | AE202: 15.3754633 | AF202: 15.3726318 | AG202: 15.3765782 | AH202: 15.37632225 | AI202: 15.37632225 | AJ202: 15.37632225 | AK202: 15.37632225 | AL202: 15.37632225 | AM202: 15.37632225 | AN202: 15.37632225 | AO202: 15.37632225 | AP202: 15.37632225 | AQ202: 15.37632225 | AR202: 15.37632225 | AS202: 15.37632225 | AT202: 15.37632225 | AU202: 15.37632225 | AV202: 15.37632225 | AW202: 15.37632225 | AX202: 15.37632225 | AY202: 15.37632225 | AZ202: 15.37632225 | BA202: 15.37632225 | BB202: 15.37632225 | BC202: 15.37632225 | BD202: 15.37632225 | BE202: 15.37632225 | BF202: 15.37632225 | BG202: 15.37632225 | BH202: 15.37632225 | BI202: 15.37632225 | BJ202: 15.37632225 | BK202: 15.37632225 | BL202: 15.37632225 | BM202: 15.37632225 | BN202: 15.37632225 | BO202: 15.37632225 | BP202: 15.37632225 | BQ202: 15.37632225 | BR202: 15.37632225 | BS202: 15.37632225 | BT202: 15.37632225 | BU202: 15.37632225 | BV202: 15.37632225 | BW202: 15.37632225 | BX202: 15.37632225 | BY202: 15.37632225 | BZ202: 15.37632225 | CA202: 15.37632225 | CB202: 15.37632225 | CC202: 15.37632225 | CD202: 15.37632225 | CE202: 15.37632225 | CF202: 15.37632225
C203: Global crude price scenario 3 | D203: OPEC | E203: 70.94999695 | F203: 99.04000092 | G203: 92.25 | H203: 79.95121653 | I203: 76.87804559 | J203: 66.62700773 | K203: 57.07489062 | L203: 57.45052869 | M203: 56.04929629 | N203: 54.68224028 | O203: 53.3485271 | P203: 51.24661515 | Q203: 56.37127953 | R203: 61.49746433 | S203: 66.62260617 | T203: 71.75133201 | U203: 81.99727333 | V203: 92.25310347 | W203: 97.37248619 | X203: 102.5027139 | Y203: 107.6261099 | Z203: 112.7513709 | AA203: 128.1263826 | AB203: 133.2474526 | AC203: 138.3735822 | AD203: 143.4990753 | AE203: 143.4987914 | AF203: 143.499477 | AG203: 148.6244685 | AH203: 153.7478172 | AI203: 153.7478172 | AJ203: 153.7478172 | AK203: 153.7478172 | AL203: 153.7478172 | AM203: 153.7478172 | AN203: 153.7478172 | AO203: 153.7478172 | AP203: 153.7478172 | AQ203: 153.7478172 | AR203: 153.7478172 | AS203: 153.7478172 | AT203: 153.7478172 | AU203: 153.7478172 | AV203: 153.7478172 | AW203: 153.7478172 | AX203: 153.7478172 | AY203: 153.7478172 | AZ203: 153.7478172 | BA203: 153.7478172 | BB203: 153.7478172 | BC203: 153.7478172 | BD203: 153.7478172 | BE203: 153.7478172 | BF203: 153.7478172 | BG203: 153.7478172 | BH203: 153.7478172 | BI203: 153.7478172 | BJ203: 153.7478172 | BK203: 153.7478172 | BL203: 153.7478172 | BM203: 153.7478172 | BN203: 153.7478172 | BO203: 153.7478172 | BP203: 153.7478172 | BQ203: 153.7478172 | BR203: 153.7478172 | BS203: 153.7478172 | BT203: 153.7478172 | BU203: 153.7478172 | BV203: 153.7478172 | BW203: 153.7478172 | BX203: 153.7478172 | BY203: 153.7478172 | BZ203: 153.7478172 | CA203: 153.7478172 | CB203: 153.7478172 | CC203: 153.7478172 | CD203: 153.7478172 | CE203: 153.7478172 | CF203: 153.7478172
C205: Global crude price selected scenario | D205: =MATCH(Dashboard!D8, Inputs!D201:D203, 0) -> 1
C207: Global crude price | D207: ="$ "&Inputs!D6&" per barrel" -> $ 2023 per barrel | E207: =CHOOSE($D$205, E201, E202, E203) -> 70.94999695 | F207: 99.04000092 | G207: 90 | H207: 80.97560976 | I207: 70.43426532 | J207: 61.28756112 | K207: 51.2496277 | L207: 46.12835406 | M207: 41.00221532 | N207: 35.87154911 | O207: 35.87483186 | P207: 35.87263 | Q207: 40.99729176 | R207: 46.12500257 | S207: 51.25330738 | T207: 56.37241673 | U207: 60.00111079 | V207: 60.00145794 | W207: 59.99977262 | X207: 60.00191072 | Y207: 60.00030697 | Z207: 60.00061741 | AA207: 60.00183892 | AB207: 60.00302915 | AC207: 60.00332208 | AD207: 60.00190201 | AE207: 60.00356151 | AF207: 60.00180802 | AG207: 60.00128117 | AH207: 60.00102765 | AI207: 60.00102765 | AJ207: 60.00102765 | AK207: =CHOOSE($D$205, AK201, AK202, AK203) -> 60.00102765 | AL207: 60.00102765 | AM207: 60.00102765 | AN207: 60.00102765 | AO207: 60.00102765 | AP207: 60.00102765 | AQ207: 60.00102765 | AR207: 60.00102765 | AS207: 60.00102765 | AT207: 60.00102765 | AU207: 60.00102765 | AV207: 60.00102765 | AW207: 60.00102765 | AX207: 60.00102765 | AY207: 60.00102765 | AZ207: 60.00102765 | BA207: 60.00102765 | BB207: 60.00102765 | BC207: 60.00102765 | BD207: 60.00102765 | BE207: 60.00102765 | BF207: 60.00102765 | BG207: 60.00102765 | BH207: 60.00102765 | BI207: 60.00102765 | BJ207: 60.00102765 | BK207: 60.00102765 | BL207: 60.00102765 | BM207: 60.00102765 | BN207: 60.00102765 | BO207: 60.00102765 | BP207: 60.00102765 | BQ207: =CHOOSE($D$205, BQ201, BQ202, BQ203) -> 60.00102765 | BR207: 60.00102765 | BS207: 60.00102765 | BT207: 60.00102765 | BU207: 60.00102765 | BV207: 60.00102765 | BW207: 60.00102765 | BX207: 60.00102765 | BY207: 60.00102765 | BZ207: 60.00102765 | CA207: 60.00102765 | CB207: 60.00102765 | CC207: 60.00102765 | CD207: 60.00102765 | CE207: 60.00102765 | CF207: 60.00102765
C209: Quality discount | D209: ="$ "&Inputs!D6&" per barrel" -> $ 2023 per barrel | E209: 1
C210: Export costs | D210: ="$ "&Inputs!D6&" per barrel" -> $ 2023 per barrel | E210: 17
C211: Adjustment for foregone export opportunity cost | D211: ="$ "&Inputs!D6&" per barrel" -> $ 2023 per barrel
C213: Netback price | D213: ="$ "&Inputs!D6&" per barrel" -> $ 2023 per barrel | E213: =E207-$E$209-$E$210+$E$211 -> 52.94999695 | F213: 81.04000092 | G213: 72 | H213: 62.97560976 | I213: 52.43426532 | J213: 43.28756112 | K213: 33.2496277 | L213: 28.12835406 | M213: 23.00221532 | N213: 17.87154911 | O213: 17.87483186 | P213: 17.87263 | Q213: 22.99729176 | R213: 28.12500257 | S213: 33.25330738 | T213: 38.37241673 | U213: 42.00111079 | V213: 42.00145794 | W213: 41.99977262 | X213: 42.00191072 | Y213: 42.00030697 | Z213: 42.00061741 | AA213: 42.00183892 | AB213: 42.00302915 | AC213: 42.00332208 | AD213: 42.00190201 | AE213: 42.00356151 | AF213: 42.00180802 | AG213: 42.00128117 | AH213: 42.00102765 | AI213: 42.00102765 | AJ213: 42.00102765 | AK213: =AK207-$E$209-$E$210+$E$211 -> 42.00102765 | AL213: 42.00102765 | AM213: 42.00102765 | AN213: 42.00102765 | AO213: 42.00102765 | AP213: 42.00102765 | AQ213: 42.00102765 | AR213: 42.00102765 | AS213: 42.00102765 | AT213: 42.00102765 | AU213: 42.00102765 | AV213: 42.00102765 | AW213: 42.00102765 | AX213: 42.00102765 | AY213: 42.00102765 | AZ213: 42.00102765 | BA213: 42.00102765 | BB213: 42.00102765 | BC213: 42.00102765 | BD213: 42.00102765 | BE213: 42.00102765 | BF213: 42.00102765 | BG213: 42.00102765 | BH213: 42.00102765 | BI213: 42.00102765 | BJ213: 42.00102765 | BK213: 42.00102765 | BL213: 42.00102765 | BM213: 42.00102765 | BN213: 42.00102765 | BO213: 42.00102765 | BP213: 42.00102765 | BQ213: =BQ207-$E$209-$E$210+$E$211 -> 42.00102765 | BR213: 42.00102765 | BS213: 42.00102765 | BT213: 42.00102765 | BU213: 42.00102765 | BV213: 42.00102765 | BW213: 42.00102765 | BX213: 42.00102765 | BY213: 42.00102765 | BZ213: 42.00102765 | CA213: 42.00102765 | CB213: 42.00102765 | CC213: 42.00102765 | CD213: 42.00102765 | CE213: 42.00102765 | CF213: 42.00102765
C215: Crude oil feedstock cost | D215: ="$ million "&Inputs!D6 -> $ million 2023 | E215: =E213*E178 -> 0 | F215: 0 | G215: 0 | H215: 0 | I215: 0 | J215: 0 | K215: 0 | L215: 301.3833592 | M215: 492.9179224 | N215: 382.9721066 | O215: 383.0424531 | P215: 382.9952691 | Q215: 492.8124148 | R215: 602.6948987 | S215: 712.5901119 | T215: 822.2882739 | U215: 900.0481033 | V215: 900.0555425 | W215: 900.0194275 | X215: 900.065245 | Y215: 900.0308781 | Z215: 900.0375307 | AA215: 900.0637064 | AB215: 900.0892121 | AC215: 900.0954893 | AD215: 900.0650584 | AE215: 900.1006202 | AF215: 900.0630443 | AG215: 900.0517544 | AH215: 900.0463216 | AI215: 329.461311 | AJ215: 0 | AK215: =AK213*AK178 -> 0 | AL215: 0 | AM215: 0 | AN215: 0 | AO215: 0 | AP215: 0 | AQ215: 0 | AR215: 0 | AS215: 0 | AT215: 0 | AU215: 0 | AV215: 0 | AW215: 0 | AX215: 0 | AY215: 0 | AZ215: 0 | BA215: 0 | BB215: 0 | BC215: 0 | BD215: 0 | BE215: 0 | BF215: 0 | BG215: 0 | BH215: 0 | BI215: 0 | BJ215: 0 | BK215: 0 | BL215: 0 | BM215: 0 | BN215: 0 | BO215: 0 | BP215: 0 | BQ215: =BQ213*BQ178 -> 0 | BR215: 0 | BS215: 0 | BT215: 0 | BU215: 0 | BV215: 0 | BW215: 0 | BX215: 0 | BY215: 0 | BZ215: 0 | CA215: 0 | CB215: 0 | CC215: 0 | CD215: 0 | CE215: 0 | CF215: 0
C217: Other operating costs
C219: Other operating costs | D219: ="$ "&Inputs!D6&" per barrel" -> $ 2023 per barrel | E219: 3
C220: Other operating costs | D220: ="$ million "&Inputs!D6 -> $ million 2023 | E220: =$E$219 * E178 -> 0 | F220: 0 | G220: 0 | H220: 0 | I220: 0 | J220: 0 | K220: 0 | L220: 32.143725 | M220: 64.28745 | N220: 64.28745 | O220: 64.28745 | P220: 64.28745 | Q220: 64.28745 | R220: 64.28745 | S220: 64.28745 | T220: 64.28745 | U220: 64.28745 | V220: 64.28745 | W220: 64.28745 | X220: 64.28745 | Y220: 64.28745 | Z220: 64.28745 | AA220: 64.28745 | AB220: 64.28745 | AC220: 64.28745 | AD220: 64.28745 | AE220: 64.28745 | AF220: 64.28745 | AG220: 64.28745 | AH220: 64.28745 | AI220: 23.532375 | AJ220: 0 | AK220: =$E$219 * AK178 -> 0 | AL220: 0 | AM220: 0 | AN220: 0 | AO220: 0 | AP220: 0 | AQ220: 0 | AR220: 0 | AS220: 0 | AT220: 0 | AU220: 0 | AV220: 0 | AW220: 0 | AX220: 0 | AY220: 0 | AZ220: 0 | BA220: 0 | BB220: 0 | BC220: 0 | BD220: 0 | BE220: 0 | BF220: 0 | BG220: 0 | BH220: 0 | BI220: 0 | BJ220: 0 | BK220: 0 | BL220: 0 | BM220: 0 | BN220: 0 | BO220: 0 | BP220: 0 | BQ220: =$E$219 * BQ178 -> 0 | BR220: 0 | BS220: 0 | BT220: 0 | BU220: 0 | BV220: 0 | BW220: 0 | BX220: 0 | BY220: 0 | BZ220: 0 | CA220: 0 | CB220: 0 | CC220: 0 | CD220: 0 | CE220: 0 | CF220: 0
C222: Development cost
C224: Refinery initial capital expenditure | D224: ="$ million "&Inputs!D6 -> $ million 2023 | I224: 499.2080108 | J224: 1068.388693 | K224: 1405.719629 | L224: 724.7915471
C225: Refinery expansion 1 capital expenditure | D225: ="$ million "&Inputs!D6 -> $ million 2023
C226: Refinery expansion 2 capital expenditure | D226: ="$ million "&Inputs!D6 -> $ million 2023
C227: Product pipeline capital expenditure | D227: ="$ million "&Inputs!D6 -> $ million 2023 | I227: 66.04642067 | J227: 141.350394 | K227: 185.9800883 | L227: 95.89166516
C228: Storage terminal capital expenditure | D228: ="$ million "&Inputs!D6 -> $ million 2023 | I228: 42.20108957 | J228: 90.31739463 | K228: 118.8340305 | L228: 61.271038
C230: Capital expenditure overrun | D230: =Dashboard!D6 -> 0
C232: Actual refinery initial capital expenditure | D232: ="$ million "&Inputs!D6 -> $ million 2023 | E232: =E224 * (1 + $D$230) -> 0 | F232: 0 | G232: 0 | H232: 0 | I232: 499.2080108 | J232: 1068.388693 | K232: 1405.719629 | L232: 724.7915471 | M232: =N224 * (1 + $D$230) -> 0 | N232: 0 | O232: 0 | P232: 0 | Q232: 0 | R232: 0 | S232: 0 | T232: 0 | U232: 0 | V232: 0 | W232: 0 | X232: 0 | Y232: 0 | Z232: 0 | AA232: 0 | AB232: 0 | AC232: 0 | AD232: 0 | AE232: 0 | AF232: 0 | AG232: 0 | AH232: 0 | AI232: 0 | AJ232: 0 | AK232: 0 | AL232: 0 | AM232: 0 | AN232: 0 | AO232: 0 | AP232: 0 | AQ232: 0 | AR232: 0 | AS232: =AT224 * (1 + $D$230) -> 0 | AT232: 0 | AU232: 0 | AV232: 0 | AW232: 0 | AX232: 0 | AY232: 0 | AZ232: 0 | BA232: 0 | BB232: 0 | BC232: 0 | BD232: 0 | BE232: 0 | BF232: 0 | BG232: 0 | BH232: 0 | BI232: 0 | BJ232: 0 | BK232: 0 | BL232: 0 | BM232: 0 | BN232: 0 | BO232: 0 | BP232: 0 | BQ232: 0 | BR232: 0 | BS232: 0 | BT232: 0 | BU232: 0 | BV232: 0 | BW232: 0 | BX232: 0 | BY232: =BZ224 * (1 + $D$230) -> 0 | BZ232: 0 | CA232: 0 | CB232: 0 | CC232: 0 | CD232: 0 | CE232: 0 | CF232: 0
C233: Actual refinery expansion 1 capital expenditure | D233: ="$ million "&Inputs!D6 -> $ million 2023 | E233: 0 | F233: 0 | G233: 0 | H233: 0 | I233: 0 | J233: 0 | K233: 0 | L233: 0 | M233: =N225 * (1 + $D$230) -> 0 | N233: 0 | O233: 0 | P233: 0 | Q233: 0 | R233: 0 | S233: 0 | T233: 0 | U233: 0 | V233: 0 | W233: 0 | X233: 0 | Y233: 0 | Z233: 0 | AA233: 0 | AB233: 0 | AC233: 0 | AD233: 0 | AE233: 0 | AF233: 0 | AG233: 0 | AH233: 0 | AI233: 0 | AJ233: 0 | AK233: 0 | AL233: 0 | AM233: 0 | AN233: 0 | AO233: 0 | AP233: 0 | AQ233: 0 | AR233: 0 | AS233: =AT225 * (1 + $D$230) -> 0 | AT233: 0 | AU233: 0 | AV233: 0 | AW233: 0 | AX233: 0 | AY233: 0 | AZ233: 0 | BA233: 0 | BB233: 0 | BC233: 0 | BD233: 0 | BE233: 0 | BF233: 0 | BG233: 0 | BH233: 0 | BI233: 0 | BJ233: 0 | BK233: 0 | BL233: 0 | BM233: 0 | BN233: 0 | BO233: 0 | BP233: 0 | BQ233: 0 | BR233: 0 | BS233: 0 | BT233: 0 | BU233: 0 | BV233: 0 | BW233: 0 | BX233: 0 | BY233: =BZ225 * (1 + $D$230) -> 0 | BZ233: 0 | CA233: 0 | CB233: 0 | CC233: 0 | CD233: 0 | CE233: 0 | CF233: 0
C234: Actual refinery expansion 2 capital expenditure | D234: ="$ million "&Inputs!D6 -> $ million 2023 | E234: 0 | F234: 0 | G234: 0 | H234: 0 | I234: 0 | J234: 0 | K234: 0 | L234: 0 | M234: =N226 * (1 + $D$230) -> 0 | N234: 0 | O234: 0 | P234: 0 | Q234: 0 | R234: 0 | S234: 0 | T234: 0 | U234: 0 | V234: 0 | W234: 0 | X234: 0 | Y234: 0 | Z234: 0 | AA234: 0 | AB234: 0 | AC234: 0 | AD234: 0 | AE234: 0 | AF234: 0 | AG234: 0 | AH234: 0 | AI234: 0 | AJ234: 0 | AK234: 0 | AL234: 0 | AM234: 0 | AN234: 0 | AO234: 0 | AP234: 0 | AQ234: 0 | AR234: 0 | AS234: =AT226 * (1 + $D$230) -> 0 | AT234: 0 | AU234: 0 | AV234: 0 | AW234: 0 | AX234: 0 | AY234: 0 | AZ234: 0 | BA234: 0 | BB234: 0 | BC234: 0 | BD234: 0 | BE234: 0 | BF234: 0 | BG234: 0 | BH234: 0 | BI234: 0 | BJ234: 0 | BK234: 0 | BL234: 0 | BM234: 0 | BN234: 0 | BO234: 0 | BP234: 0 | BQ234: 0 | BR234: 0 | BS234: 0 | BT234: 0 | BU234: 0 | BV234: 0 | BW234: 0 | BX234: 0 | BY234: =BZ226 * (1 + $D$230) -> 0 | BZ234: 0 | CA234: 0 | CB234: 0 | CC234: 0 | CD234: 0 | CE234: 0 | CF234: 0
C235: Actual product pipeline capital expenditure | D235: ="$ million "&Inputs!D6 -> $ million 2023 | E235: 0 | F235: 0 | G235: 0 | H235: 0 | I235: 66.04642067 | J235: 141.350394 | K235: 185.9800883 | L235: 95.89166516 | M235: =N227 * (1 + $D$230) -> 0 | N235: 0 | O235: 0 | P235: 0 | Q235: 0 | R235: 0 | S235: 0 | T235: 0 | U235: 0 | V235: 0 | W235: 0 | X235: 0 | Y235: 0 | Z235: 0 | AA235: 0 | AB235: 0 | AC235: 0 | AD235: 0 | AE235: 0 | AF235: 0 | AG235: 0 | AH235: 0 | AI235: 0 | AJ235: 0 | AK235: 0 | AL235: 0 | AM235: 0 | AN235: 0 | AO235: 0 | AP235: 0 | AQ235: 0 | AR235: 0 | AS235: =AT227 * (1 + $D$230) -> 0 | AT235: 0 | AU235: 0 | AV235: 0 | AW235: 0 | AX235: 0 | AY235: 0 | AZ235: 0 | BA235: 0 | BB235: 0 | BC235: 0 | BD235: 0 | BE235: 0 | BF235: 0 | BG235: 0 | BH235: 0 | BI235: 0 | BJ235: 0 | BK235: 0 | BL235: 0 | BM235: 0 | BN235: 0 | BO235: 0 | BP235: 0 | BQ235: 0 | BR235: 0 | BS235: 0 | BT235: 0 | BU235: 0 | BV235: 0 | BW235: 0 | BX235: 0 | BY235: =BZ227 * (1 + $D$230) -> 0 | BZ235: 0 | CA235: 0 | CB235: 0 | CC235: 0 | CD235: 0 | CE235: 0 | CF235: 0
C236: Actual storage terminal capital expenditure | D236: ="$ million "&Inputs!D6 -> $ million 2023 | E236: 0 | F236: 0 | G236: 0 | H236: 0 | I236: 42.20108957 | J236: 90.31739463 | K236: 118.8340305 | L236: 61.271038 | M236: =N228 * (1 + $D$230) -> 0 | N236: 0 | O236: 0 | P236: 0 | Q236: 0 | R236: 0 | S236: 0 | T236: 0 | U236: 0 | V236: 0 | W236: 0 | X236: 0 | Y236: 0 | Z236: 0 | AA236: 0 | AB236: 0 | AC236: 0 | AD236: 0 | AE236: 0 | AF236: 0 | AG236: 0 | AH236: 0 | AI236: 0 | AJ236: 0 | AK236: 0 | AL236: 0 | AM236: 0 | AN236: 0 | AO236: 0 | AP236: 0 | AQ236: 0 | AR236: 0 | AS236: =AT228 * (1 + $D$230) -> 0 | AT236: 0 | AU236: 0 | AV236: 0 | AW236: 0 | AX236: 0 | AY236: 0 | AZ236: 0 | BA236: 0 | BB236: 0 | BC236: 0 | BD236: 0 | BE236: 0 | BF236: 0 | BG236: 0 | BH236: 0 | BI236: 0 | BJ236: 0 | BK236: 0 | BL236: 0 | BM236: 0 | BN236: 0 | BO236: 0 | BP236: 0 | BQ236: 0 | BR236: 0 | BS236: 0 | BT236: 0 | BU236: 0 | BV236: 0 | BW236: 0 | BX236: 0 | BY236: =BZ228 * (1 + $D$230) -> 0 | BZ236: 0 | CA236: 0 | CB236: 0 | CC236: 0 | CD236: 0 | CE236: 0 | CF236: 0
C237: Total capital expenditure | D237: ="$ million "&Inputs!D6 -> $ million 2023 | E237: =SUM(E232:E236) -> 0 | F237: =SUM(F232:F236) -> 0 | G237: 0 | H237: 0 | I237: 607.455521 | J237: 1300.056481 | K237: 1710.533748 | L237: 881.9542502 | M237: 0 | N237: 0 | O237: 0 | P237: 0 | Q237: 0 | R237: 0 | S237: 0 | T237: 0 | U237: 0 | V237: 0 | W237: 0 | X237: 0 | Y237: 0 | Z237: 0 | AA237: 0 | AB237: 0 | AC237: 0 | AD237: 0 | AE237: 0 | AF237: 0 | AG237: 0 | AH237: 0 | AI237: 0 | AJ237: 0 | AK237: 0 | AL237: 0 | AM237: 0 | AN237: 0 | AO237: 0 | AP237: 0 | AQ237: 0 | AR237: 0 | AS237: 0 | AT237: 0 | AU237: 0 | AV237: 0 | AW237: 0 | AX237: 0 | AY237: 0 | AZ237: 0 | BA237: 0 | BB237: 0 | BC237: 0 | BD237: 0 | BE237: 0 | BF237: 0 | BG237: 0 | BH237: 0 | BI237: 0 | BJ237: 0 | BK237: 0 | BL237: 0 | BM237: 0 | BN237: 0 | BO237: 0 | BP237: 0 | BQ237: 0 | BR237: =SUM(BR232:BR236) -> 0 | BS237: 0 | BT237: 0 | BU237: 0 | BV237: 0 | BW237: 0 | BX237: 0 | BY237: 0 | BZ237: 0 | CA237: 0 | CB237: 0 | CC237: 0 | CD237: 0 | CE237: 0 | CF237: 0
C239: First year of initial capital expenditure | D239: =SUMPRODUCT(E9:AS9, E239:AS239) -> 2025 | E239: =AND(OR(E224 > 0, E227 > 0, E228 > 0), SUM($D$224:D224) + SUM($D$227:D227) + SUM($D$228:D228) = 0) * 1 -> 0 | F239: =AND(OR(F224 > 0, F227 > 0, F228 > 0), SUM($D$224:E224) + SUM($D$227:E227) + SUM($D$228:E228) = 0) * 1 -> 0 | G239: =AND(OR(G224 > 0, G227 > 0, G228 > 0), SUM($D$224:F224) + SUM($D$227:F227) + SUM($D$228:F228) = 0) * 1 -> 0 | H239: =AND(OR(H224 > 0, H227 > 0, H228 > 0), SUM($D$224:G224) + SUM($D$227:G227) + SUM($D$228:G228) = 0) * 1 -> 0 | I239: =AND(OR(I224 > 0, I227 > 0, I228 > 0), SUM($D$224:H224) + SUM($D$227:H227) + SUM($D$228:H228) = 0) * 1 -> 1 | J239: =AND(OR(J224 > 0, J227 > 0, J228 > 0), SUM($D$224:I224) + SUM($D$227:I227) + SUM($D$228:I228) = 0) * 1 -> 0 | K239: =AND(OR(K224 > 0, K227 > 0, K228 > 0), SUM($D$224:J224) + SUM($D$227:J227) + SUM($D$228:J228) = 0) * 1 -> 0 | L239: =AND(OR(L224 > 0, L227 > 0, L228 > 0), SUM($D$224:K224) + SUM($D$227:K227) + SUM($D$228:K228) = 0) * 1 -> 0 | M239: =AND(OR(N224 > 0, N227 > 0, N228 > 0), SUM($D$224:L224) + SUM($D$227:L227) + SUM($D$228:L228) = 0) * 1 -> 0 | N239: =AND(OR(O224 > 0, O227 > 0, O228 > 0), SUM($D$224:N224) + SUM($D$227:N227) + SUM($D$228:N228) = 0) * 1 -> 0 | O239: =AND(OR(P224 > 0, P227 > 0, P228 > 0), SUM($D$224:O224) + SUM($D$227:O227) + SUM($D$228:O228) = 0) * 1 -> 0 | P239: =AND(OR(Q224 > 0, Q227 > 0, Q228 > 0), SUM($D$224:P224) + SUM($D$227:P227) + SUM($D$228:P228) = 0) * 1 -> 0 | Q239: =AND(OR(R224 > 0, R227 > 0, R228 > 0), SUM($D$224:Q224) + SUM($D$227:Q227) + SUM($D$228:Q228) = 0) * 1 -> 0 | R239: =AND(OR(S224 > 0, S227 > 0, S228 > 0), SUM($D$224:R224) + SUM($D$227:R227) + SUM($D$228:R228) = 0) * 1 -> 0 | S239: =AND(OR(T224 > 0, T227 > 0, T228 > 0), SUM($D$224:S224) + SUM($D$227:S227) + SUM($D$228:S228) = 0) * 1 -> 0 | T239: =AND(OR(U224 > 0, U227 > 0, U228 > 0), SUM($D$224:T224) + SUM($D$227:T227) + SUM($D$228:T228) = 0) * 1 -> 0 | U239: =AND(OR(V224 > 0, V227 > 0, V228 > 0), SUM($D$224:U224) + SUM($D$227:U227) + SUM($D$228:U228) = 0) * 1 -> 0 | V239: =AND(OR(W224 > 0, W227 > 0, W228 > 0), SUM($D$224:V224) + SUM($D$227:V227) + SUM($D$228:V228) = 0) * 1 -> 0 | W239: =AND(OR(X224 > 0, X227 > 0, X228 > 0), SUM($D$224:W224) + SUM($D$227:W227) + SUM($D$228:W228) = 0) * 1 -> 0 | X239: =AND(OR(Y224 > 0, Y227 > 0, Y228 > 0), SUM($D$224:X224) + SUM($D$227:X227) + SUM($D$228:X228) = 0) * 1 -> 0 | Y239: =AND(OR(Z224 > 0, Z227 > 0, Z228 > 0), SUM($D$224:Y224) + SUM($D$227:Y227) + SUM($D$228:Y228) = 0) * 1 -> 0 | Z239: =AND(OR(AA224 > 0, AA227 > 0, AA228 > 0), SUM($D$224:Z224) + SUM($D$227:Z227) + SUM($D$228:Z228) = 0) * 1 -> 0 | AA239: =AND(OR(AB224 > 0, AB227 > 0, AB228 > 0), SUM($D$224:AA224) + SUM($D$227:AA227) + SUM($D$228:AA228) = 0) * 1 -> 0 | AB239: =AND(OR(AC224 > 0, AC227 > 0, AC228 > 0), SUM($D$224:AB224) + SUM($D$227:AB227) + SUM($D$228:AB228) = 0) * 1 -> 0 | AC239: =AND(OR(AD224 > 0, AD227 > 0, AD228 > 0), SUM($D$224:AC224) + SUM($D$227:AC227) + SUM($D$228:AC228) = 0) * 1 -> 0 | AD239: =AND(OR(AE224 > 0, AE227 > 0, AE228 > 0), SUM($D$224:AD224) + SUM($D$227:AD227) + SUM($D$228:AD228) = 0) * 1 -> 0 | AE239: =AND(OR(AF224 > 0, AF227 > 0, AF228 > 0), SUM($D$224:AE224) + SUM($D$227:AE227) + SUM($D$228:AE228) = 0) * 1 -> 0 | AF239: =AND(OR(AG224 > 0, AG227 > 0, AG228 > 0), SUM($D$224:AF224) + SUM($D$227:AF227) + SUM($D$228:AF228) = 0) * 1 -> 0 | AG239: =AND(OR(AH224 > 0, AH227 > 0, AH228 > 0), SUM($D$224:AG224) + SUM($D$227:AG227) + SUM($D$228:AG228) = 0) * 1 -> 0 | AH239: =AND(OR(AI224 > 0, AI227 > 0, AI228 > 0), SUM($D$224:AH224) + SUM($D$227:AH227) + SUM($D$228:AH228) = 0) * 1 -> 0 | AI239: =AND(OR(AJ224 > 0, AJ227 > 0, AJ228 > 0), SUM($D$224:AI224) + SUM($D$227:AI227) + SUM($D$228:AI228) = 0) * 1 -> 0 | AJ239: =AND(OR(AK224 > 0, AK227 > 0, AK228 > 0), SUM($D$224:AJ224) + SUM($D$227:AJ227) + SUM($D$228:AJ228) = 0) * 1 -> 0 | AK239: =AND(OR(AL224 > 0, AL227 > 0, AL228 > 0), SUM($D$224:AK224) + SUM($D$227:AK227) + SUM($D$228:AK228) = 0) * 1 -> 0 | AL239: =AND(OR(AM224 > 0, AM227 > 0, AM228 > 0), SUM($D$224:AL224) + SUM($D$227:AL227) + SUM($D$228:AL228) = 0) * 1 -> 0 | AM239: =AND(OR(AN224 > 0, AN227 > 0, AN228 > 0), SUM($D$224:AM224) + SUM($D$227:AM227) + SUM($D$228:AM228) = 0) * 1 -> 0 | AN239: =AND(OR(AO224 > 0, AO227 > 0, AO228 > 0), SUM($D$224:AN224) + SUM($D$227:AN227) + SUM($D$228:AN228) = 0) * 1 -> 0 | AO239: =AND(OR(AP224 > 0, AP227 > 0, AP228 > 0), SUM($D$224:AO224) + SUM($D$227:AO227) + SUM($D$228:AO228) = 0) * 1 -> 0 | AP239: =AND(OR(AQ224 > 0, AQ227 > 0, AQ228 > 0), SUM($D$224:AP224) + SUM($D$227:AP227) + SUM($D$228:AP228) = 0) * 1 -> 0 | AQ239: =AND(OR(AR224 > 0, AR227 > 0, AR228 > 0), SUM($D$224:AQ224) + SUM($D$227:AQ227) + SUM($D$228:AQ228) = 0) * 1 -> 0 | AR239: =AND(OR(AS224 > 0, AS227 > 0, AS228 > 0), SUM($D$224:AR224) + SUM($D$227:AR227) + SUM($D$228:AR228) = 0) * 1 -> 0 | AS239: =AND(OR(AT224 > 0, AT227 > 0, AT228 > 0), SUM($D$224:AS224) + SUM($D$227:AS227) + SUM($D$228:AS228) = 0) * 1 -> 0 | AT239: =AND(OR(AU224 > 0, AU227 > 0, AU228 > 0), SUM($D$224:AT224) + SUM($D$227:AT227) + SUM($D$228:AT228) = 0) * 1 -> 0 | AU239: =AND(OR(AV224 > 0, AV227 > 0, AV228 > 0), SUM($D$224:AU224) + SUM($D$227:AU227) + SUM($D$228:AU228) = 0) * 1 -> 0 | AV239: =AND(OR(AW224 > 0, AW227 > 0, AW228 > 0), SUM($D$224:AV224) + SUM($D$227:AV227) + SUM($D$228:AV228) = 0) * 1 -> 0 | AW239: =AND(OR(AX224 > 0, AX227 > 0, AX228 > 0), SUM($D$224:AW224) + SUM($D$227:AW227) + SUM($D$228:AW228) = 0) * 1 -> 0 | AX239: =AND(OR(AY224 > 0, AY227 > 0, AY228 > 0), SUM($D$224:AX224) + SUM($D$227:AX227) + SUM($D$228:AX228) = 0) * 1 -> 0 | AY239: =AND(OR(AZ224 > 0, AZ227 > 0, AZ228 > 0), SUM($D$224:AY224) + SUM($D$227:AY227) + SUM($D$228:AY228) = 0) * 1 -> 0 | AZ239: =AND(OR(BA224 > 0, BA227 > 0, BA228 > 0), SUM($D$224:AZ224) + SUM($D$227:AZ227) + SUM($D$228:AZ228) = 0) * 1 -> 0 | BA239: =AND(OR(BB224 > 0, BB227 > 0, BB228 > 0), SUM($D$224:BA224) + SUM($D$227:BA227) + SUM($D$228:BA228) = 0) * 1 -> 0 | BB239: =AND(OR(BC224 > 0, BC227 > 0, BC228 > 0), SUM($D$224:BB224) + SUM($D$227:BB227) + SUM($D$228:BB228) = 0) * 1 -> 0 | BC239: =AND(OR(BD224 > 0, BD227 > 0, BD228 > 0), SUM($D$224:BC224) + SUM($D$227:BC227) + SUM($D$228:BC228) = 0) * 1 -> 0 | BD239: =AND(OR(BE224 > 0, BE227 > 0, BE228 > 0), SUM($D$224:BD224) + SUM($D$227:BD227) + SUM($D$228:BD228) = 0) * 1 -> 0 | BE239: =AND(OR(BF224 > 0, BF227 > 0, BF228 > 0), SUM($D$224:BE224) + SUM($D$227:BE227) + SUM($D$228:BE228) = 0) * 1 -> 0 | BF239: =AND(OR(BG224 > 0, BG227 > 0, BG228 > 0), SUM($D$224:BF224) + SUM($D$227:BF227) + SUM($D$228:BF228) = 0) * 1 -> 0 | BG239: =AND(OR(BH224 > 0, BH227 > 0, BH228 > 0), SUM($D$224:BG224) + SUM($D$227:BG227) + SUM($D$228:BG228) = 0) * 1 -> 0 | BH239: =AND(OR(BI224 > 0, BI227 > 0, BI228 > 0), SUM($D$224:BH224) + SUM($D$227:BH227) + SUM($D$228:BH228) = 0) * 1 -> 0 | BI239: =AND(OR(BJ224 > 0, BJ227 > 0, BJ228 > 0), SUM($D$224:BI224) + SUM($D$227:BI227) + SUM($D$228:BI228) = 0) * 1 -> 0 | BJ239: =AND(OR(BK224 > 0, BK227 > 0, BK228 > 0), SUM($D$224:BJ224) + SUM($D$227:BJ227) + SUM($D$228:BJ228) = 0) * 1 -> 0 | BK239: =AND(OR(BL224 > 0, BL227 > 0, BL228 > 0), SUM($D$224:BK224) + SUM($D$227:BK227) + SUM($D$228:BK228) = 0) * 1 -> 0 | BL239: =AND(OR(BM224 > 0, BM227 > 0, BM228 > 0), SUM($D$224:BL224) + SUM($D$227:BL227) + SUM($D$228:BL228) = 0) * 1 -> 0 | BM239: =AND(OR(BN224 > 0, BN227 > 0, BN228 > 0), SUM($D$224:BM224) + SUM($D$227:BM227) + SUM($D$228:BM228) = 0) * 1 -> 0 | BN239: =AND(OR(BO224 > 0, BO227 > 0, BO228 > 0), SUM($D$224:BN224) + SUM($D$227:BN227) + SUM($D$228:BN228) = 0) * 1 -> 0 | BO239: =AND(OR(BP224 > 0, BP227 > 0, BP228 > 0), SUM($D$224:BO224) + SUM($D$227:BO227) + SUM($D$228:BO228) = 0) * 1 -> 0 | BP239: =AND(OR(BQ224 > 0, BQ227 > 0, BQ228 > 0), SUM($D$224:BP224) + SUM($D$227:BP227) + SUM($D$228:BP228) = 0) * 1 -> 0 | BQ239: =AND(OR(BR224 > 0, BR227 > 0, BR228 > 0), SUM($D$224:BQ224) + SUM($D$227:BQ227) + SUM($D$228:BQ228) = 0) * 1 -> 0 | BR239: =AND(OR(BS224 > 0, BS227 > 0, BS228 > 0), SUM($D$224:BR224) + SUM($D$227:BR227) + SUM($D$228:BR228) = 0) * 1 -> 0 | BS239: =AND(OR(BT224 > 0, BT227 > 0, BT228 > 0), SUM($D$224:BS224) + SUM($D$227:BS227) + SUM($D$228:BS228) = 0) * 1 -> 0 | BT239: =AND(OR(BU224 > 0, BU227 > 0, BU228 > 0), SUM($D$224:BT224) + SUM($D$227:BT227) + SUM($D$228:BT228) = 0) * 1 -> 0 | BU239: =AND(OR(BV224 > 0, BV227 > 0, BV228 > 0), SUM($D$224:BU224) + SUM($D$227:BU227) + SUM($D$228:BU228) = 0) * 1 -> 0 | BV239: =AND(OR(BW224 > 0, BW227 > 0, BW228 > 0), SUM($D$224:BV224) + SUM($D$227:BV227) + SUM($D$228:BV228) = 0) * 1 -> 0 | BW239: =AND(OR(BX224 > 0, BX227 > 0, BX228 > 0), SUM($D$224:BW224) + SUM($D$227:BW227) + SUM($D$228:BW228) = 0) * 1 -> 0 | BX239: =AND(OR(BY224 > 0, BY227 > 0, BY228 > 0), SUM($D$224:BX224) + SUM($D$227:BX227) + SUM($D$228:BX228) = 0) * 1 -> 0 | BY239: =AND(OR(BZ224 > 0, BZ227 > 0, BZ228 > 0), SUM($D$224:BY224) + SUM($D$227:BY227) + SUM($D$228:BY228) = 0) * 1 -> 0 | BZ239: =AND(OR(CA224 > 0, CA227 > 0, CA228 > 0), SUM($D$224:BZ224) + SUM($D$227:BZ227) + SUM($D$228:BZ228) = 0) * 1 -> 0 | CA239: =AND(OR(CB224 > 0, CB227 > 0, CB228 > 0), SUM($D$224:CA224) + SUM($D$227:CA227) + SUM($D$228:CA228) = 0) * 1 -> 0 | CB239: =AND(OR(CC224 > 0, CC227 > 0, CC228 > 0), SUM($D$224:CB224) + SUM($D$227:CB227) + SUM($D$228:CB228) = 0) * 1 -> 0 | CC239: =AND(OR(CD224 > 0, CD227 > 0, CD228 > 0), SUM($D$224:CC224) + SUM($D$227:CC227) + SUM($D$228:CC228) = 0) * 1 -> 0 | CD239: =AND(OR(CE224 > 0, CE227 > 0, CE228 > 0), SUM($D$224:CD224) + SUM($D$227:CD227) + SUM($D$228:CD228) = 0) * 1 -> 0 | CE239: =AND(OR(CF224 > 0, CF227 > 0, CF228 > 0), SUM($D$224:CE224) + SUM($D$227:CE227) + SUM($D$228:CE228) = 0) * 1 -> 0 | CF239: =AND(OR(CG224 > 0, CG227 > 0, CG228 > 0), SUM($D$224:CF224) + SUM($D$227:CF227) + SUM($D$228:CF228) = 0) * 1 -> 0
C240: First year of expansion 1 expenditure | D240: =SUMPRODUCT(E9:AS9, E240:AS240) -> 0 | E240: =AND(E225 > 0, SUM($D$225:D225) = 0) * 1 -> 0 | F240: =AND(F225 > 0, SUM($D$225:E225) = 0) * 1 -> 0 | G240: =AND(G225 > 0, SUM($D$225:F225) = 0) * 1 -> 0 | H240: =AND(H225 > 0, SUM($D$225:G225) = 0) * 1 -> 0 | I240: =AND(I225 > 0, SUM($D$225:H225) = 0) * 1 -> 0 | J240: =AND(J225 > 0, SUM($D$225:I225) = 0) * 1 -> 0 | K240: =AND(K225 > 0, SUM($D$225:J225) = 0) * 1 -> 0 | L240: =AND(L225 > 0, SUM($D$225:K225) = 0) * 1 -> 0 | M240: =AND(N225 > 0, SUM($D$225:L225) = 0) * 1 -> 0 | N240: =AND(O225 > 0, SUM($D$225:N225) = 0) * 1 -> 0 | O240: =AND(P225 > 0, SUM($D$225:O225) = 0) * 1 -> 0 | P240: =AND(Q225 > 0, SUM($D$225:P225) = 0) * 1 -> 0 | Q240: =AND(R225 > 0, SUM($D$225:Q225) = 0) * 1 -> 0 | R240: =AND(S225 > 0, SUM($D$225:R225) = 0) * 1 -> 0 | S240: =AND(T225 > 0, SUM($D$225:S225) = 0) * 1 -> 0 | T240: =AND(U225 > 0, SUM($D$225:T225) = 0) * 1 -> 0 | U240: =AND(V225 > 0, SUM($D$225:U225) = 0) * 1 -> 0 | V240: =AND(W225 > 0, SUM($D$225:V225) = 0) * 1 -> 0 | W240: =AND(X225 > 0, SUM($D$225:W225) = 0) * 1 -> 0 | X240: =AND(Y225 > 0, SUM($D$225:X225) = 0) * 1 -> 0 | Y240: =AND(Z225 > 0, SUM($D$225:Y225) = 0) * 1 -> 0 | Z240: =AND(AA225 > 0, SUM($D$225:Z225) = 0) * 1 -> 0 | AA240: =AND(AB225 > 0, SUM($D$225:AA225) = 0) * 1 -> 0 | AB240: =AND(AC225 > 0, SUM($D$225:AB225) = 0) * 1 -> 0 | AC240: =AND(AD225 > 0, SUM($D$225:AC225) = 0) * 1 -> 0 | AD240: =AND(AE225 > 0, SUM($D$225:AD225) = 0) * 1 -> 0 | AE240: =AND(AF225 > 0, SUM($D$225:AE225) = 0) * 1 -> 0 | AF240: =AND(AG225 > 0, SUM($D$225:AF225) = 0) * 1 -> 0 | AG240: =AND(AH225 > 0, SUM($D$225:AG225) = 0) * 1 -> 0 | AH240: =AND(AI225 > 0, SUM($D$225:AH225) = 0) * 1 -> 0 | AI240: =AND(AJ225 > 0, SUM($D$225:AI225) = 0) * 1 -> 0 | AJ240: =AND(AK225 > 0, SUM($D$225:AJ225) = 0) * 1 -> 0 | AK240: =AND(AL225 > 0, SUM($D$225:AK225) = 0) * 1 -> 0 | AL240: =AND(AM225 > 0, SUM($D$225:AL225) = 0) * 1 -> 0 | AM240: =AND(AN225 > 0, SUM($D$225:AM225) = 0) * 1 -> 0 | AN240: =AND(AO225 > 0, SUM($D$225:AN225) = 0) * 1 -> 0 | AO240: =AND(AP225 > 0, SUM($D$225:AO225) = 0) * 1 -> 0 | AP240: =AND(AQ225 > 0, SUM($D$225:AP225) = 0) * 1 -> 0 | AQ240: =AND(AR225 > 0, SUM($D$225:AQ225) = 0) * 1 -> 0 | AR240: =AND(AS225 > 0, SUM($D$225:AR225) = 0) * 1 -> 0 | AS240: =AND(AT225 > 0, SUM($D$225:AS225) = 0) * 1 -> 0 | AT240: =AND(AU225 > 0, SUM($D$225:AT225) = 0) * 1 -> 0 | AU240: =AND(AV225 > 0, SUM($D$225:AU225) = 0) * 1 -> 0 | AV240: =AND(AW225 > 0, SUM($D$225:AV225) = 0) * 1 -> 0 | AW240: =AND(AX225 > 0, SUM($D$225:AW225) = 0) * 1 -> 0 | AX240: =AND(AY225 > 0, SUM($D$225:AX225) = 0) * 1 -> 0 | AY240: =AND(AZ225 > 0, SUM($D$225:AY225) = 0) * 1 -> 0 | AZ240: =AND(BA225 > 0, SUM($D$225:AZ225) = 0) * 1 -> 0 | BA240: =AND(BB225 > 0, SUM($D$225:BA225) = 0) * 1 -> 0 | BB240: =AND(BC225 > 0, SUM($D$225:BB225) = 0) * 1 -> 0 | BC240: =AND(BD225 > 0, SUM($D$225:BC225) = 0) * 1 -> 0 | BD240: =AND(BE225 > 0, SUM($D$225:BD225) = 0) * 1 -> 0 | BE240: =AND(BF225 > 0, SUM($D$225:BE225) = 0) * 1 -> 0 | BF240: =AND(BG225 > 0, SUM($D$225:BF225) = 0) * 1 -> 0 | BG240: =AND(BH225 > 0, SUM($D$225:BG225) = 0) * 1 -> 0 | BH240: =AND(BI225 > 0, SUM($D$225:BH225) = 0) * 1 -> 0 | BI240: =AND(BJ225 > 0, SUM($D$225:BI225) = 0) * 1 -> 0 | BJ240: =AND(BK225 > 0, SUM($D$225:BJ225) = 0) * 1 -> 0 | BK240: =AND(BL225 > 0, SUM($D$225:BK225) = 0) * 1 -> 0 | BL240: =AND(BM225 > 0, SUM($D$225:BL225) = 0) * 1 -> 0 | BM240: =AND(BN225 > 0, SUM($D$225:BM225) = 0) * 1 -> 0 | BN240: =AND(BO225 > 0, SUM($D$225:BN225) = 0) * 1 -> 0 | BO240: =AND(BP225 > 0, SUM($D$225:BO225) = 0) * 1 -> 0 | BP240: =AND(BQ225 > 0, SUM($D$225:BP225) = 0) * 1 -> 0 | BQ240: =AND(BR225 > 0, SUM($D$225:BQ225) = 0) * 1 -> 0 | BR240: =AND(BS225 > 0, SUM($D$225:BR225) = 0) * 1 -> 0 | BS240: =AND(BT225 > 0, SUM($D$225:BS225) = 0) * 1 -> 0 | BT240: =AND(BU225 > 0, SUM($D$225:BT225) = 0) * 1 -> 0 | BU240: =AND(BV225 > 0, SUM($D$225:BU225) = 0) * 1 -> 0 | BV240: =AND(BW225 > 0, SUM($D$225:BV225) = 0) * 1 -> 0 | BW240: =AND(BX225 > 0, SUM($D$225:BW225) = 0) * 1 -> 0 | BX240: =AND(BY225 > 0, SUM($D$225:BX225) = 0) * 1 -> 0 | BY240: =AND(BZ225 > 0, SUM($D$225:BY225) = 0) * 1 -> 0 | BZ240: =AND(CA225 > 0, SUM($D$225:BZ225) = 0) * 1 -> 0 | CA240: =AND(CB225 > 0, SUM($D$225:CA225) = 0) * 1 -> 0 | CB240: =AND(CC225 > 0, SUM($D$225:CB225) = 0) * 1 -> 0 | CC240: =AND(CD225 > 0, SUM($D$225:CC225) = 0) * 1 -> 0 | CD240: =AND(CE225 > 0, SUM($D$225:CD225) = 0) * 1 -> 0 | CE240: =AND(CF225 > 0, SUM($D$225:CE225) = 0) * 1 -> 0 | CF240: =AND(CG225 > 0, SUM($D$225:CF225) = 0) * 1 -> 0
C241: First year of expansion 2 expenditure | D241: =SUMPRODUCT(E9:AS9, E241:AS241) -> 0 | E241: =AND(E226 > 0, SUM($D$226:D226) = 0) * 1 -> 0 | F241: =AND(F226 > 0, SUM($D$226:E226) = 0) * 1 -> 0 | G241: =AND(G226 > 0, SUM($D$226:F226) = 0) * 1 -> 0 | H241: =AND(H226 > 0, SUM($D$226:G226) = 0) * 1 -> 0 | I241: =AND(I226 > 0, SUM($D$226:H226) = 0) * 1 -> 0 | J241: =AND(J226 > 0, SUM($D$226:I226) = 0) * 1 -> 0 | K241: =AND(K226 > 0, SUM($D$226:J226) = 0) * 1 -> 0 | L241: =AND(L226 > 0, SUM($D$226:K226) = 0) * 1 -> 0 | M241: =AND(N226 > 0, SUM($D$226:L226) = 0) * 1 -> 0 | N241: =AND(O226 > 0, SUM($D$226:N226) = 0) * 1 -> 0 | O241: =AND(P226 > 0, SUM($D$226:O226) = 0) * 1 -> 0 | P241: =AND(Q226 > 0, SUM($D$226:P226) = 0) * 1 -> 0 | Q241: =AND(R226 > 0, SUM($D$226:Q226) = 0) * 1 -> 0 | R241: =AND(S226 > 0, SUM($D$226:R226) = 0) * 1 -> 0 | S241: =AND(T226 > 0, SUM($D$226:S226) = 0) * 1 -> 0 | T241: =AND(U226 > 0, SUM($D$226:T226) = 0) * 1 -> 0 | U241: =AND(V226 > 0, SUM($D$226:U226) = 0) * 1 -> 0 | V241: =AND(W226 > 0, SUM($D$226:V226) = 0) * 1 -> 0 | W241: =AND(X226 > 0, SUM($D$226:W226) = 0) * 1 -> 0 | X241: =AND(Y226 > 0, SUM($D$226:X226) = 0) * 1 -> 0 | Y241: =AND(Z226 > 0, SUM($D$226:Y226) = 0) * 1 -> 0 | Z241: =AND(AA226 > 0, SUM($D$226:Z226) = 0) * 1 -> 0 | AA241: =AND(AB226 > 0, SUM($D$226:AA226) = 0) * 1 -> 0 | AB241: =AND(AC226 > 0, SUM($D$226:AB226) = 0) * 1 -> 0 | AC241: =AND(AD226 > 0, SUM($D$226:AC226) = 0) * 1 -> 0 | AD241: =AND(AE226 > 0, SUM($D$226:AD226) = 0) * 1 -> 0 | AE241: =AND(AF226 > 0, SUM($D$226:AE226) = 0) * 1 -> 0 | AF241: =AND(AG226 > 0, SUM($D$226:AF226) = 0) * 1 -> 0 | AG241: =AND(AH226 > 0, SUM($D$226:AG226) = 0) * 1 -> 0 | AH241: =AND(AI226 > 0, SUM($D$226:AH226) = 0) * 1 -> 0 | AI241: =AND(AJ226 > 0, SUM($D$226:AI226) = 0) * 1 -> 0 | AJ241: =AND(AK226 > 0, SUM($D$226:AJ226) = 0) * 1 -> 0 | AK241: =AND(AL226 > 0, SUM($D$226:AK226) = 0) * 1 -> 0 | AL241: =AND(AM226 > 0, SUM($D$226:AL226) = 0) * 1 -> 0 | AM241: =AND(AN226 > 0, SUM($D$226:AM226) = 0) * 1 -> 0 | AN241: =AND(AO226 > 0, SUM($D$226:AN226) = 0) * 1 -> 0 | AO241: =AND(AP226 > 0, SUM($D$226:AO226) = 0) * 1 -> 0 | AP241: =AND(AQ226 > 0, SUM($D$226:AP226) = 0) * 1 -> 0 | AQ241: =AND(AR226 > 0, SUM($D$226:AQ226) = 0) * 1 -> 0 | AR241: =AND(AS226 > 0, SUM($D$226:AR226) = 0) * 1 -> 0 | AS241: =AND(AT226 > 0, SUM($D$226:AS226) = 0) * 1 -> 0 | AT241: =AND(AU226 > 0, SUM($D$226:AT226) = 0) * 1 -> 0 | AU241: =AND(AV226 > 0, SUM($D$226:AU226) = 0) * 1 -> 0 | AV241: =AND(AW226 > 0, SUM($D$226:AV226) = 0) * 1 -> 0 | AW241: =AND(AX226 > 0, SUM($D$226:AW226) = 0) * 1 -> 0 | AX241: =AND(AY226 > 0, SUM($D$226:AX226) = 0) * 1 -> 0 | AY241: =AND(AZ226 > 0, SUM($D$226:AY226) = 0) * 1 -> 0 | AZ241: =AND(BA226 > 0, SUM($D$226:AZ226) = 0) * 1 -> 0 | BA241: =AND(BB226 > 0, SUM($D$226:BA226) = 0) * 1 -> 0 | BB241: =AND(BC226 > 0, SUM($D$226:BB226) = 0) * 1 -> 0 | BC241: =AND(BD226 > 0, SUM($D$226:BC226) = 0) * 1 -> 0 | BD241: =AND(BE226 > 0, SUM($D$226:BD226) = 0) * 1 -> 0 | BE241: =AND(BF226 > 0, SUM($D$226:BE226) = 0) * 1 -> 0 | BF241: =AND(BG226 > 0, SUM($D$226:BF226) = 0) * 1 -> 0 | BG241: =AND(BH226 > 0, SUM($D$226:BG226) = 0) * 1 -> 0 | BH241: =AND(BI226 > 0, SUM($D$226:BH226) = 0) * 1 -> 0 | BI241: =AND(BJ226 > 0, SUM($D$226:BI226) = 0) * 1 -> 0 | BJ241: =AND(BK226 > 0, SUM($D$226:BJ226) = 0) * 1 -> 0 | BK241: =AND(BL226 > 0, SUM($D$226:BK226) = 0) * 1 -> 0 | BL241: =AND(BM226 > 0, SUM($D$226:BL226) = 0) * 1 -> 0 | BM241: =AND(BN226 > 0, SUM($D$226:BM226) = 0) * 1 -> 0 | BN241: =AND(BO226 > 0, SUM($D$226:BN226) = 0) * 1 -> 0 | BO241: =AND(BP226 > 0, SUM($D$226:BO226) = 0) * 1 -> 0 | BP241: =AND(BQ226 > 0, SUM($D$226:BP226) = 0) * 1 -> 0 | BQ241: =AND(BR226 > 0, SUM($D$226:BQ226) = 0) * 1 -> 0 | BR241: =AND(BS226 > 0, SUM($D$226:BR226) = 0) * 1 -> 0 | BS241: =AND(BT226 > 0, SUM($D$226:BS226) = 0) * 1 -> 0 | BT241: =AND(BU226 > 0, SUM($D$226:BT226) = 0) * 1 -> 0 | BU241: =AND(BV226 > 0, SUM($D$226:BU226) = 0) * 1 -> 0 | BV241: =AND(BW226 > 0, SUM($D$226:BV226) = 0) * 1 -> 0 | BW241: =AND(BX226 > 0, SUM($D$226:BW226) = 0) * 1 -> 0 | BX241: =AND(BY226 > 0, SUM($D$226:BX226) = 0) * 1 -> 0 | BY241: =AND(BZ226 > 0, SUM($D$226:BY226) = 0) * 1 -> 0 | BZ241: =AND(CA226 > 0, SUM($D$226:BZ226) = 0) * 1 -> 0 | CA241: =AND(CB226 > 0, SUM($D$226:CA226) = 0) * 1 -> 0 | CB241: =AND(CC226 > 0, SUM($D$226:CB226) = 0) * 1 -> 0 | CC241: =AND(CD226 > 0, SUM($D$226:CC226) = 0) * 1 -> 0 | CD241: =AND(CE226 > 0, SUM($D$226:CD226) = 0) * 1 -> 0 | CE241: =AND(CF226 > 0, SUM($D$226:CE226) = 0) * 1 -> 0 | CF241: =AND(CG226 > 0, SUM($D$226:CF226) = 0) * 1 -> 0
C243: Petroleum product prices
D245: Margin above crude price per barrel
C246: Petrol | D246: 0.35 | E246: =E$207 * (1 + $D246) -> 95.78249588 | F246: 133.7040012 | G246: 121.5 | H246: 109.3170732 | I246: 95.08625818 | J246: 82.73820751 | K246: 69.18699739 | L246: 62.27327798 | M246: 55.35299068 | N246: 48.4265913 | O246: =O$207 * (1 + $D246) -> 48.43102301 | P246: 48.4280505 | Q246: 55.34634388 | R246: 62.26875346 | S246: 69.19196497 | T246: 76.10276258 | U246: 81.00149957 | V246: 81.00196822 | W246: 80.99969304 | X246: 81.00257947 | Y246: =Y$207 * (1 + $D246) -> 81.00041441 | Z246: 81.00083351 | AA246: 81.00248254 | AB246: 81.00408935 | AC246: 81.00448481 | AD246: 81.00256771 | AE246: 81.00480805 | AF246: 81.00244082 | AG246: 81.00172958 | AH246: 81.00138732 | AI246: =AI$207 * (1 + $D246) -> 81.00138732 | AJ246: 81.00138732 | AK246: 81.00138732 | AL246: 81.00138732 | AM246: 81.00138732 | AN246: 81.00138732 | AO246: 81.00138732 | AP246: 81.00138732 | AQ246: 81.00138732 | AR246: 81.00138732 | AS246: =AS$207 * (1 + $D246) -> 81.00138732 | AT246: 81.00138732 | AU246: 81.00138732 | AV246: 81.00138732 | AW246: 81.00138732 | AX246: 81.00138732 | AY246: 81.00138732 | AZ246: 81.00138732 | BA246: 81.00138732 | BB246: 81.00138732 | BC246: =BC$207 * (1 + $D246) -> 81.00138732 | BD246: 81.00138732 | BE246: 81.00138732 | BF246: 81.00138732 | BG246: 81.00138732 | BH246: 81.00138732 | BI246: 81.00138732 | BJ246: 81.00138732 | BK246: 81.00138732 | BL246: 81.00138732 | BM246: =BM$207 * (1 + $D246) -> 81.00138732 | BN246: 81.00138732 | BO246: 81.00138732 | BP246: 81.00138732 | BQ246: 81.00138732 | BR246: 81.00138732 | BS246: 81.00138732 | BT246: 81.00138732 | BU246: 81.00138732 | BV246: 81.00138732 | BW246: =BW$207 * (1 + $D246) -> 81.00138732 | BX246: 81.00138732 | BY246: 81.00138732 | BZ246: 81.00138732 | CA246: 81.00138732 | CB246: 81.00138732 | CC246: 81.00138732 | CD246: 81.00138732 | CE246: 81.00138732 | CF246: 81.00138732
C247: Diesel | D247: 0.37 | E247: 97.20149582 | F247: 135.6848013 | G247: 123.3 | H247: 110.9365854 | I247: 96.49494349 | J247: 83.96395874 | K247: 70.21198995 | L247: 63.19584506 | M247: 56.17303499 | N247: 49.14402228 | O247: 49.14851965 | P247: 49.14550309 | Q247: 56.16628972 | R247: 63.19125352 | S247: 70.21703111 | T247: 77.23021092 | U247: 82.20152179 | V247: 82.20199738 | W247: 82.19968849 | X247: 82.20261768 | Y247: 82.20042055 | Z247: 82.20084586 | AA247: 82.20251931 | AB247: 82.20414993 | AC247: 82.20455125 | AD247: 82.20260575 | AE247: 82.20487928 | AF247: 82.20247698 | AG247: 82.2017552 | AH247: 82.20140787 | AI247: 82.20140787 | AJ247: 82.20140787 | AK247: 82.20140787 | AL247: 82.20140787 | AM247: 82.20140787 | AN247: 82.20140787 | AO247: 82.20140787 | AP247: 82.20140787 | AQ247: 82.20140787 | AR247: 82.20140787 | AS247: 82.20140787 | AT247: 82.20140787 | AU247: 82.20140787 | AV247: 82.20140787 | AW247: 82.20140787 | AX247: 82.20140787 | AY247: 82.20140787 | AZ247: 82.20140787 | BA247: 82.20140787 | BB247: 82.20140787 | BC247: 82.20140787 | BD247: 82.20140787 | BE247: 82.20140787 | BF247: 82.20140787 | BG247: 82.20140787 | BH247: 82.20140787 | BI247: 82.20140787 | BJ247: 82.20140787 | BK247: 82.20140787 | BL247: 82.20140787 | BM247: 82.20140787 | BN247: 82.20140787 | BO247: 82.20140787 | BP247: 82.20140787 | BQ247: 82.20140787 | BR247: 82.20140787 | BS247: 82.20140787 | BT247: 82.20140787 | BU247: 82.20140787 | BV247: 82.20140787 | BW247: 82.20140787 | BX247: 82.20140787 | BY247: 82.20140787 | BZ247: 82.20140787 | CA247: 82.20140787 | CB247: 82.20140787 | CC247: 82.20140787 | CD247: 82.20140787 | CE247: 82.20140787 | CF247: 82.20140787
C248: Jet fuel | D248: 0.64 | E248: 116.357995 | F248: 162.4256015 | G248: 147.6 | H248: 132.8 | I248: 115.5121951 | J248: 100.5116002 | K248: 84.04938943 | L248: 75.65050065 | M248: 67.24363312 | N248: 58.82934054 | O248: 58.83472425 | P248: 58.83111319 | Q248: 67.23555849 | R248: 75.64500421 | S248: 84.05542411 | T248: 92.45076343 | U248: 98.4018217 | V248: 98.40239103 | W248: 98.3996271 | X248: 98.40313358 | Y248: 98.40050343 | Z248: 98.40101256 | AA248: 98.40301582 | AB248: 98.4049678 | AC248: 98.40544821 | AD248: 98.40311929 | AE248: 98.40584088 | AF248: 98.40296515 | AG248: 98.40210112 | AH248: 98.40168534 | AI248: 98.40168534 | AJ248: 98.40168534 | AK248: 98.40168534 | AL248: 98.40168534 | AM248: 98.40168534 | AN248: 98.40168534 | AO248: 98.40168534 | AP248: 98.40168534 | AQ248: 98.40168534 | AR248: 98.40168534 | AS248: 98.40168534 | AT248: 98.40168534 | AU248: 98.40168534 | AV248: 98.40168534 | AW248: 98.40168534 | AX248: 98.40168534 | AY248: 98.40168534 | AZ248: 98.40168534 | BA248: 98.40168534 | BB248: 98.40168534 | BC248: 98.40168534 | BD248: 98.40168534 | BE248: 98.40168534 | BF248: 98.40168534 | BG248: 98.40168534 | BH248: 98.40168534 | BI248: 98.40168534 | BJ248: 98.40168534 | BK248: 98.40168534 | BL248: 98.40168534 | BM248: 98.40168534 | BN248: 98.40168534 | BO248: 98.40168534 | BP248: 98.40168534 | BQ248: 98.40168534 | BR248: 98.40168534 | BS248: 98.40168534 | BT248: 98.40168534 | BU248: 98.40168534 | BV248: 98.40168534 | BW248: 98.40168534 | BX248: 98.40168534 | BY248: 98.40168534 | BZ248: 98.40168534 | CA248: 98.40168534 | CB248: 98.40168534 | CC248: 98.40168534 | CD248: 98.40168534 | CE248: 98.40168534 | CF248: 98.40168534
C249: Kerosene | D249: 0.24 | E249: 87.97799622 | F249: 122.8096011 | G249: 111.6 | H249: 100.4097561 | I249: 87.33848899 | J249: 75.99657579 | K249: 63.54953835 | L249: 57.19915903 | M249: 50.84274699 | N249: 44.4807209 | O249: 44.4847915 | P249: 44.4820612 | Q249: 50.83664179 | R249: 57.19500318 | S249: 63.55410116 | T249: 69.90179674 | U249: 74.40137738 | V249: 74.40180785 | W249: 74.39971805 | X249: 74.40236929 | Y249: 74.40038064 | Z249: 74.40076559 | AA249: 74.40228026 | AB249: 74.40375614 | AC249: 74.40411938 | AD249: 74.40235849 | AE249: 74.40441628 | AF249: 74.40224194 | AG249: 74.40158865 | AH249: 74.40127428 | AI249: 74.40127428 | AJ249: 74.40127428 | AK249: 74.40127428 | AL249: 74.40127428 | AM249: 74.40127428 | AN249: 74.40127428 | AO249: 74.40127428 | AP249: 74.40127428 | AQ249: 74.40127428 | AR249: 74.40127428 | AS249: 74.40127428 | AT249: 74.40127428 | AU249: 74.40127428 | AV249: 74.40127428 | AW249: 74.40127428 | AX249: 74.40127428 | AY249: 74.40127428 | AZ249: 74.40127428 | BA249: 74.40127428 | BB249: 74.40127428 | BC249: 74.40127428 | BD249: 74.40127428 | BE249: 74.40127428 | BF249: 74.40127428 | BG249: 74.40127428 | BH249: 74.40127428 | BI249: 74.40127428 | BJ249: 74.40127428 | BK249: 74.40127428 | BL249: 74.40127428 | BM249: 74.40127428 | BN249: 74.40127428 | BO249: 74.40127428 | BP249: 74.40127428 | BQ249: 74.40127428 | BR249: 74.40127428 | BS249: 74.40127428 | BT249: 74.40127428 | BU249: 74.40127428 | BV249: 74.40127428 | BW249: 74.40127428 | BX249: 74.40127428 | BY249: 74.40127428 | BZ249: 74.40127428 | CA249: 74.40127428 | CB249: 74.40127428 | CC249: 74.40127428 | CD249: 74.40127428 | CE249: 74.40127428 | CF249: 74.40127428
C250: LPG | D250: 0.6 | E250: 113.5199951 | F250: 158.4640015 | G250: 144 | H250: 129.5609756 | I250: 112.6948245 | J250: 98.06009779 | K250: 81.99940432 | L250: 73.80536649 | M250: 65.60354451 | N250: 57.39447858 | O250: 57.39973097 | P250: 57.39620799 | Q250: 65.59566682 | R250: 73.80000411 | S250: 82.00529181 | T250: 90.19586676 | U250: 96.00177727 | V250: 96.00233271 | W250: 95.99963619 | X250: 96.00305715 | Y250: 96.00049115 | Z250: 96.00098786 | AA250: 96.00294227 | AB250: 96.00484664 | AC250: 96.00531533 | AD250: 96.00304321 | AE250: 96.00569842 | AF250: 96.00289283 | AG250: 96.00204987 | AH250: 96.00164423 | AI250: 96.00164423 | AJ250: 96.00164423 | AK250: 96.00164423 | AL250: 96.00164423 | AM250: 96.00164423 | AN250: 96.00164423 | AO250: 96.00164423 | AP250: 96.00164423 | AQ250: 96.00164423 | AR250: 96.00164423 | AS250: 96.00164423 | AT250: 96.00164423 | AU250: 96.00164423 | AV250: 96.00164423 | AW250: 96.00164423 | AX250: 96.00164423 | AY250: 96.00164423 | AZ250: 96.00164423 | BA250: 96.00164423 | BB250: 96.00164423 | BC250: 96.00164423 | BD250: 96.00164423 | BE250: 96.00164423 | BF250: 96.00164423 | BG250: 96.00164423 | BH250: 96.00164423 | BI250: 96.00164423 | BJ250: 96.00164423 | BK250: 96.00164423 | BL250: 96.00164423 | BM250: 96.00164423 | BN250: 96.00164423 | BO250: 96.00164423 | BP250: 96.00164423 | BQ250: 96.00164423 | BR250: 96.00164423 | BS250: 96.00164423 | BT250: 96.00164423 | BU250: 96.00164423 | BV250: 96.00164423 | BW250: 96.00164423 | BX250: 96.00164423 | BY250: 96.00164423 | BZ250: 96.00164423 | CA250: 96.00164423 | CB250: 96.00164423 | CC250: 96.00164423 | CD250: 96.00164423 | CE250: 96.00164423 | CF250: 96.00164423
C251: Heavy fuel oil | D251: -0.13 | E251: 61.72649734 | F251: 86.1648008 | G251: 78.3 | H251: 70.44878049 | I251: 61.27781083 | J251: 53.32017818 | K251: 44.5871761 | L251: 40.13166803 | M251: 35.67192733 | N251: 31.20824773 | O251: 31.21110372 | P251: 31.2091881 | Q251: 35.66764384 | R251: 40.12875223 | S251: 44.59037742 | T251: 49.04400255 | U251: 52.20096639 | V251: 52.20126841 | W251: 52.19980218 | X251: 52.20166232 | Y251: 52.20026706 | Z251: 52.20053715 | AA251: 52.20159986 | AB251: 52.20263536 | AC251: 52.20289021 | AD251: 52.20165475 | AE251: 52.20309852 | AF251: 52.20157298 | AG251: 52.20111462 | AH251: 52.20089405 | AI251: 52.20089405 | AJ251: 52.20089405 | AK251: 52.20089405 | AL251: 52.20089405 | AM251: 52.20089405 | AN251: 52.20089405 | AO251: 52.20089405 | AP251: 52.20089405 | AQ251: 52.20089405 | AR251: 52.20089405 | AS251: 52.20089405 | AT251: 52.20089405 | AU251: 52.20089405 | AV251: 52.20089405 | AW251: 52.20089405 | AX251: 52.20089405 | AY251: 52.20089405 | AZ251: 52.20089405 | BA251: 52.20089405 | BB251: 52.20089405 | BC251: 52.20089405 | BD251: 52.20089405 | BE251: 52.20089405 | BF251: 52.20089405 | BG251: 52.20089405 | BH251: 52.20089405 | BI251: 52.20089405 | BJ251: 52.20089405 | BK251: 52.20089405 | BL251: 52.20089405 | BM251: 52.20089405 | BN251: 52.20089405 | BO251: 52.20089405 | BP251: 52.20089405 | BQ251: 52.20089405 | BR251: 52.20089405 | BS251: 52.20089405 | BT251: 52.20089405 | BU251: 52.20089405 | BV251: 52.20089405 | BW251: 52.20089405 | BX251: 52.20089405 | BY251: 52.20089405 | BZ251: 52.20089405 | CA251: 52.20089405 | CB251: 52.20089405 | CC251: 52.20089405 | CD251: 52.20089405 | CE251: 52.20089405 | CF251: 52.20089405
C253: Govt caps product prices | D253: 1 = Yes, 2 = No | E253: =MATCH(Dashboard!D9, Miscellaneous!B14:B15, 0) -> 2
C254: Government cap | D254: % of market price | E254: =Dashboard!D10 -> 0.1
C256: Financing
C258: Debt | D258: % | E258: 0.7
C259: Equity | D259: % | E259: =1-E258 -> 0.3
C260: Loan repayment term | D260: Years | E260: 10
C261: Loan repayment commencement | D261: Years after receipt | E261: 7
... 18 more rows

Sheet Model
B2: Model
G5: =Inputs!E8 -> 1 | H5: =Inputs!F8 -> 2 | I5: =Inputs!G8 -> 3 | J5: =Inputs!H8 -> 4 | K5: =Inputs!I8 -> 5 | L5: =Inputs!J8 -> 6 | M5: =Inputs!K8 -> 7 | N5: =Inputs!L8 -> 8 | O5: =Inputs!M8 -> 9 | P5: =Inputs!N8 -> 10 | Q5: =Inputs!O8 -> 11 | R5: =Inputs!P8 -> 12 | S5: =Inputs!Q8 -> 13 | T5: =Inputs!R8 -> 14 | U5: =Inputs!S8 -> 15 | V5: =Inputs!T8 -> 16 | W5: =Inputs!U8 -> 17 | X5: =Inputs!V8 -> 18 | Y5: =Inputs!W8 -> 19 | Z5: =Inputs!X8 -> 20 | AA5: =Inputs!Y8 -> 21 | AB5: =Inputs!Z8 -> 22 | AC5: =Inputs!AA8 -> 23 | AD5: =Inputs!AB8 -> 24 | AE5: =Inputs!AC8 -> 25 | AF5: =Inputs!AD8 -> 26 | AG5: =Inputs!AE8 -> 27 | AH5: =Inputs!AF8 -> 28 | AI5: =Inputs!AG8 -> 29 | AJ5: =Inputs!AH8 -> 30 | AK5: =Inputs!AI8 -> 31 | AL5: =Inputs!AJ8 -> 32 | AM5: =Inputs!AK8 -> 33 | AN5: =Inputs!AL8 -> 34 | AO5: =Inputs!AM8 -> 35 | AP5: =Inputs!AN8 -> 36 | AQ5: =Inputs!AO8 -> 37 | AR5: =Inputs!AP8 -> 38 | AS5: =Inputs!AQ8 -> 39 | AT5: =Inputs!AR8 -> 40 | AU5: =Inputs!AS8 -> 41 | AV5: =Inputs!AT8 -> 42 | AW5: =Inputs!AU8 -> 43 | AX5: =Inputs!AV8 -> 44 | AY5: =Inputs!AW8 -> 45 | AZ5: =Inputs!AX8 -> 46 | BA5: =Inputs!AY8 -> 47 | BB5: =Inputs!AZ8 -> 48 | BC5: =Inputs!BA8 -> 49 | BD5: =Inputs!BB8 -> 50 | BE5: =Inputs!BC8 -> 51 | BF5: =Inputs!BD8 -> 52 | BG5: =Inputs!BE8 -> 53 | BH5: =Inputs!BF8 -> 54 | BI5: =Inputs!BG8 -> 55 | BJ5: =Inputs!BH8 -> 56 | BK5: =Inputs!BI8 -> 57 | BL5: =Inputs!BJ8 -> 58 | BM5: =Inputs!BK8 -> 59 | BN5: =Inputs!BL8 -> 60 | BO5: =Inputs!BM8 -> 61 | BP5: =Inputs!BN8 -> 62 | BQ5: =Inputs!BO8 -> 63 | BR5: =Inputs!BP8 -> 64 | BS5: =Inputs!BQ8 -> 65 | BT5: =Inputs!BR8 -> 66 | BU5: =Inputs!BS8 -> 67 | BV5: =Inputs!BT8 -> 68 | BW5: =Inputs!BU8 -> 69 | BX5: =Inputs!BV8 -> 70 | BY5: =Inputs!BW8 -> 71 | BZ5: =Inputs!BX8 -> 72 | CA5: =Inputs!BY8 -> 73 | CB5: =Inputs!BZ8 -> 74 | CC5: =Inputs!CA8 -> 75 | CD5: =Inputs!CB8 -> 76 | CE5: =Inputs!CC8 -> 77 | CF5: =Inputs!CD8 -> 78 | CG5: =Inputs!CE8 -> 79 | CH5: =Inputs!CF8 -> 80
G6: =Inputs!E9 -> 2021 | H6: =Inputs!F9 -> 2022 | I6: =Inputs!G9 -> 2023 | J6: =Inputs!H9 -> 2024 | K6: =Inputs!I9 -> 2025 | L6: =Inputs!J9 -> 2026 | M6: =Inputs!K9 -> 2027 | N6: =Inputs!L9 -> 2028 | O6: =Inputs!M9 -> 2029 | P6: =Inputs!N9 -> 2030 | Q6: =Inputs!O9 -> 2031 | R6: =Inputs!P9 -> 2032 | S6: =Inputs!Q9 -> 2033 | T6: =Inputs!R9 -> 2034 | U6: =Inputs!S9 -> 2035 | V6: =Inputs!T9 -> 2036 | W6: =Inputs!U9 -> 2037 | X6: =Inputs!V9 -> 2038 | Y6: =Inputs!W9 -> 2039 | Z6: =Inputs!X9 -> 2040 | AA6: =Inputs!Y9 -> 2041 | AB6: =Inputs!Z9 -> 2042 | AC6: =Inputs!AA9 -> 2043 | AD6: =Inputs!AB9 -> 2044 | AE6: =Inputs!AC9 -> 2045 | AF6: =Inputs!AD9 -> 2046 | AG6: =Inputs!AE9 -> 2047 | AH6: =Inputs!AF9 -> 2048 | AI6: =Inputs!AG9 -> 2049 | AJ6: =Inputs!AH9 -> 2050 | AK6: =Inputs!AI9 -> 2051 | AL6: =Inputs!AJ9 -> 2052 | AM6: =Inputs!AK9 -> 2053 | AN6: =Inputs!AL9 -> 2054 | AO6: =Inputs!AM9 -> 2055 | AP6: =Inputs!AN9 -> 2056 | AQ6: =Inputs!AO9 -> 2057 | AR6: =Inputs!AP9 -> 2058 | AS6: =Inputs!AQ9 -> 2059 | AT6: =Inputs!AR9 -> 2060 | AU6: =Inputs!AS9 -> 2061 | AV6: =Inputs!AT9 -> 2062 | AW6: =Inputs!AU9 -> 2063 | AX6: =Inputs!AV9 -> 2064 | AY6: =Inputs!AW9 -> 2065 | AZ6: =Inputs!AX9 -> 2066 | BA6: =Inputs!AY9 -> 2067 | BB6: =Inputs!AZ9 -> 2068 | BC6: =Inputs!BA9 -> 2069 | BD6: =Inputs!BB9 -> 2070 | BE6: =Inputs!BC9 -> 2071 | BF6: =Inputs!BD9 -> 2072 | BG6: =Inputs!BE9 -> 2073 | BH6: =Inputs!BF9 -> 2074 | BI6: =Inputs!BG9 -> 2075 | BJ6: =Inputs!BH9 -> 2076 | BK6: =Inputs!BI9 -> 2077 | BL6: =Inputs!BJ9 -> 2078 | BM6: =Inputs!BK9 -> 2079 | BN6: =Inputs!BL9 -> 2080 | BO6: =Inputs!BM9 -> 2081 | BP6: =Inputs!BN9 -> 2082 | BQ6: =Inputs!BO9 -> 2083 | BR6: =Inputs!BP9 -> 2084 | BS6: =Inputs!BQ9 -> 2085 | BT6: =Inputs!BR9 -> 2086 | BU6: =Inputs!BS9 -> 2087 | BV6: =Inputs!BT9 -> 2088 | BW6: =Inputs!BU9 -> 2089 | BX6: =Inputs!BV9 -> 2090 | BY6: =Inputs!BW9 -> 2091 | BZ6: =Inputs!BX9 -> 2092 | CA6: =Inputs!BY9 -> 2093 | CB6: =Inputs!BZ9 -> 2094 | CC6: =Inputs!CA9 -> 2095 | CD6: =Inputs!CB9 -> 2096 | CE6: =Inputs!CC9 -> 2097 | CF6: =Inputs!CD9 -> 2098 | CG6: =Inputs!CE9 -> 2099 | CH6: =Inputs!CF9 -> 2100
D8: Input | E8: Units | F8: Total
C9: Revenue
C11: =Inputs!C161 -> Petrol | E11: ="$ million "&Inputs!D6 -> $ million 2023 | F11: =SUM(G11:AU11) -> 18976.27438 | G11: =Inputs!E184*IF(Inputs!$E$253 = 2, Inputs!E246, Inputs!E246 * (1-Inputs!$E$254)) -> 0 | H11: =Inputs!F184*IF(Inputs!$E$253 = 2, Inputs!F246, Inputs!F246 * (1-Inputs!$E$254)) -> 0 | I11: =Inputs!G184*IF(Inputs!$E$253 = 2, Inputs!G246, Inputs!G246 * (1-Inputs!$E$254)) -> 0 | J11: =Inputs!H184*IF(Inputs!$E$253 = 2, Inputs!H246, Inputs!H246 * (1-Inputs!$E$254)) -> 0 | K11: =Inputs!I184*IF(Inputs!$E$253 = 2, Inputs!I246, Inputs!I246 * (1-Inputs!$E$254)) -> 0 | L11: =Inputs!J184*IF(Inputs!$E$253 = 2, Inputs!J246, Inputs!J246 * (1-Inputs!$E$254)) -> 0 | M11: =Inputs!K184*IF(Inputs!$E$253 = 2, Inputs!K246, Inputs!K246 * (1-Inputs!$E$254)) -> 0 | N11: =Inputs!L184*IF(Inputs!$E$253 = 2, Inputs!L246, Inputs!L246 * (1-Inputs!$E$254)) -> 356.2887758 | O11: =Inputs!M184*IF(Inputs!$E$253 = 2, Inputs!M246, Inputs!M246 * (1-Inputs!$E$254)) -> 633.3904341 | P11: =Inputs!N184*IF(Inputs!$E$253 = 2, Inputs!N246, Inputs!N246 * (1-Inputs!$E$254)) -> 554.1333776 | Q11: =Inputs!O184*IF(Inputs!$E$253 = 2, Inputs!O246, Inputs!O246 * (1-Inputs!$E$254)) -> 554.1840885 | R11: =Inputs!P184*IF(Inputs!$E$253 = 2, Inputs!P246, Inputs!P246 * (1-Inputs!$E$254)) -> 554.1500748 | S11: =Inputs!Q184*IF(Inputs!$E$253 = 2, Inputs!Q246, Inputs!Q246 * (1-Inputs!$E$254)) -> 633.3143765 | T11: =Inputs!R184*IF(Inputs!$E$253 = 2, Inputs!R246, Inputs!R246 * (1-Inputs!$E$254)) -> 712.5257787 | U11: =Inputs!S184*IF(Inputs!$E$253 = 2, Inputs!S246, Inputs!S246 * (1-Inputs!$E$254)) -> 791.7463571 | V11: =Inputs!T184*IF(Inputs!$E$253 = 2, Inputs!T246, Inputs!T246 * (1-Inputs!$E$254)) -> 870.8248865 | W11: =Inputs!U184*IF(Inputs!$E$253 = 2, Inputs!U246, Inputs!U246 * (1-Inputs!$E$254)) -> 926.8799092 | X11: =Inputs!V184*IF(Inputs!$E$253 = 2, Inputs!V246, Inputs!V246 * (1-Inputs!$E$254)) -> 926.8852719 | Y11: =Inputs!W184*IF(Inputs!$E$253 = 2, Inputs!W246, Inputs!W246 * (1-Inputs!$E$254)) -> 926.8592375 | Z11: =Inputs!X184*IF(Inputs!$E$253 = 2, Inputs!X246, Inputs!X246 * (1-Inputs!$E$254)) -> 926.8922662 | AA11: =Inputs!Y184*IF(Inputs!$E$253 = 2, Inputs!Y246, Inputs!Y246 * (1-Inputs!$E$254)) -> 926.867492 | AB11: =Inputs!Z184*IF(Inputs!$E$253 = 2, Inputs!Z246, Inputs!Z246 * (1-Inputs!$E$254)) -> 926.8722876 | AC11: =Inputs!AA184*IF(Inputs!$E$253 = 2, Inputs!AA246, Inputs!AA246 * (1-Inputs!$E$254)) -> 926.891157 | AD11: =Inputs!AB184*IF(Inputs!$E$253 = 2, Inputs!AB246, Inputs!AB246 * (1-Inputs!$E$254)) -> 926.9095434 | AE11: =Inputs!AC184*IF(Inputs!$E$253 = 2, Inputs!AC246, Inputs!AC246 * (1-Inputs!$E$254)) -> 926.9140685 | AF11: =Inputs!AD184*IF(Inputs!$E$253 = 2, Inputs!AD246, Inputs!AD246 * (1-Inputs!$E$254)) -> 926.8921317 | AG11: =Inputs!AE184*IF(Inputs!$E$253 = 2, Inputs!AE246, Inputs!AE246 * (1-Inputs!$E$254)) -> 926.9177673 | AH11: =Inputs!AF184*IF(Inputs!$E$253 = 2, Inputs!AF246, Inputs!AF246 * (1-Inputs!$E$254)) -> 926.8906797 | AI11: =Inputs!AG184*IF(Inputs!$E$253 = 2, Inputs!AG246, Inputs!AG246 * (1-Inputs!$E$254)) -> 926.8825411 | AJ11: =Inputs!AH184*IF(Inputs!$E$253 = 2, Inputs!AH246, Inputs!AH246 * (1-Inputs!$E$254)) -> 926.8786248 | AK11: =Inputs!AI184*IF(Inputs!$E$253 = 2, Inputs!AI246, Inputs!AI246 * (1-Inputs!$E$254)) -> 339.2832563 | AL11: =Inputs!AJ184*IF(Inputs!$E$253 = 2, Inputs!AJ246, Inputs!AJ246 * (1-Inputs!$E$254)) -> 0 | AM11: =Inputs!AK184*IF(Inputs!$E$253 = 2, Inputs!AK246, Inputs!AK246 * (1-Inputs!$E$254)) -> 0 | AN11: =Inputs!AL184*IF(Inputs!$E$253 = 2, Inputs!AL246, Inputs!AL246 * (1-Inputs!$E$254)) -> 0 | AO11: =Inputs!AM184*IF(Inputs!$E$253 = 2, Inputs!AM246, Inputs!AM246 * (1-Inputs!$E$254)) -> 0 | AP11: =Inputs!AN184*IF(Inputs!$E$253 = 2, Inputs!AN246, Inputs!AN246 * (1-Inputs!$E$254)) -> 0 | AQ11: =Inputs!AO184*IF(Inputs!$E$253 = 2, Inputs!AO246, Inputs!AO246 * (1-Inputs!$E$254)) -> 0 | AR11: =Inputs!AP184*IF(Inputs!$E$253 = 2, Inputs!AP246, Inputs!AP246 * (1-Inputs!$E$254)) -> 0 | AS11: =Inputs!AQ184*IF(Inputs!$E$253 = 2, Inputs!AQ246, Inputs!AQ246 * (1-Inputs!$E$254)) -> 0 | AT11: =Inputs!AR184*IF(Inputs!$E$253 = 2, Inputs!AR246, Inputs!AR246 * (1-Inputs!$E$254)) -> 0 | AU11: =Inputs!AS184*IF(Inputs!$E$253 = 2, Inputs!AS246, Inputs!AS246 * (1-Inputs!$E$254)) -> 0 | AV11: =Inputs!AT184*IF(Inputs!$E$253 = 2, Inputs!AT246, Inputs!AT246 * (1-Inputs!$E$254)) -> 0 | AW11: =Inputs!AU184*IF(Inputs!$E$253 = 2, Inputs!AU246, Inputs!AU246 * (1-Inputs!$E$254)) -> 0 | AX11: =Inputs!AV184*IF(Inputs!$E$253 = 2, Inputs!AV246, Inputs!AV246 * (1-Inputs!$E$254)) -> 0 | AY11: =Inputs!AW184*IF(Inputs!$E$253 = 2, Inputs!AW246, Inputs!AW246 * (1-Inputs!$E$254)) -> 0 | AZ11: =Inputs!AX184*IF(Inputs!$E$253 = 2, Inputs!AX246, Inputs!AX246 * (1-Inputs!$E$254)) -> 0 | BA11: =Inputs!AY184*IF(Inputs!$E$253 = 2, Inputs!AY246, Inputs!AY246 * (1-Inputs!$E$254)) -> 0 | BB11: =Inputs!AZ184*IF(Inputs!$E$253 = 2, Inputs!AZ246, Inputs!AZ246 * (1-Inputs!$E$254)) -> 0 | BC11: =Inputs!BA184*IF(Inputs!$E$253 = 2, Inputs!BA246, Inputs!BA246 * (1-Inputs!$E$254)) -> 0 | BD11: =Inputs!BB184*IF(Inputs!$E$253 = 2, Inputs!BB246, Inputs!BB246 * (1-Inputs!$E$254)) -> 0 | BE11: =Inputs!BC184*IF(Inputs!$E$253 = 2, Inputs!BC246, Inputs!BC246 * (1-Inputs!$E$254)) -> 0 | BF11: =Inputs!BD184*IF(Inputs!$E$253 = 2, Inputs!BD246, Inputs!BD246 * (1-Inputs!$E$254)) -> 0 | BG11: =Inputs!BE184*IF(Inputs!$E$253 = 2, Inputs!BE246, Inputs!BE246 * (1-Inputs!$E$254)) -> 0 | BH11: =Inputs!BF184*IF(Inputs!$E$253 = 2, Inputs!BF246, Inputs!BF246 * (1-Inputs!$E$254)) -> 0 | BI11: =Inputs!BG184*IF(Inputs!$E$253 = 2, Inputs!BG246, Inputs!BG246 * (1-Inputs!$E$254)) -> 0 | BJ11: =Inputs!BH184*IF(Inputs!$E$253 = 2, Inputs!BH246, Inputs!BH246 * (1-Inputs!$E$254)) -> 0 | BK11: =Inputs!BI184*IF(Inputs!$E$253 = 2, Inputs!BI246, Inputs!BI246 * (1-Inputs!$E$254)) -> 0 | BL11: =Inputs!BJ184*IF(Inputs!$E$253 = 2, Inputs!BJ246, Inputs!BJ246 * (1-Inputs!$E$254)) -> 0 | BM11: =Inputs!BK184*IF(Inputs!$E$253 = 2, Inputs!BK246, Inputs!BK246 * (1-Inputs!$E$254)) -> 0 | BN11: =Inputs!BL184*IF(Inputs!$E$253 = 2, Inputs!BL246, Inputs!BL246 * (1-Inputs!$E$254)) -> 0 | BO11: =Inputs!BM184*IF(Inputs!$E$253 = 2, Inputs!BM246, Inputs!BM246 * (1-Inputs!$E$254)) -> 0 | BP11: =Inputs!BN184*IF(Inputs!$E$253 = 2, Inputs!BN246, Inputs!BN246 * (1-Inputs!$E$254)) -> 0 | BQ11: =Inputs!BO184*IF(Inputs!$E$253 = 2, Inputs!BO246, Inputs!BO246 * (1-Inputs!$E$254)) -> 0 | BR11: =Inputs!BP184*IF(Inputs!$E$253 = 2, Inputs!BP246, Inputs!BP246 * (1-Inputs!$E$254)) -> 0 | BS11: =Inputs!BQ184*IF(Inputs!$E$253 = 2, Inputs!BQ246, Inputs!BQ246 * (1-Inputs!$E$254)) -> 0 | BT11: =Inputs!BR184*IF(Inputs!$E$253 = 2, Inputs!BR246, Inputs!BR246 * (1-Inputs!$E$254)) -> 0 | BU11: =Inputs!BS184*IF(Inputs!$E$253 = 2, Inputs!BS246, Inputs!BS246 * (1-Inputs!$E$254)) -> 0 | BV11: =Inputs!BT184*IF(Inputs!$E$253 = 2, Inputs!BT246, Inputs!BT246 * (1-Inputs!$E$254)) -> 0 | BW11: =Inputs!BU184*IF(Inputs!$E$253 = 2, Inputs!BU246, Inputs!BU246 * (1-Inputs!$E$254)) -> 0 | BX11: =Inputs!BV184*IF(Inputs!$E$253 = 2, Inputs!BV246, Inputs!BV246 * (1-Inputs!$E$254)) -> 0 | BY11: =Inputs!BW184*IF(Inputs!$E$253 = 2, Inputs!BW246, Inputs!BW246 * (1-Inputs!$E$254)) -> 0 | BZ11: =Inputs!BX184*IF(Inputs!$E$253 = 2, Inputs!BX246, Inputs!BX246 * (1-Inputs!$E$254)) -> 0 | CA11: =Inputs!BY184*IF(Inputs!$E$253 = 2, Inputs!BY246, Inputs!BY246 * (1-Inputs!$E$254)) -> 0 | CB11: =Inputs!BZ184*IF(Inputs!$E$253 = 2, Inputs!BZ246, Inputs!BZ246 * (1-Inputs!$E$254)) -> 0 | CC11: =Inputs!CA184*IF(Inputs!$E$253 = 2, Inputs!CA246, Inputs!CA246 * (1-Inputs!$E$254)) -> 0 | CD11: =Inputs!CB184*IF(Inputs!$E$253 = 2, Inputs!CB246, Inputs!CB246 * (1-Inputs!$E$254)) -> 0 | CE11: =Inputs!CC184*IF(Inputs!$E$253 = 2, Inputs!CC246, Inputs!CC246 * (1-Inputs!$E$254)) -> 0 | CF11: =Inputs!CD184*IF(Inputs!$E$253 = 2, Inputs!CD246, Inputs!CD246 * (1-Inputs!$E$254)) -> 0 | CG11: =Inputs!CE184*IF(Inputs!$E$253 = 2, Inputs!CE246, Inputs!CE246 * (1-Inputs!$E$254)) -> 0 | CH11: =Inputs!CF184*IF(Inputs!$E$253 = 2, Inputs!CF246, Inputs!CF246 * (1-Inputs!$E$254)) -> 0
C12: =Inputs!C162 -> Diesel | E12: ="$ million "&Inputs!D6 -> $ million 2023 | F12: 8403.231 | G12: =Inputs!E185*IF(Inputs!$E$253 = 2, Inputs!E247, Inputs!E247 * (1-Inputs!$E$254)) -> 0 | H12: =Inputs!F185*IF(Inputs!$E$253 = 2, Inputs!F247, Inputs!F247 * (1-Inputs!$E$254)) -> 0 | I12: =Inputs!G185*IF(Inputs!$E$253 = 2, Inputs!G247, Inputs!G247 * (1-Inputs!$E$254)) -> 0 | J12: =Inputs!H185*IF(Inputs!$E$253 = 2, Inputs!H247, Inputs!H247 * (1-Inputs!$E$254)) -> 0 | K12: =Inputs!I185*IF(Inputs!$E$253 = 2, Inputs!I247, Inputs!I247 * (1-Inputs!$E$254)) -> 0 | L12: =Inputs!J185*IF(Inputs!$E$253 = 2, Inputs!J247, Inputs!J247 * (1-Inputs!$E$254)) -> 0 | M12: =Inputs!K185*IF(Inputs!$E$253 = 2, Inputs!K247, Inputs!K247 * (1-Inputs!$E$254)) -> 0 | N12: =Inputs!L185*IF(Inputs!$E$253 = 2, Inputs!L247, Inputs!L247 * (1-Inputs!$E$254)) -> 157.7747468 | O12: =Inputs!M185*IF(Inputs!$E$253 = 2, Inputs!M247, Inputs!M247 * (1-Inputs!$E$254)) -> 280.4831983 | P12: =Inputs!N185*IF(Inputs!$E$253 = 2, Inputs!N247, Inputs!N247 * (1-Inputs!$E$254)) -> 245.3859321 | Q12: =Inputs!O185*IF(Inputs!$E$253 = 2, Inputs!O247, Inputs!O247 * (1-Inputs!$E$254)) -> 245.4083883 | R12: =Inputs!P185*IF(Inputs!$E$253 = 2, Inputs!P247, Inputs!P247 * (1-Inputs!$E$254)) -> 245.3933261 | S12: =Inputs!Q185*IF(Inputs!$E$253 = 2, Inputs!Q247, Inputs!Q247 * (1-Inputs!$E$254)) -> 280.4495178 | T12: =Inputs!R185*IF(Inputs!$E$253 = 2, Inputs!R247, Inputs!R247 * (1-Inputs!$E$254)) -> 315.5265671 | U12: =Inputs!S185*IF(Inputs!$E$253 = 2, Inputs!S247, Inputs!S247 * (1-Inputs!$E$254)) -> 350.6076798 | V12: =Inputs!T185*IF(Inputs!$E$253 = 2, Inputs!T247, Inputs!T247 * (1-Inputs!$E$254)) -> 385.6258892 | W12: =Inputs!U185*IF(Inputs!$E$253 = 2, Inputs!U247, Inputs!U247 * (1-Inputs!$E$254)) -> 410.4486386 | X12: =Inputs!V185*IF(Inputs!$E$253 = 2, Inputs!V247, Inputs!V247 * (1-Inputs!$E$254)) -> 410.4510133 | Y12: =Inputs!W185*IF(Inputs!$E$253 = 2, Inputs!W247, Inputs!W247 * (1-Inputs!$E$254)) -> 410.4394846 | Z12: =Inputs!X185*IF(Inputs!$E$253 = 2, Inputs!X247, Inputs!X247 * (1-Inputs!$E$254)) -> 410.4541106 | AA12: =Inputs!Y185*IF(Inputs!$E$253 = 2, Inputs!Y247, Inputs!Y247 * (1-Inputs!$E$254)) -> 410.4431399 | AB12: =Inputs!Z185*IF(Inputs!$E$253 = 2, Inputs!Z247, Inputs!Z247 * (1-Inputs!$E$254)) -> 410.4452635 | AC12: =Inputs!AA185*IF(Inputs!$E$253 = 2, Inputs!AA247, Inputs!AA247 * (1-Inputs!$E$254)) -> 410.4536194 | AD12: =Inputs!AB185*IF(Inputs!$E$253 = 2, Inputs!AB247, Inputs!AB247 * (1-Inputs!$E$254)) -> 410.4617614 | AE12: =Inputs!AC185*IF(Inputs!$E$253 = 2, Inputs!AC247, Inputs!AC247 * (1-Inputs!$E$254)) -> 410.4637653 | AF12: =Inputs!AD185*IF(Inputs!$E$253 = 2, Inputs!AD247, Inputs!AD247 * (1-Inputs!$E$254)) -> 410.454051 | AG12: =Inputs!AE185*IF(Inputs!$E$253 = 2, Inputs!AE247, Inputs!AE247 * (1-Inputs!$E$254)) -> 410.4654032 | AH12: =Inputs!AF185*IF(Inputs!$E$253 = 2, Inputs!AF247, Inputs!AF247 * (1-Inputs!$E$254)) -> 410.4534081 | AI12: =Inputs!AG185*IF(Inputs!$E$253 = 2, Inputs!AG247, Inputs!AG247 * (1-Inputs!$E$254)) -> 410.4498041 | AJ12: =Inputs!AH185*IF(Inputs!$E$253 = 2, Inputs!AH247, Inputs!AH247 * (1-Inputs!$E$254)) -> 410.4480698 | AK12: =Inputs!AI185*IF(Inputs!$E$253 = 2, Inputs!AI247, Inputs!AI247 * (1-Inputs!$E$254)) -> 150.2442218 | AL12: =Inputs!AJ185*IF(Inputs!$E$253 = 2, Inputs!AJ247, Inputs!AJ247 * (1-Inputs!$E$254)) -> 0 | AM12: =Inputs!AK185*IF(Inputs!$E$253 = 2, Inputs!AK247, Inputs!AK247 * (1-Inputs!$E$254)) -> 0 | AN12: =Inputs!AL185*IF(Inputs!$E$253 = 2, Inputs!AL247, Inputs!AL247 * (1-Inputs!$E$254)) -> 0 | AO12: =Inputs!AM185*IF(Inputs!$E$253 = 2, Inputs!AM247, Inputs!AM247 * (1-Inputs!$E$254)) -> 0 | AP12: =Inputs!AN185*IF(Inputs!$E$253 = 2, Inputs!AN247, Inputs!AN247 * (1-Inputs!$E$254)) -> 0 | AQ12: =Inputs!AO185*IF(Inputs!$E$253 = 2, Inputs!AO247, Inputs!AO247 * (1-Inputs!$E$254)) -> 0 | AR12: =Inputs!AP185*IF(Inputs!$E$253 = 2, Inputs!AP247, Inputs!AP247 * (1-Inputs!$E$254)) -> 0 | AS12: =Inputs!AQ185*IF(Inputs!$E$253 = 2, Inputs!AQ247, Inputs!AQ247 * (1-Inputs!$E$254)) -> 0 | AT12: =Inputs!AR185*IF(Inputs!$E$253 = 2, Inputs!AR247, Inputs!AR247 * (1-Inputs!$E$254)) -> 0 | AU12: =Inputs!AS185*IF(Inputs!$E$253 = 2, Inputs!AS247, Inputs!AS247 * (1-Inputs!$E$254)) -> 0 | AV12: =Inputs!AT185*IF(Inputs!$E$253 = 2, Inputs!AT247, Inputs!AT247 * (1-Inputs!$E$254)) -> 0 | AW12: =Inputs!AU185*IF(Inputs!$E$253 = 2, Inputs!AU247, Inputs!AU247 * (1-Inputs!$E$254)) -> 0 | AX12: =Inputs!AV185*IF(Inputs!$E$253 = 2, Inputs!AV247, Inputs!AV247 * (1-Inputs!$E$254)) -> 0 | AY12: =Inputs!AW185*IF(Inputs!$E$253 = 2, Inputs!AW247, Inputs!AW247 * (1-Inputs!$E$254)) -> 0 | AZ12: =Inputs!AX185*IF(Inputs!$E$253 = 2, Inputs!AX247, Inputs!AX247 * (1-Inputs!$E$254)) -> 0 | BA12: =Inputs!AY185*IF(Inputs!$E$253 = 2, Inputs!AY247, Inputs!AY247 * (1-Inputs!$E$254)) -> 0 | BB12: =Inputs!AZ185*IF(Inputs!$E$253 = 2, Inputs!AZ247, Inputs!AZ247 * (1-Inputs!$E$254)) -> 0 | BC12: =Inputs!BA185*IF(Inputs!$E$253 = 2, Inputs!BA247, Inputs!BA247 * (1-Inputs!$E$254)) -> 0 | BD12: =Inputs!BB185*IF(Inputs!$E$253 = 2, Inputs!BB247, Inputs!BB247 * (1-Inputs!$E$254)) -> 0 | BE12: =Inputs!BC185*IF(Inputs!$E$253 = 2, Inputs!BC247, Inputs!BC247 * (1-Inputs!$E$254)) -> 0 | BF12: =Inputs!BD185*IF(Inputs!$E$253 = 2, Inputs!BD247, Inputs!BD247 * (1-Inputs!$E$254)) -> 0 | BG12: =Inputs!BE185*IF(Inputs!$E$253 = 2, Inputs!BE247, Inputs!BE247 * (1-Inputs!$E$254)) -> 0 | BH12: =Inputs!BF185*IF(Inputs!$E$253 = 2, Inputs!BF247, Inputs!BF247 * (1-Inputs!$E$254)) -> 0 | BI12: =Inputs!BG185*IF(Inputs!$E$253 = 2, Inputs!BG247, Inputs!BG247 * (1-Inputs!$E$254)) -> 0 | BJ12: =Inputs!BH185*IF(Inputs!$E$253 = 2, Inputs!BH247, Inputs!BH247 * (1-Inputs!$E$254)) -> 0 | BK12: =Inputs!BI185*IF(Inputs!$E$253 = 2, Inputs!BI247, Inputs!BI247 * (1-Inputs!$E$254)) -> 0 | BL12: =Inputs!BJ185*IF(Inputs!$E$253 = 2, Inputs!BJ247, Inputs!BJ247 * (1-Inputs!$E$254)) -> 0 | BM12: =Inputs!BK185*IF(Inputs!$E$253 = 2, Inputs!BK247, Inputs!BK247 * (1-Inputs!$E$254)) -> 0 | BN12: =Inputs!BL185*IF(Inputs!$E$253 = 2, Inputs!BL247, Inputs!BL247 * (1-Inputs!$E$254)) -> 0 | BO12: =Inputs!BM185*IF(Inputs!$E$253 = 2, Inputs!BM247, Inputs!BM247 * (1-Inputs!$E$254)) -> 0 | BP12: =Inputs!BN185*IF(Inputs!$E$253 = 2, Inputs!BN247, Inputs!BN247 * (1-Inputs!$E$254)) -> 0 | BQ12: =Inputs!BO185*IF(Inputs!$E$253 = 2, Inputs!BO247, Inputs!BO247 * (1-Inputs!$E$254)) -> 0 | BR12: =Inputs!BP185*IF(Inputs!$E$253 = 2, Inputs!BP247, Inputs!BP247 * (1-Inputs!$E$254)) -> 0 | BS12: =Inputs!BQ185*IF(Inputs!$E$253 = 2, Inputs!BQ247, Inputs!BQ247 * (1-Inputs!$E$254)) -> 0 | BT12: =Inputs!BR185*IF(Inputs!$E$253 = 2, Inputs!BR247, Inputs!BR247 * (1-Inputs!$E$254)) -> 0 | BU12: =Inputs!BS185*IF(Inputs!$E$253 = 2, Inputs!BS247, Inputs!BS247 * (1-Inputs!$E$254)) -> 0 | BV12: =Inputs!BT185*IF(Inputs!$E$253 = 2, Inputs!BT247, Inputs!BT247 * (1-Inputs!$E$254)) -> 0 | BW12: =Inputs!BU185*IF(Inputs!$E$253 = 2, Inputs!BU247, Inputs!BU247 * (1-Inputs!$E$254)) -> 0 | BX12: =Inputs!BV185*IF(Inputs!$E$253 = 2, Inputs!BV247, Inputs!BV247 * (1-Inputs!$E$254)) -> 0 | BY12: =Inputs!BW185*IF(Inputs!$E$253 = 2, Inputs!BW247, Inputs!BW247 * (1-Inputs!$E$254)) -> 0 | BZ12: =Inputs!BX185*IF(Inputs!$E$253 = 2, Inputs!BX247, Inputs!BX247 * (1-Inputs!$E$254)) -> 0 | CA12: =Inputs!BY185*IF(Inputs!$E$253 = 2, Inputs!BY247, Inputs!BY247 * (1-Inputs!$E$254)) -> 0 | CB12: =Inputs!BZ185*IF(Inputs!$E$253 = 2, Inputs!BZ247, Inputs!BZ247 * (1-Inputs!$E$254)) -> 0 | CC12: =Inputs!CA185*IF(Inputs!$E$253 = 2, Inputs!CA247, Inputs!CA247 * (1-Inputs!$E$254)) -> 0 | CD12: =Inputs!CB185*IF(Inputs!$E$253 = 2, Inputs!CB247, Inputs!CB247 * (1-Inputs!$E$254)) -> 0 | CE12: =Inputs!CC185*IF(Inputs!$E$253 = 2, Inputs!CC247, Inputs!CC247 * (1-Inputs!$E$254)) -> 0 | CF12: =Inputs!CD185*IF(Inputs!$E$253 = 2, Inputs!CD247, Inputs!CD247 * (1-Inputs!$E$254)) -> 0 | CG12: =Inputs!CE185*IF(Inputs!$E$253 = 2, Inputs!CE247, Inputs!CE247 * (1-Inputs!$E$254)) -> 0 | CH12: =Inputs!CF185*IF(Inputs!$E$253 = 2, Inputs!CF247, Inputs!CF247 * (1-Inputs!$E$254)) -> 0
C13: =Inputs!C163 -> Jet fuel | E13: ="$ million "&Inputs!D6 -> $ million 2023 | F13: 1676.557036 | G13: =Inputs!E186*IF(Inputs!$E$253 = 2, Inputs!E248, Inputs!E248 * (1-Inputs!$E$254)) -> 0 | H13: =Inputs!F186*IF(Inputs!$E$253 = 2, Inputs!F248, Inputs!F248 * (1-Inputs!$E$254)) -> 0 | I13: =Inputs!G186*IF(Inputs!$E$253 = 2, Inputs!G248, Inputs!G248 * (1-Inputs!$E$254)) -> 0 | J13: =Inputs!H186*IF(Inputs!$E$253 = 2, Inputs!H248, Inputs!H248 * (1-Inputs!$E$254)) -> 0 | K13: =Inputs!I186*IF(Inputs!$E$253 = 2, Inputs!I248, Inputs!I248 * (1-Inputs!$E$254)) -> 0 | L13: =Inputs!J186*IF(Inputs!$E$253 = 2, Inputs!J248, Inputs!J248 * (1-Inputs!$E$254)) -> 0 | M13: =Inputs!K186*IF(Inputs!$E$253 = 2, Inputs!K248, Inputs!K248 * (1-Inputs!$E$254)) -> 0 | N13: =Inputs!L186*IF(Inputs!$E$253 = 2, Inputs!L248, Inputs!L248 * (1-Inputs!$E$254)) -> 31.47817332 | O13: =Inputs!M186*IF(Inputs!$E$253 = 2, Inputs!M248, Inputs!M248 * (1-Inputs!$E$254)) -> 55.96015148 | P13: =Inputs!N186*IF(Inputs!$E$253 = 2, Inputs!N248, Inputs!N248 * (1-Inputs!$E$254)) -> 48.9577772 | Q13: =Inputs!O186*IF(Inputs!$E$253 = 2, Inputs!O248, Inputs!O248 * (1-Inputs!$E$254)) -> 48.96225752 | R13: =Inputs!P186*IF(Inputs!$E$253 = 2, Inputs!P248, Inputs!P248 * (1-Inputs!$E$254)) -> 48.9592524 | S13: =Inputs!Q186*IF(Inputs!$E$253 = 2, Inputs!Q248, Inputs!Q248 * (1-Inputs!$E$254)) -> 55.95343178 | T13: =Inputs!R186*IF(Inputs!$E$253 = 2, Inputs!R248, Inputs!R248 * (1-Inputs!$E$254)) -> 62.9517725 | U13: =Inputs!S186*IF(Inputs!$E$253 = 2, Inputs!S248, Inputs!S248 * (1-Inputs!$E$254)) -> 69.95092394 | V13: =Inputs!T186*IF(Inputs!$E$253 = 2, Inputs!T248, Inputs!T248 * (1-Inputs!$E$254)) -> 76.93752533 | W13: =Inputs!U186*IF(Inputs!$E$253 = 2, Inputs!U248, Inputs!U248 * (1-Inputs!$E$254)) -> 81.88999602 | X13: =Inputs!V186*IF(Inputs!$E$253 = 2, Inputs!V248, Inputs!V248 * (1-Inputs!$E$254)) -> 81.89046981 | Y13: =Inputs!W186*IF(Inputs!$E$253 = 2, Inputs!W248, Inputs!W248 * (1-Inputs!$E$254)) -> 81.88816967 | Z13: =Inputs!X186*IF(Inputs!$E$253 = 2, Inputs!X248, Inputs!X248 * (1-Inputs!$E$254)) -> 81.89108776 | AA13: =Inputs!Y186*IF(Inputs!$E$253 = 2, Inputs!Y248, Inputs!Y248 * (1-Inputs!$E$254)) -> 81.88889896 | AB13: =Inputs!Z186*IF(Inputs!$E$253 = 2, Inputs!Z248, Inputs!Z248 * (1-Inputs!$E$254)) -> 81.88932265 | AC13: =Inputs!AA186*IF(Inputs!$E$253 = 2, Inputs!AA248, Inputs!AA248 * (1-Inputs!$E$254)) -> 81.89098977 | AD13: =Inputs!AB186*IF(Inputs!$E$253 = 2, Inputs!AB248, Inputs!AB248 * (1-Inputs!$E$254)) -> 81.8926142 | AE13: =Inputs!AC186*IF(Inputs!$E$253 = 2, Inputs!AC248, Inputs!AC248 * (1-Inputs!$E$254)) -> 81.893014 | AF13: =Inputs!AD186*IF(Inputs!$E$253 = 2, Inputs!AD248, Inputs!AD248 * (1-Inputs!$E$254)) -> 81.89107587 | AG13: =Inputs!AE186*IF(Inputs!$E$253 = 2, Inputs!AE248, Inputs!AE248 * (1-Inputs!$E$254)) -> 81.89334078 | AH13: =Inputs!AF186*IF(Inputs!$E$253 = 2, Inputs!AF248, Inputs!AF248 * (1-Inputs!$E$254)) -> 81.8909476 | AI13: =Inputs!AG186*IF(Inputs!$E$253 = 2, Inputs!AG248, Inputs!AG248 * (1-Inputs!$E$254)) -> 81.89022855 | AJ13: =Inputs!AH186*IF(Inputs!$E$253 = 2, Inputs!AH248, Inputs!AH248 * (1-Inputs!$E$254)) -> 81.88988254 | AK13: =Inputs!AI186*IF(Inputs!$E$253 = 2, Inputs!AI248, Inputs!AI248 * (1-Inputs!$E$254)) -> 29.97573282 | AL13: =Inputs!AJ186*IF(Inputs!$E$253 = 2, Inputs!AJ248, Inputs!AJ248 * (1-Inputs!$E$254)) -> 0 | AM13: =Inputs!AK186*IF(Inputs!$E$253 = 2, Inputs!AK248, Inputs!AK248 * (1-Inputs!$E$254)) -> 0 | AN13: =Inputs!AL186*IF(Inputs!$E$253 = 2, Inputs!AL248, Inputs!AL248 * (1-Inputs!$E$254)) -> 0 | AO13: =Inputs!AM186*IF(Inputs!$E$253 = 2, Inputs!AM248, Inputs!AM248 * (1-Inputs!$E$254)) -> 0 | AP13: =Inputs!AN186*IF(Inputs!$E$253 = 2, Inputs!AN248, Inputs!AN248 * (1-Inputs!$E$254)) -> 0 | AQ13: =Inputs!AO186*IF(Inputs!$E$253 = 2, Inputs!AO248, Inputs!AO248 * (1-Inputs!$E$254)) -> 0 | AR13: =Inputs!AP186*IF(Inputs!$E$253 = 2, Inputs!AP248, Inputs!AP248 * (1-Inputs!$E$254)) -> 0 | AS13: =Inputs!AQ186*IF(Inputs!$E$253 = 2, Inputs!AQ248, Inputs!AQ248 * (1-Inputs!$E$254)) -> 0 | AT13: =Inputs!AR186*IF(Inputs!$E$253 = 2, Inputs!AR248, Inputs!AR248 * (1-Inputs!$E$254)) -> 0 | AU13: =Inputs!AS186*IF(Inputs!$E$253 = 2, Inputs!AS248, Inputs!AS248 * (1-Inputs!$E$254)) -> 0 | AV13: =Inputs!AT186*IF(Inputs!$E$253 = 2, Inputs!AT248, Inputs!AT248 * (1-Inputs!$E$254)) -> 0 | AW13: =Inputs!AU186*IF(Inputs!$E$253 = 2, Inputs!AU248, Inputs!AU248 * (1-Inputs!$E$254)) -> 0 | AX13: =Inputs!AV186*IF(Inputs!$E$253 = 2, Inputs!AV248, Inputs!AV248 * (1-Inputs!$E$254)) -> 0 | AY13: =Inputs!AW186*IF(Inputs!$E$253 = 2, Inputs!AW248, Inputs!AW248 * (1-Inputs!$E$254)) -> 0 | AZ13: =Inputs!AX186*IF(Inputs!$E$253 = 2, Inputs!AX248, Inputs!AX248 * (1-Inputs!$E$254)) -> 0 | BA13: =Inputs!AY186*IF(Inputs!$E$253 = 2, Inputs!AY248, Inputs!AY248 * (1-Inputs!$E$254)) -> 0 | BB13: =Inputs!AZ186*IF(Inputs!$E$253 = 2, Inputs!AZ248, Inputs!AZ248 * (1-Inputs!$E$254)) -> 0 | BC13: =Inputs!BA186*IF(Inputs!$E$253 = 2, Inputs!BA248, Inputs!BA248 * (1-Inputs!$E$254)) -> 0 | BD13: =Inputs!BB186*IF(Inputs!$E$253 = 2, Inputs!BB248, Inputs!BB248 * (1-Inputs!$E$254)) -> 0 | BE13: =Inputs!BC186*IF(Inputs!$E$253 = 2, Inputs!BC248, Inputs!BC248 * (1-Inputs!$E$254)) -> 0 | BF13: =Inputs!BD186*IF(Inputs!$E$253 = 2, Inputs!BD248, Inputs!BD248 * (1-Inputs!$E$254)) -> 0 | BG13: =Inputs!BE186*IF(Inputs!$E$253 = 2, Inputs!BE248, Inputs!BE248 * (1-Inputs!$E$254)) -> 0 | BH13: =Inputs!BF186*IF(Inputs!$E$253 = 2, Inputs!BF248, Inputs!BF248 * (1-Inputs!$E$254)) -> 0 | BI13: =Inputs!BG186*IF(Inputs!$E$253 = 2, Inputs!BG248, Inputs!BG248 * (1-Inputs!$E$254)) -> 0 | BJ13: =Inputs!BH186*IF(Inputs!$E$253 = 2, Inputs!BH248, Inputs!BH248 * (1-Inputs!$E$254)) -> 0 | BK13: =Inputs!BI186*IF(Inputs!$E$253 = 2, Inputs!BI248, Inputs!BI248 * (1-Inputs!$E$254)) -> 0 | BL13: =Inputs!BJ186*IF(Inputs!$E$253 = 2, Inputs!BJ248, Inputs!BJ248 * (1-Inputs!$E$254)) -> 0 | BM13: =Inputs!BK186*IF(Inputs!$E$253 = 2, Inputs!BK248, Inputs!BK248 * (1-Inputs!$E$254)) -> 0 | BN13: =Inputs!BL186*IF(Inputs!$E$253 = 2, Inputs!BL248, Inputs!BL248 * (1-Inputs!$E$254)) -> 0 | BO13: =Inputs!BM186*IF(Inputs!$E$253 = 2, Inputs!BM248, Inputs!BM248 * (1-Inputs!$E$254)) -> 0 | BP13: =Inputs!BN186*IF(Inputs!$E$253 = 2, Inputs!BN248, Inputs!BN248 * (1-Inputs!$E$254)) -> 0 | BQ13: =Inputs!BO186*IF(Inputs!$E$253 = 2, Inputs!BO248, Inputs!BO248 * (1-Inputs!$E$254)) -> 0 | BR13: =Inputs!BP186*IF(Inputs!$E$253 = 2, Inputs!BP248, Inputs!BP248 * (1-Inputs!$E$254)) -> 0 | BS13: =Inputs!BQ186*IF(Inputs!$E$253 = 2, Inputs!BQ248, Inputs!BQ248 * (1-Inputs!$E$254)) -> 0 | BT13: =Inputs!BR186*IF(Inputs!$E$253 = 2, Inputs!BR248, Inputs!BR248 * (1-Inputs!$E$254)) -> 0 | BU13: =Inputs!BS186*IF(Inputs!$E$253 = 2, Inputs!BS248, Inputs!BS248 * (1-Inputs!$E$254)) -> 0 | BV13: =Inputs!BT186*IF(Inputs!$E$253 = 2, Inputs!BT248, Inputs!BT248 * (1-Inputs!$E$254)) -> 0 | BW13: =Inputs!BU186*IF(Inputs!$E$253 = 2, Inputs!BU248, Inputs!BU248 * (1-Inputs!$E$254)) -> 0 | BX13: =Inputs!BV186*IF(Inputs!$E$253 = 2, Inputs!BV248, Inputs!BV248 * (1-Inputs!$E$254)) -> 0 | BY13: =Inputs!BW186*IF(Inputs!$E$253 = 2, Inputs!BW248, Inputs!BW248 * (1-Inputs!$E$254)) -> 0 | BZ13: =Inputs!BX186*IF(Inputs!$E$253 = 2, Inputs!BX248, Inputs!BX248 * (1-Inputs!$E$254)) -> 0 | CA13: =Inputs!BY186*IF(Inputs!$E$253 = 2, Inputs!BY248, Inputs!BY248 * (1-Inputs!$E$254)) -> 0 | CB13: =Inputs!BZ186*IF(Inputs!$E$253 = 2, Inputs!BZ248, Inputs!BZ248 * (1-Inputs!$E$254)) -> 0 | CC13: =Inputs!CA186*IF(Inputs!$E$253 = 2, Inputs!CA248, Inputs!CA248 * (1-Inputs!$E$254)) -> 0 | CD13: =Inputs!CB186*IF(Inputs!$E$253 = 2, Inputs!CB248, Inputs!CB248 * (1-Inputs!$E$254)) -> 0 | CE13: =Inputs!CC186*IF(Inputs!$E$253 = 2, Inputs!CC248, Inputs!CC248 * (1-Inputs!$E$254)) -> 0 | CF13: =Inputs!CD186*IF(Inputs!$E$253 = 2, Inputs!CD248, Inputs!CD248 * (1-Inputs!$E$254)) -> 0 | CG13: =Inputs!CE186*IF(Inputs!$E$253 = 2, Inputs!CE248, Inputs!CE248 * (1-Inputs!$E$254)) -> 0 | CH13: =Inputs!CF186*IF(Inputs!$E$253 = 2, Inputs!CF248, Inputs!CF248 * (1-Inputs!$E$254)) -> 0
C14: =Inputs!C164 -> Kerosene | E14: ="$ million "&Inputs!D6 -> $ million 2023 | F14: 0 | G14: =Inputs!E187*IF(Inputs!$E$253 = 2, Inputs!E249, Inputs!E249 * (1-Inputs!$E$254)) -> 0 | H14: =Inputs!F187*IF(Inputs!$E$253 = 2, Inputs!F249, Inputs!F249 * (1-Inputs!$E$254)) -> 0 | I14: =Inputs!G187*IF(Inputs!$E$253 = 2, Inputs!G249, Inputs!G249 * (1-Inputs!$E$254)) -> 0 | J14: =Inputs!H187*IF(Inputs!$E$253 = 2, Inputs!H249, Inputs!H249 * (1-Inputs!$E$254)) -> 0 | K14: =Inputs!I187*IF(Inputs!$E$253 = 2, Inputs!I249, Inputs!I249 * (1-Inputs!$E$254)) -> 0 | L14: =Inputs!J187*IF(Inputs!$E$253 = 2, Inputs!J249, Inputs!J249 * (1-Inputs!$E$254)) -> 0 | M14: =Inputs!K187*IF(Inputs!$E$253 = 2, Inputs!K249, Inputs!K249 * (1-Inputs!$E$254)) -> 0 | N14: =Inputs!L187*IF(Inputs!$E$253 = 2, Inputs!L249, Inputs!L249 * (1-Inputs!$E$254)) -> 0 | O14: =Inputs!M187*IF(Inputs!$E$253 = 2, Inputs!M249, Inputs!M249 * (1-Inputs!$E$254)) -> 0 | P14: =Inputs!N187*IF(Inputs!$E$253 = 2, Inputs!N249, Inputs!N249 * (1-Inputs!$E$254)) -> 0 | Q14: =Inputs!O187*IF(Inputs!$E$253 = 2, Inputs!O249, Inputs!O249 * (1-Inputs!$E$254)) -> 0 | R14: =Inputs!P187*IF(Inputs!$E$253 = 2, Inputs!P249, Inputs!P249 * (1-Inputs!$E$254)) -> 0 | S14: =Inputs!Q187*IF(Inputs!$E$253 = 2, Inputs!Q249, Inputs!Q249 * (1-Inputs!$E$254)) -> 0 | T14: =Inputs!R187*IF(Inputs!$E$253 = 2, Inputs!R249, Inputs!R249 * (1-Inputs!$E$254)) -> 0 | U14: =Inputs!S187*IF(Inputs!$E$253 = 2, Inputs!S249, Inputs!S249 * (1-Inputs!$E$254)) -> 0 | V14: =Inputs!T187*IF(Inputs!$E$253 = 2, Inputs!T249, Inputs!T249 * (1-Inputs!$E$254)) -> 0 | W14: =Inputs!U187*IF(Inputs!$E$253 = 2, Inputs!U249, Inputs!U249 * (1-Inputs!$E$254)) -> 0 | X14: =Inputs!V187*IF(Inputs!$E$253 = 2, Inputs!V249, Inputs!V249 * (1-Inputs!$E$254)) -> 0 | Y14: =Inputs!W187*IF(Inputs!$E$253 = 2, Inputs!W249, Inputs!W249 * (1-Inputs!$E$254)) -> 0 | Z14: =Inputs!X187*IF(Inputs!$E$253 = 2, Inputs!X249, Inputs!X249 * (1-Inputs!$E$254)) -> 0 | AA14: =Inputs!Y187*IF(Inputs!$E$253 = 2, Inputs!Y249, Inputs!Y249 * (1-Inputs!$E$254)) -> 0 | AB14: =Inputs!Z187*IF(Inputs!$E$253 = 2, Inputs!Z249, Inputs!Z249 * (1-Inputs!$E$254)) -> 0 | AC14: =Inputs!AA187*IF(Inputs!$E$253 = 2, Inputs!AA249, Inputs!AA249 * (1-Inputs!$E$254)) -> 0 | AD14: =Inputs!AB187*IF(Inputs!$E$253 = 2, Inputs!AB249, Inputs!AB249 * (1-Inputs!$E$254)) -> 0 | AE14: =Inputs!AC187*IF(Inputs!$E$253 = 2, Inputs!AC249, Inputs!AC249 * (1-Inputs!$E$254)) -> 0 | AF14: =Inputs!AD187*IF(Inputs!$E$253 = 2, Inputs!AD249, Inputs!AD249 * (1-Inputs!$E$254)) -> 0 | AG14: =Inputs!AE187*IF(Inputs!$E$253 = 2, Inputs!AE249, Inputs!AE249 * (1-Inputs!$E$254)) -> 0 | AH14: =Inputs!AF187*IF(Inputs!$E$253 = 2, Inputs!AF249, Inputs!AF249 * (1-Inputs!$E$254)) -> 0 | AI14: =Inputs!AG187*IF(Inputs!$E$253 = 2, Inputs!AG249, Inputs!AG249 * (1-Inputs!$E$254)) -> 0 | AJ14: =Inputs!AH187*IF(Inputs!$E$253 = 2, Inputs!AH249, Inputs!AH249 * (1-Inputs!$E$254)) -> 0 | AK14: =Inputs!AI187*IF(Inputs!$E$253 = 2, Inputs!AI249, Inputs!AI249 * (1-Inputs!$E$254)) -> 0 | AL14: =Inputs!AJ187*IF(Inputs!$E$253 = 2, Inputs!AJ249, Inputs!AJ249 * (1-Inputs!$E$254)) -> 0 | AM14: =Inputs!AK187*IF(Inputs!$E$253 = 2, Inputs!AK249, Inputs!AK249 * (1-Inputs!$E$254)) -> 0 | AN14: =Inputs!AL187*IF(Inputs!$E$253 = 2, Inputs!AL249, Inputs!AL249 * (1-Inputs!$E$254)) -> 0 | AO14: =Inputs!AM187*IF(Inputs!$E$253 = 2, Inputs!AM249, Inputs!AM249 * (1-Inputs!$E$254)) -> 0 | AP14: =Inputs!AN187*IF(Inputs!$E$253 = 2, Inputs!AN249, Inputs!AN249 * (1-Inputs!$E$254)) -> 0 | AQ14: =Inputs!AO187*IF(Inputs!$E$253 = 2, Inputs!AO249, Inputs!AO249 * (1-Inputs!$E$254)) -> 0 | AR14: =Inputs!AP187*IF(Inputs!$E$253 = 2, Inputs!AP249, Inputs!AP249 * (1-Inputs!$E$254)) -> 0 | AS14: =Inputs!AQ187*IF(Inputs!$E$253 = 2, Inputs!AQ249, Inputs!AQ249 * (1-Inputs!$E$254)) -> 0 | AT14: =Inputs!AR187*IF(Inputs!$E$253 = 2, Inputs!AR249, Inputs!AR249 * (1-Inputs!$E$254)) -> 0 | AU14: =Inputs!AS187*IF(Inputs!$E$253 = 2, Inputs!AS249, Inputs!AS249 * (1-Inputs!$E$254)) -> 0 | AV14: =Inputs!AT187*IF(Inputs!$E$253 = 2, Inputs!AT249, Inputs!AT249 * (1-Inputs!$E$254)) -> 0 | AW14: =Inputs!AU187*IF(Inputs!$E$253 = 2, Inputs!AU249, Inputs!AU249 * (1-Inputs!$E$254)) -> 0 | AX14: =Inputs!AV187*IF(Inputs!$E$253 = 2, Inputs!AV249, Inputs!AV249 * (1-Inputs!$E$254)) -> 0 | AY14: =Inputs!AW187*IF(Inputs!$E$253 = 2, Inputs!AW249, Inputs!AW249 * (1-Inputs!$E$254)) -> 0 | AZ14: =Inputs!AX187*IF(Inputs!$E$253 = 2, Inputs!AX249, Inputs!AX249 * (1-Inputs!$E$254)) -> 0 | BA14: =Inputs!AY187*IF(Inputs!$E$253 = 2, Inputs!AY249, Inputs!AY249 * (1-Inputs!$E$254)) -> 0 | BB14: =Inputs!AZ187*IF(Inputs!$E$253 = 2, Inputs!AZ249, Inputs!AZ249 * (1-Inputs!$E$254)) -> 0 | BC14: =Inputs!BA187*IF(Inputs!$E$253 = 2, Inputs!BA249, Inputs!BA249 * (1-Inputs!$E$254)) -> 0 | BD14: =Inputs!BB187*IF(Inputs!$E$253 = 2, Inputs!BB249, Inputs!BB249 * (1-Inputs!$E$254)) -> 0 | BE14: =Inputs!BC187*IF(Inputs!$E$253 = 2, Inputs!BC249, Inputs!BC249 * (1-Inputs!$E$254)) -> 0 | BF14: =Inputs!BD187*IF(Inputs!$E$253 = 2, Inputs!BD249, Inputs!BD249 * (1-Inputs!$E$254)) -> 0 | BG14: =Inputs!BE187*IF(Inputs!$E$253 = 2, Inputs!BE249, Inputs!BE249 * (1-Inputs!$E$254)) -> 0 | BH14: =Inputs!BF187*IF(Inputs!$E$253 = 2, Inputs!BF249, Inputs!BF249 * (1-Inputs!$E$254)) -> 0 | BI14: =Inputs!BG187*IF(Inputs!$E$253 = 2, Inputs!BG249, Inputs!BG249 * (1-Inputs!$E$254)) -> 0 | BJ14: =Inputs!BH187*IF(Inputs!$E$253 = 2, Inputs!BH249, Inputs!BH249 * (1-Inputs!$E$254)) -> 0 | BK14: =Inputs!BI187*IF(Inputs!$E$253 = 2, Inputs!BI249, Inputs!BI249 * (1-Inputs!$E$254)) -> 0 | BL14: =Inputs!BJ187*IF(Inputs!$E$253 = 2, Inputs!BJ249, Inputs!BJ249 * (1-Inputs!$E$254)) -> 0 | BM14: =Inputs!BK187*IF(Inputs!$E$253 = 2, Inputs!BK249, Inputs!BK249 * (1-Inputs!$E$254)) -> 0 | BN14: =Inputs!BL187*IF(Inputs!$E$253 = 2, Inputs!BL249, Inputs!BL249 * (1-Inputs!$E$254)) -> 0 | BO14: =Inputs!BM187*IF(Inputs!$E$253 = 2, Inputs!BM249, Inputs!BM249 * (1-Inputs!$E$254)) -> 0 | BP14: =Inputs!BN187*IF(Inputs!$E$253 = 2, Inputs!BN249, Inputs!BN249 * (1-Inputs!$E$254)) -> 0 | BQ14: =Inputs!BO187*IF(Inputs!$E$253 = 2, Inputs!BO249, Inputs!BO249 * (1-Inputs!$E$254)) -> 0 | BR14: =Inputs!BP187*IF(Inputs!$E$253 = 2, Inputs!BP249, Inputs!BP249 * (1-Inputs!$E$254)) -> 0 | BS14: =Inputs!BQ187*IF(Inputs!$E$253 = 2, Inputs!BQ249, Inputs!BQ249 * (1-Inputs!$E$254)) -> 0 | BT14: =Inputs!BR187*IF(Inputs!$E$253 = 2, Inputs!BR249, Inputs!BR249 * (1-Inputs!$E$254)) -> 0 | BU14: =Inputs!BS187*IF(Inputs!$E$253 = 2, Inputs!BS249, Inputs!BS249 * (1-Inputs!$E$254)) -> 0 | BV14: =Inputs!BT187*IF(Inputs!$E$253 = 2, Inputs!BT249, Inputs!BT249 * (1-Inputs!$E$254)) -> 0 | BW14: =Inputs!BU187*IF(Inputs!$E$253 = 2, Inputs!BU249, Inputs!BU249 * (1-Inputs!$E$254)) -> 0 | BX14: =Inputs!BV187*IF(Inputs!$E$253 = 2, Inputs!BV249, Inputs!BV249 * (1-Inputs!$E$254)) -> 0 | BY14: =Inputs!BW187*IF(Inputs!$E$253 = 2, Inputs!BW249, Inputs!BW249 * (1-Inputs!$E$254)) -> 0 | BZ14: =Inputs!BX187*IF(Inputs!$E$253 = 2, Inputs!BX249, Inputs!BX249 * (1-Inputs!$E$254)) -> 0 | CA14: =Inputs!BY187*IF(Inputs!$E$253 = 2, Inputs!BY249, Inputs!BY249 * (1-Inputs!$E$254)) -> 0 | CB14: =Inputs!BZ187*IF(Inputs!$E$253 = 2, Inputs!BZ249, Inputs!BZ249 * (1-Inputs!$E$254)) -> 0 | CC14: =Inputs!CA187*IF(Inputs!$E$253 = 2, Inputs!CA249, Inputs!CA249 * (1-Inputs!$E$254)) -> 0 | CD14: =Inputs!CB187*IF(Inputs!$E$253 = 2, Inputs!CB249, Inputs!CB249 * (1-Inputs!$E$254)) -> 0 | CE14: =Inputs!CC187*IF(Inputs!$E$253 = 2, Inputs!CC249, Inputs!CC249 * (1-Inputs!$E$254)) -> 0 | CF14: =Inputs!CD187*IF(Inputs!$E$253 = 2, Inputs!CD249, Inputs!CD249 * (1-Inputs!$E$254)) -> 0 | CG14: =Inputs!CE187*IF(Inputs!$E$253 = 2, Inputs!CE249, Inputs!CE249 * (1-Inputs!$E$254)) -> 0 | CH14: =Inputs!CF187*IF(Inputs!$E$253 = 2, Inputs!CF249, Inputs!CF249 * (1-Inputs!$E$254)) -> 0
C15: =Inputs!C165 -> Liquefied petroleum gas | E15: ="$ million "&Inputs!D6 -> $ million 2023 | F15: 5315.912555 | G15: =Inputs!E188*IF(Inputs!$E$253 = 2, Inputs!E250, Inputs!E250 * (1-Inputs!$E$254)) -> 0 | H15: =Inputs!F188*IF(Inputs!$E$253 = 2, Inputs!F250, Inputs!F250 * (1-Inputs!$E$254)) -> 0 | I15: =Inputs!G188*IF(Inputs!$E$253 = 2, Inputs!G250, Inputs!G250 * (1-Inputs!$E$254)) -> 0 | J15: =Inputs!H188*IF(Inputs!$E$253 = 2, Inputs!H250, Inputs!H250 * (1-Inputs!$E$254)) -> 0 | K15: =Inputs!I188*IF(Inputs!$E$253 = 2, Inputs!I250, Inputs!I250 * (1-Inputs!$E$254)) -> 0 | L15: =Inputs!J188*IF(Inputs!$E$253 = 2, Inputs!J250, Inputs!J250 * (1-Inputs!$E$254)) -> 0 | M15: =Inputs!K188*IF(Inputs!$E$253 = 2, Inputs!K250, Inputs!K250 * (1-Inputs!$E$254)) -> 0 | N15: =Inputs!L188*IF(Inputs!$E$253 = 2, Inputs!L250, Inputs!L250 * (1-Inputs!$E$254)) -> 99.80884224 | O15: =Inputs!M188*IF(Inputs!$E$253 = 2, Inputs!M250, Inputs!M250 * (1-Inputs!$E$254)) -> 177.4346267 | P15: =Inputs!N188*IF(Inputs!$E$253 = 2, Inputs!N250, Inputs!N250 * (1-Inputs!$E$254)) -> 155.2319765 | Q15: =Inputs!O188*IF(Inputs!$E$253 = 2, Inputs!O250, Inputs!O250 * (1-Inputs!$E$254)) -> 155.2461824 | R15: =Inputs!P188*IF(Inputs!$E$253 = 2, Inputs!P250, Inputs!P250 * (1-Inputs!$E$254)) -> 155.236654 | S15: =Inputs!Q188*IF(Inputs!$E$253 = 2, Inputs!Q250, Inputs!Q250 * (1-Inputs!$E$254)) -> 177.4133203 | T15: =Inputs!R188*IF(Inputs!$E$253 = 2, Inputs!R250, Inputs!R250 * (1-Inputs!$E$254)) -> 199.6031811 | U15: =Inputs!S188*IF(Inputs!$E$253 = 2, Inputs!S250, Inputs!S250 * (1-Inputs!$E$254)) -> 221.7956125 | V15: =Inputs!T188*IF(Inputs!$E$253 = 2, Inputs!T250, Inputs!T250 * (1-Inputs!$E$254)) -> 243.948251 | W15: =Inputs!U188*IF(Inputs!$E$253 = 2, Inputs!U250, Inputs!U250 * (1-Inputs!$E$254)) -> 259.6512069 | X15: =Inputs!V188*IF(Inputs!$E$253 = 2, Inputs!V250, Inputs!V250 * (1-Inputs!$E$254)) -> 259.6527092 | Y15: =Inputs!W188*IF(Inputs!$E$253 = 2, Inputs!W250, Inputs!W250 * (1-Inputs!$E$254)) -> 259.645416 | Z15: =Inputs!X188*IF(Inputs!$E$253 = 2, Inputs!X250, Inputs!X250 * (1-Inputs!$E$254)) -> 259.6546685 | AA15: =Inputs!Y188*IF(Inputs!$E$253 = 2, Inputs!Y250, Inputs!Y250 * (1-Inputs!$E$254)) -> 259.6477284 | AB15: =Inputs!Z188*IF(Inputs!$E$253 = 2, Inputs!Z250, Inputs!Z250 * (1-Inputs!$E$254)) -> 259.6490718 | AC15: =Inputs!AA188*IF(Inputs!$E$253 = 2, Inputs!AA250, Inputs!AA250 * (1-Inputs!$E$254)) -> 259.6543578 | AD15: =Inputs!AB188*IF(Inputs!$E$253 = 2, Inputs!AB250, Inputs!AB250 * (1-Inputs!$E$254)) -> 259.6595085 | AE15: =Inputs!AC188*IF(Inputs!$E$253 = 2, Inputs!AC250, Inputs!AC250 * (1-Inputs!$E$254)) -> 259.6607761 | AF15: =Inputs!AD188*IF(Inputs!$E$253 = 2, Inputs!AD250, Inputs!AD250 * (1-Inputs!$E$254)) -> 259.6546308 | AG15: =Inputs!AE188*IF(Inputs!$E$253 = 2, Inputs!AE250, Inputs!AE250 * (1-Inputs!$E$254)) -> 259.6618122 | AH15: =Inputs!AF188*IF(Inputs!$E$253 = 2, Inputs!AF250, Inputs!AF250 * (1-Inputs!$E$254)) -> 259.6542241 | AI15: =Inputs!AG188*IF(Inputs!$E$253 = 2, Inputs!AG250, Inputs!AG250 * (1-Inputs!$E$254)) -> 259.6519442 | AJ15: =Inputs!AH188*IF(Inputs!$E$253 = 2, Inputs!AH250, Inputs!AH250 * (1-Inputs!$E$254)) -> 259.6508471 | AK15: =Inputs!AI188*IF(Inputs!$E$253 = 2, Inputs!AI250, Inputs!AI250 * (1-Inputs!$E$254)) -> 95.04500649 | AL15: =Inputs!AJ188*IF(Inputs!$E$253 = 2, Inputs!AJ250, Inputs!AJ250 * (1-Inputs!$E$254)) -> 0 | AM15: =Inputs!AK188*IF(Inputs!$E$253 = 2, Inputs!AK250, Inputs!AK250 * (1-Inputs!$E$254)) -> 0 | AN15: =Inputs!AL188*IF(Inputs!$E$253 = 2, Inputs!AL250, Inputs!AL250 * (1-Inputs!$E$254)) -> 0 | AO15: =Inputs!AM188*IF(Inputs!$E$253 = 2, Inputs!AM250, Inputs!AM250 * (1-Inputs!$E$254)) -> 0 | AP15: =Inputs!AN188*IF(Inputs!$E$253 = 2, Inputs!AN250, Inputs!AN250 * (1-Inputs!$E$254)) -> 0 | AQ15: =Inputs!AO188*IF(Inputs!$E$253 = 2, Inputs!AO250, Inputs!AO250 * (1-Inputs!$E$254)) -> 0 | AR15: =Inputs!AP188*IF(Inputs!$E$253 = 2, Inputs!AP250, Inputs!AP250 * (1-Inputs!$E$254)) -> 0 | AS15: =Inputs!AQ188*IF(Inputs!$E$253 = 2, Inputs!AQ250, Inputs!AQ250 * (1-Inputs!$E$254)) -> 0 | AT15: =Inputs!AR188*IF(Inputs!$E$253 = 2, Inputs!AR250, Inputs!AR250 * (1-Inputs!$E$254)) -> 0 | AU15: =Inputs!AS188*IF(Inputs!$E$253 = 2, Inputs!AS250, Inputs!AS250 * (1-Inputs!$E$254)) -> 0 | AV15: =Inputs!AT188*IF(Inputs!$E$253 = 2, Inputs!AT250, Inputs!AT250 * (1-Inputs!$E$254)) -> 0 | AW15: =Inputs!AU188*IF(Inputs!$E$253 = 2, Inputs!AU250, Inputs!AU250 * (1-Inputs!$E$254)) -> 0 | AX15: =Inputs!AV188*IF(Inputs!$E$253 = 2, Inputs!AV250, Inputs!AV250 * (1-Inputs!$E$254)) -> 0 | AY15: =Inputs!AW188*IF(Inputs!$E$253 = 2, Inputs!AW250, Inputs!AW250 * (1-Inputs!$E$254)) -> 0 | AZ15: =Inputs!AX188*IF(Inputs!$E$253 = 2, Inputs!AX250, Inputs!AX250 * (1-Inputs!$E$254)) -> 0 | BA15: =Inputs!AY188*IF(Inputs!$E$253 = 2, Inputs!AY250, Inputs!AY250 * (1-Inputs!$E$254)) -> 0 | BB15: =Inputs!AZ188*IF(Inputs!$E$253 = 2, Inputs!AZ250, Inputs!AZ250 * (1-Inputs!$E$254)) -> 0 | BC15: =Inputs!BA188*IF(Inputs!$E$253 = 2, Inputs!BA250, Inputs!BA250 * (1-Inputs!$E$254)) -> 0 | BD15: =Inputs!BB188*IF(Inputs!$E$253 = 2, Inputs!BB250, Inputs!BB250 * (1-Inputs!$E$254)) -> 0 | BE15: =Inputs!BC188*IF(Inputs!$E$253 = 2, Inputs!BC250, Inputs!BC250 * (1-Inputs!$E$254)) -> 0 | BF15: =Inputs!BD188*IF(Inputs!$E$253 = 2, Inputs!BD250, Inputs!BD250 * (1-Inputs!$E$254)) -> 0 | BG15: =Inputs!BE188*IF(Inputs!$E$253 = 2, Inputs!BE250, Inputs!BE250 * (1-Inputs!$E$254)) -> 0 | BH15: =Inputs!BF188*IF(Inputs!$E$253 = 2, Inputs!BF250, Inputs!BF250 * (1-Inputs!$E$254)) -> 0 | BI15: =Inputs!BG188*IF(Inputs!$E$253 = 2, Inputs!BG250, Inputs!BG250 * (1-Inputs!$E$254)) -> 0 | BJ15: =Inputs!BH188*IF(Inputs!$E$253 = 2, Inputs!BH250, Inputs!BH250 * (1-Inputs!$E$254)) -> 0 | BK15: =Inputs!BI188*IF(Inputs!$E$253 = 2, Inputs!BI250, Inputs!BI250 * (1-Inputs!$E$254)) -> 0 | BL15: =Inputs!BJ188*IF(Inputs!$E$253 = 2, Inputs!BJ250, Inputs!BJ250 * (1-Inputs!$E$254)) -> 0 | BM15: =Inputs!BK188*IF(Inputs!$E$253 = 2, Inputs!BK250, Inputs!BK250 * (1-Inputs!$E$254)) -> 0 | BN15: =Inputs!BL188*IF(Inputs!$E$253 = 2, Inputs!BL250, Inputs!BL250 * (1-Inputs!$E$254)) -> 0 | BO15: =Inputs!BM188*IF(Inputs!$E$253 = 2, Inputs!BM250, Inputs!BM250 * (1-Inputs!$E$254)) -> 0 | BP15: =Inputs!BN188*IF(Inputs!$E$253 = 2, Inputs!BN250, Inputs!BN250 * (1-Inputs!$E$254)) -> 0 | BQ15: =Inputs!BO188*IF(Inputs!$E$253 = 2, Inputs!BO250, Inputs!BO250 * (1-Inputs!$E$254)) -> 0 | BR15: =Inputs!BP188*IF(Inputs!$E$253 = 2, Inputs!BP250, Inputs!BP250 * (1-Inputs!$E$254)) -> 0 | BS15: =Inputs!BQ188*IF(Inputs!$E$253 = 2, Inputs!BQ250, Inputs!BQ250 * (1-Inputs!$E$254)) -> 0 | BT15: =Inputs!BR188*IF(Inputs!$E$253 = 2, Inputs!BR250, Inputs!BR250 * (1-Inputs!$E$254)) -> 0 | BU15: =Inputs!BS188*IF(Inputs!$E$253 = 2, Inputs!BS250, Inputs!BS250 * (1-Inputs!$E$254)) -> 0 | BV15: =Inputs!BT188*IF(Inputs!$E$253 = 2, Inputs!BT250, Inputs!BT250 * (1-Inputs!$E$254)) -> 0 | BW15: =Inputs!BU188*IF(Inputs!$E$253 = 2, Inputs!BU250, Inputs!BU250 * (1-Inputs!$E$254)) -> 0 | BX15: =Inputs!BV188*IF(Inputs!$E$253 = 2, Inputs!BV250, Inputs!BV250 * (1-Inputs!$E$254)) -> 0 | BY15: =Inputs!BW188*IF(Inputs!$E$253 = 2, Inputs!BW250, Inputs!BW250 * (1-Inputs!$E$254)) -> 0 | BZ15: =Inputs!BX188*IF(Inputs!$E$253 = 2, Inputs!BX250, Inputs!BX250 * (1-Inputs!$E$254)) -> 0 | CA15: =Inputs!BY188*IF(Inputs!$E$253 = 2, Inputs!BY250, Inputs!BY250 * (1-Inputs!$E$254)) -> 0 | CB15: =Inputs!BZ188*IF(Inputs!$E$253 = 2, Inputs!BZ250, Inputs!BZ250 * (1-Inputs!$E$254)) -> 0 | CC15: =Inputs!CA188*IF(Inputs!$E$253 = 2, Inputs!CA250, Inputs!CA250 * (1-Inputs!$E$254)) -> 0 | CD15: =Inputs!CB188*IF(Inputs!$E$253 = 2, Inputs!CB250, Inputs!CB250 * (1-Inputs!$E$254)) -> 0 | CE15: =Inputs!CC188*IF(Inputs!$E$253 = 2, Inputs!CC250, Inputs!CC250 * (1-Inputs!$E$254)) -> 0 | CF15: =Inputs!CD188*IF(Inputs!$E$253 = 2, Inputs!CD250, Inputs!CD250 * (1-Inputs!$E$254)) -> 0 | CG15: =Inputs!CE188*IF(Inputs!$E$253 = 2, Inputs!CE250, Inputs!CE250 * (1-Inputs!$E$254)) -> 0 | CH15: =Inputs!CF188*IF(Inputs!$E$253 = 2, Inputs!CF250, Inputs!CF250 * (1-Inputs!$E$254)) -> 0
C16: =Inputs!C166 -> Heavy fuel oil | E16: ="$ million "&Inputs!D6 -> $ million 2023 | F16: 889.393062 | G16: =Inputs!E189*IF(Inputs!$E$253 = 2, Inputs!E251, Inputs!E251 * (1-Inputs!$E$254)) -> 0 | H16: =Inputs!F189*IF(Inputs!$E$253 = 2, Inputs!F251, Inputs!F251 * (1-Inputs!$E$254)) -> 0 | I16: =Inputs!G189*IF(Inputs!$E$253 = 2, Inputs!G251, Inputs!G251 * (1-Inputs!$E$254)) -> 0 | J16: =Inputs!H189*IF(Inputs!$E$253 = 2, Inputs!H251, Inputs!H251 * (1-Inputs!$E$254)) -> 0 | K16: =Inputs!I189*IF(Inputs!$E$253 = 2, Inputs!I251, Inputs!I251 * (1-Inputs!$E$254)) -> 0 | L16: =Inputs!J189*IF(Inputs!$E$253 = 2, Inputs!J251, Inputs!J251 * (1-Inputs!$E$254)) -> 0 | M16: =Inputs!K189*IF(Inputs!$E$253 = 2, Inputs!K251, Inputs!K251 * (1-Inputs!$E$254)) -> 0 | N16: =Inputs!L189*IF(Inputs!$E$253 = 2, Inputs!L251, Inputs!L251 * (1-Inputs!$E$254)) -> 16.69878707 | O16: =Inputs!M189*IF(Inputs!$E$253 = 2, Inputs!M251, Inputs!M251 * (1-Inputs!$E$254)) -> 29.68617792 | P16: =Inputs!N189*IF(Inputs!$E$253 = 2, Inputs!N251, Inputs!N251 * (1-Inputs!$E$254)) -> 25.97150376 | Q16: =Inputs!O189*IF(Inputs!$E$253 = 2, Inputs!O251, Inputs!O251 * (1-Inputs!$E$254)) -> 25.97388051 | R16: =Inputs!P189*IF(Inputs!$E$253 = 2, Inputs!P251, Inputs!P251 * (1-Inputs!$E$254)) -> 25.97228633 | S16: =Inputs!Q189*IF(Inputs!$E$253 = 2, Inputs!Q251, Inputs!Q251 * (1-Inputs!$E$254)) -> 29.6826132 | T16: =Inputs!R189*IF(Inputs!$E$253 = 2, Inputs!R251, Inputs!R251 * (1-Inputs!$E$254)) -> 33.39514761 | U16: =Inputs!S189*IF(Inputs!$E$253 = 2, Inputs!S251, Inputs!S251 * (1-Inputs!$E$254)) -> 37.10811209 | V16: =Inputs!T189*IF(Inputs!$E$253 = 2, Inputs!T251, Inputs!T251 * (1-Inputs!$E$254)) -> 40.81441892 | W16: =Inputs!U189*IF(Inputs!$E$253 = 2, Inputs!U251, Inputs!U251 * (1-Inputs!$E$254)) -> 43.44164423 | X16: =Inputs!V189*IF(Inputs!$E$253 = 2, Inputs!V251, Inputs!V251 * (1-Inputs!$E$254)) -> 43.44189557 | Y16: =Inputs!W189*IF(Inputs!$E$253 = 2, Inputs!W251, Inputs!W251 * (1-Inputs!$E$254)) -> 43.44067537 | Z16: =Inputs!X189*IF(Inputs!$E$253 = 2, Inputs!X251, Inputs!X251 * (1-Inputs!$E$254)) -> 43.44222339 | AA16: =Inputs!Y189*IF(Inputs!$E$253 = 2, Inputs!Y251, Inputs!Y251 * (1-Inputs!$E$254)) -> 43.44106225 | AB16: =Inputs!Z189*IF(Inputs!$E$253 = 2, Inputs!Z251, Inputs!Z251 * (1-Inputs!$E$254)) -> 43.44128702 | AC16: =Inputs!AA189*IF(Inputs!$E$253 = 2, Inputs!AA251, Inputs!AA251 * (1-Inputs!$E$254)) -> 43.4421714 | AD16: =Inputs!AB189*IF(Inputs!$E$253 = 2, Inputs!AB251, Inputs!AB251 * (1-Inputs!$E$254)) -> 43.44303315 | AE16: =Inputs!AC189*IF(Inputs!$E$253 = 2, Inputs!AC251, Inputs!AC251 * (1-Inputs!$E$254)) -> 43.44324523 | AF16: =Inputs!AD189*IF(Inputs!$E$253 = 2, Inputs!AD251, Inputs!AD251 * (1-Inputs!$E$254)) -> 43.44221708 | AG16: =Inputs!AE189*IF(Inputs!$E$253 = 2, Inputs!AE251, Inputs!AE251 * (1-Inputs!$E$254)) -> 43.44341859 | AH16: =Inputs!AF189*IF(Inputs!$E$253 = 2, Inputs!AF251, Inputs!AF251 * (1-Inputs!$E$254)) -> 43.44214903 | AI16: =Inputs!AG189*IF(Inputs!$E$253 = 2, Inputs!AG251, Inputs!AG251 * (1-Inputs!$E$254)) -> 43.44176758 | AJ16: =Inputs!AH189*IF(Inputs!$E$253 = 2, Inputs!AH251, Inputs!AH251 * (1-Inputs!$E$254)) -> 43.44158403 | AK16: =Inputs!AI189*IF(Inputs!$E$253 = 2, Inputs!AI251, Inputs!AI251 * (1-Inputs!$E$254)) -> 15.9017607 | AL16: =Inputs!AJ189*IF(Inputs!$E$253 = 2, Inputs!AJ251, Inputs!AJ251 * (1-Inputs!$E$254)) -> 0 | AM16: =Inputs!AK189*IF(Inputs!$E$253 = 2, Inputs!AK251, Inputs!AK251 * (1-Inputs!$E$254)) -> 0 | AN16: =Inputs!AL189*IF(Inputs!$E$253 = 2, Inputs!AL251, Inputs!AL251 * (1-Inputs!$E$254)) -> 0 | AO16: =Inputs!AM189*IF(Inputs!$E$253 = 2, Inputs!AM251, Inputs!AM251 * (1-Inputs!$E$254)) -> 0 | AP16: =Inputs!AN189*IF(Inputs!$E$253 = 2, Inputs!AN251, Inputs!AN251 * (1-Inputs!$E$254)) -> 0 | AQ16: =Inputs!AO189*IF(Inputs!$E$253 = 2, Inputs!AO251, Inputs!AO251 * (1-Inputs!$E$254)) -> 0 | AR16: =Inputs!AP189*IF(Inputs!$E$253 = 2, Inputs!AP251, Inputs!AP251 * (1-Inputs!$E$254)) -> 0 | AS16: =Inputs!AQ189*IF(Inputs!$E$253 = 2, Inputs!AQ251, Inputs!AQ251 * (1-Inputs!$E$254)) -> 0 | AT16: =Inputs!AR189*IF(Inputs!$E$253 = 2, Inputs!AR251, Inputs!AR251 * (1-Inputs!$E$254)) -> 0 | AU16: =Inputs!AS189*IF(Inputs!$E$253 = 2, Inputs!AS251, Inputs!AS251 * (1-Inputs!$E$254)) -> 0 | AV16: =Inputs!AT189*IF(Inputs!$E$253 = 2, Inputs!AT251, Inputs!AT251 * (1-Inputs!$E$254)) -> 0 | AW16: =Inputs!AU189*IF(Inputs!$E$253 = 2, Inputs!AU251, Inputs!AU251 * (1-Inputs!$E$254)) -> 0 | AX16: =Inputs!AV189*IF(Inputs!$E$253 = 2, Inputs!AV251, Inputs!AV251 * (1-Inputs!$E$254)) -> 0 | AY16: =Inputs!AW189*IF(Inputs!$E$253 = 2, Inputs!AW251, Inputs!AW251 * (1-Inputs!$E$254)) -> 0 | AZ16: =Inputs!AX189*IF(Inputs!$E$253 = 2, Inputs!AX251, Inputs!AX251 * (1-Inputs!$E$254)) -> 0 | BA16: =Inputs!AY189*IF(Inputs!$E$253 = 2, Inputs!AY251, Inputs!AY251 * (1-Inputs!$E$254)) -> 0 | BB16: =Inputs!AZ189*IF(Inputs!$E$253 = 2, Inputs!AZ251, Inputs!AZ251 * (1-Inputs!$E$254)) -> 0 | BC16: =Inputs!BA189*IF(Inputs!$E$253 = 2, Inputs!BA251, Inputs!BA251 * (1-Inputs!$E$254)) -> 0 | BD16: =Inputs!BB189*IF(Inputs!$E$253 = 2, Inputs!BB251, Inputs!BB251 * (1-Inputs!$E$254)) -> 0 | BE16: =Inputs!BC189*IF(Inputs!$E$253 = 2, Inputs!BC251, Inputs!BC251 * (1-Inputs!$E$254)) -> 0 | BF16: =Inputs!BD189*IF(Inputs!$E$253 = 2, Inputs!BD251, Inputs!BD251 * (1-Inputs!$E$254)) -> 0 | BG16: =Inputs!BE189*IF(Inputs!$E$253 = 2, Inputs!BE251, Inputs!BE251 * (1-Inputs!$E$254)) -> 0 | BH16: =Inputs!BF189*IF(Inputs!$E$253 = 2, Inputs!BF251, Inputs!BF251 * (1-Inputs!$E$254)) -> 0 | BI16: =Inputs!BG189*IF(Inputs!$E$253 = 2, Inputs!BG251, Inputs!BG251 * (1-Inputs!$E$254)) -> 0 | BJ16: =Inputs!BH189*IF(Inputs!$E$253 = 2, Inputs!BH251, Inputs!BH251 * (1-Inputs!$E$254)) -> 0 | BK16: =Inputs!BI189*IF(Inputs!$E$253 = 2, Inputs!BI251, Inputs!BI251 * (1-Inputs!$E$254)) -> 0 | BL16: =Inputs!BJ189*IF(Inputs!$E$253 = 2, Inputs!BJ251, Inputs!BJ251 * (1-Inputs!$E$254)) -> 0 | BM16: =Inputs!BK189*IF(Inputs!$E$253 = 2, Inputs!BK251, Inputs!BK251 * (1-Inputs!$E$254)) -> 0 | BN16: =Inputs!BL189*IF(Inputs!$E$253 = 2, Inputs!BL251, Inputs!BL251 * (1-Inputs!$E$254)) -> 0 | BO16: =Inputs!BM189*IF(Inputs!$E$253 = 2, Inputs!BM251, Inputs!BM251 * (1-Inputs!$E$254)) -> 0 | BP16: =Inputs!BN189*IF(Inputs!$E$253 = 2, Inputs!BN251, Inputs!BN251 * (1-Inputs!$E$254)) -> 0 | BQ16: =Inputs!BO189*IF(Inputs!$E$253 = 2, Inputs!BO251, Inputs!BO251 * (1-Inputs!$E$254)) -> 0 | BR16: =Inputs!BP189*IF(Inputs!$E$253 = 2, Inputs!BP251, Inputs!BP251 * (1-Inputs!$E$254)) -> 0 | BS16: =Inputs!BQ189*IF(Inputs!$E$253 = 2, Inputs!BQ251, Inputs!BQ251 * (1-Inputs!$E$254)) -> 0 | BT16: =Inputs!BR189*IF(Inputs!$E$253 = 2, Inputs!BR251, Inputs!BR251 * (1-Inputs!$E$254)) -> 0 | BU16: =Inputs!BS189*IF(Inputs!$E$253 = 2, Inputs!BS251, Inputs!BS251 * (1-Inputs!$E$254)) -> 0 | BV16: =Inputs!BT189*IF(Inputs!$E$253 = 2, Inputs!BT251, Inputs!BT251 * (1-Inputs!$E$254)) -> 0 | BW16: =Inputs!BU189*IF(Inputs!$E$253 = 2, Inputs!BU251, Inputs!BU251 * (1-Inputs!$E$254)) -> 0 | BX16: =Inputs!BV189*IF(Inputs!$E$253 = 2, Inputs!BV251, Inputs!BV251 * (1-Inputs!$E$254)) -> 0 | BY16: =Inputs!BW189*IF(Inputs!$E$253 = 2, Inputs!BW251, Inputs!BW251 * (1-Inputs!$E$254)) -> 0 | BZ16: =Inputs!BX189*IF(Inputs!$E$253 = 2, Inputs!BX251, Inputs!BX251 * (1-Inputs!$E$254)) -> 0 | CA16: =Inputs!BY189*IF(Inputs!$E$253 = 2, Inputs!BY251, Inputs!BY251 * (1-Inputs!$E$254)) -> 0 | CB16: =Inputs!BZ189*IF(Inputs!$E$253 = 2, Inputs!BZ251, Inputs!BZ251 * (1-Inputs!$E$254)) -> 0 | CC16: =Inputs!CA189*IF(Inputs!$E$253 = 2, Inputs!CA251, Inputs!CA251 * (1-Inputs!$E$254)) -> 0 | CD16: =Inputs!CB189*IF(Inputs!$E$253 = 2, Inputs!CB251, Inputs!CB251 * (1-Inputs!$E$254)) -> 0 | CE16: =Inputs!CC189*IF(Inputs!$E$253 = 2, Inputs!CC251, Inputs!CC251 * (1-Inputs!$E$254)) -> 0 | CF16: =Inputs!CD189*IF(Inputs!$E$253 = 2, Inputs!CD251, Inputs!CD251 * (1-Inputs!$E$254)) -> 0 | CG16: =Inputs!CE189*IF(Inputs!$E$253 = 2, Inputs!CE251, Inputs!CE251 * (1-Inputs!$E$254)) -> 0 | CH16: =Inputs!CF189*IF(Inputs!$E$253 = 2, Inputs!CF251, Inputs!CF251 * (1-Inputs!$E$254)) -> 0
C17: Total revenue | E17: ="$ million "&Inputs!D6 -> $ million 2023 | F17: =SUM(G17:CH17) -> 35261.36804 | G17: =SUM(G11:G16) -> 0 | H17: =SUM(H11:H16) -> 0 | I17: 0 | J17: 0 | K17: 0 | L17: 0 | M17: 0 | N17: 662.0493252 | O17: 1176.954588 | P17: 1029.680567 | Q17: 1029.774797 | R17: 1029.711594 | S17: 1176.81326 | T17: 1324.002447 | U17: 1471.208685 | V17: 1618.150971 | W17: 1722.311395 | X17: 1722.32136 | Y17: 1722.272983 | Z17: 1722.334356 | AA17: 1722.288321 | AB17: 1722.297233 | AC17: 1722.332295 | AD17: 1722.366461 | AE17: 1722.374869 | AF17: 1722.334106 | AG17: 1722.381742 | AH17: 1722.331409 | AI17: 1722.316286 | AJ17: 1722.309008 | AK17: 630.4499781 | AL17: 0 | AM17: 0 | AN17: 0 | AO17: 0 | AP17: 0 | AQ17: 0 | AR17: 0 | AS17: 0 | AT17: 0 | AU17: 0 | AV17: =SUM(AV11:AV16) -> 0 | AW17: 0 | AX17: 0 | AY17: 0 | AZ17: 0 | BA17: 0 | BB17: 0 | BC17: 0 | BD17: 0 | BE17: 0 | BF17: 0 | BG17: 0 | BH17: 0 | BI17: 0 | BJ17: 0 | BK17: 0 | BL17: 0 | BM17: 0 | BN17: 0 | BO17: 0 | BP17: 0 | BQ17: 0 | BR17: 0 | BS17: 0 | BT17: 0 | BU17: 0 | BV17: 0 | BW17: 0 | BX17: 0 | BY17: 0 | BZ17: 0 | CA17: 0 | CB17: 0 | CC17: 0 | CD17: 0 | CE17: 0 | CF17: =SUM(CF11:CF16) -> 0 | CG17: 0 | CH17: 0
C19: Costs
C21: Initial capital expenditure | E21: ="$ million "&Inputs!D6 -> $ million 2023 | F21: =SUM(G21:AU21) -> 4500 | G21: =Inputs!E232 + Inputs!E235 + Inputs!E236 -> 0 | H21: =Inputs!F232 + Inputs!F235 + Inputs!F236 -> 0 | I21: =Inputs!G232 + Inputs!G235 + Inputs!G236 -> 0 | J21: =Inputs!H232 + Inputs!H235 + Inputs!H236 -> 0 | K21: =Inputs!I232 + Inputs!I235 + Inputs!I236 -> 607.455521 | L21: =Inputs!J232 + Inputs!J235 + Inputs!J236 -> 1300.056481 | M21: =Inputs!K232 + Inputs!K235 + Inputs!K236 -> 1710.533748 | N21: =Inputs!L232 + Inputs!L235 + Inputs!L236 -> 881.9542502 | O21: =Inputs!M232 + Inputs!M235 + Inputs!M236 -> 0 | P21: =Inputs!N232 + Inputs!N235 + Inputs!N236 -> 0 | Q21: =Inputs!O232 + Inputs!O235 + Inputs!O236 -> 0 | R21: =Inputs!P232 + Inputs!P235 + Inputs!P236 -> 0 | S21: =Inputs!Q232 + Inputs!Q235 + Inputs!Q236 -> 0 | T21: =Inputs!R232 + Inputs!R235 + Inputs!R236 -> 0 | U21: =Inputs!S232 + Inputs!S235 + Inputs!S236 -> 0 | V21: =Inputs!T232 + Inputs!T235 + Inputs!T236 -> 0 | W21: =Inputs!U232 + Inputs!U235 + Inputs!U236 -> 0 | X21: =Inputs!V232 + Inputs!V235 + Inputs!V236 -> 0 | Y21: =Inputs!W232 + Inputs!W235 + Inputs!W236 -> 0 | Z21: =Inputs!X232 + Inputs!X235 + Inputs!X236 -> 0 | AA21: =Inputs!Y232 + Inputs!Y235 + Inputs!Y236 -> 0 | AB21: =Inputs!Z232 + Inputs!Z235 + Inputs!Z236 -> 0 | AC21: =Inputs!AA232 + Inputs!AA235 + Inputs!AA236 -> 0 | AD21: =Inputs!AB232 + Inputs!AB235 + Inputs!AB236 -> 0 | AE21: =Inputs!AC232 + Inputs!AC235 + Inputs!AC236 -> 0 | AF21: =Inputs!AD232 + Inputs!AD235 + Inputs!AD236 -> 0 | AG21: =Inputs!AE232 + Inputs!AE235 + Inputs!AE236 -> 0 | AH21: =Inputs!AF232 + Inputs!AF235 + Inputs!AF236 -> 0 | AI21: =Inputs!AG232 + Inputs!AG235 + Inputs!AG236 -> 0 | AJ21: =Inputs!AH232 + Inputs!AH235 + Inputs!AH236 -> 0 | AK21: =Inputs!AI232 + Inputs!AI235 + Inputs!AI236 -> 0 | AL21: =Inputs!AJ232 + Inputs!AJ235 + Inputs!AJ236 -> 0 | AM21: =Inputs!AK232 + Inputs!AK235 + Inputs!AK236 -> 0 | AN21: =Inputs!AL232 + Inputs!AL235 + Inputs!AL236 -> 0 | AO21: =Inputs!AM232 + Inputs!AM235 + Inputs!AM236 -> 0 | AP21: =Inputs!AN232 + Inputs!AN235 + Inputs!AN236 -> 0 | AQ21: =Inputs!AO232 + Inputs!AO235 + Inputs!AO236 -> 0 | AR21: =Inputs!AP232 + Inputs!AP235 + Inputs!AP236 -> 0 | AS21: =Inputs!AQ232 + Inputs!AQ235 + Inputs!AQ236 -> 0 | AT21: =Inputs!AR232 + Inputs!AR235 + Inputs!AR236 -> 0 | AU21: =Inputs!AS232 + Inputs!AS235 + Inputs!AS236 -> 0 | AV21: =Inputs!AT232 + Inputs!AT235 + Inputs!AT236 -> 0 | AW21: =Inputs!AU232 + Inputs!AU235 + Inputs!AU236 -> 0 | AX21: =Inputs!AV232 + Inputs!AV235 + Inputs!AV236 -> 0 | AY21: =Inputs!AW232 + Inputs!AW235 + Inputs!AW236 -> 0 | AZ21: =Inputs!AX232 + Inputs!AX235 + Inputs!AX236 -> 0 | BA21: =Inputs!AY232 + Inputs!AY235 + Inputs!AY236 -> 0 | BB21: =Inputs!AZ232 + Inputs!AZ235 + Inputs!AZ236 -> 0 | BC21: =Inputs!BA232 + Inputs!BA235 + Inputs!BA236 -> 0 | BD21: =Inputs!BB232 + Inputs!BB235 + Inputs!BB236 -> 0 | BE21: =Inputs!BC232 + Inputs!BC235 + Inputs!BC236 -> 0 | BF21: =Inputs!BD232 + Inputs!BD235 + Inputs!BD236 -> 0 | BG21: =Inputs!BE232 + Inputs!BE235 + Inputs!BE236 -> 0 | BH21: =Inputs!BF232 + Inputs!BF235 + Inputs!BF236 -> 0 | BI21: =Inputs!BG232 + Inputs!BG235 + Inputs!BG236 -> 0 | BJ21: =Inputs!BH232 + Inputs!BH235 + Inputs!BH236 -> 0 | BK21: =Inputs!BI232 + Inputs!BI235 + Inputs!BI236 -> 0 | BL21: =Inputs!BJ232 + Inputs!BJ235 + Inputs!BJ236 -> 0 | BM21: =Inputs!BK232 + Inputs!BK235 + Inputs!BK236 -> 0 | BN21: =Inputs!BL232 + Inputs!BL235 + Inputs!BL236 -> 0 | BO21: =Inputs!BM232 + Inputs!BM235 + Inputs!BM236 -> 0 | BP21: =Inputs!BN232 + Inputs!BN235 + Inputs!BN236 -> 0 | BQ21: =Inputs!BO232 + Inputs!BO235 + Inputs!BO236 -> 0 | BR21: =Inputs!BP232 + Inputs!BP235 + Inputs!BP236 -> 0 | BS21: =Inputs!BQ232 + Inputs!BQ235 + Inputs!BQ236 -> 0 | BT21: =Inputs!BR232 + Inputs!BR235 + Inputs!BR236 -> 0 | BU21: =Inputs!BS232 + Inputs!BS235 + Inputs!BS236 -> 0 | BV21: =Inputs!BT232 + Inputs!BT235 + Inputs!BT236 -> 0 | BW21: =Inputs!BU232 + Inputs!BU235 + Inputs!BU236 -> 0 | BX21: =Inputs!BV232 + Inputs!BV235 + Inputs!BV236 -> 0 | BY21: =Inputs!BW232 + Inputs!BW235 + Inputs!BW236 -> 0 | BZ21: =Inputs!BX232 + Inputs!BX235 + Inputs!BX236 -> 0 | CA21: =Inputs!BY232 + Inputs!BY235 + Inputs!BY236 -> 0 | CB21: =Inputs!BZ232 + Inputs!BZ235 + Inputs!BZ236 -> 0 | CC21: =Inputs!CA232 + Inputs!CA235 + Inputs!CA236 -> 0 | CD21: =Inputs!CB232 + Inputs!CB235 + Inputs!CB236 -> 0 | CE21: =Inputs!CC232 + Inputs!CC235 + Inputs!CC236 -> 0 | CF21: =Inputs!CD232 + Inputs!CD235 + Inputs!CD236 -> 0 | CG21: =Inputs!CE232 + Inputs!CE235 + Inputs!CE236 -> 0 | CH21: =Inputs!CF232 + Inputs!CF235 + Inputs!CF236 -> 0
C22: Expansion 1 capital expenditure | E22: ="$ million "&Inputs!D6 -> $ million 2023 | F22: 0 | G22: =Inputs!E233 -> 0 | H22: =Inputs!F233 -> 0 | I22: =Inputs!G233 -> 0 | J22: =Inputs!H233 -> 0 | K22: =Inputs!I233 -> 0 | L22: =Inputs!J233 -> 0 | M22: =Inputs!K233 -> 0 | N22: =Inputs!L233 -> 0 | O22: =Inputs!M233 -> 0 | P22: =Inputs!N233 -> 0 | Q22: =Inputs!O233 -> 0 | R22: =Inputs!P233 -> 0 | S22: =Inputs!Q233 -> 0 | T22: =Inputs!R233 -> 0 | U22: =Inputs!S233 -> 0 | V22: =Inputs!T233 -> 0 | W22: =Inputs!U233 -> 0 | X22: =Inputs!V233 -> 0 | Y22: =Inputs!W233 -> 0 | Z22: =Inputs!X233 -> 0 | AA22: =Inputs!Y233 -> 0 | AB22: =Inputs!Z233 -> 0 | AC22: =Inputs!AA233 -> 0 | AD22: =Inputs!AB233 -> 0 | AE22: =Inputs!AC233 -> 0 | AF22: =Inputs!AD233 -> 0 | AG22: =Inputs!AE233 -> 0 | AH22: =Inputs!AF233 -> 0 | AI22: =Inputs!AG233 -> 0 | AJ22: =Inputs!AH233 -> 0 | AK22: =Inputs!AI233 -> 0 | AL22: =Inputs!AJ233 -> 0 | AM22: =Inputs!AK233 -> 0 | AN22: =Inputs!AL233 -> 0 | AO22: =Inputs!AM233 -> 0 | AP22: =Inputs!AN233 -> 0 | AQ22: =Inputs!AO233 -> 0 | AR22: =Inputs!AP233 -> 0 | AS22: =Inputs!AQ233 -> 0 | AT22: =Inputs!AR233 -> 0 | AU22: =Inputs!AS233 -> 0 | AV22: =Inputs!AT233 -> 0 | AW22: =Inputs!AU233 -> 0 | AX22: =Inputs!AV233 -> 0 | AY22: =Inputs!AW233 -> 0 | AZ22: =Inputs!AX233 -> 0 | BA22: =Inputs!AY233 -> 0 | BB22: =Inputs!AZ233 -> 0 | BC22: =Inputs!BA233 -> 0 | BD22: =Inputs!BB233 -> 0 | BE22: =Inputs!BC233 -> 0 | BF22: =Inputs!BD233 -> 0 | BG22: =Inputs!BE233 -> 0 | BH22: =Inputs!BF233 -> 0 | BI22: =Inputs!BG233 -> 0 | BJ22: =Inputs!BH233 -> 0 | BK22: =Inputs!BI233 -> 0 | BL22: =Inputs!BJ233 -> 0 | BM22: =Inputs!BK233 -> 0 | BN22: =Inputs!BL233 -> 0 | BO22: =Inputs!BM233 -> 0 | BP22: =Inputs!BN233 -> 0 | BQ22: =Inputs!BO233 -> 0 | BR22: =Inputs!BP233 -> 0 | BS22: =Inputs!BQ233 -> 0 | BT22: =Inputs!BR233 -> 0 | BU22: =Inputs!BS233 -> 0 | BV22: =Inputs!BT233 -> 0 | BW22: =Inputs!BU233 -> 0 | BX22: =Inputs!BV233 -> 0 | BY22: =Inputs!BW233 -> 0 | BZ22: =Inputs!BX233 -> 0 | CA22: =Inputs!BY233 -> 0 | CB22: =Inputs!BZ233 -> 0 | CC22: =Inputs!CA233 -> 0 | CD22: =Inputs!CB233 -> 0 | CE22: =Inputs!CC233 -> 0 | CF22: =Inputs!CD233 -> 0 | CG22: =Inputs!CE233 -> 0 | CH22: =Inputs!CF233 -> 0
C23: Expansion 2 capital expenditure | E23: ="$ million "&Inputs!D6 -> $ million 2023 | F23: 0 | G23: =Inputs!E234 -> 0 | H23: =Inputs!F234 -> 0 | I23: =Inputs!G234 -> 0 | J23: =Inputs!H234 -> 0 | K23: =Inputs!I234 -> 0 | L23: =Inputs!J234 -> 0 | M23: =Inputs!K234 -> 0 | N23: =Inputs!L234 -> 0 | O23: =Inputs!M234 -> 0 | P23: =Inputs!N234 -> 0 | Q23: =Inputs!O234 -> 0 | R23: =Inputs!P234 -> 0 | S23: =Inputs!Q234 -> 0 | T23: =Inputs!R234 -> 0 | U23: =Inputs!S234 -> 0 | V23: =Inputs!T234 -> 0 | W23: =Inputs!U234 -> 0 | X23: =Inputs!V234 -> 0 | Y23: =Inputs!W234 -> 0 | Z23: =Inputs!X234 -> 0 | AA23: =Inputs!Y234 -> 0 | AB23: =Inputs!Z234 -> 0 | AC23: =Inputs!AA234 -> 0 | AD23: =Inputs!AB234 -> 0 | AE23: =Inputs!AC234 -> 0 | AF23: =Inputs!AD234 -> 0 | AG23: =Inputs!AE234 -> 0 | AH23: =Inputs!AF234 -> 0 | AI23: =Inputs!AG234 -> 0 | AJ23: =Inputs!AH234 -> 0 | AK23: =Inputs!AI234 -> 0 | AL23: =Inputs!AJ234 -> 0 | AM23: =Inputs!AK234 -> 0 | AN23: =Inputs!AL234 -> 0 | AO23: =Inputs!AM234 -> 0 | AP23: =Inputs!AN234 -> 0 | AQ23: =Inputs!AO234 -> 0 | AR23: =Inputs!AP234 -> 0 | AS23: =Inputs!AQ234 -> 0 | AT23: =Inputs!AR234 -> 0 | AU23: =Inputs!AS234 -> 0 | AV23: =Inputs!AT234 -> 0 | AW23: =Inputs!AU234 -> 0 | AX23: =Inputs!AV234 -> 0 | AY23: =Inputs!AW234 -> 0 | AZ23: =Inputs!AX234 -> 0 | BA23: =Inputs!AY234 -> 0 | BB23: =Inputs!AZ234 -> 0 | BC23: =Inputs!BA234 -> 0 | BD23: =Inputs!BB234 -> 0 | BE23: =Inputs!BC234 -> 0 | BF23: =Inputs!BD234 -> 0 | BG23: =Inputs!BE234 -> 0 | BH23: =Inputs!BF234 -> 0 | BI23: =Inputs!BG234 -> 0 | BJ23: =Inputs!BH234 -> 0 | BK23: =Inputs!BI234 -> 0 | BL23: =Inputs!BJ234 -> 0 | BM23: =Inputs!BK234 -> 0 | BN23: =Inputs!BL234 -> 0 | BO23: =Inputs!BM234 -> 0 | BP23: =Inputs!BN234 -> 0 | BQ23: =Inputs!BO234 -> 0 | BR23: =Inputs!BP234 -> 0 | BS23: =Inputs!BQ234 -> 0 | BT23: =Inputs!BR234 -> 0 | BU23: =Inputs!BS234 -> 0 | BV23: =Inputs!BT234 -> 0 | BW23: =Inputs!BU234 -> 0 | BX23: =Inputs!BV234 -> 0 | BY23: =Inputs!BW234 -> 0 | BZ23: =Inputs!BX234 -> 0 | CA23: =Inputs!BY234 -> 0 | CB23: =Inputs!BZ234 -> 0 | CC23: =Inputs!CA234 -> 0 | CD23: =Inputs!CB234 -> 0 | CE23: =Inputs!CC234 -> 0 | CF23: =Inputs!CD234 -> 0 | CG23: =Inputs!CE234 -> 0 | CH23: =Inputs!CF234 -> 0
C24: Crude feedstock cost | E24: ="$ million "&Inputs!D6 -> $ million 2023 | F24: 17503.99005 | G24: =Inputs!E215 -> 0 | H24: =Inputs!F215 -> 0 | I24: =Inputs!G215 -> 0 | J24: =Inputs!H215 -> 0 | K24: =Inputs!I215 -> 0 | L24: =Inputs!J215 -> 0 | M24: =Inputs!K215 -> 0 | N24: =Inputs!L215 -> 301.3833592 | O24: =Inputs!M215 -> 492.9179224 | P24: =Inputs!N215 -> 382.9721066 | Q24: =Inputs!O215 -> 383.0424531 | R24: =Inputs!P215 -> 382.9952691 | S24: =Inputs!Q215 -> 492.8124148 | T24: =Inputs!R215 -> 602.6948987 | U24: =Inputs!S215 -> 712.5901119 | V24: =Inputs!T215 -> 822.2882739 | W24: =Inputs!U215 -> 900.0481033 | X24: =Inputs!V215 -> 900.0555425 | Y24: =Inputs!W215 -> 900.0194275 | Z24: =Inputs!X215 -> 900.065245 | AA24: =Inputs!Y215 -> 900.0308781 | AB24: =Inputs!Z215 -> 900.0375307 | AC24: =Inputs!AA215 -> 900.0637064 | AD24: =Inputs!AB215 -> 900.0892121 | AE24: =Inputs!AC215 -> 900.0954893 | AF24: =Inputs!AD215 -> 900.0650584 | AG24: =Inputs!AE215 -> 900.1006202 | AH24: =Inputs!AF215 -> 900.0630443 | AI24: =Inputs!AG215 -> 900.0517544 | AJ24: =Inputs!AH215 -> 900.0463216 | AK24: =Inputs!AI215 -> 329.461311 | AL24: =Inputs!AJ215 -> 0 | AM24: =Inputs!AK215 -> 0 | AN24: =Inputs!AL215 -> 0 | AO24: =Inputs!AM215 -> 0 | AP24: =Inputs!AN215 -> 0 | AQ24: =Inputs!AO215 -> 0 | AR24: =Inputs!AP215 -> 0 | AS24: =Inputs!AQ215 -> 0 | AT24: =Inputs!AR215 -> 0 | AU24: =Inputs!AS215 -> 0 | AV24: =Inputs!AT215 -> 0 | AW24: =Inputs!AU215 -> 0 | AX24: =Inputs!AV215 -> 0 | AY24: =Inputs!AW215 -> 0 | AZ24: =Inputs!AX215 -> 0 | BA24: =Inputs!AY215 -> 0 | BB24: =Inputs!AZ215 -> 0 | BC24: =Inputs!BA215 -> 0 | BD24: =Inputs!BB215 -> 0 | BE24: =Inputs!BC215 -> 0 | BF24: =Inputs!BD215 -> 0 | BG24: =Inputs!BE215 -> 0 | BH24: =Inputs!BF215 -> 0 | BI24: =Inputs!BG215 -> 0 | BJ24: =Inputs!BH215 -> 0 | BK24: =Inputs!BI215 -> 0 | BL24: =Inputs!BJ215 -> 0 | BM24: =Inputs!BK215 -> 0 | BN24: =Inputs!BL215 -> 0 | BO24: =Inputs!BM215 -> 0 | BP24: =Inputs!BN215 -> 0 | BQ24: =Inputs!BO215 -> 0 | BR24: =Inputs!BP215 -> 0 | BS24: =Inputs!BQ215 -> 0 | BT24: =Inputs!BR215 -> 0 | BU24: =Inputs!BS215 -> 0 | BV24: =Inputs!BT215 -> 0 | BW24: =Inputs!BU215 -> 0 | BX24: =Inputs!BV215 -> 0 | BY24: =Inputs!BW215 -> 0 | BZ24: =Inputs!BX215 -> 0 | CA24: =Inputs!BY215 -> 0 | CB24: =Inputs!BZ215 -> 0 | CC24: =Inputs!CA215 -> 0 | CD24: =Inputs!CB215 -> 0 | CE24: =Inputs!CC215 -> 0 | CF24: =Inputs!CD215 -> 0 | CG24: =Inputs!CE215 -> 0 | CH24: =Inputs!CF215 -> 0
C25: Other operating costs | E25: ="$ million "&Inputs!D6 -> $ million 2023 | F25: 1470 | G25: =Inputs!E220 -> 0 | H25: =Inputs!F220 -> 0 | I25: =Inputs!G220 -> 0 | J25: =Inputs!H220 -> 0 | K25: =Inputs!I220 -> 0 | L25: =Inputs!J220 -> 0 | M25: =Inputs!K220 -> 0 | N25: =Inputs!L220 -> 32.143725 | O25: =Inputs!M220 -> 64.28745 | P25: =Inputs!N220 -> 64.28745 | Q25: =Inputs!O220 -> 64.28745 | R25: =Inputs!P220 -> 64.28745 | S25: =Inputs!Q220 -> 64.28745 | T25: =Inputs!R220 -> 64.28745 | U25: =Inputs!S220 -> 64.28745 | V25: =Inputs!T220 -> 64.28745 | W25: =Inputs!U220 -> 64.28745 | X25: =Inputs!V220 -> 64.28745 | Y25: =Inputs!W220 -> 64.28745 | Z25: =Inputs!X220 -> 64.28745 | AA25: =Inputs!Y220 -> 64.28745 | AB25: =Inputs!Z220 -> 64.28745 | AC25: =Inputs!AA220 -> 64.28745 | AD25: =Inputs!AB220 -> 64.28745 | AE25: =Inputs!AC220 -> 64.28745 | AF25: =Inputs!AD220 -> 64.28745 | AG25: =Inputs!AE220 -> 64.28745 | AH25: =Inputs!AF220 -> 64.28745 | AI25: =Inputs!AG220 -> 64.28745 | AJ25: =Inputs!AH220 -> 64.28745 | AK25: =Inputs!AI220 -> 23.532375 | AL25: =Inputs!AJ220 -> 0 | AM25: =Inputs!AK220 -> 0 | AN25: =Inputs!AL220 -> 0 | AO25: =Inputs!AM220 -> 0 | AP25: =Inputs!AN220 -> 0 | AQ25: =Inputs!AO220 -> 0 | AR25: =Inputs!AP220 -> 0 | AS25: =Inputs!AQ220 -> 0 | AT25: =Inputs!AR220 -> 0 | AU25: =Inputs!AS220 -> 0 | AV25: =Inputs!AT220 -> 0 | AW25: =Inputs!AU220 -> 0 | AX25: =Inputs!AV220 -> 0 | AY25: =Inputs!AW220 -> 0 | AZ25: =Inputs!AX220 -> 0 | BA25: =Inputs!AY220 -> 0 | BB25: =Inputs!AZ220 -> 0 | BC25: =Inputs!BA220 -> 0 | BD25: =Inputs!BB220 -> 0 | BE25: =Inputs!BC220 -> 0 | BF25: =Inputs!BD220 -> 0 | BG25: =Inputs!BE220 -> 0 | BH25: =Inputs!BF220 -> 0 | BI25: =Inputs!BG220 -> 0 | BJ25: =Inputs!BH220 -> 0 | BK25: =Inputs!BI220 -> 0 | BL25: =Inputs!BJ220 -> 0 | BM25: =Inputs!BK220 -> 0 | BN25: =Inputs!BL220 -> 0 | BO25: =Inputs!BM220 -> 0 | BP25: =Inputs!BN220 -> 0 | BQ25: =Inputs!BO220 -> 0 | BR25: =Inputs!BP220 -> 0 | BS25: =Inputs!BQ220 -> 0 | BT25: =Inputs!BR220 -> 0 | BU25: =Inputs!BS220 -> 0 | BV25: =Inputs!BT220 -> 0 | BW25: =Inputs!BU220 -> 0 | BX25: =Inputs!BV220 -> 0 | BY25: =Inputs!BW220 -> 0 | BZ25: =Inputs!BX220 -> 0 | CA25: =Inputs!BY220 -> 0 | CB25: =Inputs!BZ220 -> 0 | CC25: =Inputs!CA220 -> 0 | CD25: =Inputs!CB220 -> 0 | CE25: =Inputs!CC220 -> 0 | CF25: =Inputs!CD220 -> 0 | CG25: =Inputs!CE220 -> 0 | CH25: =Inputs!CF220 -> 0
C27: Project pre-tax cashflow (real)
C29: Revenue | E29: ="$ million "&Inputs!D6 -> $ million 2023 | F29: =SUM(G29:AU29) -> 35261.36804 | G29: =G17 -> 0 | H29: =H17 -> 0 | I29: 0 | J29: 0 | K29: 0 | L29: 0 | M29: 0 | N29: 662.0493252 | O29: 1176.954588 | P29: 1029.680567 | Q29: 1029.774797 | R29: 1029.711594 | S29: 1176.81326 | T29: 1324.002447 | U29: 1471.208685 | V29: 1618.150971 | W29: 1722.311395 | X29: 1722.32136 | Y29: 1722.272983 | Z29: 1722.334356 | AA29: 1722.288321 | AB29: 1722.297233 | AC29: 1722.332295 | AD29: 1722.366461 | AE29: 1722.374869 | AF29: 1722.334106 | AG29: 1722.381742 | AH29: 1722.331409 | AI29: 1722.316286 | AJ29: 1722.309008 | AK29: 630.4499781 | AL29: 0 | AM29: 0 | AN29: 0 | AO29: 0 | AP29: 0 | AQ29: 0 | AR29: 0 | AS29: 0 | AT29: 0 | AU29: 0 | AV29: =AV17 -> 0 | AW29: 0 | AX29: 0 | AY29: 0 | AZ29: 0 | BA29: 0 | BB29: 0 | BC29: 0 | BD29: 0 | BE29: 0 | BF29: 0 | BG29: 0 | BH29: 0 | BI29: 0 | BJ29: 0 | BK29: 0 | BL29: 0 | BM29: 0 | BN29: 0 | BO29: 0 | BP29: 0 | BQ29: 0 | BR29: 0 | BS29: 0 | BT29: 0 | BU29: 0 | BV29: 0 | BW29: 0 | BX29: 0 | BY29: 0 | BZ29: 0 | CA29: 0 | CB29: 0 | CC29: 0 | CD29: 0 | CE29: 0 | CF29: =CF17 -> 0 | CG29: 0 | CH29: 0
C30: Initial capital expenditure | E30: ="$ million "&Inputs!D6 -> $ million 2023 | F30: =SUM(G30:AU30) -> 4500 | G30: =G21 -> 0 | H30: 0 | I30: 0 | J30: 0 | K30: 607.455521 | L30: 1300.056481 | M30: 1710.533748 | N30: 881.9542502 | O30: 0 | P30: 0 | Q30: 0 | R30: 0 | S30: 0 | T30: 0 | U30: 0 | V30: 0 | W30: 0 | X30: 0 | Y30: 0 | Z30: 0 | AA30: 0 | AB30: 0 | AC30: 0 | AD30: 0 | AE30: 0 | AF30: 0 | AG30: 0 | AH30: 0 | AI30: 0 | AJ30: 0 | AK30: 0 | AL30: 0 | AM30: =AM21 -> 0 | AN30: 0 | AO30: 0 | AP30: 0 | AQ30: 0 | AR30: 0 | AS30: 0 | AT30: 0 | AU30: 0 | AV30: 0 | AW30: 0 | AX30: 0 | AY30: 0 | AZ30: 0 | BA30: 0 | BB30: 0 | BC30: 0 | BD30: 0 | BE30: 0 | BF30: 0 | BG30: 0 | BH30: 0 | BI30: 0 | BJ30: 0 | BK30: 0 | BL30: 0 | BM30: 0 | BN30: 0 | BO30: 0 | BP30: 0 | BQ30: 0 | BR30: 0 | BS30: =BS21 -> 0 | BT30: 0 | BU30: 0 | BV30: 0 | BW30: 0 | BX30: 0 | BY30: 0 | BZ30: 0 | CA30: 0 | CB30: 0 | CC30: 0 | CD30: 0 | CE30: 0 | CF30: 0 | CG30: 0 | CH30: 0
C31: Expansion 1 capital expenditure | E31: ="$ million "&Inputs!D6 -> $ million 2023 | F31: =SUM(G31:AU31) -> 0 | G31: =G22 -> 0 | H31: 0 | I31: 0 | J31: 0 | K31: 0 | L31: 0 | M31: 0 | N31: 0 | O31: 0 | P31: 0 | Q31: 0 | R31: 0 | S31: 0 | T31: 0 | U31: 0 | V31: 0 | W31: 0 | X31: 0 | Y31: 0 | Z31: 0 | AA31: 0 | AB31: 0 | AC31: 0 | AD31: 0 | AE31: 0 | AF31: 0 | AG31: 0 | AH31: 0 | AI31: 0 | AJ31: 0 | AK31: 0 | AL31: 0 | AM31: =AM22 -> 0 | AN31: 0 | AO31: 0 | AP31: 0 | AQ31: 0 | AR31: 0 | AS31: 0 | AT31: 0 | AU31: 0 | AV31: 0 | AW31: 0 | AX31: 0 | AY31: 0 | AZ31: 0 | BA31: 0 | BB31: 0 | BC31: 0 | BD31: 0 | BE31: 0 | BF31: 0 | BG31: 0 | BH31: 0 | BI31: 0 | BJ31: 0 | BK31: 0 | BL31: 0 | BM31: 0 | BN31: 0 | BO31: 0 | BP31: 0 | BQ31: 0 | BR31: 0 | BS31: =BS22 -> 0 | BT31: 0 | BU31: 0 | BV31: 0 | BW31: 0 | BX31: 0 | BY31: 0 | BZ31: 0 | CA31: 0 | CB31: 0 | CC31: 0 | CD31: 0 | CE31: 0 | CF31: 0 | CG31: 0 | CH31: 0
C32: Expansion 2 capital expenditure | E32: ="$ million "&Inputs!D6 -> $ million 2023 | F32: 0 | G32: =G23 -> 0 | H32: =H23 -> 0 | I32: 0 | J32: 0 | K32: 0 | L32: 0 | M32: 0 | N32: 0 | O32: 0 | P32: 0 | Q32: 0 | R32: 0 | S32: 0 | T32: 0 | U32: 0 | V32: 0 | W32: 0 | X32: 0 | Y32: 0 | Z32: 0 | AA32: 0 | AB32: 0 | AC32: 0 | AD32: 0 | AE32: 0 | AF32: 0 | AG32: 0 | AH32: 0 | AI32: 0 | AJ32: 0 | AK32: 0 | AL32: 0 | AM32: 0 | AN32: 0 | AO32: 0 | AP32: 0 | AQ32: 0 | AR32: 0 | AS32: 0 | AT32: 0 | AU32: 0 | AV32: 0 | AW32: 0 | AX32: 0 | AY32: 0 | AZ32: 0 | BA32: 0 | BB32: 0 | BC32: 0 | BD32: 0 | BE32: 0 | BF32: 0 | BG32: 0 | BH32: 0 | BI32: 0 | BJ32: 0 | BK32: 0 | BL32: 0 | BM32: 0 | BN32: 0 | BO32: 0 | BP32: 0 | BQ32: 0 | BR32: 0 | BS32: 0 | BT32: =BT23 -> 0 | BU32: 0 | BV32: 0 | BW32: 0 | BX32: 0 | BY32: 0 | BZ32: 0 | CA32: 0 | CB32: 0 | CC32: 0 | CD32: 0 | CE32: 0 | CF32: 0 | CG32: 0 | CH32: 0
C33: Crude feedstock cost | E33: ="$ million "&Inputs!D6 -> $ million 2023 | F33: =SUM(G33:AU33) -> 17503.99005 | G33: =G24 -> 0 | H33: =H24 -> 0 | I33: 0 | J33: 0 | K33: 0 | L33: 0 | M33: 0 | N33: 301.3833592 | O33: 492.9179224 | P33: 382.9721066 | Q33: 383.0424531 | R33: 382.9952691 | S33: 492.8124148 | T33: 602.6948987 | U33: 712.5901119 | V33: 822.2882739 | W33: 900.0481033 | X33: 900.0555425 | Y33: 900.0194275 | Z33: 900.065245 | AA33: 900.0308781 | AB33: 900.0375307 | AC33: 900.0637064 | AD33: 900.0892121 | AE33: 900.0954893 | AF33: 900.0650584 | AG33: 900.1006202 | AH33: 900.0630443 | AI33: 900.0517544 | AJ33: 900.0463216 | AK33: 329.461311 | AL33: 0 | AM33: 0 | AN33: 0 | AO33: 0 | AP33: 0 | AQ33: 0 | AR33: 0 | AS33: 0 | AT33: 0 | AU33: 0 | AV33: =AV24 -> 0 | AW33: 0 | AX33: 0 | AY33: 0 | AZ33: 0 | BA33: 0 | BB33: 0 | BC33: 0 | BD33: 0 | BE33: 0 | BF33: 0 | BG33: 0 | BH33: 0 | BI33: 0 | BJ33: 0 | BK33: 0 | BL33: 0 | BM33: 0 | BN33: 0 | BO33: 0 | BP33: 0 | BQ33: 0 | BR33: 0 | BS33: 0 | BT33: 0 | BU33: 0 | BV33: 0 | BW33: 0 | BX33: 0 | BY33: 0 | BZ33: 0 | CA33: 0 | CB33: 0 | CC33: 0 | CD33: 0 | CE33: 0 | CF33: =CF24 -> 0 | CG33: 0 | CH33: 0
C34: Other operating costs | E34: ="$ million "&Inputs!D6 -> $ million 2023 | F34: =SUM(G34:AU34) -> 1470 | G34: =G25 -> 0 | H34: =H25 -> 0 | I34: 0 | J34: 0 | K34: 0 | L34: 0 | M34: 0 | N34: 32.143725 | O34: 64.28745 | P34: 64.28745 | Q34: 64.28745 | R34: 64.28745 | S34: 64.28745 | T34: 64.28745 | U34: 64.28745 | V34: 64.28745 | W34: 64.28745 | X34: 64.28745 | Y34: 64.28745 | Z34: 64.28745 | AA34: 64.28745 | AB34: 64.28745 | AC34: 64.28745 | AD34: 64.28745 | AE34: 64.28745 | AF34: 64.28745 | AG34: 64.28745 | AH34: 64.28745 | AI34: 64.28745 | AJ34: 64.28745 | AK34: 23.532375 | AL34: 0 | AM34: 0 | AN34: 0 | AO34: 0 | AP34: 0 | AQ34: 0 | AR34: 0 | AS34: 0 | AT34: 0 | AU34: 0 | AV34: =AV25 -> 0 | AW34: 0 | AX34: 0 | AY34: 0 | AZ34: 0 | BA34: 0 | BB34: 0 | BC34: 0 | BD34: 0 | BE34: 0 | BF34: 0 | BG34: 0 | BH34: 0 | BI34: 0 | BJ34: 0 | BK34: 0 | BL34: 0 | BM34: 0 | BN34: 0 | BO34: 0 | BP34: 0 | BQ34: 0 | BR34: 0 | BS34: 0 | BT34: 0 | BU34: 0 | BV34: 0 | BW34: 0 | BX34: 0 | BY34: 0 | BZ34: 0 | CA34: 0 | CB34: 0 | CC34: 0 | CD34: 0 | CE34: 0 | CF34: =CF25 -> 0 | CG34: 0 | CH34: 0
C35: Project pre-tax cash flow | E35: ="$ million "&Inputs!D6 -> $ million 2023 | F35: =SUM(G35:CH35) -> 11787.37798 | G35: =G29-SUM(G30:G34) -> 0 | H35: =H29-SUM(H30:H34) -> 0 | I35: 0 | J35: 0 | K35: -607.455521 | L35: -1300.056481 | M35: -1710.533748 | N35: -553.4320092 | O35: 619.7492161 | P35: 582.4210105 | Q35: 582.4448941 | R35: 582.4288745 | S35: 619.7133947 | T35: 657.0200982 | U35: 694.3311235 | V35: 731.5752471 | W35: 757.9758416 | X35: 757.9783673 | Y35: 757.9661057 | Z35: 757.9816614 | AA35: 757.9699934 | AB35: 757.972252 | AC35: 757.981139 | AD35: 757.9897986 | AE35: 757.9919298 | AF35: 757.9815981 | AG35: 757.9936718 | AH35: 757.9809143 | AI35: 757.9770812 | AJ35: 757.9752366 | AK35: 277.4562922 | AL35: 0 | AM35: 0 | AN35: 0 | AO35: 0 | AP35: 0 | AQ35: 0 | AR35: 0 | AS35: 0 | AT35: 0 | AU35: 0 | AV35: 0 | AW35: 0 | AX35: 0 | AY35: 0 | AZ35: 0 | BA35: 0 | BB35: 0 | BC35: 0 | BD35: 0 | BE35: 0 | BF35: 0 | BG35: 0 | BH35: 0 | BI35: 0 | BJ35: 0 | BK35: 0 | BL35: 0 | BM35: 0 | BN35: 0 | BO35: 0 | BP35: 0 | BQ35: 0 | BR35: 0 | BS35: 0 | BT35: =BT29-SUM(BT30:BT34) -> 0 | BU35: 0 | BV35: 0 | BW35: 0 | BX35: 0 | BY35: 0 | BZ35: 0 | CA35: 0 | CB35: 0 | CC35: 0 | CD35: 0 | CE35: 0 | CF35: 0 | CG35: 0 | CH35: 0
C36: Cumulative pre-tax cashflow | E36: ="$ million "&Inputs!D6 -> $ million 2023 | G36: =F36 + G35 -> 0 | H36: =G36 + H35 -> 0 | I36: 0 | J36: 0 | K36: -607.455521 | L36: -1907.512002 | M36: -3618.04575 | N36: -4171.477759 | O36: -3551.728543 | P36: -2969.307532 | Q36: -2386.862638 | R36: -1804.433764 | S36: -1184.720369 | T36: -527.7002709 | U36: 166.6308526 | V36: 898.2060997 | W36: 1656.181941 | X36: 2414.160309 | Y36: 3172.126414 | Z36: 3930.108076 | AA36: 4688.078069 | AB36: 5446.050321 | AC36: 6204.03146 | AD36: 6962.021259 | AE36: 7720.013188 | AF36: 8477.994787 | AG36: 9235.988458 | AH36: 9993.969373 | AI36: 10751.94645 | AJ36: 11509.92169 | AK36: 11787.37798 | AL36: 11787.37798 | AM36: 11787.37798 | AN36: 11787.37798 | AO36: 11787.37798 | AP36: 11787.37798 | AQ36: 11787.37798 | AR36: 11787.37798 | AS36: 11787.37798 | AT36: 11787.37798 | AU36: 11787.37798 | AV36: =AU36 + AV35 -> 11787.37798 | AW36: =AV36 + AW35 -> 11787.37798 | AX36: =AW36 + AX35 -> 11787.37798 | AY36: =AX36 + AY35 -> 11787.37798 | AZ36: =AY36 + AZ35 -> 11787.37798 | BA36: =AZ36 + BA35 -> 11787.37798 | BB36: =BA36 + BB35 -> 11787.37798 | BC36: =BB36 + BC35 -> 11787.37798 | BD36: =BC36 + BD35 -> 11787.37798 | BE36: =BD36 + BE35 -> 11787.37798 | BF36: =BE36 + BF35 -> 11787.37798 | BG36: =BF36 + BG35 -> 11787.37798 | BH36: =BG36 + BH35 -> 11787.37798 | BI36: =BH36 + BI35 -> 11787.37798 | BJ36: =BI36 + BJ35 -> 11787.37798 | BK36: =BJ36 + BK35 -> 11787.37798 | BL36: =BK36 + BL35 -> 11787.37798 | BM36: =BL36 + BM35 -> 11787.37798 | BN36: =BM36 + BN35 -> 11787.37798 | BO36: =BN36 + BO35 -> 11787.37798 | BP36: =BO36 + BP35 -> 11787.37798 | BQ36: =BP36 + BQ35 -> 11787.37798 | BR36: =BQ36 + BR35 -> 11787.37798 | BS36: =BR36 + BS35 -> 11787.37798 | BT36: =BS36 + BT35 -> 11787.37798 | BU36: =BT36 + BU35 -> 11787.37798 | BV36: =BU36 + BV35 -> 11787.37798 | BW36: =BV36 + BW35 -> 11787.37798 | BX36: =BW36 + BX35 -> 11787.37798 | BY36: =BX36 + BY35 -> 11787.37798 | BZ36: =BY36 + BZ35 -> 11787.37798 | CA36: =BZ36 + CA35 -> 11787.37798 | CB36: =CA36 + CB35 -> 11787.37798 | CC36: =CB36 + CC35 -> 11787.37798 | CD36: =CC36 + CD35 -> 11787.37798 | CE36: =CD36 + CE35 -> 11787.37798 | CF36: =CE36 + CF35 -> 11787.37798 | CG36: =CF36 + CG35 -> 11787.37798 | CH36: =CG36 + CH35 -> 11787.37798
C38: Investor real discount factor | E38: Index | G38: =IF(G6 <= Inputs!$D$62, 1, F38 * ( 1 + Inputs!$E$263)) -> 1 | H38: =IF(H6 <= Inputs!$D$62, 1, G38 * ( 1 + Inputs!$E$263)) -> 1 | I38: =IF(I6 <= Inputs!$D$62, 1, H38 * ( 1 + Inputs!$E$263)) -> 1 | J38: =IF(J6 <= Inputs!$D$62, 1, I38 * ( 1 + Inputs!$E$263)) -> 1 | K38: =IF(K6 <= Inputs!$D$62, 1, J38 * ( 1 + Inputs!$E$263)) -> 1.08 | L38: =IF(L6 <= Inputs!$D$62, 1, K38 * ( 1 + Inputs!$E$263)) -> 1.1664 | M38: =IF(M6 <= Inputs!$D$62, 1, L38 * ( 1 + Inputs!$E$263)) -> 1.259712 | N38: =IF(N6 <= Inputs!$D$62, 1, M38 * ( 1 + Inputs!$E$263)) -> 1.36048896 | O38: =IF(O6 <= Inputs!$D$62, 1, N38 * ( 1 + Inputs!$E$263)) -> 1.469328077 | P38: =IF(P6 <= Inputs!$D$62, 1, O38 * ( 1 + Inputs!$E$263)) -> 1.586874323 | Q38: =IF(Q6 <= Inputs!$D$62, 1, P38 * ( 1 + Inputs!$E$263)) -> 1.713824269 | R38: =IF(R6 <= Inputs!$D$62, 1, Q38 * ( 1 + Inputs!$E$263)) -> 1.85093021 | S38: =IF(S6 <= Inputs!$D$62, 1, R38 * ( 1 + Inputs!$E$263)) -> 1.999004627 | T38: =IF(T6 <= Inputs!$D$62, 1, S38 * ( 1 + Inputs!$E$263)) -> 2.158924997 | U38: =IF(U6 <= Inputs!$D$62, 1, T38 * ( 1 + Inputs!$E$263)) -> 2.331638997 | V38: =IF(V6 <= Inputs!$D$62, 1, U38 * ( 1 + Inputs!$E$263)) -> 2.518170117 | W38: =IF(W6 <= Inputs!$D$62, 1, V38 * ( 1 + Inputs!$E$263)) -> 2.719623726 | X38: =IF(X6 <= Inputs!$D$62, 1, W38 * ( 1 + Inputs!$E$263)) -> 2.937193624 | Y38: =IF(Y6 <= Inputs!$D$62, 1, X38 * ( 1 + Inputs!$E$263)) -> 3.172169114 | Z38: =IF(Z6 <= Inputs!$D$62, 1, Y38 * ( 1 + Inputs!$E$263)) -> 3.425942643 | AA38: =IF(AA6 <= Inputs!$D$62, 1, Z38 * ( 1 + Inputs!$E$263)) -> 3.700018055 | AB38: =IF(AB6 <= Inputs!$D$62, 1, AA38 * ( 1 + Inputs!$E$263)) -> 3.996019499 | AC38: =IF(AC6 <= Inputs!$D$62, 1, AB38 * ( 1 + Inputs!$E$263)) -> 4.315701059 | AD38: =IF(AD6 <= Inputs!$D$62, 1, AC38 * ( 1 + Inputs!$E$263)) -> 4.660957144 | AE38: =IF(AE6 <= Inputs!$D$62, 1, AD38 * ( 1 + Inputs!$E$263)) -> 5.033833715 | AF38: =IF(AF6 <= Inputs!$D$62, 1, AE38 * ( 1 + Inputs!$E$263)) -> 5.436540413 | AG38: =IF(AG6 <= Inputs!$D$62, 1, AF38 * ( 1 + Inputs!$E$263)) -> 5.871463646 | AH38: =IF(AH6 <= Inputs!$D$62, 1, AG38 * ( 1 + Inputs!$E$263)) -> 6.341180737 | AI38: =IF(AI6 <= Inputs!$D$62, 1, AH38 * ( 1 + Inputs!$E$263)) -> 6.848475196 | AJ38: =IF(AJ6 <= Inputs!$D$62, 1, AI38 * ( 1 + Inputs!$E$263)) -> 7.396353212 | AK38: =IF(AK6 <= Inputs!$D$62, 1, AJ38 * ( 1 + Inputs!$E$263)) -> 7.988061469 | AL38: =IF(AL6 <= Inputs!$D$62, 1, AK38 * ( 1 + Inputs!$E$263)) -> 8.627106386 | AM38: =IF(AM6 <= Inputs!$D$62, 1, AL38 * ( 1 + Inputs!$E$263)) -> 9.317274897 | AN38: =IF(AN6 <= Inputs!$D$62, 1, AM38 * ( 1 + Inputs!$E$263)) -> 10.06265689 | AO38: =IF(AO6 <= Inputs!$D$62, 1, AN38 * ( 1 + Inputs!$E$263)) -> 10.86766944 | AP38: =IF(AP6 <= Inputs!$D$62, 1, AO38 * ( 1 + Inputs!$E$263)) -> 11.737083 | AQ38: =IF(AQ6 <= Inputs!$D$62, 1, AP38 * ( 1 + Inputs!$E$263)) -> 12.67604964 | AR38: =IF(AR6 <= Inputs!$D$62, 1, AQ38 * ( 1 + Inputs!$E$263)) -> 13.69013361 | AS38: =IF(AS6 <= Inputs!$D$62, 1, AR38 * ( 1 + Inputs!$E$263)) -> 14.78534429 | AT38: =IF(AT6 <= Inputs!$D$62, 1, AS38 * ( 1 + Inputs!$E$263)) -> 15.96817184 | AU38: =IF(AU6 <= Inputs!$D$62, 1, AT38 * ( 1 + Inputs!$E$263)) -> 17.24562558 | AV38: =IF(AV6 <= Inputs!$D$62, 1, AU38 * ( 1 + Inputs!$E$263)) -> 18.62527563 | AW38: =IF(AW6 <= Inputs!$D$62, 1, AV38 * ( 1 + Inputs!$E$263)) -> 20.11529768 | AX38: =IF(AX6 <= Inputs!$D$62, 1, AW38 * ( 1 + Inputs!$E$263)) -> 21.7245215 | AY38: =IF(AY6 <= Inputs!$D$62, 1, AX38 * ( 1 + Inputs!$E$263)) -> 23.46248322 | AZ38: =IF(AZ6 <= Inputs!$D$62, 1, AY38 * ( 1 + Inputs!$E$263)) -> 25.33948187 | BA38: =IF(BA6 <= Inputs!$D$62, 1, AZ38 * ( 1 + Inputs!$E$263)) -> 27.36664042 | BB38: =IF(BB6 <= Inputs!$D$62, 1, BA38 * ( 1 + Inputs!$E$263)) -> 29.55597166 | BC38: =IF(BC6 <= Inputs!$D$62, 1, BB38 * ( 1 + Inputs!$E$263)) -> 31.92044939 | BD38: =IF(BD6 <= Inputs!$D$62, 1, BC38 * ( 1 + Inputs!$E$263)) -> 34.47408534 | BE38: =IF(BE6 <= Inputs!$D$62, 1, BD38 * ( 1 + Inputs!$E$263)) -> 37.23201217 | BF38: =IF(BF6 <= Inputs!$D$62, 1, BE38 * ( 1 + Inputs!$E$263)) -> 40.21057314 | BG38: =IF(BG6 <= Inputs!$D$62, 1, BF38 * ( 1 + Inputs!$E$263)) -> 43.42741899 | BH38: =IF(BH6 <= Inputs!$D$62, 1, BG38 * ( 1 + Inputs!$E$263)) -> 46.90161251 | BI38: =IF(BI6 <= Inputs!$D$62, 1, BH38 * ( 1 + Inputs!$E$263)) -> 50.65374151 | BJ38: =IF(BJ6 <= Inputs!$D$62, 1, BI38 * ( 1 + Inputs!$E$263)) -> 54.70604084 | BK38: =IF(BK6 <= Inputs!$D$62, 1, BJ38 * ( 1 + Inputs!$E$263)) -> 59.0825241 | BL38: =IF(BL6 <= Inputs!$D$62, 1, BK38 * ( 1 + Inputs!$E$263)) -> 63.80912603 | BM38: =IF(BM6 <= Inputs!$D$62, 1, BL38 * ( 1 + Inputs!$E$263)) -> 68.91385611 | BN38: =IF(BN6 <= Inputs!$D$62, 1, BM38 * ( 1 + Inputs!$E$263)) -> 74.4269646 | BO38: =IF(BO6 <= Inputs!$D$62, 1, BN38 * ( 1 + Inputs!$E$263)) -> 80.38112177 | BP38: =IF(BP6 <= Inputs!$D$62, 1, BO38 * ( 1 + Inputs!$E$263)) -> 86.81161151 | BQ38: =IF(BQ6 <= Inputs!$D$62, 1, BP38 * ( 1 + Inputs!$E$263)) -> 93.75654043 | BR38: =IF(BR6 <= Inputs!$D$62, 1, BQ38 * ( 1 + Inputs!$E$263)) -> 101.2570637 | BS38: =IF(BS6 <= Inputs!$D$62, 1, BR38 * ( 1 + Inputs!$E$263)) -> 109.3576288 | BT38: =IF(BT6 <= Inputs!$D$62, 1, BS38 * ( 1 + Inputs!$E$263)) -> 118.1062391 | BU38: =IF(BU6 <= Inputs!$D$62, 1, BT38 * ( 1 + Inputs!$E$263)) -> 127.5547382 | BV38: =IF(BV6 <= Inputs!$D$62, 1, BU38 * ( 1 + Inputs!$E$263)) -> 137.7591172 | BW38: =IF(BW6 <= Inputs!$D$62, 1, BV38 * ( 1 + Inputs!$E$263)) -> 148.7798466 | BX38: =IF(BX6 <= Inputs!$D$62, 1, BW38 * ( 1 + Inputs!$E$263)) -> 160.6822344 | BY38: =IF(BY6 <= Inputs!$D$62, 1, BX38 * ( 1 + Inputs!$E$263)) -> 173.5368131 | BZ38: =IF(BZ6 <= Inputs!$D$62, 1, BY38 * ( 1 + Inputs!$E$263)) -> 187.4197581 | CA38: =IF(CA6 <= Inputs!$D$62, 1, BZ38 * ( 1 + Inputs!$E$263)) -> 202.4133388 | CB38: =IF(CB6 <= Inputs!$D$62, 1, CA38 * ( 1 + Inputs!$E$263)) -> 218.6064059 | CC38: =IF(CC6 <= Inputs!$D$62, 1, CB38 * ( 1 + Inputs!$E$263)) -> 236.0949184 | CD38: =IF(CD6 <= Inputs!$D$62, 1, CC38 * ( 1 + Inputs!$E$263)) -> 254.9825118 | CE38: =IF(CE6 <= Inputs!$D$62, 1, CD38 * ( 1 + Inputs!$E$263)) -> 275.3811128 | CF38: =IF(CF6 <= Inputs!$D$62, 1, CE38 * ( 1 + Inputs!$E$263)) -> 297.4116018 | CG38: =IF(CG6 <= Inputs!$D$62, 1, CF38 * ( 1 + Inputs!$E$263)) -> 321.20453 | CH38: =IF(CH6 <= Inputs!$D$62, 1, CG38 * ( 1 + Inputs!$E$263)) -> 346.9008924
C40: ="Project pre-tax NPV"&(Inputs!$E$263*100) -> Project pre-tax NPV8 | E40: ="$ million "&Inputs!D6 -> $ million 2023 | F40: =SUM(G40:CH40) -> 1720.544624 | G40: =G35 / G38 -> 0 | H40: =H35 / H38 -> 0 | I40: 0 | J40: 0 | K40: -562.4588158 | L40: -1114.58889 | M40: -1357.876838 | N40: -406.7890483 | O40: 421.7909028 | P40: 367.0240309 | Q40: 339.8510015 | R40: 314.6681983 | S40: 310.0109856 | T40: 304.327431 | U40: 297.7867176 | V40: 290.5185961 | W40: 278.7061439 | X40: 258.0621043 | Y40: 238.9425275 | Z40: 221.2476216 | AA40: 204.8557553 | AB40: 189.6818202 | AC40: 175.6333742 | AD40: 162.6253525 | AE40: 150.5794535 | AF40: 139.4235195 | AG40: 129.0979077 | AH40: 119.5330879 | AI40: 110.6782254 | AJ40: 102.4795889 | AK40: 34.73387044 | AL40: 0 | AM40: 0 | AN40: 0 | AO40: 0 | AP40: 0 | AQ40: 0 | AR40: 0 | AS40: 0 | AT40: 0 | AU40: 0 | AV40: =AV35 / AV38 -> 0 | AW40: 0 | AX40: 0 | AY40: 0 | AZ40: 0 | BA40: 0 | BB40: 0 | BC40: 0 | BD40: 0 | BE40: 0 | BF40: 0 | BG40: 0 | BH40: 0 | BI40: 0 | BJ40: 0 | BK40: 0 | BL40: 0 | BM40: 0 | BN40: 0 | BO40: 0 | BP40: 0 | BQ40: 0 | BR40: 0 | BS40: 0 | BT40: 0 | BU40: 0 | BV40: 0 | BW40: 0 | BX40: 0 | BY40: 0 | BZ40: 0 | CA40: 0 | CB40: 0 | CC40: 0 | CD40: 0 | CE40: 0 | CF40: =CF35 / CF38 -> 0 | CG40: 0 | CH40: 0
C41: Pre-tax IRR | E41: % | F41: =IRR(G35:CH35) -> 0.1245344501
C42: Pre-tax payback period | E42: Years | F42: =SUM(G42:CH42) -> 8.760012411 | G42: =IFERROR(AND(G36 > 0, F36 < 0 ) * (ABS(F36 / G35) + Inputs!E193), 0) -> 0 | H42: =IFERROR(AND(H36 > 0, G36 < 0 ) * (ABS(G36 / H35) + Inputs!F193), 0) -> 0 | I42: =IFERROR(AND(I36 > 0, H36 < 0 ) * (ABS(H36 / I35) + Inputs!G193), 0) -> 0 | J42: =IFERROR(AND(J36 > 0, I36 < 0 ) * (ABS(I36 / J35) + Inputs!H193), 0) -> 0 | K42: =IFERROR(AND(K36 > 0, J36 < 0 ) * (ABS(J36 / K35) + Inputs!I193), 0) -> 0 | L42: =IFERROR(AND(L36 > 0, K36 < 0 ) * (ABS(K36 / L35) + Inputs!J193), 0) -> 0 | M42: =IFERROR(AND(M36 > 0, L36 < 0 ) * (ABS(L36 / M35) + Inputs!K193), 0) -> 0 | N42: =IFERROR(AND(N36 > 0, M36 < 0 ) * (ABS(M36 / N35) + Inputs!L193), 0) -> 0 | O42: =IFERROR(AND(O36 > 0, N36 < 0 ) * (ABS(N36 / O35) + Inputs!M193), 0) -> 0 | P42: =IFERROR(AND(P36 > 0, O36 < 0 ) * (ABS(O36 / P35) + Inputs!N193), 0) -> 0 | Q42: =IFERROR(AND(Q36 > 0, P36 < 0 ) * (ABS(P36 / Q35) + Inputs!O193), 0) -> 0 | R42: =IFERROR(AND(R36 > 0, Q36 < 0 ) * (ABS(Q36 / R35) + Inputs!P193), 0) -> 0 | S42: =IFERROR(AND(S36 > 0, R36 < 0 ) * (ABS(R36 / S35) + Inputs!Q193), 0) -> 0 | T42: =IFERROR(AND(T36 > 0, S36 < 0 ) * (ABS(S36 / T35) + Inputs!R193), 0) -> 0 | U42: =IFERROR(AND(U36 > 0, T36 < 0 ) * (ABS(T36 / U35) + Inputs!S193), 0) -> 8.760012411 | V42: =IFERROR(AND(V36 > 0, U36 < 0 ) * (ABS(U36 / V35) + Inputs!T193), 0) -> 0 | W42: =IFERROR(AND(W36 > 0, V36 < 0 ) * (ABS(V36 / W35) + Inputs!U193), 0) -> 0 | X42: =IFERROR(AND(X36 > 0, W36 < 0 ) * (ABS(W36 / X35) + Inputs!V193), 0) -> 0 | Y42: =IFERROR(AND(Y36 > 0, X36 < 0 ) * (ABS(X36 / Y35) + Inputs!W193), 0) -> 0 | Z42: =IFERROR(AND(Z36 > 0, Y36 < 0 ) * (ABS(Y36 / Z35) + Inputs!X193), 0) -> 0 | AA42: =IFERROR(AND(AA36 > 0, Z36 < 0 ) * (ABS(Z36 / AA35) + Inputs!Y193), 0) -> 0 | AB42: =IFERROR(AND(AB36 > 0, AA36 < 0 ) * (ABS(AA36 / AB35) + Inputs!Z193), 0) -> 0 | AC42: =IFERROR(AND(AC36 > 0, AB36 < 0 ) * (ABS(AB36 / AC35) + Inputs!AA193), 0) -> 0 | AD42: =IFERROR(AND(AD36 > 0, AC36 < 0 ) * (ABS(AC36 / AD35) + Inputs!AB193), 0) -> 0 | AE42: =IFERROR(AND(AE36 > 0, AD36 < 0 ) * (ABS(AD36 / AE35) + Inputs!AC193), 0) -> 0 | AF42: =IFERROR(AND(AF36 > 0, AE36 < 0 ) * (ABS(AE36 / AF35) + Inputs!AD193), 0) -> 0 | AG42: =IFERROR(AND(AG36 > 0, AF36 < 0 ) * (ABS(AF36 / AG35) + Inputs!AE193), 0) -> 0 | AH42: =IFERROR(AND(AH36 > 0, AG36 < 0 ) * (ABS(AG36 / AH35) + Inputs!AF193), 0) -> 0 | AI42: =IFERROR(AND(AI36 > 0, AH36 < 0 ) * (ABS(AH36 / AI35) + Inputs!AG193), 0) -> 0 | AJ42: =IFERROR(AND(AJ36 > 0, AI36 < 0 ) * (ABS(AI36 / AJ35) + Inputs!AH193), 0) -> 0 | AK42: =IFERROR(AND(AK36 > 0, AJ36 < 0 ) * (ABS(AJ36 / AK35) + Inputs!AI193), 0) -> 0 | AL42: =IFERROR(AND(AL36 > 0, AK36 < 0 ) * (ABS(AK36 / AL35) + Inputs!AJ193), 0) -> 0 | AM42: =IFERROR(AND(AM36 > 0, AL36 < 0 ) * (ABS(AL36 / AM35) + Inputs!AK193), 0) -> 0 | AN42: =IFERROR(AND(AN36 > 0, AM36 < 0 ) * (ABS(AM36 / AN35) + Inputs!AL193), 0) -> 0 | AO42: =IFERROR(AND(AO36 > 0, AN36 < 0 ) * (ABS(AN36 / AO35) + Inputs!AM193), 0) -> 0 | AP42: =IFERROR(AND(AP36 > 0, AO36 < 0 ) * (ABS(AO36 / AP35) + Inputs!AN193), 0) -> 0 | AQ42: =IFERROR(AND(AQ36 > 0, AP36 < 0 ) * (ABS(AP36 / AQ35) + Inputs!AO193), 0) -> 0 | AR42: =IFERROR(AND(AR36 > 0, AQ36 < 0 ) * (ABS(AQ36 / AR35) + Inputs!AP193), 0) -> 0 | AS42: =IFERROR(AND(AS36 > 0, AR36 < 0 ) * (ABS(AR36 / AS35) + Inputs!AQ193), 0) -> 0 | AT42: =IFERROR(AND(AT36 > 0, AS36 < 0 ) * (ABS(AS36 / AT35) + Inputs!AR193), 0) -> 0 | AU42: =IFERROR(AND(AU36 > 0, AT36 < 0 ) * (ABS(AT36 / AU35) + Inputs!AS193), 0) -> 0 | AV42: =IFERROR(AND(AV36 > 0, AU36 < 0 ) * (ABS(AU36 / AV35) + Inputs!AT193), 0) -> 0 | AW42: =IFERROR(AND(AW36 > 0, AV36 < 0 ) * (ABS(AV36 / AW35) + Inputs!AU193), 0) -> 0 | AX42: =IFERROR(AND(AX36 > 0, AW36 < 0 ) * (ABS(AW36 / AX35) + Inputs!AV193), 0) -> 0 | AY42: =IFERROR(AND(AY36 > 0, AX36 < 0 ) * (ABS(AX36 / AY35) + Inputs!AW193), 0) -> 0 | AZ42: =IFERROR(AND(AZ36 > 0, AY36 < 0 ) * (ABS(AY36 / AZ35) + Inputs!AX193), 0) -> 0 | BA42: =IFERROR(AND(BA36 > 0, AZ36 < 0 ) * (ABS(AZ36 / BA35) + Inputs!AY193), 0) -> 0 | BB42: =IFERROR(AND(BB36 > 0, BA36 < 0 ) * (ABS(BA36 / BB35) + Inputs!AZ193), 0) -> 0 | BC42: =IFERROR(AND(BC36 > 0, BB36 < 0 ) * (ABS(BB36 / BC35) + Inputs!BA193), 0) -> 0 | BD42: =IFERROR(AND(BD36 > 0, BC36 < 0 ) * (ABS(BC36 / BD35) + Inputs!BB193), 0) -> 0 | BE42: =IFERROR(AND(BE36 > 0, BD36 < 0 ) * (ABS(BD36 / BE35) + Inputs!BC193), 0) -> 0 | BF42: =IFERROR(AND(BF36 > 0, BE36 < 0 ) * (ABS(BE36 / BF35) + Inputs!BD193), 0) -> 0 | BG42: =IFERROR(AND(BG36 > 0, BF36 < 0 ) * (ABS(BF36 / BG35) + Inputs!BE193), 0) -> 0 | BH42: =IFERROR(AND(BH36 > 0, BG36 < 0 ) * (ABS(BG36 / BH35) + Inputs!BF193), 0) -> 0 | BI42: =IFERROR(AND(BI36 > 0, BH36 < 0 ) * (ABS(BH36 / BI35) + Inputs!BG193), 0) -> 0 | BJ42: =IFERROR(AND(BJ36 > 0, BI36 < 0 ) * (ABS(BI36 / BJ35) + Inputs!BH193), 0) -> 0 | BK42: =IFERROR(AND(BK36 > 0, BJ36 < 0 ) * (ABS(BJ36 / BK35) + Inputs!BI193), 0) -> 0 | BL42: =IFERROR(AND(BL36 > 0, BK36 < 0 ) * (ABS(BK36 / BL35) + Inputs!BJ193), 0) -> 0 | BM42: =IFERROR(AND(BM36 > 0, BL36 < 0 ) * (ABS(BL36 / BM35) + Inputs!BK193), 0) -> 0 | BN42: =IFERROR(AND(BN36 > 0, BM36 < 0 ) * (ABS(BM36 / BN35) + Inputs!BL193), 0) -> 0 | BO42: =IFERROR(AND(BO36 > 0, BN36 < 0 ) * (ABS(BN36 / BO35) + Inputs!BM193), 0) -> 0 | BP42: =IFERROR(AND(BP36 > 0, BO36 < 0 ) * (ABS(BO36 / BP35) + Inputs!BN193), 0) -> 0 | BQ42: =IFERROR(AND(BQ36 > 0, BP36 < 0 ) * (ABS(BP36 / BQ35) + Inputs!BO193), 0) -> 0 | BR42: =IFERROR(AND(BR36 > 0, BQ36 < 0 ) * (ABS(BQ36 / BR35) + Inputs!BP193), 0) -> 0 | BS42: =IFERROR(AND(BS36 > 0, BR36 < 0 ) * (ABS(BR36 / BS35) + Inputs!BQ193), 0) -> 0 | BT42: =IFERROR(AND(BT36 > 0, BS36 < 0 ) * (ABS(BS36 / BT35) + Inputs!BR193), 0) -> 0 | BU42: =IFERROR(AND(BU36 > 0, BT36 < 0 ) * (ABS(BT36 / BU35) + Inputs!BS193), 0) -> 0 | BV42: =IFERROR(AND(BV36 > 0, BU36 < 0 ) * (ABS(BU36 / BV35) + Inputs!BT193), 0) -> 0 | BW42: =IFERROR(AND(BW36 > 0, BV36 < 0 ) * (ABS(BV36 / BW35) + Inputs!BU193), 0) -> 0 | BX42: =IFERROR(AND(BX36 > 0, BW36 < 0 ) * (ABS(BW36 / BX35) + Inputs!BV193), 0) -> 0 | BY42: =IFERROR(AND(BY36 > 0, BX36 < 0 ) * (ABS(BX36 / BY35) + Inputs!BW193), 0) -> 0 | BZ42: =IFERROR(AND(BZ36 > 0, BY36 < 0 ) * (ABS(BY36 / BZ35) + Inputs!BX193), 0) -> 0 | CA42: =IFERROR(AND(CA36 > 0, BZ36 < 0 ) * (ABS(BZ36 / CA35) + Inputs!BY193), 0) -> 0 | CB42: =IFERROR(AND(CB36 > 0, CA36 < 0 ) * (ABS(CA36 / CB35) + Inputs!BZ193), 0) -> 0 | CC42: =IFERROR(AND(CC36 > 0, CB36 < 0 ) * (ABS(CB36 / CC35) + Inputs!CA193), 0) -> 0 | CD42: =IFERROR(AND(CD36 > 0, CC36 < 0 ) * (ABS(CC36 / CD35) + Inputs!CB193), 0) -> 0 | CE42: =IFERROR(AND(CE36 > 0, CD36 < 0 ) * (ABS(CD36 / CE35) + Inputs!CC193), 0) -> 0 | CF42: =IFERROR(AND(CF36 > 0, CE36 < 0 ) * (ABS(CE36 / CF35) + Inputs!CD193), 0) -> 0 | CG42: =IFERROR(AND(CG36 > 0, CF36 < 0 ) * (ABS(CF36 / CG35) + Inputs!CE193), 0) -> 0 | CH42: =IFERROR(AND(CH36 > 0, CG36 < 0 ) * (ABS(CG36 / CH35) + Inputs!CF193), 0) -> 0
C44: Inflation
C46: Global inflation index | D46: =Inputs!E287 -> 0.02 | E46: Index | G46: =IF(G6 <= Inputs!$D$6, 1, Model!F46 * (1 + Model!$D$46)) -> 1 | H46: =IF(H6 <= Inputs!$D$6, 1, Model!G46 * (1 + Model!$D$46)) -> 1 | I46: =IF(I6 <= Inputs!$D$6, 1, Model!H46 * (1 + Model!$D$46)) -> 1 | J46: =IF(J6 <= Inputs!$D$6, 1, Model!I46 * (1 + Model!$D$46)) -> 1.02 | K46: =IF(K6 <= Inputs!$D$6, 1, Model!J46 * (1 + Model!$D$46)) -> 1.0404 | L46: =IF(L6 <= Inputs!$D$6, 1, Model!K46 * (1 + Model!$D$46)) -> 1.061208 | M46: =IF(M6 <= Inputs!$D$6, 1, Model!L46 * (1 + Model!$D$46)) -> 1.08243216 | N46: =IF(N6 <= Inputs!$D$6, 1, Model!M46 * (1 + Model!$D$46)) -> 1.104080803 | O46: =IF(O6 <= Inputs!$D$6, 1, Model!N46 * (1 + Model!$D$46)) -> 1.126162419 | P46: =IF(P6 <= Inputs!$D$6, 1, Model!O46 * (1 + Model!$D$46)) -> 1.148685668 | Q46: =IF(Q6 <= Inputs!$D$6, 1, Model!P46 * (1 + Model!$D$46)) -> 1.171659381 | R46: =IF(R6 <= Inputs!$D$6, 1, Model!Q46 * (1 + Model!$D$46)) -> 1.195092569 | S46: =IF(S6 <= Inputs!$D$6, 1, Model!R46 * (1 + Model!$D$46)) -> 1.21899442 | T46: =IF(T6 <= Inputs!$D$6, 1, Model!S46 * (1 + Model!$D$46)) -> 1.243374308 | U46: =IF(U6 <= Inputs!$D$6, 1, Model!T46 * (1 + Model!$D$46)) -> 1.268241795 | V46: =IF(V6 <= Inputs!$D$6, 1, Model!U46 * (1 + Model!$D$46)) -> 1.29360663 | W46: =IF(W6 <= Inputs!$D$6, 1, Model!V46 * (1 + Model!$D$46)) -> 1.319478763 | X46: =IF(X6 <= Inputs!$D$6, 1, Model!W46 * (1 + Model!$D$46)) -> 1.345868338 | Y46: =IF(Y6 <= Inputs!$D$6, 1, Model!X46 * (1 + Model!$D$46)) -> 1.372785705 | Z46: =IF(Z6 <= Inputs!$D$6, 1, Model!Y46 * (1 + Model!$D$46)) -> 1.400241419 | AA46: =IF(AA6 <= Inputs!$D$6, 1, Model!Z46 * (1 + Model!$D$46)) -> 1.428246248 | AB46: =IF(AB6 <= Inputs!$D$6, 1, Model!AA46 * (1 + Model!$D$46)) -> 1.456811173 | AC46: =IF(AC6 <= Inputs!$D$6, 1, Model!AB46 * (1 + Model!$D$46)) -> 1.485947396 | AD46: =IF(AD6 <= Inputs!$D$6, 1, Model!AC46 * (1 + Model!$D$46)) -> 1.515666344 | AE46: =IF(AE6 <= Inputs!$D$6, 1, Model!AD46 * (1 + Model!$D$46)) -> 1.545979671 | AF46: =IF(AF6 <= Inputs!$D$6, 1, Model!AE46 * (1 + Model!$D$46)) -> 1.576899264 | AG46: =IF(AG6 <= Inputs!$D$6, 1, Model!AF46 * (1 + Model!$D$46)) -> 1.608437249 | AH46: =IF(AH6 <= Inputs!$D$6, 1, Model!AG46 * (1 + Model!$D$46)) -> 1.640605994 | AI46: =IF(AI6 <= Inputs!$D$6, 1, Model!AH46 * (1 + Model!$D$46)) -> 1.673418114 | AJ46: =IF(AJ6 <= Inputs!$D$6, 1, Model!AI46 * (1 + Model!$D$46)) -> 1.706886477 | AK46: =IF(AK6 <= Inputs!$D$6, 1, Model!AJ46 * (1 + Model!$D$46)) -> 1.741024206 | AL46: =IF(AL6 <= Inputs!$D$6, 1, Model!AK46 * (1 + Model!$D$46)) -> 1.77584469 | AM46: =IF(AM6 <= Inputs!$D$6, 1, Model!AL46 * (1 + Model!$D$46)) -> 1.811361584 | AN46: =IF(AN6 <= Inputs!$D$6, 1, Model!AM46 * (1 + Model!$D$46)) -> 1.847588816 | AO46: =IF(AO6 <= Inputs!$D$6, 1, Model!AN46 * (1 + Model!$D$46)) -> 1.884540592 | AP46: =IF(AP6 <= Inputs!$D$6, 1, Model!AO46 * (1 + Model!$D$46)) -> 1.922231404 | AQ46: =IF(AQ6 <= Inputs!$D$6, 1, Model!AP46 * (1 + Model!$D$46)) -> 1.960676032 | AR46: =IF(AR6 <= Inputs!$D$6, 1, Model!AQ46 * (1 + Model!$D$46)) -> 1.999889553 | AS46: =IF(AS6 <= Inputs!$D$6, 1, Model!AR46 * (1 + Model!$D$46)) -> 2.039887344 | AT46: =IF(AT6 <= Inputs!$D$6, 1, Model!AS46 * (1 + Model!$D$46)) -> 2.080685091 | AU46: =IF(AU6 <= Inputs!$D$6, 1, Model!AT46 * (1 + Model!$D$46)) -> 2.122298792 | AV46: =IF(AV6 <= Inputs!$D$6, 1, Model!AU46 * (1 + Model!$D$46)) -> 2.164744768 | AW46: =IF(AW6 <= Inputs!$D$6, 1, Model!AV46 * (1 + Model!$D$46)) -> 2.208039664 | AX46: =IF(AX6 <= Inputs!$D$6, 1, Model!AW46 * (1 + Model!$D$46)) -> 2.252200457 | AY46: =IF(AY6 <= Inputs!$D$6, 1, Model!AX46 * (1 + Model!$D$46)) -> 2.297244466 | AZ46: =IF(AZ6 <= Inputs!$D$6, 1, Model!AY46 * (1 + Model!$D$46)) -> 2.343189355 | BA46: =IF(BA6 <= Inputs!$D$6, 1, Model!AZ46 * (1 + Model!$D$46)) -> 2.390053142 | BB46: =IF(BB6 <= Inputs!$D$6, 1, Model!BA46 * (1 + Model!$D$46)) -> 2.437854205 | BC46: =IF(BC6 <= Inputs!$D$6, 1, Model!BB46 * (1 + Model!$D$46)) -> 2.486611289 | BD46: =IF(BD6 <= Inputs!$D$6, 1, Model!BC46 * (1 + Model!$D$46)) -> 2.536343515 | BE46: =IF(BE6 <= Inputs!$D$6, 1, Model!BD46 * (1 + Model!$D$46)) -> 2.587070385 | BF46: =IF(BF6 <= Inputs!$D$6, 1, Model!BE46 * (1 + Model!$D$46)) -> 2.638811793 | BG46: =IF(BG6 <= Inputs!$D$6, 1, Model!BF46 * (1 + Model!$D$46)) -> 2.691588029 | BH46: =IF(BH6 <= Inputs!$D$6, 1, Model!BG46 * (1 + Model!$D$46)) -> 2.74541979 | BI46: =IF(BI6 <= Inputs!$D$6, 1, Model!BH46 * (1 + Model!$D$46)) -> 2.800328185 | BJ46: =IF(BJ6 <= Inputs!$D$6, 1, Model!BI46 * (1 + Model!$D$46)) -> 2.856334749 | BK46: =IF(BK6 <= Inputs!$D$6, 1, Model!BJ46 * (1 + Model!$D$46)) -> 2.913461444 | BL46: =IF(BL6 <= Inputs!$D$6, 1, Model!BK46 * (1 + Model!$D$46)) -> 2.971730673 | BM46: =IF(BM6 <= Inputs!$D$6, 1, Model!BL46 * (1 + Model!$D$46)) -> 3.031165286 | BN46: =IF(BN6 <= Inputs!$D$6, 1, Model!BM46 * (1 + Model!$D$46)) -> 3.091788592 | BO46: =IF(BO6 <= Inputs!$D$6, 1, Model!BN46 * (1 + Model!$D$46)) -> 3.153624364 | BP46: =IF(BP6 <= Inputs!$D$6, 1, Model!BO46 * (1 + Model!$D$46)) -> 3.216696851 | BQ46: =IF(BQ6 <= Inputs!$D$6, 1, Model!BP46 * (1 + Model!$D$46)) -> 3.281030788 | BR46: =IF(BR6 <= Inputs!$D$6, 1, Model!BQ46 * (1 + Model!$D$46)) -> 3.346651404 | BS46: =IF(BS6 <= Inputs!$D$6, 1, Model!BR46 * (1 + Model!$D$46)) -> 3.413584432 | BT46: =IF(BT6 <= Inputs!$D$6, 1, Model!BS46 * (1 + Model!$D$46)) -> 3.481856121 | BU46: =IF(BU6 <= Inputs!$D$6, 1, Model!BT46 * (1 + Model!$D$46)) -> 3.551493243 | BV46: =IF(BV6 <= Inputs!$D$6, 1, Model!BU46 * (1 + Model!$D$46)) -> 3.622523108 | BW46: =IF(BW6 <= Inputs!$D$6, 1, Model!BV46 * (1 + Model!$D$46)) -> 3.69497357 | BX46: =IF(BX6 <= Inputs!$D$6, 1, Model!BW46 * (1 + Model!$D$46)) -> 3.768873042 | BY46: =IF(BY6 <= Inputs!$D$6, 1, Model!BX46 * (1 + Model!$D$46)) -> 3.844250503 | BZ46: =IF(BZ6 <= Inputs!$D$6, 1, Model!BY46 * (1 + Model!$D$46)) -> 3.921135513 | CA46: =IF(CA6 <= Inputs!$D$6, 1, Model!BZ46 * (1 + Model!$D$46)) -> 3.999558223 | CB46: =IF(CB6 <= Inputs!$D$6, 1, Model!CA46 * (1 + Model!$D$46)) -> 4.079549387 | CC46: =IF(CC6 <= Inputs!$D$6, 1, Model!CB46 * (1 + Model!$D$46)) -> 4.161140375 | CD46: =IF(CD6 <= Inputs!$D$6, 1, Model!CC46 * (1 + Model!$D$46)) -> 4.244363183 | CE46: =IF(CE6 <= Inputs!$D$6, 1, Model!CD46 * (1 + Model!$D$46)) -> 4.329250446 | CF46: =IF(CF6 <= Inputs!$D$6, 1, Model!CE46 * (1 + Model!$D$46)) -> 4.415835455 | CG46: =IF(CG6 <= Inputs!$D$6, 1, Model!CF46 * (1 + Model!$D$46)) -> 4.504152164 | CH46: =IF(CH6 <= Inputs!$D$6, 1, Model!CG46 * (1 + Model!$D$46)) -> 4.594235208
C48: Project pre-tax cashflow (nominal)
C50: Revenue | E50: $ million | F50: =SUM(G50:CH50) -> 50115.77434 | G50: =G29 * G46 -> 0 | H50: 0 | I50: 0 | J50: 0 | K50: 0 | L50: 0 | M50: 0 | N50: 730.9559507 | O50: 1325.442027 | P50: 1182.77931 | Q50: 1206.545302 | R50: 1230.600673 | S50: 1434.528797 | T50: 1646.230627 | U50: 1865.848343 | V50: 2093.250825 | W50: 2272.553309 | X50: 2318.017787 | Y50: 2364.311732 | Z50: 2411.683904 | AA50: 2459.851832 | AB50: 2509.061851 | AC50: 2559.295189 | AD50: 2610.532876 | AE50: 2662.756533 | AF50: 2715.947385 | AG50: 2770.342952 | AH50: 2825.667233 | AI50: 2882.155271 | AJ50: 2939.785955 | AK50: 1097.628673 | AL50: 0 | AM50: 0 | AN50: 0 | AO50: 0 | AP50: 0 | AQ50: 0 | AR50: 0 | AS50: 0 | AT50: 0 | AU50: 0 | AV50: =AV29 * AV46 -> 0 | AW50: 0 | AX50: 0 | AY50: 0 | AZ50: 0 | BA50: 0 | BB50: 0 | BC50: 0 | BD50: 0 | BE50: 0 | BF50: 0 | BG50: 0 | BH50: 0 | BI50: 0 | BJ50: 0 | BK50: 0 | BL50: 0 | BM50: 0 | BN50: 0 | BO50: 0 | BP50: 0 | BQ50: 0 | BR50: 0 | BS50: 0 | BT50: 0 | BU50: 0 | BV50: 0 | BW50: 0 | BX50: 0 | BY50: 0 | BZ50: 0 | CA50: 0 | CB50: 0 | CC50: 0 | CD50: 0 | CE50: 0 | CF50: =CF29 * CF46 -> 0 | CG50: 0 | CH50: 0
C51: Initial capital expenditure | E51: $ million | F51: 4836.912558 | G51: =G30 * G46 -> 0 | H51: =H30 * H46 -> 0 | I51: 0 | J51: 0 | K51: 631.9967241 | L51: 1379.630338 | M51: 1851.536739 | N51: 973.748757 | O51: 0 | P51: 0 | Q51: 0 | R51: 0 | S51: 0 | T51: 0 | U51: 0 | V51: 0 | W51: 0 | X51: 0 | Y51: 0 | Z51: 0 | AA51: 0 | AB51: 0 | AC51: 0 | AD51: 0 | AE51: 0 | AF51: 0 | AG51: 0 | AH51: 0 | AI51: 0 | AJ51: 0 | AK51: 0 | AL51: 0 | AM51: 0 | AN51: 0 | AO51: 0 | AP51: 0 | AQ51: 0 | AR51: 0 | AS51: 0 | AT51: 0 | AU51: 0 | AV51: 0 | AW51: 0 | AX51: 0 | AY51: 0 | AZ51: 0 | BA51: 0 | BB51: 0 | BC51: 0 | BD51: 0 | BE51: 0 | BF51: 0 | BG51: 0 | BH51: 0 | BI51: 0 | BJ51: 0 | BK51: 0 | BL51: 0 | BM51: 0 | BN51: 0 | BO51: 0 | BP51: 0 | BQ51: 0 | BR51: 0 | BS51: 0 | BT51: =BT30 * BT46 -> 0 | BU51: 0 | BV51: 0 | BW51: 0 | BX51: 0 | BY51: 0 | BZ51: 0 | CA51: 0 | CB51: 0 | CC51: 0 | CD51: 0 | CE51: 0 | CF51: 0 | CG51: 0 | CH51: 0
C52: Expansion 1 capital expenditure | E52: $ million | F52: 0 | G52: =G31 * G46 -> 0 | H52: =H31 * H46 -> 0 | I52: 0 | J52: 0 | K52: 0 | L52: 0 | M52: 0 | N52: 0 | O52: 0 | P52: 0 | Q52: 0 | R52: 0 | S52: 0 | T52: 0 | U52: 0 | V52: 0 | W52: 0 | X52: 0 | Y52: 0 | Z52: 0 | AA52: 0 | AB52: 0 | AC52: 0 | AD52: 0 | AE52: 0 | AF52: 0 | AG52: 0 | AH52: 0 | AI52: 0 | AJ52: 0 | AK52: 0 | AL52: 0 | AM52: 0 | AN52: 0 | AO52: 0 | AP52: 0 | AQ52: 0 | AR52: 0 | AS52: 0 | AT52: 0 | AU52: 0 | AV52: 0 | AW52: 0 | AX52: 0 | AY52: 0 | AZ52: 0 | BA52: 0 | BB52: 0 | BC52: 0 | BD52: 0 | BE52: 0 | BF52: 0 | BG52: 0 | BH52: 0 | BI52: 0 | BJ52: 0 | BK52: 0 | BL52: 0 | BM52: 0 | BN52: 0 | BO52: 0 | BP52: 0 | BQ52: 0 | BR52: 0 | BS52: 0 | BT52: =BT31 * BT46 -> 0 | BU52: 0 | BV52: 0 | BW52: 0 | BX52: 0 | BY52: 0 | BZ52: 0 | CA52: 0 | CB52: 0 | CC52: 0 | CD52: 0 | CE52: 0 | CF52: 0 | CG52: 0 | CH52: 0
C53: Expansion 2 capital expenditure | E53: $ million | F53: 0 | G53: =G32 * G46 -> 0 | H53: =H32 * H46 -> 0 | I53: 0 | J53: 0 | K53: 0 | L53: 0 | M53: 0 | N53: 0 | O53: 0 | P53: 0 | Q53: 0 | R53: 0 | S53: 0 | T53: 0 | U53: 0 | V53: 0 | W53: 0 | X53: 0 | Y53: 0 | Z53: 0 | AA53: 0 | AB53: 0 | AC53: 0 | AD53: 0 | AE53: 0 | AF53: 0 | AG53: 0 | AH53: 0 | AI53: 0 | AJ53: 0 | AK53: 0 | AL53: 0 | AM53: 0 | AN53: 0 | AO53: 0 | AP53: 0 | AQ53: 0 | AR53: 0 | AS53: 0 | AT53: 0 | AU53: 0 | AV53: 0 | AW53: 0 | AX53: 0 | AY53: 0 | AZ53: 0 | BA53: 0 | BB53: 0 | BC53: 0 | BD53: 0 | BE53: 0 | BF53: 0 | BG53: 0 | BH53: 0 | BI53: 0 | BJ53: 0 | BK53: 0 | BL53: 0 | BM53: 0 | BN53: 0 | BO53: 0 | BP53: 0 | BQ53: 0 | BR53: 0 | BS53: 0 | BT53: =BT32 * BT46 -> 0 | BU53: 0 | BV53: 0 | BW53: 0 | BX53: 0 | BY53: 0 | BZ53: 0 | CA53: 0 | CB53: 0 | CC53: 0 | CD53: 0 | CE53: 0 | CF53: 0 | CG53: 0 | CH53: 0
C54: Crude feedstock cost | E54: $ million | F54: 25096.25806 | G54: =G33 * G46 -> 0 | H54: 0 | I54: 0 | J54: 0 | K54: 0 | L54: 0 | M54: 0 | N54: 332.7515813 | O54: 555.10564 | P54: 439.91457 | Q54: 448.7952835 | R54: 457.7147999 | S54: 600.7355838 | T54: 749.3753529 | U54: 903.7365623 | V54: 1063.717563 | W54: 1187.594358 | X54: 1211.356257 | Y54: 1235.533804 | Z54: 1260.308636 | AA54: 1285.465724 | AB54: 1311.18473 | AC54: 1337.447321 | AD54: 1364.234925 | AE54: 1391.529328 | AF54: 1419.311928 | AG54: 1447.755366 | AH54: 1476.648826 | AI54: 1506.16291 | AJ54: 1536.276895 | AK54: 573.6001174 | AL54: 0 | AM54: 0 | AN54: 0 | AO54: 0 | AP54: 0 | AQ54: 0 | AR54: 0 | AS54: 0 | AT54: 0 | AU54: 0 | AV54: =AV33 * AV46 -> 0 | AW54: 0 | AX54: 0 | AY54: 0 | AZ54: 0 | BA54: 0 | BB54: 0 | BC54: 0 | BD54: 0 | BE54: 0 | BF54: 0 | BG54: 0 | BH54: 0 | BI54: 0 | BJ54: 0 | BK54: 0 | BL54: 0 | BM54: 0 | BN54: 0 | BO54: 0 | BP54: 0 | BQ54: 0 | BR54: 0 | BS54: 0 | BT54: 0 | BU54: 0 | BV54: 0 | BW54: 0 | BX54: 0 | BY54: 0 | BZ54: 0 | CA54: 0 | CB54: 0 | CC54: 0 | CD54: 0 | CE54: 0 | CF54: =CF33 * CF46 -> 0 | CG54: 0 | CH54: 0
C55: Other operating costs | E55: $ million | F55: 2052.854523 | G55: =G34 * G46 -> 0 | H55: 0 | I55: 0 | J55: 0 | K55: 0 | L55: 0 | M55: 0 | N55: 35.48926972 | O55: 72.39811022 | P55: 73.84607242 | Q55: 75.32299387 | R55: 76.82945375 | S55: 78.36604283 | T55: 79.93336368 | U55: 81.53203096 | V55: 83.16267157 | W55: 84.82592501 | X55: 86.52244351 | Y55: 88.25289238 | Z55: 90.01795022 | AA55: 91.81830923 | AB55: 93.65467541 | AC55: 95.52776892 | AD55: 97.4383243 | AE55: 99.38709079 | AF55: 101.3748326 | AG55: 103.4023293 | AH55: 105.4703758 | AI55: 107.5797834 | AJ55: 109.731379 | AK55: 40.9704345 | AL55: 0 | AM55: 0 | AN55: 0 | AO55: 0 | AP55: 0 | AQ55: 0 | AR55: 0 | AS55: 0 | AT55: 0 | AU55: 0 | AV55: =AV34 * AV46 -> 0 | AW55: 0 | AX55: 0 | AY55: 0 | AZ55: 0 | BA55: 0 | BB55: 0 | BC55: 0 | BD55: 0 | BE55: 0 | BF55: 0 | BG55: 0 | BH55: 0 | BI55: 0 | BJ55: 0 | BK55: 0 | BL55: 0 | BM55: 0 | BN55: 0 | BO55: 0 | BP55: 0 | BQ55: 0 | BR55: 0 | BS55: 0 | BT55: 0 | BU55: 0 | BV55: 0 | BW55: 0 | BX55: 0 | BY55: 0 | BZ55: 0 | CA55: 0 | CB55: 0 | CC55: 0 | CD55: 0 | CE55: 0 | CF55: =CF34 * CF46 -> 0 | CG55: 0 | CH55: 0
C56: Project pre-tax cash flow | E56: $ million | F56: 18129.74919 | G56: =G50-SUM(G51:G55) -> 0 | H56: =H50-SUM(H51:H55) -> 0 | I56: 0 | J56: 0 | K56: -631.9967241 | L56: -1379.630338 | M56: -1851.536739 | N56: -611.0336572 | O56: 697.9382765 | P56: 669.0186673 | Q56: 682.4270241 | R56: 696.0564196 | S56: 755.4271702 | T56: 816.9219102 | U56: 880.5797501 | V56: 946.3705903 | W56: 1000.133026 | X56: 1020.139086 | Y56: 1040.525035 | Z56: 1061.357317 | AA56: 1082.567799 | AB56: 1104.222445 | AC56: 1126.3201 | AD56: 1148.859627 | AE56: 1171.840114 | AF56: 1195.260624 | AG56: 1219.185257 | AH56: 1243.548032 | AI56: 1268.412578 | AJ56: 1293.777681 | AK56: 483.0581208 | AL56: 0 | AM56: 0 | AN56: 0 | AO56: 0 | AP56: 0 | AQ56: 0 | AR56: 0 | AS56: 0 | AT56: 0 | AU56: 0 | AV56: 0 | AW56: 0 | AX56: 0 | AY56: 0 | AZ56: 0 | BA56: 0 | BB56: 0 | BC56: 0 | BD56: 0 | BE56: 0 | BF56: 0 | BG56: 0 | BH56: 0 | BI56: 0 | BJ56: 0 | BK56: 0 | BL56: 0 | BM56: 0 | BN56: 0 | BO56: 0 | BP56: 0 | BQ56: 0 | BR56: 0 | BS56: 0 | BT56: =BT50-SUM(BT51:BT55) -> 0 | BU56: 0 | BV56: 0 | BW56: 0 | BX56: 0 | BY56: 0 | BZ56: 0 | CA56: 0 | CB56: 0 | CC56: 0 | CD56: 0 | CE56: 0 | CF56: 0 | CG56: 0 | CH56: 0
C57: Cumulative pre-tax cashflow | E57: $ million | G57: =F57 + G56 -> 0 | H57: =G57 + H56 -> 0 | I57: 0 | J57: 0 | K57: -631.9967241 | L57: -2011.627062 | M57: -3863.163802 | N57: -4474.197459 | O57: -3776.259182 | P57: -3107.240515 | Q57: -2424.813491 | R57: -1728.757071 | S57: -973.3299011 | T57: -156.4079909 | U57: 724.1717593 | V57: 1670.54235 | W57: 2670.675375 | X57: 3690.814461 | Y57: 4731.339496 | Z57: 5792.696813 | AA57: 6875.264612 | AB57: 7979.487057 | AC57: 9105.807157 | AD57: 10254.66678 | AE57: 11426.5069 | AF57: 12621.76752 | AG57: 13840.95278 | AH57: 15084.50081 | AI57: 16352.91339 | AJ57: 17646.69107 | AK57: 18129.74919 | AL57: 18129.74919 | AM57: 18129.74919 | AN57: 18129.74919 | AO57: 18129.74919 | AP57: 18129.74919 | AQ57: 18129.74919 | AR57: 18129.74919 | AS57: 18129.74919 | AT57: 18129.74919 | AU57: 18129.74919 | AV57: =AU57 + AV56 -> 18129.74919 | AW57: =AV57 + AW56 -> 18129.74919 | AX57: =AW57 + AX56 -> 18129.74919 | AY57: =AX57 + AY56 -> 18129.74919 | AZ57: =AY57 + AZ56 -> 18129.74919 | BA57: =AZ57 + BA56 -> 18129.74919 | BB57: =BA57 + BB56 -> 18129.74919 | BC57: =BB57 + BC56 -> 18129.74919 | BD57: =BC57 + BD56 -> 18129.74919 | BE57: =BD57 + BE56 -> 18129.74919 | BF57: =BE57 + BF56 -> 18129.74919 | BG57: =BF57 + BG56 -> 18129.74919 | BH57: =BG57 + BH56 -> 18129.74919 | BI57: =BH57 + BI56 -> 18129.74919 | BJ57: =BI57 + BJ56 -> 18129.74919 | BK57: =BJ57 + BK56 -> 18129.74919 | BL57: =BK57 + BL56 -> 18129.74919 | BM57: =BL57 + BM56 -> 18129.74919 | BN57: =BM57 + BN56 -> 18129.74919 | BO57: =BN57 + BO56 -> 18129.74919 | BP57: =BO57 + BP56 -> 18129.74919 | BQ57: =BP57 + BQ56 -> 18129.74919 | BR57: =BQ57 + BR56 -> 18129.74919 | BS57: =BR57 + BS56 -> 18129.74919 | BT57: =BS57 + BT56 -> 18129.74919 | BU57: =BT57 + BU56 -> 18129.74919 | BV57: =BU57 + BV56 -> 18129.74919 | BW57: =BV57 + BW56 -> 18129.74919 | BX57: =BW57 + BX56 -> 18129.74919 | BY57: =BX57 + BY56 -> 18129.74919 | BZ57: =BY57 + BZ56 -> 18129.74919 | CA57: =BZ57 + CA56 -> 18129.74919 | CB57: =CA57 + CB56 -> 18129.74919 | CC57: =CB57 + CC56 -> 18129.74919 | CD57: =CC57 + CD56 -> 18129.74919 | CE57: =CD57 + CE56 -> 18129.74919 | CF57: =CE57 + CF56 -> 18129.74919 | CG57: =CF57 + CG56 -> 18129.74919 | CH57: =CG57 + CH56 -> 18129.74919
C59: Investor nominal discount factor | E59: Index | G59: =IF(G6 <= Inputs!$D$62, 1, F59 * (1 + Inputs!$E$263 + Inputs!$E$287)) -> 1 | H59: =IF(H6 <= Inputs!$D$62, 1, G59 * (1 + Inputs!$E$263 + Inputs!$E$287)) -> 1 | I59: =IF(I6 <= Inputs!$D$62, 1, H59 * (1 + Inputs!$E$263 + Inputs!$E$287)) -> 1 | J59: =IF(J6 <= Inputs!$D$62, 1, I59 * (1 + Inputs!$E$263 + Inputs!$E$287)) -> 1 | K59: =IF(K6 <= Inputs!$D$62, 1, J59 * (1 + Inputs!$E$263 + Inputs!$E$287)) -> 1.1 | L59: =IF(L6 <= Inputs!$D$62, 1, K59 * (1 + Inputs!$E$263 + Inputs!$E$287)) -> 1.21 | M59: =IF(M6 <= Inputs!$D$62, 1, L59 * (1 + Inputs!$E$263 + Inputs!$E$287)) -> 1.331 | N59: =IF(N6 <= Inputs!$D$62, 1, M59 * (1 + Inputs!$E$263 + Inputs!$E$287)) -> 1.4641 | O59: =IF(O6 <= Inputs!$D$62, 1, N59 * (1 + Inputs!$E$263 + Inputs!$E$287)) -> 1.61051 | P59: =IF(P6 <= Inputs!$D$62, 1, O59 * (1 + Inputs!$E$263 + Inputs!$E$287)) -> 1.771561 | Q59: =IF(Q6 <= Inputs!$D$62, 1, P59 * (1 + Inputs!$E$263 + Inputs!$E$287)) -> 1.9487171 | R59: =IF(R6 <= Inputs!$D$62, 1, Q59 * (1 + Inputs!$E$263 + Inputs!$E$287)) -> 2.14358881 | S59: =IF(S6 <= Inputs!$D$62, 1, R59 * (1 + Inputs!$E$263 + Inputs!$E$287)) -> 2.357947691 | T59: =IF(T6 <= Inputs!$D$62, 1, S59 * (1 + Inputs!$E$263 + Inputs!$E$287)) -> 2.59374246 | U59: =IF(U6 <= Inputs!$D$62, 1, T59 * (1 + Inputs!$E$263 + Inputs!$E$287)) -> 2.853116706 | V59: =IF(V6 <= Inputs!$D$62, 1, U59 * (1 + Inputs!$E$263 + Inputs!$E$287)) -> 3.138428377 | W59: =IF(W6 <= Inputs!$D$62, 1, V59 * (1 + Inputs!$E$263 + Inputs!$E$287)) -> 3.452271214 | X59: =IF(X6 <= Inputs!$D$62, 1, W59 * (1 + Inputs!$E$263 + Inputs!$E$287)) -> 3.797498336 | Y59: =IF(Y6 <= Inputs!$D$62, 1, X59 * (1 + Inputs!$E$263 + Inputs!$E$287)) -> 4.177248169 | Z59: =IF(Z6 <= Inputs!$D$62, 1, Y59 * (1 + Inputs!$E$263 + Inputs!$E$287)) -> 4.594972986 | AA59: =IF(AA6 <= Inputs!$D$62, 1, Z59 * (1 + Inputs!$E$263 + Inputs!$E$287)) -> 5.054470285 | AB59: =IF(AB6 <= Inputs!$D$62, 1, AA59 * (1 + Inputs!$E$263 + Inputs!$E$287)) -> 5.559917313 | AC59: =IF(AC6 <= Inputs!$D$62, 1, AB59 * (1 + Inputs!$E$263 + Inputs!$E$287)) -> 6.115909045 | AD59: =IF(AD6 <= Inputs!$D$62, 1, AC59 * (1 + Inputs!$E$263 + Inputs!$E$287)) -> 6.727499949 | AE59: =IF(AE6 <= Inputs!$D$62, 1, AD59 * (1 + Inputs!$E$263 + Inputs!$E$287)) -> 7.400249944 | AF59: =IF(AF6 <= Inputs!$D$62, 1, AE59 * (1 + Inputs!$E$263 + Inputs!$E$287)) -> 8.140274939 | AG59: =IF(AG6 <= Inputs!$D$62, 1, AF59 * (1 + Inputs!$E$263 + Inputs!$E$287)) -> 8.954302433 | AH59: =IF(AH6 <= Inputs!$D$62, 1, AG59 * (1 + Inputs!$E$263 + Inputs!$E$287)) -> 9.849732676 | AI59: =IF(AI6 <= Inputs!$D$62, 1, AH59 * (1 + Inputs!$E$263 + Inputs!$E$287)) -> 10.83470594 | AJ59: =IF(AJ6 <= Inputs!$D$62, 1, AI59 * (1 + Inputs!$E$263 + Inputs!$E$287)) -> 11.91817654 | AK59: =IF(AK6 <= Inputs!$D$62, 1, AJ59 * (1 + Inputs!$E$263 + Inputs!$E$287)) -> 13.10999419 | AL59: =IF(AL6 <= Inputs!$D$62, 1, AK59 * (1 + Inputs!$E$263 + Inputs!$E$287)) -> 14.42099361 | AM59: =IF(AM6 <= Inputs!$D$62, 1, AL59 * (1 + Inputs!$E$263 + Inputs!$E$287)) -> 15.86309297 | AN59: =IF(AN6 <= Inputs!$D$62, 1, AM59 * (1 + Inputs!$E$263 + Inputs!$E$287)) -> 17.44940227 | AO59: =IF(AO6 <= Inputs!$D$62, 1, AN59 * (1 + Inputs!$E$263 + Inputs!$E$287)) -> 19.1943425 | AP59: =IF(AP6 <= Inputs!$D$62, 1, AO59 * (1 + Inputs!$E$263 + Inputs!$E$287)) -> 21.11377675 | AQ59: =IF(AQ6 <= Inputs!$D$62, 1, AP59 * (1 + Inputs!$E$263 + Inputs!$E$287)) -> 23.22515442 | AR59: =IF(AR6 <= Inputs!$D$62, 1, AQ59 * (1 + Inputs!$E$263 + Inputs!$E$287)) -> 25.54766986 | AS59: =IF(AS6 <= Inputs!$D$62, 1, AR59 * (1 + Inputs!$E$263 + Inputs!$E$287)) -> 28.10243685 | AT59: =IF(AT6 <= Inputs!$D$62, 1, AS59 * (1 + Inputs!$E$263 + Inputs!$E$287)) -> 30.91268053 | AU59: =IF(AU6 <= Inputs!$D$62, 1, AT59 * (1 + Inputs!$E$263 + Inputs!$E$287)) -> 34.00394859 | AV59: =IF(AV6 <= Inputs!$D$62, 1, AU59 * (1 + Inputs!$E$263 + Inputs!$E$287)) -> 37.40434344 | AW59: =IF(AW6 <= Inputs!$D$62, 1, AV59 * (1 + Inputs!$E$263 + Inputs!$E$287)) -> 41.14477779 | AX59: =IF(AX6 <= Inputs!$D$62, 1, AW59 * (1 + Inputs!$E$263 + Inputs!$E$287)) -> 45.25925557 | AY59: =IF(AY6 <= Inputs!$D$62, 1, AX59 * (1 + Inputs!$E$263 + Inputs!$E$287)) -> 49.78518112 | AZ59: =IF(AZ6 <= Inputs!$D$62, 1, AY59 * (1 + Inputs!$E$263 + Inputs!$E$287)) -> 54.76369924 | BA59: =IF(BA6 <= Inputs!$D$62, 1, AZ59 * (1 + Inputs!$E$263 + Inputs!$E$287)) -> 60.24006916 | BB59: =IF(BB6 <= Inputs!$D$62, 1, BA59 * (1 + Inputs!$E$263 + Inputs!$E$287)) -> 66.26407608 | BC59: =IF(BC6 <= Inputs!$D$62, 1, BB59 * (1 + Inputs!$E$263 + Inputs!$E$287)) -> 72.89048369 | BD59: =IF(BD6 <= Inputs!$D$62, 1, BC59 * (1 + Inputs!$E$263 + Inputs!$E$287)) -> 80.17953205 | BE59: =IF(BE6 <= Inputs!$D$62, 1, BD59 * (1 + Inputs!$E$263 + Inputs!$E$287)) -> 88.19748526 | BF59: =IF(BF6 <= Inputs!$D$62, 1, BE59 * (1 + Inputs!$E$263 + Inputs!$E$287)) -> 97.01723378 | BG59: =IF(BG6 <= Inputs!$D$62, 1, BF59 * (1 + Inputs!$E$263 + Inputs!$E$287)) -> 106.7189572 | BH59: =IF(BH6 <= Inputs!$D$62, 1, BG59 * (1 + Inputs!$E$263 + Inputs!$E$287)) -> 117.3908529 | BI59: =IF(BI6 <= Inputs!$D$62, 1, BH59 * (1 + Inputs!$E$263 + Inputs!$E$287)) -> 129.1299382 | BJ59: =IF(BJ6 <= Inputs!$D$62, 1, BI59 * (1 + Inputs!$E$263 + Inputs!$E$287)) -> 142.042932 | BK59: =IF(BK6 <= Inputs!$D$62, 1, BJ59 * (1 + Inputs!$E$263 + Inputs!$E$287)) -> 156.2472252 | BL59: =IF(BL6 <= Inputs!$D$62, 1, BK59 * (1 + Inputs!$E$263 + Inputs!$E$287)) -> 171.8719477 | BM59: =IF(BM6 <= Inputs!$D$62, 1, BL59 * (1 + Inputs!$E$263 + Inputs!$E$287)) -> 189.0591425 | BN59: =IF(BN6 <= Inputs!$D$62, 1, BM59 * (1 + Inputs!$E$263 + Inputs!$E$287)) -> 207.9650567 | BO59: =IF(BO6 <= Inputs!$D$62, 1, BN59 * (1 + Inputs!$E$263 + Inputs!$E$287)) -> 228.7615624 | BP59: =IF(BP6 <= Inputs!$D$62, 1, BO59 * (1 + Inputs!$E$263 + Inputs!$E$287)) -> 251.6377186 | BQ59: =IF(BQ6 <= Inputs!$D$62, 1, BP59 * (1 + Inputs!$E$263 + Inputs!$E$287)) -> 276.8014905 | BR59: =IF(BR6 <= Inputs!$D$62, 1, BQ59 * (1 + Inputs!$E$263 + Inputs!$E$287)) -> 304.4816395 | BS59: =IF(BS6 <= Inputs!$D$62, 1, BR59 * (1 + Inputs!$E$263 + Inputs!$E$287)) -> 334.9298035 | BT59: =IF(BT6 <= Inputs!$D$62, 1, BS59 * (1 + Inputs!$E$263 + Inputs!$E$287)) -> 368.4227838 | BU59: =IF(BU6 <= Inputs!$D$62, 1, BT59 * (1 + Inputs!$E$263 + Inputs!$E$287)) -> 405.2650622 | BV59: =IF(BV6 <= Inputs!$D$62, 1, BU59 * (1 + Inputs!$E$263 + Inputs!$E$287)) -> 445.7915685 | BW59: =IF(BW6 <= Inputs!$D$62, 1, BV59 * (1 + Inputs!$E$263 + Inputs!$E$287)) -> 490.3707253 | BX59: =IF(BX6 <= Inputs!$D$62, 1, BW59 * (1 + Inputs!$E$263 + Inputs!$E$287)) -> 539.4077978 | BY59: =IF(BY6 <= Inputs!$D$62, 1, BX59 * (1 + Inputs!$E$263 + Inputs!$E$287)) -> 593.3485776 | BZ59: =IF(BZ6 <= Inputs!$D$62, 1, BY59 * (1 + Inputs!$E$263 + Inputs!$E$287)) -> 652.6834354 | CA59: =IF(CA6 <= Inputs!$D$62, 1, BZ59 * (1 + Inputs!$E$263 + Inputs!$E$287)) -> 717.9517789 | CB59: =IF(CB6 <= Inputs!$D$62, 1, CA59 * (1 + Inputs!$E$263 + Inputs!$E$287)) -> 789.7469568 | CC59: =IF(CC6 <= Inputs!$D$62, 1, CB59 * (1 + Inputs!$E$263 + Inputs!$E$287)) -> 868.7216525 | CD59: =IF(CD6 <= Inputs!$D$62, 1, CC59 * (1 + Inputs!$E$263 + Inputs!$E$287)) -> 955.5938177 | CE59: =IF(CE6 <= Inputs!$D$62, 1, CD59 * (1 + Inputs!$E$263 + Inputs!$E$287)) -> 1051.1532 | CF59: =IF(CF6 <= Inputs!$D$62, 1, CE59 * (1 + Inputs!$E$263 + Inputs!$E$287)) -> 1156.268519 | CG59: =IF(CG6 <= Inputs!$D$62, 1, CF59 * (1 + Inputs!$E$263 + Inputs!$E$287)) -> 1271.895371 | CH59: =IF(CH6 <= Inputs!$D$62, 1, CG59 * (1 + Inputs!$E$263 + Inputs!$E$287)) -> 1399.084909
C61: ="Project pre-tax NPV"&((Inputs!$E$263+Inputs!$E$287)*100) -> Project pre-tax NPV10 | E61: $ million | F61: =SUM(G61:CH61) -> 1844.461219 | G61: =G56 / G59 -> 0 | H61: 0 | I61: 0 | J61: 0 | K61: -574.5424764 | L61: -1140.190362 | M61: -1391.086956 | N61: -417.3442096 | O61: 433.3647581 | P61: 377.6435964 | Q61: 350.1929675 | R61: 324.7154568 | S61: 320.3748637 | T61: 314.9587605 | U61: 308.6378304 | V61: 301.542835 | W61: 289.7029126 | X61: 268.634505 | Y61: 249.0934205 | Z61: 230.9822757 | AA61: 214.1802677 | AB61: 198.6041128 | AC61: 184.1623365 | AD61: 170.770663 | AE61: 158.3514237 | AF61: 146.8329551 | AG61: 136.1563635 | AH61: 126.2519575 | AI61: 117.069405 | AJ61: 108.5550023 | AK61: 36.84655491 | AL61: 0 | AM61: =AM56 / AM59 -> 0 | AN61: 0 | AO61: 0 | AP61: 0 | AQ61: 0 | AR61: 0 | AS61: 0 | AT61: 0 | AU61: 0 | AV61: 0 | AW61: 0 | AX61: 0 | AY61: 0 | AZ61: 0 | BA61: 0 | BB61: 0 | BC61: 0 | BD61: 0 | BE61: 0 | BF61: 0 | BG61: 0 | BH61: 0 | BI61: 0 | BJ61: 0 | BK61: 0 | BL61: 0 | BM61: 0 | BN61: 0 | BO61: 0 | BP61: 0 | BQ61: 0 | BR61: 0 | BS61: =BS56 / BS59 -> 0 | BT61: 0 | BU61: 0 | BV61: 0 | BW61: 0 | BX61: 0 | BY61: 0 | BZ61: 0 | CA61: 0 | CB61: 0 | CC61: 0 | CD61: 0 | CE61: 0 | CF61: 0 | CG61: 0 | CH61: 0
C62: Pre-tax IRR | E62: % | F62: =IRR(G56:CH56) -> 0.1470251391
C64: Debt finance
C66: Loan amount for initial development | E66: $ million | F66: =SUM(G66:CH66) -> 3385.838791 | G66: =G51 * Inputs!$E$258 -> 0 | H66: =H51 * Inputs!$E$258 -> 0 | I66: =I51 * Inputs!$E$258 -> 0 | J66: =J51 * Inputs!$E$258 -> 0 | K66: =K51 * Inputs!$E$258 -> 442.3977069 | L66: =L51 * Inputs!$E$258 -> 965.7412368 | M66: =M51 * Inputs!$E$258 -> 1296.075717 | N66: =N51 * Inputs!$E$258 -> 681.6241299 | O66: =O51 * Inputs!$E$258 -> 0 | P66: =P51 * Inputs!$E$258 -> 0 | Q66: =Q51 * Inputs!$E$258 -> 0 | R66: =R51 * Inputs!$E$258 -> 0 | S66: =S51 * Inputs!$E$258 -> 0 | T66: =T51 * Inputs!$E$258 -> 0 | U66: =U51 * Inputs!$E$258 -> 0 | V66: =V51 * Inputs!$E$258 -> 0 | W66: =W51 * Inputs!$E$258 -> 0 | X66: =X51 * Inputs!$E$258 -> 0 | Y66: =Y51 * Inputs!$E$258 -> 0 | Z66: =Z51 * Inputs!$E$258 -> 0 | AA66: =AA51 * Inputs!$E$258 -> 0 | AB66: =AB51 * Inputs!$E$258 -> 0 | AC66: =AC51 * Inputs!$E$258 -> 0 | AD66: =AD51 * Inputs!$E$258 -> 0 | AE66: =AE51 * Inputs!$E$258 -> 0 | AF66: =AF51 * Inputs!$E$258 -> 0 | AG66: =AG51 * Inputs!$E$258 -> 0 | AH66: =AH51 * Inputs!$E$258 -> 0 | AI66: =AI51 * Inputs!$E$258 -> 0 | AJ66: =AJ51 * Inputs!$E$258 -> 0 | AK66: =AK51 * Inputs!$E$258 -> 0 | AL66: =AL51 * Inputs!$E$258 -> 0 | AM66: =AM51 * Inputs!$E$258 -> 0 | AN66: =AN51 * Inputs!$E$258 -> 0 | AO66: =AO51 * Inputs!$E$258 -> 0 | AP66: =AP51 * Inputs!$E$258 -> 0 | AQ66: =AQ51 * Inputs!$E$258 -> 0 | AR66: =AR51 * Inputs!$E$258 -> 0 | AS66: =AS51 * Inputs!$E$258 -> 0 | AT66: =AT51 * Inputs!$E$258 -> 0 | AU66: =AU51 * Inputs!$E$258 -> 0 | AV66: =AV51 * Inputs!$E$258 -> 0 | AW66: =AW51 * Inputs!$E$258 -> 0 | AX66: =AX51 * Inputs!$E$258 -> 0 | AY66: =AY51 * Inputs!$E$258 -> 0 | AZ66: =AZ51 * Inputs!$E$258 -> 0 | BA66: =BA51 * Inputs!$E$258 -> 0 | BB66: =BB51 * Inputs!$E$258 -> 0 | BC66: =BC51 * Inputs!$E$258 -> 0 | BD66: =BD51 * Inputs!$E$258 -> 0 | BE66: =BE51 * Inputs!$E$258 -> 0 | BF66: =BF51 * Inputs!$E$258 -> 0 | BG66: =BG51 * Inputs!$E$258 -> 0 | BH66: =BH51 * Inputs!$E$258 -> 0 | BI66: =BI51 * Inputs!$E$258 -> 0 | BJ66: =BJ51 * Inputs!$E$258 -> 0 | BK66: =BK51 * Inputs!$E$258 -> 0 | BL66: =BL51 * Inputs!$E$258 -> 0 | BM66: =BM51 * Inputs!$E$258 -> 0 | BN66: =BN51 * Inputs!$E$258 -> 0 | BO66: =BO51 * Inputs!$E$258 -> 0 | BP66: =BP51 * Inputs!$E$258 -> 0 | BQ66: =BQ51 * Inputs!$E$258 -> 0 | BR66: =BR51 * Inputs!$E$258 -> 0 | BS66: =BS51 * Inputs!$E$258 -> 0 | BT66: =BT51 * Inputs!$E$258 -> 0 | BU66: =BU51 * Inputs!$E$258 -> 0 | BV66: =BV51 * Inputs!$E$258 -> 0 | BW66: =BW51 * Inputs!$E$258 -> 0 | BX66: =BX51 * Inputs!$E$258 -> 0 | BY66: =BY51 * Inputs!$E$258 -> 0 | BZ66: =BZ51 * Inputs!$E$258 -> 0 | CA66: =CA51 * Inputs!$E$258 -> 0 | CB66: =CB51 * Inputs!$E$258 -> 0 | CC66: =CC51 * Inputs!$E$258 -> 0 | CD66: =CD51 * Inputs!$E$258 -> 0 | CE66: =CE51 * Inputs!$E$258 -> 0 | CF66: =CF51 * Inputs!$E$258 -> 0 | CG66: =CG51 * Inputs!$E$258 -> 0 | CH66: =CH51 * Inputs!$E$258 -> 0
C67: Loan repayment start | D67: =Inputs!D239 + Inputs!E261 -> 2032
C68: Loan repayment counter | E68: Counter | G68: =IF(G6<$D$67,0,1+F68) -> 0 | H68: 0 | I68: 0 | J68: 0 | K68: 0 | L68: 0 | M68: 0 | N68: 0 | O68: 0 | P68: 0 | Q68: 0 | R68: 1 | S68: 2 | T68: 3 | U68: 4 | V68: 5 | W68: 6 | X68: 7 | Y68: 8 | Z68: 9 | AA68: 10 | AB68: 11 | AC68: 12 | AD68: 13 | AE68: 14 | AF68: 15 | AG68: 16 | AH68: 17 | AI68: 18 | AJ68: 19 | AK68: 20 | AL68: 21 | AM68: =IF(AM6<$D$67,0,1+AL68) -> 22 | AN68: 23 | AO68: 24 | AP68: 25 | AQ68: 26 | AR68: 27 | AS68: 28 | AT68: 29 | AU68: 30 | AV68: 31 | AW68: 32 | AX68: 33 | AY68: 34 | AZ68: 35 | BA68: 36 | BB68: 37 | BC68: 38 | BD68: 39 | BE68: 40 | BF68: 41 | BG68: 42 | BH68: 43 | BI68: 44 | BJ68: 45 | BK68: 46 | BL68: 47 | BM68: 48 | BN68: 49 | BO68: 50 | BP68: 51 | BQ68: 52 | BR68: 53 | BS68: =IF(BS6<$D$67,0,1+BR68) -> 54 | BT68: 55 | BU68: 56 | BV68: 57 | BW68: 58 | BX68: 59 | BY68: 60 | BZ68: 61 | CA68: 62 | CB68: 63 | CC68: 64 | CD68: 65 | CE68: 66 | CF68: 67 | CG68: 68 | CH68: 69
